Workbook

Sheet Figure 1a
A1: Figure 1a: Immunoblot on E-Cadherin, Vimentin, CD44 and GAPDH on 3 NSCLC cell lines in presence or absence of TGFb ran side by side. Blots were cut at corresponding molecular weights and probed simultaneously with the 4 antibodies.

Sheet Figure 1e
A1: Figure 1e: Number of events (cells) per manually gated canonical states as measured by flow cytometry in Cytobank
B3: E | C3: pEMT | D3: pEMT/M | E3: M* | G3: Total # per Time point
A4: Ctrl | B4: 28434 | C4: 2220 | D4: 433 | E4: 4 | G4: =SUM(B4:E4) -> 31091
A5: 2d | B5: 999 | C5: 30846 | D5: 1243 | E5: 80 | G5: =SUM(B5:E5) -> 33168
A6: 6d | B6: 537 | C6: 16954 | D6: 3402 | E6: 127 | G6: 21020
A7: 10d | B7: 1156 | C7: 8185 | D7: 12746 | E7: 819 | G7: 22906
B11: =B4/32395 -> 0.8777280445 | C11: =C4/32395 -> 0.068529094 | D11: 0.01336626023 | E11: 0.000123475845
B12: =B5/34744 -> 0.02875316601 | C12: =C5/34744 -> 0.8878079668 | D12: 0.03577596132 | E12: 0.002302555837
B13: =B6/22470 -> 0.02389853138 | C13: =C6/22470 -> 0.754517134 | D13: 0.1514018692 | E13: 0.005651980418
B14: =B7/23393 -> 0.04941649211 | C14: =C7/23393 -> 0.349890993 | D14: 0.5448638482 | E14: 0.03501047322
B17: Calculated % used in line graph in 1e.
B18: =B11*100 -> 87.77280445 | C18: 6.8529094 | D18: 1.336626023 | E18: 0.0123475845
B19: 2.875316601 | C19: 88.78079668 | D19: 3.577596132 | E19: 0.2302555837
B20: 2.389853138 | C20: 75.4517134 | D20: 15.14018692 | E20: 0.5651980418
B21: 4.941649211 | C21: 34.9890993 | D21: 54.48638482 | E21: 3.501047322

Sheet Figure 3b
A1: Figure 3b: | B1: Number of cells per state at each time point. These were obtained from CCAST analysis shown in tab "Complete CyTOF raw data set")
A2: % were calculated for each state's cell# over total# of cells (from all states) per timepoint - as in Figure 1e
B5: E1 | C5: E2 | D5: E3 | E5: pEMT1 | F5: pEMT2 | G5: pEMT3 | H5: M | I5: MET
A6: 0d | B6: 5208 | C6: 2641 | D6: 2452 | E6: 761 | F6: 161 | G6: 393 | H6: 124 | I6: 51
A7: 2d | B7: 196 | C7: 2140 | D7: 1416 | E7: 3626 | F7: 1161 | G7: 2805 | H7: 829 | I7: 194
A8: 6d | B8: 10 | C8: 199 | D8: 158 | E8: 1035 | F8: 2257 | G8: 2573 | H8: 5723 | I8: 344
A9: 10d | B9: 3 | C9: 41 | D9: 16 | E9: 363 | F9: 1164 | G9: 1469 | H9: 9333 | I9: 423
A10: 2dW | B10: 34 | C10: 139 | D10: 11 | E10: 1050 | F10: 1919 | G10: 207 | H10: 4794 | I10: 4375
A11: 6dW | B11: 276 | C11: 1417 | D11: 36 | E11: 1748 | F11: 1335 | G11: 385 | H11: 5322 | I11: 2286
A12: 10dW | B12: 1383 | C12: 3150 | D12: 68 | E12: 1309 | F12: 999 | G12: 252 | H12: 2856 | I12: 2734

Sheet Figure 3c
A1: Figure 3c : Mean expression levels and standard deviations of the 6 clustering markers in the 8 EMT and MET states
B2: Derived from respective single-cell data from tabs corresponding to subsets of each EMT state (last 8 tabs)
A4: Mean
B5: E1 | C5: E2 | D5: E3 | E5: pEMT1 | F5: pEMT2 | G5: pEMT3 | H5: M | I5: MET
A6: E-Cadherin | B6: 4.39 | C6: 5.43 | D6: 4.43 | E6: 5.56 | F6: 5.05 | G6: 4.77 | H6: 0.81 | I6: 1.02
A7: Vimentin | B7: 1.35 | C7: 1.66 | D7: 1.52 | E7: 5.96 | F7: 8.42 | G7: 7.5 | H7: 8.41 | I7: 8.47
A8: CD44 | B8: 0.08 | C8: 2.75 | D8: 1.57 | E8: 3.22 | F8: 4.83 | G8: 4.66 | H8: 7.03 | I8: 6.95
A9: CD24 | B9: 3.45 | C9: 3.93 | D9: 2.5 | E9: 4.7 | F9: 5.61 | G9: 4.76 | H9: 3.88 | I9: 4.33
A10: Twist | B10: 1.46 | C10: 1.63 | D10: 1.59 | E10: 1.82 | F10: 2.28 | G10: 2.11 | H10: 1.49 | I10: 1.5
A11: MUC1 | B11: 5.61 | C11: 5.94 | D11: 1.81 | E11: 5.72 | F11: 5.57 | G11: 1.87 | H11: 1.49 | I11: 4.5
A14: Standard Deviations
B15: E1 | C15: E2 | D15: E3 | E15: pEMT1 | F15: pEMT2 | G15: pEMT3 | H15: M | I15: MET
A16: E-Cadherin | B16: 1.28 | C16: 1.03 | D16: 1.68 | E16: 1.11 | F16: 1.24 | G16: 1.24 | H16: 0.82 | I16: 0.87
A17: Vimentin | B17: 0.84 | C17: 0.93 | D17: 0.93 | E17: 1.06 | F17: 0.52 | G17: 1.45 | H17: 0.64 | I17: 0.65
A18: CD44 | B18: 0.19 | C18: 1.11 | D18: 1.59 | E18: 1.52 | F18: 1.55 | G18: 1.76 | H18: 0.57 | I18: 0.67
A19: CD24 | B19: 1.52 | C19: 1.49 | D19: 1.18 | E19: 1.41 | F19: 1.14 | G19: 1.42 | H19: 1.24 | I19: 1.21
A20: Twist | B20: 0.84 | C20: 0.92 | D20: 0.93 | E20: 1.06 | F20: 1.32 | G20: 1.2 | H20: 0.89 | I20: 0.86
A21: MUC1 | B21: 1.09 | C21: 1.16 | D21: 1 | E21: 1.17 | F21: 1.19 | G21: 0.93 | H21: 0.89 | I21: 0.93

Sheet Figure 4e
A1: Figure 4e: | B1: This data is similar to the table for Figure 3b source data, both derived from tab "Complete CyTOF raw data set". Differences from numbers in Figure 3b are due to the fact that the sum of each row here was normalized to 10 000 for the bootstrap analysis.
A3: ```{r}
A4: nams=c("E1", "E2", "E3", "pEMT1", "pEMT2", "pEMT3", "M","pMET")
A6: # Data Set 1, with rowsum normalized to 10,000
A7: r0 = c(4417, 2240, 2080, 645, 137, 333, 105, 43)
A8: r1 = c(158, 1730, 1145, 2932, 939, 2268, 670, 157)
A9: r2 = c(8, 162, 128, 842, 1835, 2092, 4653, 280)
A10: r3 = c(2, 32, 12, 283, 909, 1147, 7285, 330)
A11: r4 = c(27, 111, 9, 838, 1532, 165, 3826, 3492)
A12: r5 = c(216, 1107, 28, 1365, 1043, 301, 4156, 1785)
A13: r6 = c(1085, 2470, 53, 1027, 783, 198, 2240, 2144)
A16: rcount1 = t(rbind(r0,r1,r2,r3,r4,r5,r6))
A17: dimnames(rcount1)=list(nams,c("0","2","6","10","w2","w6","w10"))
A18: ```

Sheet Supplementary Fig. 1g
A1: Supplementary Fig. 1g: Multiple samples were ran at the same time for multiple antibodies (PVDF membranes were cut at respective molecular weights for simultaneous antibody staining. Although for Zeb, molecular weight was not marked on the initial film, the lines correspond to the top part of the membrane that would include the ~200kDa Zeb protein band. The bands used for the figure are shown with the red box. To the left, longer exposure time from which Zeb and Slug plots were used for the figure, to the right short exposure time from which Twist and GAPDH were used for the figure.

Sheet Complete CyTOF raw data set
A1: Complete CyTOF raw timecourse data from CCAST analysis- nontransformed (including all 13 clusters that resulted from initial CCAST analysis). From here number of cells per cluster per time point were calculated and used for Figures 3b and 4e (shown in respective figure tabs here)
A2: Some markers measured were not included in manuscript analysis. CD45, FAP and CD31 were measured here for staining and running simultaneously with tumor specimens.
A3: Cluster IDs used in manuscript (8 of 13) : 2(E1), 1(E2), 4(E3), 3(pEMT1), 6 (pEMT2), 7(pEMT3), 11(M), 13(MET)
A4: Timepoints (1-7): 0d, 2d, 6d, 10d, 2dW, 6dW, 10dW
B5: Time | C5: Event_length | D5: CD45 | E5: Barcode_1 | F5: Barcode_2 | G5: Barcode_3 | H5: Barcode_4 | I5: Barcode_5 | J5: Barcode_6 | K5: FAP | L5: CD44 | M5: IdU | N5: Bead_1_CD34 | O5: c_caspase_3 | P5: CD117 | Q5: p_Src | R5: p_EGFR | S5: EGFR__total | T5: pAxl | U5: TROP2 | V5: CD140b | W5: OCT3_4 | X5: Notch_3 | Y5: keratin_8 | Z5: CD274 | AA5: MUC1 | AB5: RUNX1 | AC5: SNAIL | AD5: CD324 | AE5: Nanog | AF5: p_H3__S28 | AG5: CD24 | AH5: p_Smad2__S465_467__Smad3__S423_425_ | AI5: p_NFkB__S529 | AJ5: p_S6__S235_S236 | AK5: p_Rb__S807_S811 | AL5: keratin_7 | AM5: Twist | AN5: CD140a | AO5: b_catenin | AP5: CD31 | AQ5: Slug | AR5: CD104 | AS5: Vimentin | AT5: p_AMPK | AU5: DNA_1 | AV5: DNA_2 | AW5: Viability | AX5: Viability2 | AY5: beadDist | AZ5: days | BA5: Timepoint | BB5: clusterids
A6: 1 | B6: 85755.13281 | C6: 16 | D6: 775.47229 | E6: 1472.432495 | F6: 86.18158722 | G6: 142.6079102 | H6: 2615.141357 | I6: 2481.964355 | J6: 34.69137955 | K6: 0.984971583 | L6: 2.208261013 | M6: 0 | N6: 0.766596138 | O6: 3.948098898 | P6: 1.396000266 | Q6: 0 | R6: 46.05293274 | S6: 3.677530527 | T6: 128.9188843 | U6: 2015.636475 | V6: 3.935002089 | W6: 18.01758575 | X6: 1.320522547 | Y6: 137.0420227 | Z6: 132.3301544 | AA6: 50.14237595 | AB6: 5.777983189 | AC6: 0.432557106 | AD6: 199.2838898 | AE6: 69.03665924 | AF6: 24.41905403 | AG6: 153.1734772 | AH6: 9.106627464 | AI6: 7.118629932 | AJ6: 1378.002441 | AK6: 272.3002625 | AL6: 1068.658203 | AM6: 1.302093387 | AN6: 3.350632191 | AO6: 126.2494736 | AP6: 0 | AQ6: 1.289918065 | AR6: 4.912604809 | AS6: 1.205103278 | AT6: 27.04780388 | AU6: 382.5108032 | AV6: 810.309021 | AW6: 2.145489931 | AX6: 0 | AY6: 78.8036499 | AZ6: 1 | BA6: 1 | BB6: 1
A7: 2 | B7: 86943.33594 | C7: 16 | D7: 1214.429321 | E7: 1890.242065 | F7: 119.2222519 | G7: 173.1918182 | H7: 3242.78418 | I7: 2908.395752 | J7: 23.07149506 | K7: 0.850149155 | L7: 1.009823203 | M7: 0 | N7: 0 | O7: 7.252885342 | P7: 1.574073672 | Q7: 1.109050751 | R7: 45.73281097 | S7: 12.25690079 | T7: 63.67452621 | U7: 2463.184326 | V7: 5.551812649 | W7: 0.670670748 | X7: 0.400679737 | Y7: 740.7752686 | Z7: 56.42180252 | AA7: 216.2197723 | AB7: 3.435388088 | AC7: 1.440586209 | AD7: 196.6754913 | AE7: 109.2050934 | AF7: 386.3110046 | AG7: 187.0391846 | AH7: 25.27285767 | AI7: 2.394033432 | AJ7: 1854.322144 | AK7: 566.0150146 | AL7: 1442.114624 | AM7: 4.446759224 | AN7: 4.417842865 | AO7: 101.5061035 | AP7: 1.267115831 | AQ7: 1.948069572 | AR7: 1.987220764 | AS7: 1.226532578 | AT7: 56.92673874 | AU7: 545.9741211 | AV7: 1155.326172 | AW7: 2.953020573 | AX7: 0.405427903 | AY7: 77.47867584 | AZ7: 1 | BA7: 1 | BB7: 1
A8: 3 | B8: 87460.36719 | C8: 15 | D8: 553.5625 | E8: 2490.679199 | F8: 157.1935272 | G8: 254.7070007 | H8: 3515.237793 | I8: 3335.475586 | J8: 37.3337059 | K8: 0.711274028 | L8: 1.522930384 | M8: 0.424980015 | N8: 1.520611882 | O8: 0 | P8: 1.884108663 | Q8: 0 | R8: 153.6118164 | S8: 3.846037388 | T8: 300.1803589 | U8: 3028.560303 | V8: 1.116007566 | W8: 86.5812912 | X8: 0.192414045 | Y8: 160.288269 | Z8: 12.10469818 | AA8: 270.1217651 | AB8: 1.211084247 | AC8: 0.203099206 | AD8: 280.5986023 | AE8: 119.1999969 | AF8: 86.48535919 | AG8: 44.54529572 | AH8: 26.02023125 | AI8: 9.040277481 | AJ8: 2079.641846 | AK8: 627.5994873 | AL8: 848.350708 | AM8: 1.838469028 | AN8: 1.865937471 | AO8: 226.5377045 | AP8: 0 | AQ8: 0 | AR8: 4.673365116 | AS8: 2.989649057 | AT8: 1.494083047 | AU8: 704.3130493 | AV8: 1485.894043 | AW8: 3.649314404 | AX8: 2.671301365 | AY8: 84.82436371 | AZ8: 1 | BA8: 1 | BB8: 1
A9: 4 | B9: 87844.21875 | C9: 19 | D9: 204.9316559 | E9: 877.0285645 | F9: 58.05276108 | G9: 85.371521 | H9: 1498.194458 | I9: 1416.477539 | J9: 11.29576588 | K9: 0.31914705 | L9: 4.866746902 | M9: 1.679382324 | N9: 1.024565101 | O9: 1.898962617 | P9: 2.267659903 | Q9: 3.084535837 | R9: 26.90274811 | S9: 4.684052467 | T9: 80.34953308 | U9: 425.1292725 | V9: 0.719154298 | W9: 3.997945309 | X9: 1.34004271 | Y9: 32.44867706 | Z9: 11.5711422 | AA9: 91.54303741 | AB9: 10.53207779 | AC9: 0.218905807 | AD9: 249.6650848 | AE9: 31.45473289 | AF9: 92.30106354 | AG9: 61.26965332 | AH9: 25.93527985 | AI9: 45.89514542 | AJ9: 2398.162842 | AK9: 149.8997498 | AL9: 210.4774628 | AM9: 3.464239359 | AN9: 1.343314886 | AO9: 82.66558838 | AP9: 0 | AQ9: 0 | AR9: 1.249919295 | AS9: 2.133544922 | AT9: 5.786800861 | AU9: 154.0046082 | AV9: 288.4394531 | AW9: 1.444735885 | AX9: 0.048262369 | AY9: 63.92498779 | AZ9: 1 | BA9: 1 | BB9: 1
A10: 5 | B10: 88264.6875 | C10: 18 | D10: 517.755249 | E10: 1660.455078 | F10: 74.37654877 | G10: 140.1739502 | H10: 2636.880859 | I10: 2533.741455 | J10: 60.74264908 | K10: 0 | L10: 0.764605761 | M10: 1.865021825 | N10: 2.049111128 | O10: 7.896019936 | P10: 0.352773607 | Q10: 4.824818611 | R10: 19.53472328 | S10: 4.654998779 | T10: 97.54307556 | U10: 1534.363159 | V10: 4.893417835 | W10: 75.08100891 | X10: 0.420150787 | Y10: 71.856987 | Z10: 91.9596405 | AA10: 35.88366318 | AB10: 3.940304518 | AC10: 0 | AD10: 70.31280518 | AE10: 16.33444786 | AF10: 146.2839508 | AG10: 8.507637024 | AH10: 10.86893272 | AI10: 102.7846909 | AJ10: 4155.925781 | AK10: 392.8120422 | AL10: 307.7678223 | AM10: 2.694185972 | AN10: 6.879318714 | AO10: 38.78657913 | AP10: 0 | AQ10: 0 | AR10: 1.182551146 | AS10: 2.025154352 | AT10: 4.91640234 | AU10: 252.7819366 | AV10: 515.4321289 | AW10: 0.137369141 | AX10: 1.806888938 | AY10: 83.78435516 | AZ10: 1 | BA10: 1 | BB10: 2
A11: 6 | B11: 91557.13281 | C11: 15 | D11: 1075.989624 | E11: 1170.673706 | F11: 82.86785126 | G11: 102.9786224 | H11: 1997.55896 | I11: 1928.388916 | J11: 13.78840542 | K11: 0.136655658 | L11: 0 | M11: 0.362045795 | N11: 2.567546844 | O11: 2.426313162 | P11: 0.87691313 | Q11: 2.099599123 | R11: 20.43297958 | S11: 3.216243982 | T11: 175.6888733 | U11: 2264.397217 | V11: 0 | W11: 4.410846233 | X11: 2.460632324 | Y11: 81.36388397 | Z11: 19.06808472 | AA11: 127.3031235 | AB11: 4.686378002 | AC11: 0.622786701 | AD11: 91.28464508 | AE11: 45.21121597 | AF11: 286.4356689 | AG11: 54.73165894 | AH11: 23.76486397 | AI11: 1.406169057 | AJ11: 1945.878418 | AK11: 293.3661804 | AL11: 423.589325 | AM11: 4.882397652 | AN11: 2.444390297 | AO11: 115.0853119 | AP11: 0 | AQ11: 2.133394718 | AR11: 5.931194782 | AS11: 1.634232044 | AT11: 0 | AU11: 289.1231079 | AV11: 611.3909912 | AW11: 1.638384819 | AX11: 1.366791725 | AY11: 77.30783081 | AZ11: 1 | BA11: 1 | BB11: 2
A12: 7 | B12: 93530.35156 | C12: 17 | D12: 474.1968994 | E12: 1459.092285 | F12: 95.39719391 | G12: 123.1966629 | H12: 2468.341797 | I12: 2230.606689 | J12: 29.65526581 | K12: 2.334951878 | L12: 3.407006979 | M12: 0 | N12: 1.719869494 | O12: 13.70797729 | P12: 0 | Q12: 15.7443924 | R12: 81.2437973 | S12: 25.45654488 | T12: 138.7448883 | U12: 1300.415527 | V12: 1.620073438 | W12: 60.79712296 | X12: 2.325524807 | Y12: 202.9960632 | Z12: 111.268959 | AA12: 165.4319611 | AB12: 7.101834297 | AC12: 3.746118546 | AD12: 52.10578156 | AE12: 64.4594574 | AF12: 246.4896393 | AG12: 592.3242798 | AH12: 93.99812317 | AI12: 54.71440125 | AJ12: 4605.881348 | AK12: 499.0583191 | AL12: 1323.018677 | AM12: 2.859261513 | AN12: 3.236868858 | AO12: 163.3880615 | AP12: 0 | AQ12: 0.631867766 | AR12: 3.912375689 | AS12: 394.9585876 | AT12: 2.487779379 | AU12: 238.7892151 | AV12: 591.9498901 | AW12: 1.931827545 | AX12: 0 | AY12: 88.68997192 | AZ12: 1 | BA12: 1 | BB12: 3
A13: 8 | B13: 95011.40625 | C13: 17 | D13: 306.0847473 | E13: 1696.413208 | F13: 144.231842 | G13: 183.2244263 | H13: 2623.03833 | I13: 2491.274658 | J13: 78.89958954 | K13: 0 | L13: 3.995289803 | M13: 0 | N13: 2.966713905 | O13: 8.649982452 | P13: 2.864423752 | Q13: 8.609603882 | R13: 123.9387665 | S13: 11.9745903 | T13: 227.1429138 | U13: 1966.640991 | V13: 2.163878441 | W13: 36.57866669 | X13: 1.268000484 | Y13: 275.5658264 | Z13: 146.8221436 | AA13: 45.38480759 | AB13: 1.603068233 | AC13: 0 | AD13: 148.3922119 | AE13: 143.9790955 | AF13: 272.3964844 | AG13: 87.36316681 | AH13: 143.8601074 | AI13: 281.4501648 | AJ13: 4583.416992 | AK13: 706.1738281 | AL13: 922.6095581 | AM13: 1.537682295 | AN13: 2.030797243 | AO13: 80.93157196 | AP13: 0 | AQ13: 0.145504057 | AR13: 1.103727818 | AS13: 2.754184246 | AT13: 1.86519134 | AU13: 392.6698608 | AV13: 921.3363037 | AW13: 2.465894938 | AX13: 1.846601009 | AY13: 94.55634308 | AZ13: 1 | BA13: 1 | BB13: 1
A14: 9 | B14: 95033.72656 | C14: 16 | D14: 1592.441406 | E14: 2238.546387 | F14: 185.6621246 | G14: 178.7659607 | H14: 3242.960449 | I14: 3095.745605 | J14: 33.31118774 | K14: 0 | L14: 7.077198505 | M14: 0 | N14: 1.729887128 | O14: 1.45879519 | P14: 2.352584124 | Q14: 1.074592948 | R14: 32.10519409 | S14: 4.57976675 | T14: 30.81958008 | U14: 1075.448608 | V14: 0.580376744 | W14: 49.48952484 | X14: 3.529862404 | Y14: 192.1140289 | Z14: 19.21032333 | AA14: 3.062063456 | AB14: 1.122346282 | AC14: 4.116503716 | AD14: 127.7057648 | AE14: 110.9034958 | AF14: 102.8306198 | AG14: 61.71540833 | AH14: 31.67879677 | AI14: 12.42350197 | AJ14: 3342.907959 | AK14: 493.8534546 | AL14: 1696.603027 | AM14: 3.275429487 | AN14: 4.949899197 | AO14: 337.7461243 | AP14: 0.657899916 | AQ14: 0.521910965 | AR14: 0 | AS14: 1.369815707 | AT14: 26.0689888 | AU14: 528.4119873 | AV14: 1046.134888 | AW14: 2.229654312 | AX14: 0.520870864 | AY14: 67.60020447 | AZ14: 1 | BA14: 1 | BB14: 5
A15: 10 | B15: 96774.55469 | C15: 18 | D15: 647.3980103 | E15: 1621.614502 | F15: 118.8070297 | G15: 150.520874 | H15: 2818.547363 | I15: 2510.359863 | J15: 51.35174942 | K15: 0.150241256 | L15: 0 | M15: 0 | N15: 0.824439108 | O15: 1.601908565 | P15: 2.625472784 | Q15: 1.018583179 | R15: 104.8259506 | S15: 8.719797134 | T15: 240.8575439 | U15: 1503.698486 | V15: 0.428698003 | W15: 67.55771637 | X15: 2.773342848 | Y15: 140.70578 | Z15: 134.7463226 | AA15: 309.8604736 | AB15: 0.199360862 | AC15: 2.128808022 | AD15: 149.0517426 | AE15: 25.4627018 | AF15: 125.6134262 | AG15: 179.5595703 | AH15: 38.48839188 | AI15: 2.857062817 | AJ15: 2332.208496 | AK15: 267.0753479 | AL15: 1083.678589 | AM15: 1.98518908 | AN15: 3.643376827 | AO15: 113.7783585 | AP15: 0.358682603 | AQ15: 2.292247295 | AR15: 7.786026955 | AS15: 7.508159161 | AT15: 2.671984196 | AU15: 438.645813 | AV15: 770.0356445 | AW15: 6.975389481 | AX15: 2.22956109 | AY15: 86.81343842 | AZ15: 1 | BA15: 1 | BB15: 2
A16: 11 | B16: 96865.11719 | C16: 17 | D16: 1060.911255 | E16: 1701.992188 | F16: 115.8082504 | G16: 103.6307907 | H16: 2794.248535 | I16: 2415.212646 | J16: 29.84486389 | K16: 0.229903623 | L16: 7.784932137 | M16: 0 | N16: 2.824598789 | O16: 1.060806632 | P16: 3.543806791 | Q16: 4.519547462 | R16: 3.943285227 | S16: 8.978650093 | T16: 5.893084049 | U16: 509.5469055 | V16: 1.698974013 | W16: 2.993112803 | X16: 3.199081182 | Y16: 63.61540222 | Z16: 53.95840836 | AA16: 511.3695984 | AB16: 4.892061234 | AC16: 2.653577805 | AD16: 120.5666351 | AE16: 59.33311462 | AF16: 26.49638939 | AG16: 152.8096466 | AH16: 4.023378849 | AI16: 7.061992168 | AJ16: 761.0068359 | AK16: 376.5819397 | AL16: 1953.954468 | AM16: 51.27404022 | AN16: 1.104413509 | AO16: 167.0822449 | AP16: 0.388472289 | AQ16: 0.677787364 | AR16: 2.755224943 | AS16: 1934.974487 | AT16: 31.70307541 | AU16: 308.8106079 | AV16: 595.9273682 | AW16: 4.120566845 | AX16: 5.169951916 | AY16: 66.45200348 | AZ16: 1 | BA16: 1 | BB16: 6
A17: 12 | B17: 97204.84375 | C17: 18 | D17: 332.9421387 | E17: 1637.890381 | F17: 85.92786407 | G17: 155.850235 | H17: 3157.272461 | I17: 2703.876953 | J17: 28.44330406 | K17: 0 | L17: 1.927025914 | M17: 0 | N17: 2.681123734 | O17: 2.763814211 | P17: 1.733612418 | Q17: 2.579505682 | R17: 76.5015564 | S17: 6.613529682 | T17: 185.1941376 | U17: 697.7209473 | V17: 0.353310406 | W17: 31.17299271 | X17: 0 | Y17: 77.05534363 | Z17: 27.8792057 | AA17: 79.58450317 | AB17: 4.391822338 | AC17: 2.839194775 | AD17: 41.30705261 | AE17: 64.62841034 | AF17: 327.8804016 | AG17: 69.59204865 | AH17: 40.5043869 | AI17: 89.15953827 | AJ17: 3839.023193 | AK17: 432.1574707 | AL17: 367.8278198 | AM17: 1.547356009 | AN17: 1.362769604 | AO17: 75.28910065 | AP17: 0.353118002 | AQ17: 0 | AR17: 1.267169118 | AS17: 1.184986353 | AT17: 4.632790565 | AU17: 465.9549866 | AV17: 904.1422119 | AW17: 1.182534933 | AX17: 2.191422939 | AY17: 77.03421021 | AZ17: 1 | BA17: 1 | BB17: 1
A18: 13 | B18: 98497.67969 | C18: 16 | D18: 426.034729 | E18: 2692.448975 | F18: 189.0475159 | G18: 309.0497437 | H18: 3993.531738 | I18: 3706.804688 | J18: 87.06694794 | K18: 0 | L18: 2.146249771 | M18: 0 | N18: 1.346286893 | O18: 0.279463887 | P18: 0 | Q18: 2.421275377 | R18: 80.01351929 | S18: 1.025843978 | T18: 150.9642792 | U18: 2738.301025 | V18: 0.414468646 | W18: 222.209137 | X18: 1.244238496 | Y18: 167.8331451 | Z18: 61.87477112 | AA18: 43.68477249 | AB18: 2.363336325 | AC18: 0.229078248 | AD18: 120.283638 | AE18: 39.82275772 | AF18: 64.60699463 | AG18: 6.021442413 | AH18: 11.99881649 | AI18: 0 | AJ18: 2438.955566 | AK18: 330.9519348 | AL18: 948.7092896 | AM18: 1.490000844 | AN18: 0.160381168 | AO18: 82.90415192 | AP18: 0 | AQ18: 0.933817625 | AR18: 0.418108314 | AS18: 2.365294218 | AT18: 4.63466692 | AU18: 949.0231323 | AV18: 1948.955322 | AW18: 1.454995394 | AX18: 0.14985314 | AY18: 79.30232239 | AZ18: 1 | BA18: 1 | BB18: 1
A19: 14 | B19: 98503.08594 | C19: 14 | D19: 644.6766968 | E19: 1939.705811 | F19: 121.9185181 | G19: 227.9434967 | H19: 3142.709717 | I19: 2831.270996 | J19: 73.14472961 | K19: 2.194948912 | L19: 14.94085026 | M19: 0 | N19: 1.066165328 | O19: 1.386349201 | P19: 1.436957359 | Q19: 1.599552751 | R19: 45.11403275 | S19: 11.00853252 | T19: 93.2513504 | U19: 1601.045044 | V19: 0.332007319 | W19: 33.65781021 | X19: 1.333085775 | Y19: 396.0374756 | Z19: 92.15146637 | AA19: 144.4602509 | AB19: 1.190153718 | AC19: 0.472908318 | AD19: 237.6592712 | AE19: 118.9399719 | AF19: 16.34144783 | AG19: 147.7877808 | AH19: 9.816918373 | AI19: 3.885028601 | AJ19: 984.3808594 | AK19: 240.7802429 | AL19: 1502.661499 | AM19: 42.89800644 | AN19: 0.194746867 | AO19: 133.3232422 | AP19: 0.496513724 | AQ19: 1.520401716 | AR19: 1.798105717 | AS19: 1.869876385 | AT19: 29.21539879 | AU19: 501.7427979 | AV19: 1348.925049 | AW19: 1.018626094 | AX19: 1.481307507 | AY19: 73.69676971 | AZ19: 1 | BA19: 1 | BB19: 1
A20: 15 | B20: 98529.375 | C20: 17 | D20: 629.4873657 | E20: 1340.639404 | F20: 84.3155899 | G20: 123.7800293 | H20: 2325.97998 | I20: 2112.366455 | J20: 46.83142471 | K20: 0 | L20: 0.252022684 | M20: 0 | N20: 2.428974867 | O20: 4.170068741 | P20: 0.806415796 | Q20: 1.242136002 | R20: 24.98484612 | S20: 5.422446251 | T20: 9.765760422 | U20: 931.2921753 | V20: 0.760291278 | W20: 8.491411209 | X20: 1.789471507 | Y20: 35.14558029 | Z20: 3.104394197 | AA20: 5.155764103 | AB20: 6.921527386 | AC20: 2.152723551 | AD20: 121.9505081 | AE20: 38.56108856 | AF20: 34.22356796 | AG20: 1.19524157 | AH20: 2.000798464 | AI20: 12.50863075 | AJ20: 279.1419373 | AK20: 217.0877991 | AL20: 345.5123901 | AM20: 5.904563427 | AN20: 1.597097397 | AO20: 234.4148407 | AP20: 0 | AQ20: 0.833540142 | AR20: 2.062911034 | AS20: 2.203007936 | AT20: 41.49644089 | AU20: 387.8656921 | AV20: 706.5787964 | AW20: 0.740366518 | AX20: 6.618118286 | AY20: 65.11406708 | AZ20: 1 | BA20: 1 | BB20: 4
A21: 16 | B21: 101330.5703 | C21: 14 | D21: 311.754303 | E21: 2593.46875 | F21: 155.3782043 | G21: 171.6053314 | H21: 3704.48584 | I21: 3517.431885 | J21: 72.60897064 | K21: 0 | L21: 3.074657679 | M21: 0 | N21: 1.808679104 | O21: 0.426835269 | P21: 0 | Q21: 4.809233665 | R21: 174.5606995 | S21: 30.68659401 | T21: 456.3484192 | U21: 1452.520996 | V21: 0.335882843 | W21: 2.604918718 | X21: 0 | Y21: 569.9422607 | Z21: 122.5300446 | AA21: 670.9584961 | AB21: 1.961539388 | AC21: 2.409880638 | AD21: 49.745224 | AE21: 30.60444832 | AF21: 86.22583771 | AG21: 23.03538895 | AH21: 0.997068048 | AI21: 9.554638863 | AJ21: 2885.533203 | AK21: 313.4057007 | AL21: 273.3751526 | AM21: 2.387370348 | AN21: 2.088417768 | AO21: 168.4801178 | AP21: 0 | AQ21: 0.521537602 | AR21: 58.53269577 | AS21: 3.046958447 | AT21: 0.45415163 | AU21: 1060.401733 | AV21: 1908.592773 | AW21: 0.283984751 | AX21: 1.287476659 | AY21: 91.81058502 | AZ21: 1 | BA21: 1 | BB21: 1
A22: 17 | B22: 103280.3516 | C22: 15 | D22: 513.8984375 | E22: 1600.477905 | F22: 124.0245285 | G22: 161.5975342 | H22: 2481.654297 | I22: 2469.17041 | J22: 64.40979767 | K22: 0 | L22: 2.867130995 | M22: 1.730706096 | N22: 2.984127283 | O22: 0 | P22: 1.723124027 | Q22: 2.551450729 | R22: 55.29981613 | S22: 6.771428108 | T22: 114.1258698 | U22: 812.645813 | V22: 0.702722132 | W22: 39.14484406 | X22: 0 | Y22: 99.99531555 | Z22: 96.76215363 | AA22: 80.62378693 | AB22: 4.865993977 | AC22: 1.774562359 | AD22: 39.28193665 | AE22: 16.18740845 | AF22: 268.2549744 | AG22: 5.793457031 | AH22: 3.012412786 | AI22: 29.28050423 | AJ22: 2826.418457 | AK22: 301.8318176 | AL22: 366.4270325 | AM22: 2.426934242 | AN22: 0 | AO22: 150.491272 | AP22: 1.092795134 | AQ22: 0.59145385 | AR22: 1.828092098 | AS22: 2.7552526 | AT22: 2.478373289 | AU22: 310.4900513 | AV22: 680.5650635 | AW22: 1.480057716 | AX22: 3.352684498 | AY22: 84.77099609 | AZ22: 1 | BA22: 1 | BB22: 1
A23: 18 | B23: 104450.875 | C23: 15 | D23: 490.5559692 | E23: 2895.591553 | F23: 252.142807 | G23: 205.1997833 | H23: 4388.442871 | I23: 4046.755615 | J23: 77.15343475 | K23: 0.466424078 | L23: 7.942903042 | M23: 0 | N23: 1.301515579 | O23: 0.120752193 | P23: 1.458702326 | Q23: 0 | R23: 42.69173813 | S23: 1.928009868 | T23: 125.1479874 | U23: 1863.553101 | V23: 0 | W23: 13.51633358 | X23: 0.506075501 | Y23: 156.6041107 | Z23: 65.7921524 | AA23: 96.58807373 | AB23: 0.468949229 | AC23: 2.479772568 | AD23: 278.6836243 | AE23: 62.22312164 | AF23: 25.71396446 | AG23: 29.84811783 | AH23: 1.7688272 | AI23: 2.779753447 | AJ23: 1276.214844 | AK23: 130.4434509 | AL23: 1289.078125 | AM23: 3.483924627 | AN23: 3.000489473 | AO23: 171.2778015 | AP23: 0.814106584 | AQ23: 0 | AR23: 1.928124547 | AS23: 2.326992989 | AT23: 26.98899269 | AU23: 930.8587646 | AV23: 1777.065186 | AW23: 1.784647107 | AX23: 0.215731382 | AY23: 68.79360199 | AZ23: 1 | BA23: 1 | BB23: 1
A24: 19 | B24: 105246.7969 | C24: 17 | D24: 649.9205933 | E24: 1203.36145 | F24: 113.1655273 | G24: 128.3519897 | H24: 2110.712891 | I24: 1948.774292 | J24: 74.30619812 | K24: 0.399153799 | L24: 1.15963316 | M24: 0 | N24: 0 | O24: 3.541566372 | P24: 1.026288033 | Q24: 0.453813076 | R24: 18.44709206 | S24: 12.62605667 | T24: 52.26625443 | U24: 992.7409058 | V24: 8.769577026 | W24: 79.66468048 | X24: 1.778704166 | Y24: 53.5060997 | Z24: 32.36911392 | AA24: 222.6977081 | AB24: 2.125620127 | AC24: 1.861014366 | AD24: 160.4190216 | AE24: 47.46546936 | AF24: 32.14638138 | AG24: 142.7385712 | AH24: 5.0286026 | AI24: 11.73544598 | AJ24: 700.1136475 | AK24: 252.7851868 | AL24: 1072.048584 | AM24: 9.668656349 | AN24: 6.150465488 | AO24: 175.9539337 | AP24: 0.597839892 | AQ24: 0 | AR24: 11.73489189 | AS24: 2.823270321 | AT24: 5.605588913 | AU24: 279.6288147 | AV24: 563.8878784 | AW24: 0.684047937 | AX24: 0 | AY24: 73.30550385 | AZ24: 1 | BA24: 1 | BB24: 1
A25: 20 | B25: 106146.6172 | C25: 20 | D25: 923.6851807 | E25: 1362.427856 | F25: 98.3886795 | G25: 146.0552979 | H25: 2395.875977 | I25: 2139.983643 | J25: 54.32987976 | K25: 0 | L25: 2.782895088 | M25: 0 | N25: 4.46341753 | O25: 2.310019016 | P25: 2.630951643 | Q25: 1.191713333 | R25: 75.90449524 | S25: 5.150924206 | T25: 170.2452698 | U25: 611.1025391 | V25: 2.960099936 | W25: 16.11892319 | X25: 2.109011889 | Y25: 175.0403137 | Z25: 7.690086842 | AA25: 4.595380306 | AB25: 2.830642462 | AC25: 4.032435417 | AD25: 165.4139709 | AE25: 67.63092804 | AF25: 93.41902924 | AG25: 17.29500198 | AH25: 26.3881588 | AI25: 21.6959362 | AJ25: 1546.340576 | AK25: 420.561554 | AL25: 1497.643188 | AM25: 29.07321358 | AN25: 3.947702646 | AO25: 146.3716583 | AP25: 0.428016007 | AQ25: 1.151655555 | AR25: 3.198670626 | AS25: 2.83582449 | AT25: 2.317958355 | AU25: 297.0309448 | AV25: 598.6975708 | AW25: 5.948451519 | AX25: 0 | AY25: 76.88293457 | AZ25: 1 | BA25: 1 | BB25: 4
A26: 21 | B26: 106172.4844 | C26: 18 | D26: 420.7762451 | E26: 2337.875977 | F26: 143.7144928 | G26: 201.4627533 | H26: 3705.279785 | I26: 3426.821533 | J26: 22.65936661 | K26: 0.399944693 | L26: 0 | M26: 0.262689024 | N26: 3.923947573 | O26: 3.827984095 | P26: 0.476582259 | Q26: 3.614259958 | R26: 71.79278564 | S26: 9.368559837 | T26: 87.89392853 | U26: 2212.697266 | V26: 2.209869385 | W26: 63.6560173 | X26: 2.028534412 | Y26: 398.09021 | Z26: 41.00570679 | AA26: 105.4698715 | AB26: 5.710864544 | AC26: 3.798663378 | AD26: 399.9995117 | AE26: 21.16448021 | AF26: 58.29975128 | AG26: 3.191275597 | AH26: 1.906822562 | AI26: 2.852384806 | AJ26: 793.4151611 | AK26: 121.5284729 | AL26: 539.4276733 | AM26: 3.389764309 | AN26: 6.91956234 | AO26: 86.62775421 | AP26: 0 | AQ26: 0.267101139 | AR26: 1.89091754 | AS26: 480.3726196 | AT26: 13.61503983 | AU26: 602.7116699 | AV26: 1205.18042 | AW26: 3.565479994 | AX26: 1.670196176 | AY26: 59.55658722 | AZ26: 1 | BA26: 1 | BB26: 3
A27: 22 | B27: 106490.1797 | C27: 16 | D27: 365.833313 | E27: 1524.591187 | F27: 101.5015182 | G27: 201.7275085 | H27: 2670.618896 | I27: 2457.485352 | J27: 38.86021805 | K27: 0.287178189 | L27: 4.016866207 | M27: 0 | N27: 0.42450133 | O27: 9.68743515 | P27: 1.745514035 | Q27: 4.541038036 | R27: 15.10537434 | S27: 0 | T27: 70.31720734 | U27: 1671.919312 | V27: 0 | W27: 14.7726593 | X27: 3.869137049 | Y27: 247.0800934 | Z27: 111.9592361 | AA27: 168.7220459 | AB27: 0 | AC27: 0.256898493 | AD27: 26.96739769 | AE27: 6.040344238 | AF27: 23.96352196 | AG27: 6.070758343 | AH27: 4.868865967 | AI27: 9.559559822 | AJ27: 1364.19165 | AK27: 198.0220032 | AL27: 335.4555664 | AM27: 2.977027893 | AN27: 1.443583369 | AO27: 26.16077042 | AP27: 0.655888915 | AQ27: 2.954520464 | AR27: 3.742647886 | AS27: 2.697630644 | AT27: 4.901059628 | AU27: 334.4853516 | AV27: 763.8944702 | AW27: 1.80053699 | AX27: 0.256802887 | AY27: 80.25705719 | AZ27: 1 | BA27: 1 | BB27: 1
A28: 23 | B28: 107296.1094 | C28: 17 | D28: 237.2308807 | E28: 791.6107178 | F28: 81.34400177 | G28: 76.8200531 | H28: 1444.356079 | I28: 1293.854492 | J28: 36.30818939 | K28: 0 | L28: 3.526811123 | M28: 0 | N28: 1.566252828 | O28: 4.856332779 | P28: 1.30909586 | Q28: 3.305839062 | R28: 113.1585159 | S28: 4.255794048 | T28: 161.845108 | U28: 299.3858643 | V28: 1.3149997 | W28: 7.599087715 | X28: 0.00057329 | Y28: 63.30641556 | Z28: 12.05839539 | AA28: 0.546996415 | AB28: 13.66474533 | AC28: 3.96625638 | AD28: 109.3426895 | AE28: 92.43114471 | AF28: 41.96451187 | AG28: 33.07251358 | AH28: 11.04194546 | AI28: 15.03945923 | AJ28: 862.4539185 | AK28: 411.0029297 | AL28: 624.1143799 | AM28: 7.612026215 | AN28: 1.959061027 | AO28: 111.1167755 | AP28: 0 | AQ28: 1.575621247 | AR28: 0.395857424 | AS28: 5.82746172 | AT28: 7.769203186 | AU28: 161.9708099 | AV28: 421.3711853 | AW28: 3.000991821 | AX28: 0.460433573 | AY28: 73.55876923 | AZ28: 1 | BA28: 1 | BB28: 4
A29: 24 | B29: 107547.4609 | C29: 21 | D29: 675.210022 | E29: 2345.951172 | F29: 137.9297333 | G29: 244.4446259 | H29: 3881.918945 | I29: 3454.092773 | J29: 70.54498291 | K29: 1.486246824 | L29: 1.987714887 | M29: 0 | N29: 0 | O29: 0 | P29: 2.23174262 | Q29: 0.419981211 | R29: 13.67197609 | S29: 8.709500313 | T29: 70.45121765 | U29: 1662.058716 | V29: 3.591847658 | W29: 32.12792587 | X29: 2.415399075 | Y29: 1228.015869 | Z29: 109.952774 | AA29: 253.0586243 | AB29: 4.933774948 | AC29: 3.163821697 | AD29: 95.23999023 | AE29: 105.8347015 | AF29: 312.0587769 | AG29: 71.8835907 | AH29: 49.05599594 | AI29: 101.4128418 | AJ29: 5096.472656 | AK29: 871.3147583 | AL29: 1057.767944 | AM29: 6.400743484 | AN29: 1.589738727 | AO29: 289.2719421 | AP29: 0 | AQ29: 0 | AR29: 1.024355173 | AS29: 2.765501261 | AT29: 3.947323322 | AU29: 511.97995 | AV29: 1073.903931 | AW29: 8.756358147 | AX29: 2.538328409 | AY29: 93.51721191 | AZ29: 1 | BA29: 1 | BB29: 1
A30: 25 | B30: 107861.5469 | C30: 19 | D30: 621.8995361 | E30: 1633.831421 | F30: 116.7557449 | G30: 136.6471863 | H30: 2802.010254 | I30: 2599.34668 | J30: 64.21117401 | K30: 0.021938052 | L30: 0.32161808 | M30: 0.938488007 | N30: 1.296212196 | O30: 1.096989632 | P30: 0.46441558 | Q30: 6.655688763 | R30: 109.4408188 | S30: 32.41847229 | T30: 273.0471497 | U30: 2080.380859 | V30: 3.888593197 | W30: 9.781571388 | X30: 4.875964642 | Y30: 276.3440857 | Z30: 186.8301086 | AA30: 150.2894287 | AB30: 6.291185856 | AC30: 3.142816067 | AD30: 16.71010399 | AE30: 68.05033875 | AF30: 54.87024689 | AG30: 13.17155552 | AH30: 6.934623718 | AI30: 11.52045441 | AJ30: 2263.223389 | AK30: 308.0710144 | AL30: 462.1422729 | AM30: 6.622841358 | AN30: 1.519919038 | AO30: 141.4774628 | AP30: 0 | AQ30: 2.743928909 | AR30: 7.671846867 | AS30: 5.33993721 | AT30: 11.76688385 | AU30: 379.9174805 | AV30: 786.9497681 | AW30: 7.383225441 | AX30: 1.724414945 | AY30: 81.40074921 | AZ30: 1 | BA30: 1 | BB30: 2
A31: 26 | B31: 108758.8281 | C31: 16 | D31: 656.7855835 | E31: 2754.443359 | F31: 196.5657196 | G31: 198.2827606 | H31: 3618.703613 | I31: 3626.819824 | J31: 123.5902176 | K31: 2.814832449 | L31: 7.021062374 | M31: 0 | N31: 2.866452217 | O31: 7.081249237 | P31: 3.392795324 | Q31: 0.132689297 | R31: 43.45389938 | S31: 15.78032303 | T31: 89.21710205 | U31: 2646.786133 | V31: 0.316203207 | W31: 14.70626163 | X31: 0 | Y31: 545.6853027 | Z31: 195.5507355 | AA31: 37.85132217 | AB31: 1.293700337 | AC31: 0 | AD31: 164.8550568 | AE31: 24.05421257 | AF31: 73.04656982 | AG31: 184.7716522 | AH31: 2.830770731 | AI31: 0.64014864 | AJ31: 2002.500488 | AK31: 245.88974 | AL31: 1043.666016 | AM31: 3.509695768 | AN31: 1.612879872 | AO31: 12.12334251 | AP31: 0.165461645 | AQ31: 1.420841575 | AR31: 10.29458237 | AS31: 1.763219953 | AT31: 1.978427529 | AU31: 998.6175537 | AV31: 1878.281738 | AW31: 4.652492523 | AX31: 0.640917957 | AY31: 92.06801605 | AZ31: 1 | BA31: 1 | BB31: 1
A32: 27 | B32: 109537.0547 | C32: 16 | D32: 372.2848206 | E32: 1240.805176 | F32: 108.1909637 | G32: 142.3266296 | H32: 2191.026367 | I32: 2019.055542 | J32: 67.4592514 | K32: 0.509864748 | L32: 2.468773127 | M32: 0 | N32: 0 | O32: 10.78788471 | P32: 1.341141224 | Q32: 5.079624176 | R32: 18.75986671 | S32: 7.369907379 | T32: 108.0534744 | U32: 2513.068115 | V32: 3.261382341 | W32: 12.46158123 | X32: 1.77553916 | Y32: 198.3075409 | Z32: 9.841653824 | AA32: 147.5099182 | AB32: 0.999088407 | AC32: 1.832705379 | AD32: 49.59557724 | AE32: 28.29161072 | AF32: 14.60324669 | AG32: 5.078289509 | AH32: 10.28912735 | AI32: 10.86183453 | AJ32: 1889.883789 | AK32: 142.5714874 | AL32: 344.6324768 | AM32: 1.981817007 | AN32: 1.411101818 | AO32: 127.643486 | AP32: 0 | AQ32: 0.294584304 | AR32: 55.69803238 | AS32: 3.193018913 | AT32: 4.791325092 | AU32: 498.1856995 | AV32: 877.1564941 | AW32: 1.36853826 | AX32: 0.360711843 | AY32: 65.33616638 | AZ32: 1 | BA32: 1 | BB32: 1
A33: 28 | B33: 109563.3594 | C33: 17 | D33: 975.328186 | E33: 2633.784668 | F33: 203.2019348 | G33: 329.5942993 | H33: 3783.291748 | I33: 3679.208252 | J33: 70.54067993 | K33: 0.370887011 | L33: 4.026449203 | M33: 0 | N33: 2.437792301 | O33: 0 | P33: 0.462761551 | Q33: 2.903543949 | R33: 300.2595825 | S33: 12.81957817 | T33: 747.8129272 | U33: 826.8619385 | V33: 1.75443697 | W33: 11.77756214 | X33: 3.752919912 | Y33: 90.34272003 | Z33: 410.7856445 | AA33: 1.091927171 | AB33: 1.615469337 | AC33: 3.534327745 | AD33: 24.4443531 | AE33: 17.8221302 | AF33: 7.689643383 | AG33: 2.003789186 | AH33: 23.88550949 | AI33: 70.34062958 | AJ33: 4106.015625 | AK33: 618.411438 | AL33: 644.4732056 | AM33: 1.56240356 | AN33: 3.839703321 | AO33: 104.4959641 | AP33: 0 | AQ33: 0 | AR33: 0 | AS33: 195.7577667 | AT33: 2.664587975 | AU33: 565.0891113 | AV33: 1375.077026 | AW33: 10.25586796 | AX33: 2.984410524 | AY33: 101.5092773 | AZ33: 1 | BA33: 1 | BB33: 7
A34: 29 | B34: 110353.7656 | C34: 14 | D34: 185.6904755 | E34: 1083.532837 | F34: 120.2363129 | G34: 146.2568512 | H34: 2126.519043 | I34: 1896.377075 | J34: 37.36546707 | K34: 0 | L34: 1.545729995 | M34: 0 | N34: 0.125889808 | O34: 2.408629894 | P34: 0 | Q34: 4.925023556 | R34: 54.77970123 | S34: 1.220594525 | T34: 88.2910614 | U34: 647.8240967 | V34: 1.001596928 | W34: 2.348389387 | X34: 0.421289504 | Y34: 46.67935181 | Z34: 76.5080719 | AA34: 175.4391479 | AB34: 1.211661935 | AC34: 0 | AD34: 22.35245895 | AE34: 25.91628838 | AF34: 110.5699921 | AG34: 7.556423664 | AH34: 13.62062836 | AI34: 5.619125843 | AJ34: 1807.640381 | AK34: 189.1522064 | AL34: 337.4178162 | AM34: 5.282372475 | AN34: 2.97426033 | AO34: 37.03243256 | AP34: 0 | AQ34: 0 | AR34: 1.809088707 | AS34: 0.2793006 | AT34: 1.874292612 | AU34: 344.8416138 | AV34: 790.7490234 | AW34: 0.025413658 | AX34: 2.116928577 | AY34: 83.19523621 | AZ34: 1 | BA34: 1 | BB34: 1
A35: 30 | B35: 110374.6484 | C35: 16 | D35: 467.5745239 | E35: 1460.754517 | F35: 104.8253632 | G35: 135.9010468 | H35: 2658.357178 | I35: 2343.714355 | J35: 52.69572449 | K35: 0 | L35: 2.371536016 | M35: 0 | N35: 1.044754982 | O35: 3.923797131 | P35: 2.521014214 | Q35: 0 | R35: 20.08074379 | S35: 4.086203098 | T35: 21.59004784 | U35: 1218.821777 | V35: 0.515401721 | W35: 82.02975464 | X35: 0 | Y35: 25.49423027 | Z35: 21.3467865 | AA35: 190.6604004 | AB35: 0 | AC35: 0.889815748 | AD35: 87.32193756 | AE35: 17.08777809 | AF35: 6.204005241 | AG35: 5.055811405 | AH35: 1.357069254 | AI35: 2.625897646 | AJ35: 781.3755493 | AK35: 61.75209808 | AL35: 319.24823 | AM35: 2.718394041 | AN35: 1.244622231 | AO35: 165.3452301 | AP35: 0 | AQ35: 0.844198644 | AR35: 0.388684869 | AS35: 0.21787253 | AT35: 14.25782967 | AU35: 300.0453796 | AV35: 682.6237183 | AW35: 1.585482001 | AX35: 0.843854547 | AY35: 57.96947098 | AZ35: 1 | BA35: 1 | BB35: 1
A36: 31 | B36: 110513.9688 | C36: 19 | D36: 370.670166 | E36: 1261.957886 | F36: 103.9674301 | G36: 166.695816 | H36: 2130.177246 | I36: 1982.905518 | J36: 112.8203278 | K36: 2.412973881 | L36: 0.719742 | M36: 0 | N36: 2.453219891 | O36: 3.025677681 | P36: 0.749148667 | Q36: 5.253209114 | R36: 52.87472153 | S36: 1.567367196 | T36: 110.1403503 | U36: 910.036499 | V36: 1.454087138 | W36: 121.5370026 | X36: 3.982369184 | Y36: 115.2158661 | Z36: 71.84988403 | AA36: 129.4552155 | AB36: 8.747858047 | AC36: 2.634085655 | AD36: 142.8449554 | AE36: 121.3231735 | AF36: 289.415863 | AG36: 132.572998 | AH36: 51.34418869 | AI36: 94.90570831 | AJ36: 3216.786865 | AK36: 694.5628662 | AL36: 665.4107056 | AM36: 7.516504288 | AN36: 3.203207493 | AO36: 65.22042084 | AP36: 0 | AQ36: 0.454474598 | AR36: 0.319226891 | AS36: 85.38176727 | AT36: 4.019369125 | AU36: 315.0180054 | AV36: 554.5371704 | AW36: 4.224478722 | AX36: 2.672419548 | AY36: 83.95355988 | AZ36: 1 | BA36: 1 | BB36: 3
A37: 32 | B37: 111228.3828 | C37: 21 | D37: 550.9033813 | E37: 1466.148804 | F37: 100.4209976 | G37: 109.9002151 | H37: 2726.444092 | I37: 2356.198486 | J37: 17.44864845 | K37: 2.555381536 | L37: 5.827250957 | M37: 0 | N37: 0 | O37: 1.714556694 | P37: 1.302242875 | Q37: 3.1986444 | R37: 31.45856476 | S37: 3.369530916 | T37: 12.29959393 | U37: 587.8034668 | V37: 2.440020561 | W37: 56.80736542 | X37: 1.014943123 | Y37: 223.492218 | Z37: 86.17708588 | AA37: 19.94586182 | AB37: 16.46155167 | AC37: 0.94315964 | AD37: 288.772583 | AE37: 58.00826263 | AF37: 73.90106201 | AG37: 10.51087093 | AH37: 11.04262638 | AI37: 1.153813601 | AJ37: 716.0775146 | AK37: 261.571228 | AL37: 617.5306396 | AM37: 23.80176735 | AN37: 2.00549221 | AO37: 257.5592957 | AP37: 1.904990673 | AQ37: 1.157771945 | AR37: 5.771695137 | AS37: 2.601862192 | AT37: 25.1516304 | AU37: 321.6503296 | AV37: 734.4830322 | AW37: 3.094360828 | AX37: 4.435168743 | AY37: 76.10061646 | AZ37: 1 | BA37: 1 | BB37: 1
A38: 33 | B38: 112747.0313 | C38: 16 | D38: 341.0630493 | E38: 3296.880859 | F38: 232.3691711 | G38: 353.2940979 | H38: 4836.366211 | I38: 4677.269531 | J38: 102.3532562 | K38: 0 | L38: 4.668822765 | M38: 0 | N38: 3.678806305 | O38: 0.315608293 | P38: 1.180254579 | Q38: 0.388787627 | R38: 62.02975845 | S38: 3.533582211 | T38: 186.2566528 | U38: 2278.514648 | V38: 1.374587536 | W38: 35.16682434 | X38: 1.653824925 | Y38: 79.70188141 | Z38: 56.34628296 | AA38: 11.80133915 | AB38: 3.098022699 | AC38: 1.257929683 | AD38: 85.69989777 | AE38: 0.756079912 | AF38: 72.96156311 | AG38: 24.25477028 | AH38: 3.402885914 | AI38: 12.51255608 | AJ38: 2696.128906 | AK38: 380.6602173 | AL38: 573.4697266 | AM38: 4.779146194 | AN38: 1.158417821 | AO38: 34.29206085 | AP38: 0 | AQ38: 0 | AR38: 1.555154562 | AS38: 1.419255972 | AT38: 2.997418165 | AU38: 960.4057617 | AV38: 2238.134766 | AW38: 5.910295963 | AX38: 2.090827465 | AY38: 78.83187103 | AZ38: 1 | BA38: 1 | BB38: 4
A39: 34 | B39: 113835.9766 | C39: 16 | D39: 306.3434753 | E39: 2769.773193 | F39: 181.6557617 | G39: 289.658905 | H39: 3912.538574 | I39: 3655.559082 | J39: 94.93113708 | K39: 0.2204348 | L39: 3.333390951 | M39: 0 | N39: 0.507915318 | O39: 1.138920546 | P39: 2.65261817 | Q39: 3.643075466 | R39: 95.40390778 | S39: 1.935378671 | T39: 113.7986908 | U39: 1821.827271 | V39: 1.265371203 | W39: 3.075467587 | X39: 0 | Y39: 112.7228012 | Z39: 120.4551392 | AA39: 194.1630859 | AB39: 0.381290078 | AC39: 0.050065048 | AD39: 149.7366486 | AE39: 9.027311325 | AF39: 19.1719265 | AG39: 3.690648794 | AH39: 2.884826183 | AI39: 3.863027334 | AJ39: 1505.192627 | AK39: 152.7333527 | AL39: 565.6939697 | AM39: 0.589729607 | AN39: 2.25454092 | AO39: 122.6404114 | AP39: 0.489449739 | AQ39: 0 | AR39: 1.071861029 | AS39: 2.418171644 | AT39: 0.493003756 | AU39: 472.7044678 | AV39: 986.180603 | AW39: 0.745302916 | AX39: 2.72987771 | AY39: 88.86760712 | AZ39: 1 | BA39: 1 | BB39: 1
A40: 35 | B40: 115025.7031 | C40: 18 | D40: 269.4593506 | E40: 1085.698242 | F40: 80.90836334 | G40: 71.57047272 | H40: 1981.244507 | I40: 1749.410889 | J40: 22.44068527 | K40: 0 | L40: 0 | M40: 0 | N40: 0.226185411 | O40: 6.60497427 | P40: 1.991093636 | Q40: 8.255825043 | R40: 61.26909256 | S40: 8.811432838 | T40: 69.45619202 | U40: 368.4278564 | V40: 0.270227343 | W40: 7.150872707 | X40: 2.960502625 | Y40: 267.6746826 | Z40: 51.2219162 | AA40: 89.2297287 | AB40: 2.585328579 | AC40: 0.474474341 | AD40: 33.21711349 | AE40: 29.08485031 | AF40: 16.52850914 | AG40: 13.74973869 | AH40: 3.460322857 | AI40: 1.618530393 | AJ40: 588.5951538 | AK40: 110.6694489 | AL40: 77.76944733 | AM40: 8.941866875 | AN40: 0.214957103 | AO40: 67.16543579 | AP40: 0 | AQ40: 0 | AR40: 4.124760628 | AS40: 30.73544502 | AT40: 3.759066105 | AU40: 262.0499573 | AV40: 564.6427612 | AW40: 1.481147885 | AX40: 8.587799072 | AY40: 71.32522583 | AZ40: 1 | BA40: 1 | BB40: 3
A41: 36 | B41: 115269.5469 | C41: 16 | D41: 256.4983215 | E41: 1954.022705 | F41: 123.035675 | G41: 193.5841522 | H41: 3112.521973 | I41: 3021.568115 | J41: 59.56638336 | K41: 1.31498456 | L41: 6.958971024 | M41: 0 | N41: 0 | O41: 4.580554008 | P41: 0.35170567 | Q41: 3.343448162 | R41: 125.6015244 | S41: 7.370285511 | T41: 243.3470917 | U41: 1844.893311 | V41: 0.091142885 | W41: 2.249518156 | X41: 4.821044922 | Y41: 281.263855 | Z41: 100.1539612 | AA41: 182.3656311 | AB41: 1.878929257 | AC41: 0 | AD41: 62.14230728 | AE41: 4.976408482 | AF41: 76.82126617 | AG41: 17.20621681 | AH41: 2.367528677 | AI41: 25.05996895 | AJ41: 3217.333252 | AK41: 135.3625183 | AL41: 204.9204102 | AM41: 2.727868557 | AN41: 1.681289196 | AO41: 97.57249451 | AP41: 0 | AQ41: 0.280222178 | AR41: 0.262360781 | AS41: 3.974263191 | AT41: 0.010318795 | AU41: 536.6263428 | AV41: 1084.009521 | AW41: 0 | AX41: 0.810269952 | AY41: 84.30120087 | AZ41: 1 | BA41: 1 | BB41: 1
A42: 37 | B42: 116813.9453 | C42: 14 | D42: 222.1795349 | E42: 1352.670776 | F42: 85.59360504 | G42: 100.0923462 | H42: 2488.287842 | I42: 2350.316162 | J42: 51.83705902 | K42: 0.230768591 | L42: 0 | M42: 0 | N42: 0.541803598 | O42: 1.278670311 | P42: 0.04754347 | Q42: 1.577632904 | R42: 22.66194725 | S42: 22.74778557 | T42: 56.45410156 | U42: 1234.777832 | V42: 0.683348119 | W42: 13.67732143 | X42: 1.631898642 | Y42: 145.5560608 | Z42: 24.56572914 | AA42: 134.0451508 | AB42: 2.952532768 | AC42: 1.73523581 | AD42: 199.7775116 | AE42: 17.094244 | AF42: 7.907871723 | AG42: 3.452634573 | AH42: 4.833999157 | AI42: 2.046626568 | AJ42: 578.1052856 | AK42: 86.09072113 | AL42: 372.1766968 | AM42: 1.48580277 | AN42: 1.799740911 | AO42: 34.56491089 | AP42: 0 | AQ42: 0 | AR42: 1.425299644 | AS42: 1.396849871 | AT42: 2.465299606 | AU42: 409.1265564 | AV42: 960.7937622 | AW42: 2.542798281 | AX42: 0.976345539 | AY42: 65.90085602 | AZ42: 1 | BA42: 1 | BB42: 2
A43: 38 | B43: 118009.3906 | C43: 15 | D43: 551.2775269 | E43: 1869.017212 | F43: 144.0259552 | G43: 181.0307312 | H43: 3200.33252 | I43: 2870.017334 | J43: 51.059021 | K43: 0 | L43: 0 | M43: 0.057136841 | N43: 11.69685078 | O43: 0.616922259 | P43: 0.713434815 | Q43: 9.12952137 | R43: 239.2120667 | S43: 29.53656387 | T43: 531.0580444 | U43: 1429.170044 | V43: 2.379939556 | W43: 17.0937748 | X43: 0.560948253 | Y43: 19.51414871 | Z43: 47.17131042 | AA43: 36.98542023 | AB43: 1.065264583 | AC43: 0.977085233 | AD43: 67.3979187 | AE43: 15.3117733 | AF43: 74.77696991 | AG43: 50.09309006 | AH43: 20.03321838 | AI43: 34.06274414 | AJ43: 2836.597412 | AK43: 236.910553 | AL43: 168.1033325 | AM43: 4.810315132 | AN43: 0.849924743 | AO43: 92.6291275 | AP43: 0.674981296 | AQ43: 1.153884888 | AR43: 3.128923416 | AS43: 42.86139297 | AT43: 0.885986447 | AU43: 369.4512634 | AV43: 809.2266235 | AW43: 4.462966442 | AX43: 1.16654098 | AY43: 74.84702301 | AZ43: 1 | BA43: 1 | BB43: 3
A44: 39 | B44: 119511.1328 | C44: 14 | D44: 449.0775757 | E44: 2877.635254 | F44: 261.0791016 | G44: 390.4040833 | H44: 3878.410645 | I44: 3683.885742 | J44: 191.3778076 | K44: 1.454774022 | L44: 3.176549435 | M44: 0 | N44: 1.772586226 | O44: 1.502331853 | P44: 0.966721177 | Q44: 0.152905017 | R44: 18.88143158 | S44: 7.058257103 | T44: 38.51747894 | U44: 4364.553711 | V44: 38.64535141 | W44: 12.75236607 | X44: 0 | Y44: 590.7816162 | Z44: 178.16008 | AA44: 5.776470661 | AB44: 0.898751378 | AC44: 0.030738438 | AD44: 493.9370422 | AE44: 2.136433601 | AF44: 140.5727692 | AG44: 500.6841431 | AH44: 20.64883423 | AI44: 205.8793335 | AJ44: 5231.384766 | AK44: 355.1313782 | AL44: 1881.426147 | AM44: 3.428207397 | AN44: 0.52070713 | AO44: 87.00164795 | AP44: 0 | AQ44: 0 | AR44: 0 | AS44: 4.874119759 | AT44: 2.757409334 | AU44: 1022.611755 | AV44: 2248.260742 | AW44: 4.215666294 | AX44: 2.463297844 | AY44: 93.30464172 | AZ44: 1 | BA44: 1 | BB44: 8
A45: 40 | B45: 119711.1172 | C45: 14 | D45: 423.4559021 | E45: 1486.554443 | F45: 114.8147659 | G45: 161.2966766 | H45: 2461.083008 | I45: 2253.759521 | J45: 37.72441864 | K45: 0.980881989 | L45: 0.13200748 | M45: 0 | N45: 0.954857707 | O45: 0.225638762 | P45: 0 | Q45: 1.092534781 | R45: 54.85707092 | S45: 0.809575081 | T45: 86.93827057 | U45: 857.8395996 | V45: 2.068492651 | W45: 4.00526762 | X45: 1.684840083 | Y45: 55.02635956 | Z45: 38.31613541 | AA45: 43.23949051 | AB45: 2.152814865 | AC45: 0.943900645 | AD45: 34.9879303 | AE45: 2.521904707 | AF45: 28.42341995 | AG45: 2.040865183 | AH45: 1.314377308 | AI45: 7.855793953 | AJ45: 1437.466431 | AK45: 55.57229614 | AL45: 245.1095581 | AM45: 1.260481358 | AN45: 0 | AO45: 61.01630402 | AP45: 0.985269964 | AQ45: 0 | AR45: 2.40993309 | AS45: 0.924957752 | AT45: 0.555166006 | AU45: 333.6831665 | AV45: 648.9429321 | AW45: 2.765492439 | AX45: 1.917791486 | AY45: 68.89072418 | AZ45: 1 | BA45: 1 | BB45: 2
A46: 41 | B46: 120257.2656 | C46: 15 | D46: 237.4657593 | E46: 1356.348267 | F46: 96.4929657 | G46: 115.6101074 | H46: 2277.539307 | I46: 2021.693237 | J46: 50.68048477 | K46: 0 | L46: 0 | M46: 0 | N46: 0.742355168 | O46: 4.711344719 | P46: 0.375258118 | Q46: 9.972978592 | R46: 54.46353149 | S46: 4.834821224 | T46: 131.7854614 | U46: 1177.825684 | V46: 2.787599564 | W46: 9.356036186 | X46: 1.973558307 | Y46: 189.7622681 | Z46: 19.17105675 | AA46: 53.34323883 | AB46: 2.660954714 | AC46: 0.547889113 | AD46: 25.8884716 | AE46: 20.94239807 | AF46: 45.59634399 | AG46: 14.12889004 | AH46: 1.944649935 | AI46: 40.15473938 | AJ46: 2262.509766 | AK46: 173.8804321 | AL46: 438.7354126 | AM46: 6.133581161 | AN46: 0.742398798 | AO46: 73.04302979 | AP46: 0 | AQ46: 0 | AR46: 3.598140478 | AS46: 0 | AT46: 2.090854168 | AU46: 494.3408508 | AV46: 921.8266602 | AW46: 3.595470905 | AX46: 1.31004262 | AY46: 70.58323669 | AZ46: 1 | BA46: 1 | BB46: 2
A47: 42 | B47: 120745.8438 | C47: 16 | D47: 111.6716156 | E47: 1623.541992 | F47: 142.771698 | G47: 137.1030731 | H47: 2766.192383 | I47: 2623.079102 | J47: 66.84302521 | K47: 0 | L47: 2.254419327 | M47: 0.830796063 | N47: 1.67870903 | O47: 3.407211781 | P47: 0 | Q47: 0.925422907 | R47: 29.56866264 | S47: 4.926953316 | T47: 40.57159424 | U47: 1261.936646 | V47: 0.909222245 | W47: 1.280725837 | X47: 1.567198634 | Y47: 159.0292053 | Z47: 8.085775375 | AA47: 19.36100578 | AB47: 2.015585184 | AC47: 1.305821896 | AD47: 9.099469185 | AE47: 8.888537407 | AF47: 33.21496964 | AG47: 37.71327209 | AH47: 8.40083313 | AI47: 17.28279877 | AJ47: 1862.182617 | AK47: 117.5351181 | AL47: 429.984375 | AM47: 0.911293447 | AN47: 0.011137239 | AO47: 57.0860405 | AP47: 0 | AQ47: 0 | AR47: 1.551935792 | AS47: 0.701376081 | AT47: 4.460542679 | AU47: 429.3050537 | AV47: 764.9917603 | AW47: 1.728263855 | AX47: 1.512260675 | AY47: 61.80127335 | AZ47: 1 | BA47: 1 | BB47: 9
A48: 43 | B48: 121046.0156 | C48: 15 | D48: 170.0780945 | E48: 1672.111206 | F48: 118.030571 | G48: 174.7516937 | H48: 2716.947266 | I48: 2633.350098 | J48: 85.13291168 | K48: 0 | L48: 0 | M48: 0 | N48: 4.594456196 | O48: 2.695589781 | P48: 0.696905017 | Q48: 0 | R48: 26.49210739 | S48: 8.26598835 | T48: 23.63552856 | U48: 1293.849487 | V48: 1.80743432 | W48: 14.03605843 | X48: 3.307830095 | Y48: 102.0713272 | Z48: 3.017259359 | AA48: 16.50332832 | AB48: 2.337894201 | AC48: 0.784326196 | AD48: 209.315918 | AE48: 61.78908539 | AF48: 6.232870579 | AG48: 10.56469059 | AH48: 4.944969177 | AI48: 17.14829826 | AJ48: 1782.018311 | AK48: 184.4496613 | AL48: 652.6661987 | AM48: 3.597000837 | AN48: 1.607013464 | AO48: 79.87995911 | AP48: 0.631598949 | AQ48: 0.213732392 | AR48: 1.058304071 | AS48: 1.640393376 | AT48: 9.274926186 | AU48: 439.1750793 | AV48: 1008.054077 | AW48: 1.59643662 | AX48: 1.317806959 | AY48: 64.00839233 | AZ48: 1 | BA48: 1 | BB48: 2
A49: 44 | B49: 121675.0234 | C49: 14 | D49: 252.2161713 | E49: 1482.538452 | F49: 112.1416245 | G49: 135.5000153 | H49: 2380.806396 | I49: 2216.100342 | J49: 13.95910263 | K49: 0 | L49: 6.825056553 | M49: 0 | N49: 1.331863642 | O49: 0.000815795 | P49: 0.255002916 | Q49: 4.322008133 | R49: 22.92663765 | S49: 3.491275787 | T49: 46.05107498 | U49: 579.6692505 | V49: 0.814556181 | W49: 1.701791525 | X49: 6.885165215 | Y49: 61.56943893 | Z49: 5.955405235 | AA49: 55.69997406 | AB49: 2.644576311 | AC49: 2.855052471 | AD49: 10.86771584 | AE49: 15.46922874 | AF49: 82.48552704 | AG49: 7.791715145 | AH49: 1.771663547 | AI49: 14.3305378 | AJ49: 1931.80957 | AK49: 193.3538361 | AL49: 237.2174683 | AM49: 0.980971515 | AN49: 0.479978055 | AO49: 3.307130098 | AP49: 0 | AQ49: 0 | AR49: 0.928308606 | AS49: 0.599828601 | AT49: 2.906947136 | AU49: 364.9946899 | AV49: 730.5037842 | AW49: 0.126385808 | AX49: 1.181605697 | AY49: 70.3895874 | AZ49: 1 | BA49: 1 | BB49: 9
A50: 45 | B50: 123204.3516 | C50: 15 | D50: 223.514679 | E50: 1404.508667 | F50: 87.48326874 | G50: 136.8082275 | H50: 2299.227783 | I50: 2261.096924 | J50: 39.40283966 | K50: 0 | L50: 6.245488644 | M50: 0 | N50: 2.182048559 | O50: 1.960545421 | P50: 2.73244977 | Q50: 0 | R50: 23.41788483 | S50: 11.33368397 | T50: 12.10050678 | U50: 1085.143555 | V50: 0.216200143 | W50: 2.21847415 | X50: 0 | Y50: 90.34763336 | Z50: 25.04519844 | AA50: 0.158757642 | AB50: 1.099424958 | AC50: 0.723446071 | AD50: 36.50197983 | AE50: 2.102070808 | AF50: 15.45793629 | AG50: 1.310404897 | AH50: 0.646503866 | AI50: 3.674197435 | AJ50: 605.6918335 | AK50: 38.42251205 | AL50: 289.4302979 | AM50: 4.590968132 | AN50: 0 | AO50: 1.2170223 | AP50: 0 | AQ50: 0 | AR50: 0.248965248 | AS50: 1.348327041 | AT50: 4.399023533 | AU50: 292.4831238 | AV50: 706.0047607 | AW50: 2.919124842 | AX50: 0.219956353 | AY50: 58.57049179 | AZ50: 1 | BA50: 1 | BB50: 4
A51: 46 | B51: 124255.8984 | C51: 15 | D51: 864.6044922 | E51: 2358.472656 | F51: 166.4303894 | G51: 278.2003479 | H51: 3483.186035 | I51: 3176.4646 | J51: 103.2646179 | K51: 1.001563072 | L51: 0.137028307 | M51: 0 | N51: 1.750178695 | O51: 0 | P51: 0 | Q51: 0.146487266 | R51: 7.261343956 | S51: 2.0927701 | T51: 2.809452534 | U51: 1345.446289 | V51: 2.762899399 | W51: 2.174966097 | X51: 1.674245 | Y51: 173.3008118 | Z51: 56.95879364 | AA51: 14.00958347 | AB51: 1.290224195 | AC51: 5.715782166 | AD51: 320.6594238 | AE51: 9.982496262 | AF51: 0.283343226 | AG51: 24.42765427 | AH51: 6.182507515 | AI51: 2.268839598 | AJ51: 1038.324707 | AK51: 302.972168 | AL51: 1207.299561 | AM51: 1.680134058 | AN51: 0 | AO51: 86.60977173 | AP51: 0 | AQ51: 0 | AR51: 1.205789804 | AS51: 0.283143342 | AT51: 3.335449457 | AU51: 690.9678955 | AV51: 1398.318848 | AW51: 4.90259409 | AX51: 0.869561195 | AY51: 78.54051971 | AZ51: 1 | BA51: 1 | BB51: 4
A52: 47 | B52: 124466.5391 | C52: 15 | D52: 340.3870544 | E52: 1422.151001 | F52: 101.3866196 | G52: 117.0005035 | H52: 2342.648438 | I52: 2061.881348 | J52: 39.69681168 | K52: 0.515176535 | L52: 1.82033515 | M52: 0 | N52: 0 | O52: 2.897602797 | P52: 0.883941054 | Q52: 1.082459807 | R52: 8.949084282 | S52: 2.487240791 | T52: 5.425961971 | U52: 837.671814 | V52: 1.747349024 | W52: 50.90433121 | X52: 1.709040284 | Y52: 23.44059753 | Z52: 42.33320236 | AA52: 2.417270899 | AB52: 0 | AC52: 0.723045111 | AD52: 23.07811928 | AE52: 7.463315487 | AF52: 22.68645096 | AG52: 1.433588266 | AH52: 1.994956017 | AI52: 14.65111351 | AJ52: 1796.369385 | AK52: 80.69507599 | AL52: 164.1333313 | AM52: 1.09147799 | AN52: 1.860281348 | AO52: 15.76721382 | AP52: 0 | AQ52: 0 | AR52: 0.61414367 | AS52: 1.12855947 | AT52: 0.494004786 | AU52: 303.9647217 | AV52: 569.7019043 | AW52: 0.448607713 | AX52: 0.669882536 | AY52: 73.46846008 | AZ52: 1 | BA52: 1 | BB52: 4
A53: 48 | B53: 124591.3516 | C53: 17 | D53: 497.7624817 | E53: 1944.390991 | F53: 138.0962219 | G53: 162.2532959 | H53: 3030.770752 | I53: 2770.734863 | J53: 97.96755981 | K53: 0.241044149 | L53: 0 | M53: 1.180614233 | N53: 1.049963355 | O53: 3.677714109 | P53: 0.957535982 | Q53: 2.48051095 | R53: 79.2212677 | S53: 6.690124035 | T53: 122.1644516 | U53: 2422.125488 | V53: 1.66165328 | W53: 3.019559145 | X53: 1.320239663 | Y53: 51.13173676 | Z53: 135.0741119 | AA53: 54.62952805 | AB53: 0.345197201 | AC53: 0.641517937 | AD53: 58.56362534 | AE53: 51.16439438 | AF53: 96.76409149 | AG53: 144.9000702 | AH53: 29.49538803 | AI53: 43.81409073 | AJ53: 2878.846924 | AK53: 203.6617432 | AL53: 136.3164063 | AM53: 0 | AN53: 1.580898643 | AO53: 258.7208252 | AP53: 2.522763491 | AQ53: 0 | AR53: 3.859526157 | AS53: 0.202797085 | AT53: 39.43404388 | AU53: 649.8491821 | AV53: 1431.417358 | AW53: 0.287137121 | AX53: 2.184203863 | AY53: 76.96595764 | AZ53: 1 | BA53: 1 | BB53: 2
A54: 49 | B54: 124612.0469 | C54: 16 | D54: 459.3608398 | E54: 1055.819946 | F54: 90.45339966 | G54: 100.5507431 | H54: 1847.444336 | I54: 1791.559204 | J54: 47.09850693 | K54: 0.708191633 | L54: 3.231929064 | M54: 0 | N54: 0.153780222 | O54: 2.503858328 | P54: 1.110649467 | Q54: 9.242192268 | R54: 21.73923683 | S54: 12.17150593 | T54: 22.13863945 | U54: 1507.760498 | V54: 2.681144476 | W54: 0 | X54: 0.233279407 | Y54: 21.98895836 | Z54: 14.41118622 | AA54: 10.61875916 | AB54: 2.259155273 | AC54: 0.761120081 | AD54: 39.29060745 | AE54: 15.7884798 | AF54: 10.99625778 | AG54: 4.470328808 | AH54: 1.58906889 | AI54: 9.402647018 | AJ54: 1419.641968 | AK54: 200.6434631 | AL54: 144.422226 | AM54: 1.646924973 | AN54: 0.468021393 | AO54: 7.028446198 | AP54: 0 | AQ54: 0.234194249 | AR54: 0.656888604 | AS54: 0 | AT54: 1.423044324 | AU54: 273.4813232 | AV54: 523.8430176 | AW54: 0 | AX54: 0.451818258 | AY54: 73.8157196 | AZ54: 1 | BA54: 1 | BB54: 4
A55: 50 | B55: 124626.5391 | C55: 19 | D55: 243.3952789 | E55: 1134.711548 | F55: 75.55566406 | G55: 116.3076782 | H55: 2024.956421 | I55: 1840.453857 | J55: 44.59459305 | K55: 0.906191528 | L55: 0 | M55: 0 | N55: 0.26326412 | O55: 11.35486794 | P55: 0 | Q55: 2.177643776 | R55: 10.1457653 | S55: 1.835970163 | T55: 82.87471008 | U55: 500.6783447 | V55: 1.911026239 | W55: 30.9207077 | X55: 0.129527315 | Y55: 3.320016623 | Z55: 24.53141594 | AA55: 29.5661087 | AB55: 1.365374684 | AC55: 1.391970754 | AD55: 27.96128654 | AE55: 30.29341888 | AF55: 130.4710388 | AG55: 6.658279896 | AH55: 12.83315468 | AI55: 10.20211411 | AJ55: 1231.255737 | AK55: 178.0953369 | AL55: 737.0476685 | AM55: 6.72965765 | AN55: 5.706698895 | AO55: 134.3850098 | AP55: 1.530730844 | AQ55: 0 | AR55: 1.824329257 | AS55: 1.152655959 | AT55: 17.56744194 | AU55: 256.0035706 | AV55: 461.1933289 | AW55: 7.452168465 | AX55: 2.259769201 | AY55: 65.85721588 | AZ55: 1 | BA55: 1 | BB55: 2
A56: 51 | B56: 125253.8125 | C56: 14 | D56: 493.009491 | E56: 1456.782959 | F56: 80.54636383 | G56: 100.9343491 | H56: 2429.059814 | I56: 2185.489746 | J56: 15.78917885 | K56: 0.771135628 | L56: 0 | M56: 0 | N56: 2.161330462 | O56: 2.690114021 | P56: 0.723268092 | Q56: 0 | R56: 38.80082703 | S56: 0.307275176 | T56: 60.47816467 | U56: 175.5981598 | V56: 0 | W56: 1.961521864 | X56: 2.771165133 | Y56: 61.53942108 | Z56: 13.67087078 | AA56: 36.70690536 | AB56: 4.434843063 | AC56: 0 | AD56: 72.22342682 | AE56: 41.36156845 | AF56: 38.86032104 | AG56: 15.83216095 | AH56: 11.13628197 | AI56: 23.96690178 | AJ56: 995.1990967 | AK56: 123.1150055 | AL56: 609.3433228 | AM56: 1.49477756 | AN56: 3.007039785 | AO56: 64.34168243 | AP56: 0.536814153 | AQ56: 0 | AR56: 3.099482536 | AS56: 0.856663823 | AT56: 7.123407841 | AU56: 241.6095428 | AV56: 552.994812 | AW56: 3.071269274 | AX56: 1.044669151 | AY56: 59.09295273 | AZ56: 1 | BA56: 1 | BB56: 2
A57: 52 | B57: 125932.6797 | C57: 16 | D57: 414.2346191 | E57: 2097.75 | F57: 133.1217957 | G57: 159.7061615 | H57: 2987.682617 | I57: 2844.202881 | J57: 61.57320404 | K57: 0.519592106 | L57: 0 | M57: 0 | N57: 3.00399375 | O57: 1.867703438 | P57: 0 | Q57: 3.777698517 | R57: 51.996521 | S57: 2.292937279 | T57: 55.26663589 | U57: 999.4470215 | V57: 0.732977688 | W57: 3.110126495 | X57: 0.626763582 | Y57: 162.3962402 | Z57: 35.639328 | AA57: 6.304096222 | AB57: 1.144809604 | AC57: 2.532362461 | AD57: 55.47909164 | AE57: 1.547955155 | AF57: 141.9682312 | AG57: 8.626525879 | AH57: 8.798346519 | AI57: 58.61565399 | AJ57: 3504.025879 | AK57: 229.5813293 | AL57: 524.0317383 | AM57: 5.117581367 | AN57: 1.199630857 | AO57: 58.09067917 | AP57: 0 | AQ57: 0 | AR57: 1.913006663 | AS57: 0.772740662 | AT57: 2.199927807 | AU57: 428.2461243 | AV57: 844.2320557 | AW57: 2.990051985 | AX57: 0 | AY57: 74.29821014 | AZ57: 1 | BA57: 1 | BB57: 4
A58: 53 | B58: 126200.5625 | C58: 14 | D58: 565.6657104 | E58: 1522.665649 | F58: 77.79844666 | G58: 192.7117004 | H58: 2436.447021 | I58: 2369.494873 | J58: 45.47455215 | K58: 0 | L58: 0.110299565 | M58: 0 | N58: 2.122920752 | O58: 0.132168502 | P58: 0 | Q58: 1.24966085 | R58: 40.19620132 | S58: 9.432305336 | T58: 191.3501892 | U58: 589.741394 | V58: 1.362004876 | W58: 2.878875494 | X58: 0.362403303 | Y58: 16.73975372 | Z58: 86.46738434 | AA58: 63.71115494 | AB58: 0 | AC58: 2.884569645 | AD58: 6.605164051 | AE58: 1.704070926 | AF58: 44.42533493 | AG58: 10.91687965 | AH58: 0 | AI58: 3.688917875 | AJ58: 1003.326355 | AK58: 87.63084412 | AL58: 365.8242798 | AM58: 5.498399734 | AN58: 0.261060596 | AO58: 29.42486572 | AP58: 0 | AQ58: 2.379988909 | AR58: 2.779035807 | AS58: 6.040193558 | AT58: 0 | AU58: 508.7962952 | AV58: 1170.65979 | AW58: 0 | AX58: 0 | AY58: 80.37971497 | AZ58: 1 | BA58: 1 | BB58: 2
A59: 54 | B59: 127453.5938 | C59: 14 | D59: 236.283493 | E59: 1879.990601 | F59: 98.73127747 | G59: 147.4943085 | H59: 2931.469482 | I59: 2742.682617 | J59: 45.93899536 | K59: 0 | L59: 0 | M59: 0 | N59: 0 | O59: 0.453350127 | P59: 0.944967568 | Q59: 0.512537599 | R59: 38.42045212 | S59: 4.055357456 | T59: 144.2777863 | U59: 1327.960938 | V59: 1.865309119 | W59: 23.48248863 | X59: 1.861876965 | Y59: 123.258667 | Z59: 72.76958466 | AA59: 65.71472931 | AB59: 0 | AC59: 0 | AD59: 294.008728 | AE59: 36.43588257 | AF59: 94.02339172 | AG59: 100.2224731 | AH59: 15.5994339 | AI59: 13.29463863 | AJ59: 2282.060303 | AK59: 170.5733795 | AL59: 231.8109741 | AM59: 4.388098717 | AN59: 0 | AO59: 22.47759056 | AP59: 0 | AQ59: 0 | AR59: 0.339024484 | AS59: 5.259483337 | AT59: 1.429668069 | AU59: 367.664856 | AV59: 829.7260132 | AW59: 1.455195904 | AX59: 0.647619009 | AY59: 81.57032013 | AZ59: 1 | BA59: 1 | BB59: 2
A60: 55 | B60: 127565.6094 | C60: 19 | D60: 1099.467285 | E60: 1918.657104 | F60: 146.9710388 | G60: 254.5528717 | H60: 3316.935059 | I60: 3232.929199 | J60: 71.38880157 | K60: 0 | L60: 9.63517952 | M60: 0.631400466 | N60: 5.461773396 | O60: 4.976762772 | P60: 1.007142544 | Q60: 1.931890368 | R60: 160.6616669 | S60: 12.24541283 | T60: 334.2035522 | U60: 1539.238037 | V60: 4.276614189 | W60: 20.04594231 | X60: 2.337184906 | Y60: 307.3363953 | Z60: 273.6482239 | AA60: 146.9663086 | AB60: 2.826361418 | AC60: 1.13172543 | AD60: 293.3596497 | AE60: 122.088089 | AF60: 228.9086456 | AG60: 20.59409523 | AH60: 90.21137238 | AI60: 165.5120697 | AJ60: 4895.876465 | AK60: 894.0966187 | AL60: 1471.911987 | AM60: 3.85738492 | AN60: 1.535812616 | AO60: 142.468399 | AP60: 0 | AQ60: 2.159759283 | AR60: 2.544052124 | AS60: 2.329688072 | AT60: 4.047874928 | AU60: 626.7510986 | AV60: 1093.434326 | AW60: 2.903744936 | AX60: 4.441836834 | AY60: 95.81252289 | AZ60: 1 | BA60: 1 | BB60: 1
A61: 56 | B61: 127654.1172 | C61: 15 | D61: 240.412384 | E61: 1740.163086 | F61: 123.7824554 | G61: 105.9620514 | H61: 2882.858398 | I61: 2613.883545 | J61: 74.10331726 | K61: 0.652960896 | L61: 0 | M61: 0 | N61: 1.573803782 | O61: 0.697208464 | P61: 1.812002778 | Q61: 1.836781263 | R61: 86.91950226 | S61: 9.510515213 | T61: 171.918869 | U61: 694.1720581 | V61: 0.272390932 | W61: 9.714482307 | X61: 3.102917433 | Y61: 66.66959381 | Z61: 23.45658875 | AA61: 67.86935425 | AB61: 0.300547093 | AC61: 0.047718886 | AD61: 0 | AE61: 7.413205147 | AF61: 5.126558781 | AG61: 10.2312994 | AH61: 2.55684042 | AI61: 13.84413624 | AJ61: 2093.496094 | AK61: 74.26804352 | AL61: 141.6475525 | AM61: 0.698984146 | AN61: 3.067667484 | AO61: 8.906196594 | AP61: 0 | AQ61: 0 | AR61: 3.276873827 | AS61: 0.055498112 | AT61: 4.515725613 | AU61: 406.1437988 | AV61: 722.2243652 | AW61: 2.229883432 | AX61: 1.347758174 | AY61: 59.78487778 | AZ61: 1 | BA61: 1 | BB61: 2
A62: 57 | B62: 127930.3516 | C62: 13 | D62: 244.0640564 | E62: 1589.080444 | F62: 77.74812317 | G62: 205.7347412 | H62: 2494.217285 | I62: 2324.2854 | J62: 105.0244751 | K62: 0.114315093 | L62: 0 | M62: 0 | N62: 1.080116987 | O62: 0.75751698 | P62: 0 | Q62: 0.363170415 | R62: 13.95518112 | S62: 2.959140778 | T62: 1.873132586 | U62: 845.920166 | V62: 1.142186046 | W62: 1.157785773 | X62: 1.549860716 | Y62: 18.16782188 | Z62: 40.16453934 | AA62: 60.4250412 | AB62: 0.289396375 | AC62: 0.367294729 | AD62: 23.35847855 | AE62: 21.87602425 | AF62: 12.75687408 | AG62: 1.551551223 | AH62: 8.049225807 | AI62: 1.135918021 | AJ62: 1202.194824 | AK62: 63.56254196 | AL62: 96.58018494 | AM62: 0.763678551 | AN62: 2.687189817 | AO62: 14.10234165 | AP62: 0.661911249 | AQ62: 0 | AR62: 0 | AS62: 1.478683591 | AT62: 6.304337025 | AU62: 426.8897095 | AV62: 932.1322632 | AW62: 1.019422054 | AX62: 2.699449539 | AY62: 63.60774994 | AZ62: 1 | BA62: 1 | BB62: 2
A63: 58 | B63: 129074.4922 | C63: 16 | D63: 292.2459412 | E63: 1625.712036 | F63: 117.7773514 | G63: 134.4684296 | H63: 2850.093018 | I63: 2566.973877 | J63: 42.97488403 | K63: 0 | L63: 0 | M63: 0 | N63: 0.143129036 | O63: 4.505043507 | P63: 2.690551519 | Q63: 2.791614056 | R63: 49.21464539 | S63: 30.11837959 | T63: 158.3948059 | U63: 633.1074829 | V63: 1.828878522 | W63: 8.954929352 | X63: 0.727841616 | Y63: 6.118650436 | Z63: 44.54125977 | AA63: 37.21883774 | AB63: 3.07758379 | AC63: 0 | AD63: 17.55941963 | AE63: 18.56624413 | AF63: 135.0606689 | AG63: 27.60571861 | AH63: 11.53027248 | AI63: 20.10863876 | AJ63: 1826.119385 | AK63: 222.0969391 | AL63: 252.1082153 | AM63: 3.180733204 | AN63: 2.044312716 | AO63: 65.13523865 | AP63: 0 | AQ63: 1.250913501 | AR63: 1.136870027 | AS63: 1.847334862 | AT63: 1.13860333 | AU63: 336.5220642 | AV63: 611.2294922 | AW63: 3.492072821 | AX63: 0 | AY63: 80.43647766 | AZ63: 1 | BA63: 1 | BB63: 2
A64: 59 | B64: 130178.9219 | C64: 17 | D64: 278.0936279 | E64: 1122.976929 | F64: 87.50808716 | G64: 100.8522797 | H64: 2065.005127 | I64: 1972.644043 | J64: 41.59236526 | K64: 0 | L64: 1.178195715 | M64: 0 | N64: 0.948179483 | O64: 0 | P64: 0.481571496 | Q64: 43.43016052 | R64: 27.2735405 | S64: 10.90234947 | T64: 106.9892044 | U64: 924.3546143 | V64: 2.671055317 | W64: 22.74976921 | X64: 0.958105743 | Y64: 76.84613037 | Z64: 3.266582012 | AA64: 39.67412567 | AB64: 1.312458038 | AC64: 1.167244911 | AD64: 272.8092041 | AE64: 15.49908447 | AF64: 85.56156158 | AG64: 12.18580723 | AH64: 6.688294411 | AI64: 38.25200272 | AJ64: 2299.036133 | AK64: 180.4809418 | AL64: 702.5269165 | AM64: 7.303513527 | AN64: 1.378254294 | AO64: 12.29497147 | AP64: 1.077542186 | AQ64: 0 | AR64: 0.657379806 | AS64: 2.783294201 | AT64: 2.119542122 | AU64: 146.417099 | AV64: 314.7834778 | AW64: 0.940268934 | AX64: 2.917876005 | AY64: 71.61644745 | AZ64: 1 | BA64: 1 | BB64: 1
A65: 60 | B65: 131665.1563 | C65: 15 | D65: 215.8620605 | E65: 1866.159424 | F65: 173.3831177 | G65: 166.5940552 | H65: 3016.528076 | I65: 2802.365479 | J65: 54.9298439 | K65: 0 | L65: 0.425570071 | M65: 1.388484955 | N65: 1.684681177 | O65: 0.72435993 | P65: 0.55429554 | Q65: 1.315265179 | R65: 112.1922302 | S65: 3.171906948 | T65: 181.7573242 | U65: 218.7813721 | V65: 1.902640224 | W65: 3.266714334 | X65: 1.62994349 | Y65: 7.217979908 | Z65: 131.4905701 | AA65: 2.587109089 | AB65: 0 | AC65: 0 | AD65: 19.8778553 | AE65: 13.76343727 | AF65: 8.42209816 | AG65: 1.777753234 | AH65: 3.494869232 | AI65: 18.91672707 | AJ65: 1694.106445 | AK65: 35.60613632 | AL65: 3.579779863 | AM65: 1.395761609 | AN65: 2.015350819 | AO65: 10.58156776 | AP65: 0 | AQ65: 0 | AR65: 3.666146278 | AS65: 2.930003166 | AT65: 0.528495669 | AU65: 499.7961731 | AV65: 916.2653198 | AW65: 0 | AX65: 2.095426321 | AY65: 81.35044098 | AZ65: 1 | BA65: 1 | BB65: 4
A66: 61 | B66: 133540.6094 | C66: 17 | D66: 121.1994095 | E66: 2013.866333 | F66: 132.2702179 | G66: 179.3684845 | H66: 3401.539551 | I66: 3223.515381 | J66: 46.57157516 | K66: 0 | L66: 3.058926582 | M66: 1.582075357 | N66: 8.651622772 | O66: 4.135251999 | P66: 1.424950242 | Q66: 0.060125437 | R66: 43.94771957 | S66: 1.411535859 | T66: 49.62634277 | U66: 790.3647461 | V66: 0.625937521 | W66: 0.174848258 | X66: 2.808685064 | Y66: 176.3820801 | Z66: 16.17703247 | AA66: 155.9201508 | AB66: 4.317540169 | AC66: 1.522250772 | AD66: 7.919785976 | AE66: 5.671529293 | AF66: 10.65335083 | AG66: 2.178550482 | AH66: 3.453926563 | AI66: 3.809421778 | AJ66: 1104.658203 | AK66: 87.82952118 | AL66: 387.1154785 | AM66: 3.890814543 | AN66: 0 | AO66: 52.16893387 | AP66: 0 | AQ66: 0 | AR66: 5.478334427 | AS66: 0.063850008 | AT66: 1.549822569 | AU66: 542.5739136 | AV66: 1110.878052 | AW66: 9.369075775 | AX66: 1.048558354 | AY66: 58.52046967 | AZ66: 1 | BA66: 1 | BB66: 9
A67: 62 | B67: 134336.2813 | C67: 18 | D67: 836.1880493 | E67: 1333.775757 | F67: 87.6993866 | G67: 172.312973 | H67: 2357.232666 | I67: 2074.889648 | J67: 39.81204224 | K67: 0 | L67: 1.017315149 | M67: 0 | N67: 0.770725191 | O67: 0.461432934 | P67: 0.217883945 | Q67: 2.353136301 | R67: 79.39244843 | S67: 7.095936775 | T67: 194.2123413 | U67: 1065.600464 | V67: 5.652718067 | W67: 6.679096699 | X67: 0 | Y67: 21.36889076 | Z67: 52.36427307 | AA67: 71.98695374 | AB67: 2.99815464 | AC67: 3.375647545 | AD67: 143.9654083 | AE67: 60.09371185 | AF67: 207.7132263 | AG67: 184.9423065 | AH67: 40.70450974 | AI67: 28.1182251 | AJ67: 1698.245117 | AK67: 218.8127594 | AL67: 71.87669373 | AM67: 0.955620468 | AN67: 4.992659092 | AO67: 96.98072815 | AP67: 0 | AQ67: 0 | AR67: 2.04487133 | AS67: 0.672272921 | AT67: 0.093373425 | AU67: 157.6839294 | AV67: 347.8538208 | AW67: 2.89144206 | AX67: 7.659780502 | AY67: 83.14924622 | AZ67: 1 | BA67: 1 | BB67: 1
A68: 63 | B68: 135399.4063 | C68: 17 | D68: 338.5379028 | E68: 1814.529785 | F68: 124.6922302 | G68: 166.1807251 | H68: 3221.194824 | I68: 2862.986816 | J68: 105.7527847 | K68: 2.303997278 | L68: 15.16644382 | M68: 0 | N68: 0.782769024 | O68: 2.162252188 | P68: 1.737311363 | Q68: 1.921302676 | R68: 66.3411026 | S68: 12.56962109 | T68: 33.25270844 | U68: 990.4448853 | V68: 2.462934256 | W68: 72.9018631 | X68: 0 | Y68: 142.6464233 | Z68: 53.1435585 | AA68: 3.523224354 | AB68: 0 | AC68: 0.681597888 | AD68: 57.25831985 | AE68: 10.73125648 | AF68: 35.82125854 | AG68: 6.724691868 | AH68: 1.970864415 | AI68: 2.692247152 | AJ68: 519.0030518 | AK68: 157.4181519 | AL68: 686.1627808 | AM68: 0.855376244 | AN68: 2.794905901 | AO68: 73.98455048 | AP68: 0.969290197 | AQ68: 0 | AR68: 0.875090063 | AS68: 82.40055847 | AT68: 7.149208546 | AU68: 603.4821167 | AV68: 1242.189087 | AW68: 4.443131447 | AX68: 7.170608044 | AY68: 72.99005127 | AZ68: 1 | BA68: 1 | BB68: 7
A69: 64 | B69: 135883.3281 | C69: 13 | D69: 297.4009399 | E69: 1479.542236 | F69: 84.89933014 | G69: 160.4374542 | H69: 2564.522949 | I69: 2228.871826 | J69: 25.39468575 | K69: 0 | L69: 2.495696783 | M69: 0 | N69: 0 | O69: 2.335600853 | P69: 1.000127435 | Q69: 2.637137175 | R69: 86.85660553 | S69: 12.01586533 | T69: 123.9058456 | U69: 1189.056396 | V69: 1.64471221 | W69: 9.710166931 | X69: 0 | Y69: 28.97149277 | Z69: 65.29619598 | AA69: 2.012140036 | AB69: 0.276110649 | AC69: 3.540784597 | AD69: 39.91552353 | AE69: 11.3045187 | AF69: 2.1080935 | AG69: 1.249341011 | AH69: 2.997997046 | AI69: 2.6222651 | AJ69: 470.921936 | AK69: 61.34313202 | AL69: 299.1996765 | AM69: 2.87855649 | AN69: 0.51840353 | AO69: 56.29227829 | AP69: 0 | AQ69: 0.033369303 | AR69: 0 | AS69: 1.254087687 | AT69: 2.949016094 | AU69: 579.2559204 | AV69: 1110.682495 | AW69: 0 | AX69: 1.095099688 | AY69: 75.03317261 | AZ69: 1 | BA69: 1 | BB69: 4
A70: 65 | B70: 135972.8594 | C70: 14 | D70: 300.5003967 | E70: 1894.298218 | F70: 118.592598 | G70: 179.0926056 | H70: 3222.389404 | I70: 2858.641602 | J70: 44.74815369 | K70: 0.855646729 | L70: 5.555278778 | M70: 0 | N70: 1.900345922 | O70: 3.96740818 | P70: 0.834871292 | Q70: 16.9797554 | R70: 114.9187469 | S70: 4.523993015 | T70: 389.9138184 | U70: 1760.884277 | V70: 0 | W70: 11.75672913 | X70: 1.549641848 | Y70: 434.6280823 | Z70: 40.39011765 | AA70: 105.4782104 | AB70: 0.572935343 | AC70: 0.273847967 | AD70: 139.6572266 | AE70: 3.182359219 | AF70: 27.41511345 | AG70: 51.03404617 | AH70: 0 | AI70: 3.387722015 | AJ70: 990.0948486 | AK70: 111.9157028 | AL70: 362.1155701 | AM70: 1.73718226 | AN70: 0 | AO70: 19.02804947 | AP70: 0 | AQ70: 0 | AR70: 2.608392239 | AS70: 0.720992744 | AT70: 6.14988327 | AU70: 602.5079956 | AV70: 1176.142212 | AW70: 2.484649181 | AX70: 0 | AY70: 65.56629944 | AZ70: 1 | BA70: 1 | BB70: 1
A71: 66 | B71: 136033.7344 | C71: 16 | D71: 686.3930664 | E71: 1634.723145 | F71: 152.7567902 | G71: 189.3774109 | H71: 2757.007568 | I71: 2717.603271 | J71: 65.76313019 | K71: 0 | L71: 4.509791374 | M71: 0 | N71: 2.382266521 | O71: 8.420773506 | P71: 0.650399804 | Q71: 1.902611136 | R71: 16.92247772 | S71: 11.67188072 | T71: 27.03432274 | U71: 469.5631104 | V71: 0 | W71: 10.68404388 | X71: 0 | Y71: 29.98861313 | Z71: 55.51844788 | AA71: 7.586331844 | AB71: 1.08118856 | AC71: 1.168138027 | AD71: 32.98568344 | AE71: 3.083693981 | AF71: 11.14401817 | AG71: 1.840442181 | AH71: 4.055184364 | AI71: 1.628445745 | AJ71: 262.5014038 | AK71: 92.59564972 | AL71: 235.7588196 | AM71: 8.565529823 | AN71: 2.82805419 | AO71: 147.568924 | AP71: 0.575446069 | AQ71: 0 | AR71: 1.091322899 | AS71: 13.49607086 | AT71: 8.5779562 | AU71: 362.8871765 | AV71: 708.5653076 | AW71: 1.215616822 | AX71: 2.533043146 | AY71: 67.55155945 | AZ71: 1 | BA71: 1 | BB71: 4
A72: 67 | B72: 136242.6094 | C72: 19 | D72: 632.8706665 | E72: 990.3514404 | F72: 35.95563126 | G72: 80.53866577 | H72: 1804.708008 | I72: 1658.973511 | J72: 14.48818207 | K72: 0.782645047 | L72: 0 | M72: 0.366494715 | N72: 3.545010805 | O72: 1.585330725 | P72: 0.147651166 | Q72: 5.656901836 | R72: 5.776182175 | S72: 0.160909772 | T72: 73.59515381 | U72: 451.7641296 | V72: 0.236164168 | W72: 11.93763447 | X72: 17.03437805 | Y72: 67.14842224 | Z72: 6.737483978 | AA72: 88.2678833 | AB72: 4.27767992 | AC72: 1.435545087 | AD72: 55.03748322 | AE72: 19.07990265 | AF72: 95.71543121 | AG72: 14.13649368 | AH72: 41.55057144 | AI72: 58.82416534 | AJ72: 2782.822754 | AK72: 292.8257751 | AL72: 354.7701416 | AM72: 1.188487053 | AN72: 1.460411906 | AO72: 89.04440308 | AP72: 0 | AQ72: 0 | AR72: 0.758104146 | AS72: 2.85457468 | AT72: 0.820425928 | AU72: 193.1347046 | AV72: 377.1047668 | AW72: 3.151437521 | AX72: 0.421947569 | AY72: 79.604599 | AZ72: 1 | BA72: 1 | BB72: 2
A73: 68 | B73: 136384.1875 | C73: 14 | D73: 241.5306396 | E73: 1569.932129 | F73: 102.3573303 | G73: 106.6016464 | H73: 2527.313721 | I73: 2432.699707 | J73: 53.40745926 | K73: 0 | L73: 1.141474962 | M73: 0 | N73: 8.52497673 | O73: 3.776077747 | P73: 0 | Q73: 0.194328457 | R73: 44.99692535 | S73: 1.871984959 | T73: 76.02661133 | U73: 613.8983154 | V73: 1.267358661 | W73: 1.032109618 | X73: 0 | Y73: 18.90620232 | Z73: 5.276962757 | AA73: 9.933459282 | AB73: 0.608011544 | AC73: 0.408477604 | AD73: 52.44262695 | AE73: 5.228344917 | AF73: 123.8724289 | AG73: 5.507680416 | AH73: 21.503685 | AI73: 43.68425369 | AJ73: 2736.814941 | AK73: 212.9915619 | AL73: 225.8527679 | AM73: 3.060478926 | AN73: 0.487263143 | AO73: 54.49760437 | AP73: 0 | AQ73: 0 | AR73: 0.103924856 | AS73: 2.747976303 | AT73: 3.704679489 | AU73: 376.6315918 | AV73: 702.0358276 | AW73: 2.336418629 | AX73: 0.979669452 | AY73: 68.41646576 | AZ73: 1 | BA73: 1 | BB73: 4
A74: 69 | B74: 136787.4219 | C74: 18 | D74: 1601.482178 | E74: 1425.394043 | F74: 101.3536148 | G74: 124.3316574 | H74: 2494.613037 | I74: 2168.227783 | J74: 23.72892952 | K74: 0 | L74: 0 | M74: 0 | N74: 1.486689448 | O74: 1.132876515 | P74: 0 | Q74: 0.532618523 | R74: 33.5724411 | S74: 8.879759789 | T74: 19.91657639 | U74: 437.0396729 | V74: 1.715471506 | W74: 0 | X74: 0 | Y74: 289.2816467 | Z74: 17.7661972 | AA74: 21.30462646 | AB74: 1.167751431 | AC74: 0.255878478 | AD74: 170.8276215 | AE74: 127.1706314 | AF74: 137.5777893 | AG74: 182.6632233 | AH74: 40.0460434 | AI74: 46.33395767 | AJ74: 1613.282471 | AK74: 427.0279236 | AL74: 2017.151367 | AM74: 101.0621719 | AN74: 1.49922359 | AO74: 229.4876404 | AP74: 0 | AQ74: 0 | AR74: 3.522566319 | AS74: 0 | AT74: 2.633487463 | AU74: 229.1659088 | AV74: 593.7400513 | AW74: 1.170486808 | AX74: 0.442523062 | AY74: 79.16413879 | AZ74: 1 | BA74: 1 | BB74: 2
A75: 70 | B75: 138929.1094 | C75: 18 | D75: 267.5916138 | E75: 1079.444092 | F75: 76.26565552 | G75: 107.7460785 | H75: 1926.301758 | I75: 1817.488037 | J75: 51.35646439 | K75: 1.728792548 | L75: 0 | M75: 0 | N75: 0 | O75: 0.828961134 | P75: 2.434664726 | Q75: 8.165185928 | R75: 124.1117477 | S75: 2.394109964 | T75: 147.3594055 | U75: 755.0397949 | V75: 5.187877178 | W75: 88.1013031 | X75: 2.184097528 | Y75: 99.28910828 | Z75: 50.69857788 | AA75: 7.696887016 | AB75: 6.22374773 | AC75: 1.789716721 | AD75: 149.3692169 | AE75: 83.73228455 | AF75: 183.8445282 | AG75: 32.00501633 | AH75: 46.40304947 | AI75: 45.05848312 | AJ75: 2262.256592 | AK75: 609.3965454 | AL75: 748.9567261 | AM75: 4.82694912 | AN75: 1.095320463 | AO75: 263.7766418 | AP75: 0.420696944 | AQ75: 0 | AR75: 3.844163179 | AS75: 2.725364208 | AT75: 7.681914806 | AU75: 281.7550659 | AV75: 548.4406128 | AW75: 4.859835148 | AX75: 3.422563314 | AY75: 81.64868164 | AZ75: 1 | BA75: 1 | BB75: 4
A76: 71 | B76: 139448.6094 | C76: 16 | D76: 219.2275848 | E76: 1647.999268 | F76: 114.3503952 | G76: 117.8802567 | H76: 2692.076904 | I76: 2403.347168 | J76: 26.4254303 | K76: 0 | L76: 0 | M76: 0.991220176 | N76: 0.846176028 | O76: 7.17088747 | P76: 0 | Q76: 6.262883663 | R76: 112.3075562 | S76: 26.06514359 | T76: 174.4371033 | U76: 880.5386963 | V76: 3.101138592 | W76: 20.73303223 | X76: 0.517294049 | Y76: 156.1285248 | Z76: 69.15706635 | AA76: 75.70828247 | AB76: 2.290881634 | AC76: 0.539549887 | AD76: 15.16523647 | AE76: 2.926148415 | AF76: 124.2451553 | AG76: 10.63512516 | AH76: 1.80337429 | AI76: 23.16680908 | AJ76: 1588.113037 | AK76: 121.57164 | AL76: 308.4491272 | AM76: 2.102635622 | AN76: 0.215436772 | AO76: 12.65693855 | AP76: 1.362181902 | AQ76: 0.024378326 | AR76: 3.273355722 | AS76: 1.378200889 | AT76: 0.790148437 | AU76: 273.1596375 | AV76: 546.940979 | AW76: 0.535796285 | AX76: 0.941772521 | AY76: 79.91348267 | AZ76: 1 | BA76: 1 | BB76: 2
A77: 72 | B77: 139592.3906 | C77: 16 | D77: 200.1498413 | E77: 1875.840454 | F77: 132.8917084 | G77: 167.0882111 | H77: 3013.07251 | I77: 2802.581543 | J77: 61.19631195 | K77: 1.601477027 | L77: 0 | M77: 0 | N77: 2.03435111 | O77: 0.658225 | P77: 0.476085275 | Q77: 0.256777823 | R77: 65.29872131 | S77: 7.140284061 | T77: 141.6797791 | U77: 1196.694336 | V77: 0.721008182 | W77: 0.385523736 | X77: 6.909714222 | Y77: 157.1315155 | Z77: 72.23742676 | AA77: 111.1967773 | AB77: 2.809302807 | AC77: 0.046232667 | AD77: 21.21015358 | AE77: 44.9887619 | AF77: 4.17293787 | AG77: 42.55173111 | AH77: 25.10911179 | AI77: 52.97505188 | AJ77: 3289.834961 | AK77: 194.0326996 | AL77: 401.1194763 | AM77: 1.421436906 | AN77: 1.65275538 | AO77: 100.187027 | AP77: 0 | AQ77: 0 | AR77: 1.857787013 | AS77: 0 | AT77: 2.887056112 | AU77: 400.6557007 | AV77: 870.7183228 | AW77: 3.857845306 | AX77: 0.607118726 | AY77: 74.54629517 | AZ77: 1 | BA77: 1 | BB77: 2
A78: 73 | B78: 140613.1094 | C78: 14 | D78: 613.4163208 | E78: 1487.983276 | F78: 130.2938538 | G78: 136.8038483 | H78: 2464.71875 | I78: 2390.279053 | J78: 42.25202179 | K78: 0 | L78: 1.975680232 | M78: 0 | N78: 1.318986893 | O78: 2.969336033 | P78: 0.242045179 | Q78: 0.163585469 | R78: 51.23590469 | S78: 3.338537455 | T78: 121.091011 | U78: 316.5135803 | V78: 1.402674794 | W78: 3.526000261 | X78: 2.23720789 | Y78: 203.4140778 | Z78: 76.93323517 | AA78: 42.2781601 | AB78: 1.032764196 | AC78: 0.595690608 | AD78: 162.1977997 | AE78: 21.57034302 | AF78: 120.7293777 | AG78: 17.00504494 | AH78: 6.85580492 | AI78: 11.93765354 | AJ78: 1816.017212 | AK78: 146.5238495 | AL78: 306.4464722 | AM78: 6.160102844 | AN78: 0.631783009 | AO78: 88.50089264 | AP78: 0 | AQ78: 0.507409632 | AR78: 0.395690858 | AS78: 2.360454559 | AT78: 7.6872015 | AU78: 337.4029236 | AV78: 852.9116211 | AW78: 0.930157721 | AX78: 0.764473617 | AY78: 72.25910187 | AZ78: 1 | BA78: 1 | BB78: 1
A79: 74 | B79: 140687.1563 | C79: 18 | D79: 514.0437012 | E79: 1077.441284 | F79: 94.14254761 | G79: 100.0228043 | H79: 2064.90918 | I79: 1855.493042 | J79: 49.74110031 | K79: 1.522527456 | L79: 2.658319712 | M79: 0 | N79: 0.936775804 | O79: 2.879143953 | P79: 2.16349268 | Q79: 18.57018661 | R79: 47.87421417 | S79: 5.522640228 | T79: 104.2057648 | U79: 374.8398132 | V79: 1.12580812 | W79: 9.062736511 | X79: 2.088250637 | Y79: 63.65441132 | Z79: 17.16712952 | AA79: 143.365097 | AB79: 2.828941345 | AC79: 1.821194172 | AD79: 79.77693176 | AE79: 35.11672211 | AF79: 79.71793365 | AG79: 43.90348434 | AH79: 22.17546272 | AI79: 33.90612793 | AJ79: 1555.012573 | AK79: 353.0336304 | AL79: 203.3343506 | AM79: 7.451230526 | AN79: 0.536368847 | AO79: 134.7192993 | AP79: 0 | AQ79: 1.855738759 | AR79: 6.172803879 | AS79: 1.83562851 | AT79: 6.610519409 | AU79: 329.80896 | AV79: 564.1408081 | AW79: 0 | AX79: 0.329160005 | AY79: 72.02293396 | AZ79: 1 | BA79: 1 | BB79: 1
A80: 75 | B80: 140897.8594 | C80: 15 | D80: 867.8392334 | E80: 1293.484375 | F80: 92.78538513 | G80: 141.0023346 | H80: 2312.180664 | I80: 2082.83667 | J80: 42.36717606 | K80: 0 | L80: 0.859629273 | M80: 0 | N80: 2.581869364 | O80: 1.909585595 | P80: 0.410989732 | Q80: 2.839600086 | R80: 14.00911045 | S80: 1.827467442 | T80: 4.89582634 | U80: 303.2024536 | V80: 0 | W80: 8.876250267 | X80: 3.086252928 | Y80: 77.27094269 | Z80: 10.84869671 | AA80: 2.400899887 | AB80: 0 | AC80: 0.711019993 | AD80: 82.2412262 | AE80: 22.20661545 | AF80: 22.08156395 | AG80: 12.752285 | AH80: 3.686973095 | AI80: 0.612220049 | AJ80: 461.4701538 | AK80: 103.8588028 | AL80: 809.309021 | AM80: 10.07546616 | AN80: 0 | AO80: 54.48593521 | AP80: 0.788545728 | AQ80: 0.649078786 | AR80: 0.078147933 | AS80: 3.795513868 | AT80: 3.281774759 | AU80: 337.7883911 | AV80: 766.8278809 | AW80: 1.935709 | AX80: 1.727667093 | AY80: 60.42932129 | AZ80: 1 | BA80: 1 | BB80: 4
A81: 76 | B81: 141799.9375 | C81: 15 | D81: 256.1808777 | E81: 1301.157104 | F81: 88.67533875 | G81: 92.96639252 | H81: 2325.161133 | I81: 2135.360107 | J81: 65.43424225 | K81: 0 | L81: 0.066246703 | M81: 0 | N81: 0.555762053 | O81: 1.587995291 | P81: 0.49600473 | Q81: 0.976220369 | R81: 49.6381073 | S81: 3.206622839 | T81: 85.48571777 | U81: 1798.963623 | V81: 0.334465384 | W81: 1.785269976 | X81: 0.601139367 | Y81: 42.08860779 | Z81: 80.95491028 | AA81: 39.61091232 | AB81: 0.036222097 | AC81: 3.400640011 | AD81: 27.13092232 | AE81: 30.65013504 | AF81: 89.58462524 | AG81: 1.632053614 | AH81: 5.96639204 | AI81: 14.06375027 | AJ81: 2200.459961 | AK81: 177.787735 | AL81: 59.18002701 | AM81: 9.492424965 | AN81: 1.312516332 | AO81: 8.687196732 | AP81: 0 | AQ81: 0 | AR81: 1.018173814 | AS81: 3.729481697 | AT81: 0.46519047 | AU81: 262.8697205 | AV81: 556.1156006 | AW81: 6.376858711 | AX81: 0.483836353 | AY81: 84.71759796 | AZ81: 1 | BA81: 1 | BB81: 2
A82: 77 | B82: 142323.2188 | C82: 15 | D82: 273.1515808 | E82: 1865.424927 | F82: 117.0609818 | G82: 118.4139557 | H82: 2720.278809 | I82: 2458.750732 | J82: 34.2767067 | K82: 0.769379616 | L82: 16.92492485 | M82: 0 | N82: 0.835935593 | O82: 0 | P82: 0 | Q82: 0.982770205 | R82: 5.693600655 | S82: 2.133416414 | T82: 7.510818958 | U82: 1369.123169 | V82: 0.514701128 | W82: 87.92424011 | X82: 0.822284102 | Y82: 60.4707222 | Z82: 24.80926132 | AA82: 1.546970725 | AB82: 1.94226706 | AC82: 0 | AD82: 13.36744308 | AE82: 3.372085571 | AF82: 1.555766225 | AG82: 338.4281311 | AH82: 1.03921628 | AI82: 0 | AJ82: 383.9591064 | AK82: 12.21805286 | AL82: 306.0586243 | AM82: 4.276909828 | AN82: 0.1867854 | AO82: 26.15730286 | AP82: 0 | AQ82: 0 | AR82: 1.334107757 | AS82: 129.1154175 | AT82: 2.94947958 | AU82: 407.3930969 | AV82: 877.2354736 | AW82: 2.105359077 | AX82: 2.456112862 | AY82: 57.91407776 | AZ82: 1 | BA82: 1 | BB82: 7
A83: 78 | B83: 142803.1094 | C83: 13 | D83: 459.4536438 | E83: 1341.762573 | F83: 74.56700134 | G83: 118.0374451 | H83: 2416.226807 | I83: 2274.345459 | J83: 27.51938629 | K83: 0 | L83: 0 | M83: 0 | N83: 0.370840251 | O83: 1.784877658 | P83: 0.305051386 | Q83: 0 | R83: 4.2741642 | S83: 1.120471478 | T83: 0.747515023 | U83: 160.3535309 | V83: 0 | W83: 18.69638443 | X83: 0.14504227 | Y83: 39.72783661 | Z83: 10.25963497 | AA83: 9.290342331 | AB83: 0 | AC83: 0.048672162 | AD83: 47.54336166 | AE83: 15.26025486 | AF83: 15.53644848 | AG83: 5.280668736 | AH83: 0.641005814 | AI83: 1.717628002 | AJ83: 581.4074707 | AK83: 83.13604736 | AL83: 285.9658508 | AM83: 12.51930141 | AN83: 1.631390095 | AO83: 35.16442108 | AP83: 0.859339595 | AQ83: 0 | AR83: 3.690041065 | AS83: 0 | AT83: 1.104224443 | AU83: 459.4684448 | AV83: 914.3823242 | AW83: 2.991441965 | AX83: 0 | AY83: 64.95184326 | AZ83: 1 | BA83: 1 | BB83: 4
A84: 79 | B84: 142824.5625 | C84: 17 | D84: 1446.260864 | E84: 1382.967529 | F84: 97.58221436 | G84: 142.2332306 | H84: 2279.806152 | I84: 2014.109131 | J84: 35.41557693 | K84: 0.755011797 | L84: 0 | M84: 0 | N84: 0.511332154 | O84: 1.758372068 | P84: 1.701583147 | Q84: 2.532666206 | R84: 92.12596893 | S84: 1.769923687 | T84: 189.1295166 | U84: 510.7171021 | V84: 2.517660618 | W84: 3.530274868 | X84: 1.801434755 | Y84: 54.97119904 | Z84: 30.81781197 | AA84: 268.859375 | AB84: 0.182644501 | AC84: 0.372837096 | AD84: 60.71104813 | AE84: 2.966518641 | AF84: 200.7910614 | AG84: 78.17914581 | AH84: 0 | AI84: 5.99418354 | AJ84: 1509.048096 | AK84: 174.2867737 | AL84: 239.9498749 | AM84: 3.550826311 | AN84: 2.579342365 | AO84: 63.47933197 | AP84: 0 | AQ84: 0.824617624 | AR84: 2.562315702 | AS84: 0.129750654 | AT84: 0.16272749 | AU84: 457.8578491 | AV84: 825.3401489 | AW84: 2.947391272 | AX84: 0 | AY84: 76.43613434 | AZ84: 1 | BA84: 1 | BB84: 2
A85: 80 | B85: 143613.8906 | C85: 20 | D85: 282.959137 | E85: 1899.460938 | F85: 113.3930969 | G85: 139.6194763 | H85: 3247.134277 | I85: 2905.469482 | J85: 22.27677345 | K85: 0 | L85: 0 | M85: 0 | N85: 0.059937239 | O85: 1.510088563 | P85: 2.899393797 | Q85: 1.870723486 | R85: 164.9721375 | S85: 8.408857346 | T85: 168.3173065 | U85: 1614.027954 | V85: 0.09557052 | W85: 24.04093552 | X85: 0.020085867 | Y85: 81.72733307 | Z85: 45.38196182 | AA85: 79.37904358 | AB85: 4.435200691 | AC85: 1.300055146 | AD85: 225.467514 | AE85: 50.02549362 | AF85: 103.3181534 | AG85: 23.26934433 | AH85: 11.45641041 | AI85: 63.26288986 | AJ85: 3222.488525 | AK85: 120.6082306 | AL85: 67.27334595 | AM85: 2.047506571 | AN85: 2.61741662 | AO85: 73.12139893 | AP85: 0 | AQ85: 0 | AR85: 4.284601688 | AS85: 2.075993061 | AT85: 1.599268675 | AU85: 595.175293 | AV85: 1264.856201 | AW85: 3.827133656 | AX85: 0.935005307 | AY85: 76.21717834 | AZ85: 1 | BA85: 1 | BB85: 2
A86: 81 | B86: 144800.9688 | C86: 17 | D86: 339.9016724 | E86: 1159.323486 | F86: 133.8513031 | G86: 139.6175537 | H86: 2024.950684 | I86: 1963.65564 | J86: 60.85092163 | K86: 0 | L86: 0 | M86: 0.681896687 | N86: 0.672985017 | O86: 0.285173029 | P86: 0.2877177 | Q86: 0 | R86: 31.75025368 | S86: 3.494866848 | T86: 68.67098236 | U86: 352.4451904 | V86: 1.949498892 | W86: 59.69498444 | X86: 0.792140722 | Y86: 70.73406982 | Z86: 5.764885426 | AA86: 27.20906067 | AB86: 0.618183196 | AC86: 0 | AD86: 38.46196747 | AE86: 3.364796638 | AF86: 84.41077423 | AG86: 13.68047619 | AH86: 1.562102675 | AI86: 0.809865713 | AJ86: 994.4067383 | AK86: 73.83104706 | AL86: 268.0054932 | AM86: 2.051949978 | AN86: 1.562528253 | AO86: 23.31121635 | AP86: 0.222004443 | AQ86: 0 | AR86: 0.270415306 | AS86: 3.659852982 | AT86: 2.134978294 | AU86: 306.0523071 | AV86: 546.9503784 | AW86: 7.045705795 | AX86: 3.334722519 | AY86: 61.42455673 | AZ86: 1 | BA86: 1 | BB86: 2
A87: 82 | B87: 146079.75 | C87: 14 | D87: 208.499527 | E87: 1567.758911 | F87: 97.59349823 | G87: 121.6215897 | H87: 2507.663818 | I87: 2353.54126 | J87: 46.44320679 | K87: 0.845769703 | L87: 0 | M87: 0 | N87: 2.654999018 | O87: 0.668316722 | P87: 0 | Q87: 0.052321818 | R87: 30.7994957 | S87: 1.373036623 | T87: 86.70508575 | U87: 391.1318665 | V87: 0 | W87: 1.314472198 | X87: 0 | Y87: 16.05864525 | Z87: 26.62680435 | AA87: 35.7346611 | AB87: 1.534100533 | AC87: 0.145844042 | AD87: 39.08836746 | AE87: 1.382103682 | AF87: 34.31531525 | AG87: 39.43775558 | AH87: 2.731590986 | AI87: 6.228001595 | AJ87: 1556.431396 | AK87: 109.1374512 | AL87: 97.72480011 | AM87: 0.740423441 | AN87: 0.409779489 | AO87: 11.41033268 | AP87: 0 | AQ87: 0.013863378 | AR87: 3.598193884 | AS87: 3.245619297 | AT87: 3.883659601 | AU87: 398.770752 | AV87: 837.9932861 | AW87: 3.725538731 | AX87: 0.851059318 | AY87: 65.26194 | AZ87: 1 | BA87: 1 | BB87: 2
A88: 83 | B88: 146239.8281 | C88: 17 | D88: 503.0261536 | E88: 2975.492676 | F88: 277.1096497 | G88: 338.6990967 | H88: 3817.121582 | I88: 3515.70752 | J88: 178.95961 | K88: 1.743032813 | L88: 0.03025954 | M88: 0 | N88: 1.798425436 | O88: 0.974203765 | P88: 0.578274429 | Q88: 2.529542446 | R88: 34.6817627 | S88: 1.664566875 | T88: 76.35256195 | U88: 1335.527222 | V88: 0.638138294 | W88: 33.08081818 | X88: 0.346536011 | Y88: 139.7295074 | Z88: 144.097641 | AA88: 106.3075409 | AB88: 0.669255555 | AC88: 1.122879386 | AD88: 54.04927063 | AE88: 23.34978485 | AF88: 111.0133591 | AG88: 220.9994354 | AH88: 4.230304241 | AI88: 13.87008858 | AJ88: 2531.679688 | AK88: 472.6843567 | AL88: 1139.219849 | AM88: 13.92201519 | AN88: 0.481594324 | AO88: 118.4851379 | AP88: 0.490564793 | AQ88: 0.739702523 | AR88: 1.057701588 | AS88: 10.14610958 | AT88: 1.729444504 | AU88: 945.8588867 | AV88: 1934.700562 | AW88: 0 | AX88: 0.660762846 | AY88: 93.89472961 | AZ88: 1 | BA88: 1 | BB88: 2
A89: 84 | B89: 146520.1719 | C89: 15 | D89: 262.5403137 | E89: 1507.469971 | F89: 95.60591888 | G89: 119.0731964 | H89: 2633.093262 | I89: 2482.004395 | J89: 31.02290344 | K89: 0.889589906 | L89: 1.161651015 | M89: 0 | N89: 2.416170359 | O89: 1.042019725 | P89: 2.306044102 | Q89: 4.800578117 | R89: 3.325406075 | S89: 10.82482147 | T89: 5.155698776 | U89: 1265.127319 | V89: 1.350997567 | W89: 41.15991974 | X89: 1.204573393 | Y89: 189.9382477 | Z89: 19.12585449 | AA89: 54.60075378 | AB89: 2.898649454 | AC89: 0.592129946 | AD89: 66.34858704 | AE89: 43.29332352 | AF89: 22.23795891 | AG89: 268.8976746 | AH89: 13.1600275 | AI89: 0.00093329 | AJ89: 1028.977417 | AK89: 171.7426758 | AL89: 1229.308594 | AM89: 7.797777653 | AN89: 0 | AO89: 64.44805145 | AP89: 0.509213388 | AQ89: 1.164614081 | AR89: 1.452827573 | AS89: 1551.535767 | AT89: 3.598335743 | AU89: 359.2476807 | AV89: 770.0579834 | AW89: 5.382144451 | AX89: 3.187136889 | AY89: 66.89952087 | AZ89: 1 | BA89: 1 | BB89: 6
A90: 85 | B90: 147453.1406 | C90: 18 | D90: 288.3349304 | E90: 2062.029785 | F90: 132.3568268 | G90: 164.0336914 | H90: 3223.95459 | I90: 3106.687256 | J90: 56.45281982 | K90: 0 | L90: 0 | M90: 0 | N90: 1.533241034 | O90: 3.586354017 | P90: 0 | Q90: 2.313348055 | R90: 124.0639496 | S90: 6.266649246 | T90: 230.0098419 | U90: 1513.954468 | V90: 1.800511479 | W90: 23.43939209 | X90: 0.679262936 | Y90: 228.841217 | Z90: 69.98114014 | AA90: 671.3331299 | AB90: 1.482018709 | AC90: 1.329253316 | AD90: 153.519516 | AE90: 32.60648727 | AF90: 42.09286499 | AG90: 123.9359894 | AH90: 2.910986662 | AI90: 31.86653519 | AJ90: 3444.720947 | AK90: 76.39385223 | AL90: 137.3264008 | AM90: 2.643057346 | AN90: 1.841065884 | AO90: 21.50870323 | AP90: 0 | AQ90: 0 | AR90: 1.802582741 | AS90: 0.725688815 | AT90: 5.27999258 | AU90: 886.3652344 | AV90: 1516.762207 | AW90: 3.724931717 | AX90: 1.779130936 | AY90: 71.36400604 | AZ90: 1 | BA90: 1 | BB90: 2
A91: 86 | B91: 147620.7969 | C91: 15 | D91: 388.2957153 | E91: 2230.12207 | F91: 134.3113861 | G91: 188.4313812 | H91: 3100.109619 | I91: 2909.499023 | J91: 21.74508095 | K91: 0.081568472 | L91: 0.412624478 | M91: 2.48019743 | N91: 2.984591722 | O91: 0 | P91: 0 | Q91: 0.54608947 | R91: 2.756375074 | S91: 2.431174278 | T91: 2.576189995 | U91: 446.9777222 | V91: 0.665620208 | W91: 6.273266792 | X91: 0.119548634 | Y91: 47.45514297 | Z91: 2.057728052 | AA91: 1.965471864 | AB91: 2.96608305 | AC91: 0 | AD91: 122.3088837 | AE91: 0.28856343 | AF91: 1.271592021 | AG91: 25.53834534 | AH91: 0.076808259 | AI91: 5.48109293 | AJ91: 343.5603638 | AK91: 56.92692947 | AL91: 342.0411987 | AM91: 3.973312855 | AN91: 0.127509519 | AO91: 6.178803444 | AP91: 0.548901975 | AQ91: 0.457597136 | AR91: 2.20157361 | AS91: 0.651229084 | AT91: 3.85233593 | AU91: 462.2939453 | AV91: 858.4296875 | AW91: 1.053697228 | AX91: 1.149050593 | AY91: 57.26617432 | AZ91: 1 | BA91: 1 | BB91: 4
A92: 87 | B92: 148781.0625 | C92: 14 | D92: 139.9335632 | E92: 1363.92627 | F92: 102.4049835 | G92: 85.21224213 | H92: 2351.925781 | I92: 2182.341797 | J92: 9.920463562 | K92: 0.158538505 | L92: 0.212373838 | M92: 0 | N92: 6.611711502 | O92: 1.474255562 | P92: 0 | Q92: 0.227374718 | R92: 19.71227646 | S92: 10.41366482 | T92: 23.22053719 | U92: 841.3469238 | V92: 0 | W92: 0 | X92: 0.78866744 | Y92: 75.1941452 | Z92: 33.56317139 | AA92: 5.960754871 | AB92: 1.453420281 | AC92: 0 | AD92: 67.07254028 | AE92: 15.62554932 | AF92: 19.93868065 | AG92: 31.73133469 | AH92: 0.48509711 | AI92: 0.60114491 | AJ92: 279.5549316 | AK92: 43.97692108 | AL92: 356.397644 | AM92: 3.767115355 | AN92: 0.929048181 | AO92: 31.67214966 | AP92: 0 | AQ92: 1.918166757 | AR92: 0 | AS92: 3.760239601 | AT92: 3.646351814 | AU92: 270.8319092 | AV92: 588.3516846 | AW92: 3.169797421 | AX92: 0.786223292 | AY92: 57.48060608 | AZ92: 1 | BA92: 1 | BB92: 4
A93: 88 | B93: 149619.4844 | C93: 18 | D93: 1045.163818 | E93: 1350.206055 | F93: 92.55117035 | G93: 131.314621 | H93: 2288.568359 | I93: 2114.765137 | J93: 38.76926041 | K93: 0 | L93: 2.329635382 | M93: 0 | N93: 4.921888828 | O93: 3.445640326 | P93: 0.176738709 | Q93: 1.322397232 | R93: 99.07531738 | S93: 10.09860706 | T93: 165.2525024 | U93: 1905.726196 | V93: 0.824922979 | W93: 4.610311031 | X93: 1.689216375 | Y93: 177.3433075 | Z93: 27.30828476 | AA93: 105.0740891 | AB93: 0 | AC93: 2.598734617 | AD93: 80.76825714 | AE93: 42.90824127 | AF93: 155.1961517 | AG93: 133.4084473 | AH93: 39.47204971 | AI93: 52.50065613 | AJ93: 3454.938232 | AK93: 291.5484924 | AL93: 465.3110962 | AM93: 0.887989163 | AN93: 3.257869959 | AO93: 93.78314209 | AP93: 0.165517867 | AQ93: 2.407487631 | AR93: 5.831735611 | AS93: 2.46530652 | AT93: 2.57977438 | AU93: 232.1163483 | AV93: 558.5303955 | AW93: 1.794246793 | AX93: 0 | AY93: 72.28410339 | AZ93: 1 | BA93: 1 | BB93: 1
A94: 89 | B94: 149783.7188 | C94: 16 | D94: 870.0740967 | E94: 1807.437134 | F94: 118.7154617 | G94: 190.4740753 | H94: 3168.167236 | I94: 2849.595215 | J94: 35.22257996 | K94: 0.745456517 | L94: 0 | M94: 0 | N94: 4.399616241 | O94: 5.523923397 | P94: 1.823842049 | Q94: 4.289928436 | R94: 87.05480957 | S94: 28.34581566 | T94: 133.325119 | U94: 2373.501465 | V94: 8.858197212 | W94: 60.5577774 | X94: 1.138970852 | Y94: 582.7949829 | Z94: 55.37654495 | AA94: 23.28837585 | AB94: 0.984035671 | AC94: 0.924327254 | AD94: 292.2961426 | AE94: 104.9499054 | AF94: 177.2471161 | AG94: 297.3641968 | AH94: 60.22934341 | AI94: 59.18689728 | AJ94: 2519.339111 | AK94: 761.4715576 | AL94: 1254.122803 | AM94: 0 | AN94: 0 | AO94: 124.8068237 | AP94: 0 | AQ94: 0 | AR94: 47.15721512 | AS94: 4.542199612 | AT94: 2.418297291 | AU94: 405.4056396 | AV94: 900.6558838 | AW94: 2.110377073 | AX94: 0.245680854 | AY94: 86.22776794 | AZ94: 1 | BA94: 1 | BB94: 2
A95: 90 | B95: 150533.9844 | C95: 15 | D95: 75.95127869 | E95: 948.3365479 | F95: 63.0093689 | G95: 81.1394577 | H95: 1713.365723 | I95: 1550.887817 | J95: 38.43887329 | K95: 0 | L95: 9.03236866 | M95: 0 | N95: 2.548295736 | O95: 5.092160225 | P95: 1.050137758 | Q95: 7.614648819 | R95: 64.58557129 | S95: 12.73704338 | T95: 83.11399841 | U95: 929.6298218 | V95: 0.030533815 | W95: 19.76267052 | X95: 1.612469196 | Y95: 62.38628387 | Z95: 95.16326904 | AA95: 91.84681702 | AB95: 2.399382114 | AC95: 0.094981164 | AD95: 43.89434052 | AE95: 40.05032349 | AF95: 69.10960388 | AG95: 97.44032288 | AH95: 7.548667431 | AI95: 5.346953392 | AJ95: 1704.403198 | AK95: 207.3204346 | AL95: 130.1526031 | AM95: 2.017299414 | AN95: 0.42920202 | AO95: 44.79571152 | AP95: 0 | AQ95: 0.296448499 | AR95: 0.586712062 | AS95: 0.44163841 | AT95: 0.430840224 | AU95: 408.2854309 | AV95: 606.3712158 | AW95: 2.188432693 | AX95: 0 | AY95: 83.85580444 | AZ95: 1 | BA95: 1 | BB95: 1
A96: 91 | B96: 150704.3906 | C96: 13 | D96: 279.2511292 | E96: 2019.381226 | F96: 196.8625946 | G96: 235.5598602 | H96: 2897.864258 | I96: 2621.480713 | J96: 104.5935974 | K96: 0.005824282 | L96: 32.37456894 | M96: 0 | N96: 0.296955973 | O96: 2.123316765 | P96: 0 | Q96: 1.846710443 | R96: 4.076673031 | S96: 2.881546497 | T96: 5.928296089 | U96: 1653.827881 | V96: 0.430396289 | W96: 1.650422096 | X96: 0.777564049 | Y96: 87.5504303 | Z96: 67.48074341 | AA96: 15.49390984 | AB96: 1.200384855 | AC96: 0 | AD96: 91.38352966 | AE96: 6.293669224 | AF96: 22.95293236 | AG96: 2.252584457 | AH96: 15.40154076 | AI96: 51.4474411 | AJ96: 3450.037109 | AK96: 224.7885895 | AL96: 287.95224 | AM96: 2.118401766 | AN96: 2.25427103 | AO96: 127.8300323 | AP96: 0.614618123 | AQ96: 1.45228231 | AR96: 0 | AS96: 0.797438264 | AT96: 1.440270424 | AU96: 893.4196777 | AV96: 1682.675781 | AW96: 0.861219466 | AX96: 0 | AY96: 83.20648956 | AZ96: 1 | BA96: 1 | BB96: 4
A97: 92 | B97: 152024.1563 | C97: 17 | D97: 290.6509705 | E97: 2259.403076 | F97: 169.5615997 | G97: 170.6891327 | H97: 3809.339844 | I97: 3304.942627 | J97: 107.0007095 | K97: 0.925644755 | L97: 0.516670704 | M97: 1.779222965 | N97: 5.59825182 | O97: 3.532335758 | P97: 0 | Q97: 4.664600849 | R97: 96.55300903 | S97: 5.599847317 | T97: 131.724884 | U97: 778.2869263 | V97: 0.568532526 | W97: 0.771983802 | X97: 0.238889545 | Y97: 146.0200958 | Z97: 120.0901413 | AA97: 217.7194519 | AB97: 1.226782203 | AC97: 2.223537922 | AD97: 70.94371796 | AE97: 40.97434235 | AF97: 44.31750107 | AG97: 93.17749786 | AH97: 0 | AI97: 2.794953585 | AJ97: 2013.848267 | AK97: 191.3318481 | AL97: 698.4213867 | AM97: 6.181349754 | AN97: 1.905142426 | AO97: 117.60392 | AP97: 0.976998925 | AQ97: 2.976826906 | AR97: 2.467764616 | AS97: 2.719176054 | AT97: 8.883322716 | AU97: 681.5129395 | AV97: 1294.858276 | AW97: 1.673254967 | AX97: 0 | AY97: 75.81902313 | AZ97: 1 | BA97: 1 | BB97: 2
A98: 93 | B98: 152213.4688 | C98: 15 | D98: 209.0341492 | E98: 2394.755127 | F98: 219.9697876 | G98: 278.2979736 | H98: 3390.4646 | I98: 3099.08374 | J98: 187.2750854 | K98: 0.663919508 | L98: 0 | M98: 0 | N98: 1.482967257 | O98: 3.45835948 | P98: 1.216947675 | Q98: 1.291169524 | R98: 4.506247044 | S98: 0.39113912 | T98: 21.17939186 | U98: 1140.604492 | V98: 0.091954499 | W98: 21.56744194 | X98: 2.69066453 | Y98: 0.417647421 | Z98: 64.96013641 | AA98: 11.98779392 | AB98: 1.50799191 | AC98: 3.493979454 | AD98: 114.8917999 | AE98: 25.35747719 | AF98: 13.75253582 | AG98: 0 | AH98: 1.52001822 | AI98: 5.251640797 | AJ98: 868.9967041 | AK98: 59.93175888 | AL98: 77.14253998 | AM98: 1.483927608 | AN98: 1.91580224 | AO98: 11.69539356 | AP98: 0 | AQ98: 0.220745906 | AR98: 0.501127541 | AS98: 0.51260674 | AT98: 5.992450237 | AU98: 1011.740356 | AV98: 1951.841919 | AW98: 3.298178911 | AX98: 4.905850887 | AY98: 66.8883667 | AZ98: 1 | BA98: 1 | BB98: 4
A99: 94 | B99: 153060.6563 | C99: 21 | D99: 479.7580566 | E99: 1090.247314 | F99: 86.53599548 | G99: 141.3890076 | H99: 2036.510376 | I99: 1924.280273 | J99: 51.03376007 | K99: 2.953566551 | L99: 0 | M99: 0 | N99: 3.462377548 | O99: 0 | P99: 3.058552742 | Q99: 1.888202906 | R99: 58.83870316 | S99: 10.3261528 | T99: 67.5092392 | U99: 987.9676514 | V99: 4.68338871 | W99: 20.65479469 | X99: 2.366852283 | Y99: 123.1500015 | Z99: 22.85540962 | AA99: 287.423584 | AB99: 5.257894039 | AC99: 6.498200417 | AD99: 124.3778915 | AE99: 51.88260269 | AF99: 171.5348511 | AG99: 90.9839325 | AH99: 12.8529768 | AI99: 78.57193756 | AJ99: 2957.587646 | AK99: 330.9509583 | AL99: 623.4342651 | AM99: 6.81600523 | AN99: 3.071806669 | AO99: 44.65307236 | AP99: 0 | AQ99: 0.9712677 | AR99: 1.567870259 | AS99: 4.259297848 | AT99: 12.35126019 | AU99: 196.7273712 | AV99: 419.145813 | AW99: 3.532303333 | AX99: 0 | AY99: 65.53060913 | AZ99: 1 | BA99: 1 | BB99: 2
A100: 95 | B100: 153075.1563 | C100: 13 | D100: 115.4303284 | E100: 1383.929688 | F100: 105.1022186 | G100: 113.0750351 | H100: 2159.417236 | I100: 1928.594849 | J100: 43.84288025 | K100: 0.472174078 | L100: 0 | M100: 0 | N100: 0 | O100: 0.446709096 | P100: 0 | Q100: 0.28514114 | R100: 2.793714046 | S100: 0.111810699 | T100: 4.115234852 | U100: 78.69087219 | V100: 0.193844974 | W100: 2.798068285 | X100: 0.028008331 | Y100: 27.3033886 | Z100: 2.493102312 | AA100: 1.119108796 | AB100: 0 | AC100: 0 | AD100: 16.66813278 | AE100: 7.474560261 | AF100: 10.54456711 | AG100: 7.122556686 | AH100: 0 | AI100: 0.528389573 | AJ100: 108.8600769 | AK100: 8.222910881 | AL100: 126.4194946 | AM100: 0.753916204 | AN100: 1.365736365 | AO100: 9.185883522 | AP100: 0 | AQ100: 0 | AR100: 0.652232051 | AS100: 2.735155106 | AT100: 1.52265203 | AU100: 258.550293 | AV100: 602.0927734 | AW100: 5.453211784 | AX100: 0 | AY100: 48.53155136 | AZ100: 1 | BA100: 1 | BB100: 4
A101: 96 | B101: 154620.4531 | C101: 15 | D101: 195.398468 | E101: 1437.24292 | F101: 64.95124817 | G101: 158.3584442 | H101: 2516.296631 | I101: 2308.898438 | J101: 37.67595673 | K101: 0 | L101: 0 | M101: 0 | N101: 3.614187479 | O101: 1.021086693 | P101: 1.704851627 | Q101: 0.096031673 | R101: 21.45000839 | S101: 1.796186686 | T101: 52.62006378 | U101: 612.8987427 | V101: 1.972722292 | W101: 0.070531555 | X101: 0.756505489 | Y101: 70.80380249 | Z101: 25.29563141 | AA101: 280.438385 | AB101: 1.479775429 | AC101: 0.427367568 | AD101: 9.576933861 | AE101: 20.51850891 | AF101: 4.970155239 | AG101: 1.103666782 | AH101: 10.3100462 | AI101: 8.288943291 | AJ101: 799.9226685 | AK101: 83.55402374 | AL101: 214.1693268 | AM101: 1.56527853 | AN101: 3.004308462 | AO101: 64.69850159 | AP101: 0.011781888 | AQ101: 1.494806886 | AR101: 13.03993893 | AS101: 2.494586706 | AT101: 3.363563538 | AU101: 487.3461914 | AV101: 921.9971924 | AW101: 4.183898449 | AX101: 0.326638311 | AY101: 61.71613312 | AZ101: 1 | BA101: 1 | BB101: 2
A102: 97 | B102: 156244.7969 | C102: 14 | D102: 215.0069427 | E102: 1395.581787 | F102: 83.39543915 | G102: 96.97760773 | H102: 2122.844727 | I102: 2026.935913 | J102: 37.33652496 | K102: 0 | L102: 0 | M102: 0 | N102: 0 | O102: 0.670213938 | P102: 0 | Q102: 6.221049786 | R102: 29.95979881 | S102: 2.112876415 | T102: 84.2789917 | U102: 620.4104614 | V102: 1.854988456 | W102: 2.124024153 | X102: 0 | Y102: 28.46852112 | Z102: 0.083327211 | AA102: 212.6419373 | AB102: 1.515461564 | AC102: 0 | AD102: 28.01729012 | AE102: 6.424590111 | AF102: 14.07248116 | AG102: 34.78575516 | AH102: 5.167579651 | AI102: 4.739899635 | AJ102: 1600.908691 | AK102: 37.5725441 | AL102: 24.65936661 | AM102: 0.186540067 | AN102: 1.417519212 | AO102: 55.69303131 | AP102: 0 | AQ102: 1.085471153 | AR102: 2.108588219 | AS102: 12.62794018 | AT102: 5.292631149 | AU102: 430.7870178 | AV102: 780.9363403 | AW102: 0.978839457 | AX102: 0 | AY102: 56.97619247 | AZ102: 1 | BA102: 1 | BB102: 2
A103: 98 | B103: 156571.125 | C103: 17 | D103: 243.5972595 | E103: 643.8535156 | F103: 54.00403595 | G103: 72.73054504 | H103: 1266.071411 | I103: 1163.844482 | J103: 32.73366547 | K103: 4.520545483 | L103: 0.501265168 | M103: 0 | N103: 1.105252385 | O103: 7.72637558 | P103: 3.381283045 | Q103: 3.970199108 | R103: 29.32024002 | S103: 7.324810505 | T103: 76.8355484 | U103: 650.7246094 | V103: 5.022199154 | W103: 10.37818432 | X103: 14.20867443 | Y103: 34.87606049 | Z103: 85.58219147 | AA103: 140.2287598 | AB103: 10.49564266 | AC103: 3.949746847 | AD103: 64.11000824 | AE103: 49.39160919 | AF103: 97.00588989 | AG103: 28.65194702 | AH103: 2.58513236 | AI103: 31.15514755 | AJ103: 2103.603271 | AK103: 307.9651794 | AL103: 171.14888 | AM103: 2.206127882 | AN103: 0.835313618 | AO103: 86.81167603 | AP103: 0 | AQ103: 0.197319284 | AR103: 1.412456512 | AS103: 1.475613594 | AT103: 6.802954197 | AU103: 211.2112122 | AV103: 388.4840698 | AW103: 3.967602491 | AX103: 2.531797171 | AY103: 75.33672333 | AZ103: 1 | BA103: 1 | BB103: 2
A104: 99 | B104: 157565.125 | C104: 14 | D104: 426.7237244 | E104: 1857.472656 | F104: 118.0672302 | G104: 183.205368 | H104: 2758.350098 | I104: 2665.734131 | J104: 48.68608093 | K104: 1.398127794 | L104: 1.038331628 | M104: 0 | N104: 0.724589348 | O104: 0.094935805 | P104: 0.625502348 | Q104: 7.809426785 | R104: 91.55895996 | S104: 2.984745026 | T104: 198.5532684 | U104: 747.8809204 | V104: 0.180885747 | W104: 6.808142662 | X104: 1.655719161 | Y104: 152.8442078 | Z104: 73.76998138 | AA104: 259.8034668 | AB104: 2.16805625 | AC104: 0.67234987 | AD104: 37.71369553 | AE104: 32.77687836 | AF104: 86.18291473 | AG104: 0 | AH104: 3.61954689 | AI104: 6.574599743 | AJ104: 2324.278564 | AK104: 316.2651062 | AL104: 525.2877197 | AM104: 7.009167194 | AN104: 1.262245536 | AO104: 105.0881805 | AP104: 0.092040405 | AQ104: 0.276392817 | AR104: 2.864739895 | AS104: 1.834820867 | AT104: 1.220297694 | AU104: 418.1109314 | AV104: 855.6827393 | AW104: 5.222570896 | AX104: 0 | AY104: 85.51041412 | AZ104: 1 | BA104: 1 | BB104: 1
A105: 100 | B105: 157613.2969 | C105: 13 | D105: 333.113739 | E105: 1689.019165 | F105: 137.7159882 | G105: 154.0550232 | H105: 2556.194824 | I105: 2421.975098 | J105: 22.33149338 | K105: 0.310911149 | L105: 1.993242264 | M105: 0.033534627 | N105: 1.063401461 | O105: 5.475555897 | P105: 0.971641719 | Q105: 6.580476284 | R105: 20.04905319 | S105: 1.698253632 | T105: 58.95978165 | U105: 1284.98645 | V105: 1.99075532 | W105: 2.919757843 | X105: 1.206832767 | Y105: 119.5912323 | Z105: 67.87497711 | AA105: 14.95896053 | AB105: 2.233164072 | AC105: 0 | AD105: 17.10832787 | AE105: 6.301177025 | AF105: 43.93593597 | AG105: 7.433420658 | AH105: 0.678699255 | AI105: 7.442178249 | AJ105: 1132.015625 | AK105: 63.04707718 | AL105: 54.65417099 | AM105: 3.604672909 | AN105: 0.299480885 | AO105: 24.7419548 | AP105: 0 | AQ105: 0.600946963 | AR105: 0.860889614 | AS105: 526.1019897 | AT105: 1.658867598 | AU105: 398.2512207 | AV105: 746.0564575 | AW105: 0 | AX105: 1.944481373 | AY105: 74.09805298 | AZ105: 1 | BA105: 1 | BB105: 3
A106: 101 | B106: 158247.3438 | C106: 14 | D106: 211.3778992 | E106: 1174.418579 | F106: 101.1317062 | G106: 73.20678711 | H106: 2049.681396 | I106: 1930.882202 | J106: 24.26611137 | K106: 0.267467797 | L106: 0 | M106: 0 | N106: 0.054453179 | O106: 0.291510105 | P106: 0 | Q106: 2.301042795 | R106: 26.96743011 | S106: 1.657361507 | T106: 54.09708405 | U106: 319.8369751 | V106: 1.079881191 | W106: 0 | X106: 0 | Y106: 65.89555359 | Z106: 33.50770187 | AA106: 25.72057533 | AB106: 0 | AC106: 0 | AD106: 30.83003998 | AE106: 10.71400642 | AF106: 49.88279343 | AG106: 17.72269058 | AH106: 1.617635608 | AI106: 40.98711777 | AJ106: 1838.511841 | AK106: 89.38274384 | AL106: 297.7909546 | AM106: 4.13244772 | AN106: 0 | AO106: 14.61634541 | AP106: 0 | AQ106: 0 | AR106: 0 | AS106: 4.385349751 | AT106: 1.136621594 | AU106: 292.4618835 | AV106: 577.637146 | AW106: 0.39034763 | AX106: 0.823177159 | AY106: 72.32502747 | AZ106: 1 | BA106: 1 | BB106: 2
A107: 102 | B107: 158739.75 | C107: 16 | D107: 208.7393036 | E107: 1168.165161 | F107: 71.96287537 | G107: 112.6535492 | H107: 2045.875122 | I107: 1854.510742 | J107: 30.25502586 | K107: 1.162449598 | L107: 0 | M107: 0 | N107: 8.02499485 | O107: 8.889309883 | P107: 0 | Q107: 3.088632345 | R107: 81.13223267 | S107: 7.57242918 | T107: 160.4395447 | U107: 1048.375122 | V107: 0 | W107: 15.25379848 | X107: 7.372515678 | Y107: 155.2717743 | Z107: 177.8472443 | AA107: 294.0424805 | AB107: 0.776964188 | AC107: 0 | AD107: 21.02258301 | AE107: 11.07680607 | AF107: 44.53876495 | AG107: 21.82089424 | AH107: 6.652831078 | AI107: 3.959559441 | AJ107: 1812.194946 | AK107: 78.50283051 | AL107: 219.2257538 | AM107: 2.023220301 | AN107: 0.101573206 | AO107: 60.84634781 | AP107: 0.489068627 | AQ107: 0.891288757 | AR107: 4.090216637 | AS107: 1.320951223 | AT107: 2.119075298 | AU107: 329.3868103 | AV107: 580.6374512 | AW107: 0.882731259 | AX107: 0 | AY107: 74.08187866 | AZ107: 1 | BA107: 1 | BB107: 2
A108: 103 | B108: 159098.5938 | C108: 16 | D108: 458.3660889 | E108: 2704.475342 | F108: 198.9264832 | G108: 305.7392883 | H108: 3861.982422 | I108: 3623.075684 | J108: 132.6259766 | K108: 1.014723063 | L108: 1.611297965 | M108: 0 | N108: 0.79782778 | O108: 0.87322408 | P108: 0 | Q108: 1.33719182 | R108: 25.29203606 | S108: 4.217116356 | T108: 110.8388596 | U108: 1781.469116 | V108: 1.306222558 | W108: 9.777979851 | X108: 1.470474958 | Y108: 41.50296021 | Z108: 287.1716003 | AA108: 445.3457031 | AB108: 3.37461257 | AC108: 0.068961293 | AD108: 52.0059967 | AE108: 68.21334839 | AF108: 2.46712184 | AG108: 0.191632465 | AH108: 0 | AI108: 32.85006714 | AJ108: 2849.282227 | AK108: 91.88948822 | AL108: 236.1172943 | AM108: 1.952540874 | AN108: 1.137314796 | AO108: 116.3436661 | AP108: 0 | AQ108: 4.113299847 | AR108: 0.637592375 | AS108: 6.051646233 | AT108: 20.5683403 | AU108: 810.2327271 | AV108: 1546.137451 | AW108: 1.387806773 | AX108: 0.704160511 | AY108: 86.80187225 | AZ108: 1 | BA108: 1 | BB108: 1
A109: 104 | B109: 159300.7969 | C109: 18 | D109: 570.6328125 | E109: 2268.008545 | F109: 155.1230316 | G109: 166.1167908 | H109: 3642.72168 | I109: 3310.546143 | J109: 75.21988678 | K109: 0.427128643 | L109: 0 | M109: 0 | N109: 2.075802565 | O109: 0.684411049 | P109: 1.712351918 | Q109: 0 | R109: 74.00759125 | S109: 0.468947262 | T109: 196.0215454 | U109: 1241.858643 | V109: 0.56343627 | W109: 19.40003777 | X109: 3.375031948 | Y109: 277.1261292 | Z109: 109.6902237 | AA109: 403.6533813 | AB109: 1.811797023 | AC109: 1.427573919 | AD109: 86.24250793 | AE109: 25.99307823 | AF109: 183.2736664 | AG109: 49.57813644 | AH109: 11.76284981 | AI109: 73.97717285 | AJ109: 4358.80957 | AK109: 320.6878967 | AL109: 564.210022 | AM109: 2.338504791 | AN109: 0.253115267 | AO109: 147.5350494 | AP109: 0 | AQ109: 0 | AR109: 1.747173071 | AS109: 3.574620724 | AT109: 7.13606596 | AU109: 485.3417053 | AV109: 1019.580994 | AW109: 1.029519558 | AX109: 0.182139397 | AY109: 78.66443634 | AZ109: 1 | BA109: 1 | BB109: 2
A110: 105 | B110: 161704.9688 | C110: 16 | D110: 412.7044983 | E110: 2134.862793 | F110: 163.7449036 | G110: 277.6292419 | H110: 3370.835693 | I110: 3037.550781 | J110: 75.06959534 | K110: 0.697463214 | L110: 0.195587561 | M110: 0 | N110: 0.734584451 | O110: 0 | P110: 1.392810702 | Q110: 0 | R110: 62.72209549 | S110: 3.030489445 | T110: 178.4348907 | U110: 1428.515137 | V110: 2.238109589 | W110: 2.585598707 | X110: 0.77005738 | Y110: 155.5722504 | Z110: 38.83710861 | AA110: 556.5754395 | AB110: 0.090876609 | AC110: 0.929108739 | AD110: 44.37929153 | AE110: 46.76050949 | AF110: 112.0281906 | AG110: 45.31332397 | AH110: 22.22190094 | AI110: 54.88898468 | AJ110: 3168.59082 | AK110: 427.8970032 | AL110: 451.5858154 | AM110: 4.406656265 | AN110: 0.773144186 | AO110: 87.5909729 | AP110: 0 | AQ110: 0 | AR110: 0.202178031 | AS110: 6.262577057 | AT110: 2.236334324 | AU110: 559.7121582 | AV110: 1184.371582 | AW110: 1.094084382 | AX110: 1.504554629 | AY110: 82.78530121 | AZ110: 1 | BA110: 1 | BB110: 2
A111: 106 | B111: 163267.4219 | C111: 18 | D111: 418.6570435 | E111: 2741.357178 | F111: 213.8953552 | G111: 285.4351501 | H111: 4497.309082 | I111: 4147.724121 | J111: 123.0417404 | K111: 0 | L111: 6.281960487 | M111: 1.242306471 | N111: 1.447048664 | O111: 1.675213218 | P111: 0.572641373 | Q111: 4.922423363 | R111: 72.39321899 | S111: 7.480513573 | T111: 76.48793793 | U111: 2582.344727 | V111: 0 | W111: 17.10689163 | X111: 0.739223599 | Y111: 10.13530254 | Z111: 69.01141357 | AA111: 1.923392653 | AB111: 0.515916049 | AC111: 4.845991135 | AD111: 236.8790894 | AE111: 67.96463776 | AF111: 45.35346222 | AG111: 64.27636719 | AH111: 1.258635879 | AI111: 34.87906647 | AJ111: 2155.896729 | AK111: 176.0879059 | AL111: 197.3568726 | AM111: 9.668283463 | AN111: 4.741030216 | AO111: 90.02693176 | AP111: 0 | AQ111: 0.40387544 | AR111: 0.300939918 | AS111: 3.634296894 | AT111: 11.75995255 | AU111: 862.7084351 | AV111: 1749.405396 | AW111: 0.736006677 | AX111: 2.425175905 | AY111: 72.03087616 | AZ111: 1 | BA111: 1 | BB111: 5
A112: 107 | B112: 163749.4063 | C112: 15 | D112: 534.9376831 | E112: 2600.92041 | F112: 205.8770447 | G112: 260.4361572 | H112: 3590.660889 | I112: 3385.445557 | J112: 70.38466644 | K112: 0 | L112: 7.107339859 | M112: 0 | N112: 4.136554718 | O112: 2.946090698 | P112: 0.631616592 | Q112: 2.863238096 | R112: 11.22429657 | S112: 4.900606155 | T112: 10.29073143 | U112: 2578.067871 | V112: 1.135478735 | W112: 3.990640879 | X112: 1.937281966 | Y112: 32.04137039 | Z112: 170.4157715 | AA112: 0.517704189 | AB112: 1.610069156 | AC112: 0.113921359 | AD112: 0 | AE112: 8.40998745 | AF112: 52.64230728 | AG112: 6.052808285 | AH112: 2.59003067 | AI112: 9.168467522 | AJ112: 2164.57373 | AK112: 15.0289278 | AL112: 257.9989319 | AM112: 3.957574844 | AN112: 2.734016418 | AO112: 58.70738983 | AP112: 0 | AQ112: 0 | AR112: 3.589788437 | AS112: 268.2475281 | AT112: 1.943280697 | AU112: 964.7921753 | AV112: 1876.655151 | AW112: 0.900921047 | AX112: 4.950117111 | AY112: 80.08249664 | AZ112: 1 | BA112: 1 | BB112: 10
A113: 108 | B113: 164822.4375 | C113: 14 | D113: 543.8673706 | E113: 1453.563354 | F113: 118.2509537 | G113: 149.6802368 | H113: 2500.341064 | I113: 2374.481445 | J113: 47.04542923 | K113: 1.902234793 | L113: 4.734175205 | M113: 0 | N113: 2.949549437 | O113: 0.699713171 | P113: 1.33605957 | Q113: 5.542091846 | R113: 2.260440826 | S113: 12.88593388 | T113: 1.158632994 | U113: 2091.149414 | V113: 0.253124565 | W113: 76.54387665 | X113: 1.047340393 | Y113: 204.423111 | Z113: 21.16903496 | AA113: 8.099225044 | AB113: 0.982350588 | AC113: 0 | AD113: 2.489326477 | AE113: 9.504800797 | AF113: 30.37093735 | AG113: 5.016784191 | AH113: 2.820960045 | AI113: 0 | AJ113: 348.3878784 | AK113: 72.07626343 | AL113: 388.1518555 | AM113: 2.819033861 | AN113: 0 | AO113: 3.273862123 | AP113: 0.622620165 | AQ113: 0 | AR113: 1.72799015 | AS113: 0 | AT113: 0 | AU113: 405.739624 | AV113: 964.5423584 | AW113: 1.041452408 | AX113: 0.381941319 | AY113: 65.04003906 | AZ113: 1 | BA113: 1 | BB113: 4
A114: 109 | B114: 164847.5625 | C114: 15 | D114: 354.6662903 | E114: 1733.900879 | F114: 126.1277847 | G114: 154.473877 | H114: 2829.645996 | I114: 2659.756592 | J114: 37.25997162 | K114: 0.492760867 | L114: 1.7381109 | M114: 0 | N114: 0.074341431 | O114: 1.515069842 | P114: 2.583350658 | Q114: 0.079821832 | R114: 14.49490738 | S114: 0 | T114: 32.2450943 | U114: 1659.704224 | V114: 7.237860203 | W114: 8.211557388 | X114: 2.438914061 | Y114: 104.2459335 | Z114: 49.4584465 | AA114: 160.1988983 | AB114: 2.39210391 | AC114: 2.783151865 | AD114: 52.6929512 | AE114: 26.28230286 | AF114: 12.44224167 | AG114: 15.70984745 | AH114: 1.559548974 | AI114: 3.299437046 | AJ114: 1353.411987 | AK114: 120.710083 | AL114: 393.7141113 | AM114: 4.273354053 | AN114: 2.112560511 | AO114: 30.9950943 | AP114: 0 | AQ114: 0 | AR114: 0 | AS114: 1.554449558 | AT114: 1.008241057 | AU114: 504.2931519 | AV114: 1085.07312 | AW114: 0 | AX114: 1.594962716 | AY114: 75.95868683 | AZ114: 1 | BA114: 1 | BB114: 1
A115: 110 | B115: 164856.9531 | C115: 15 | D115: 339.5216064 | E115: 1618.136108 | F115: 91.25534058 | G115: 164.0145416 | H115: 2499.898926 | I115: 2266.745361 | J115: 27.80592155 | K115: 0 | L115: 0 | M115: 0 | N115: 5.397283077 | O115: 0.458044052 | P115: 0.739936113 | Q115: 4.505260944 | R115: 35.70275497 | S115: 0.241168573 | T115: 107.7034683 | U115: 619.3442383 | V115: 1.161430955 | W115: 2.405933857 | X115: 0 | Y115: 62.07461929 | Z115: 10.37551022 | AA115: 19.51129341 | AB115: 1.229926705 | AC115: 20.50069237 | AD115: 41.78001785 | AE115: 13.51309109 | AF115: 3.176626682 | AG115: 8.800823212 | AH115: 0.126450226 | AI115: 9.556665421 | AJ115: 1022.495178 | AK115: 76.72921753 | AL115: 93.0274353 | AM115: 2.146332741 | AN115: 1.237155557 | AO115: 31.2549324 | AP115: 0 | AQ115: 0 | AR115: 0.861382782 | AS115: 3.670516014 | AT115: 0.875057638 | AU115: 429.2016907 | AV115: 865.7492065 | AW115: 1.394801974 | AX115: 2.702888012 | AY115: 60.90820313 | AZ115: 1 | BA115: 1 | BB115: 2
A116: 111 | B116: 165146.7969 | C116: 15 | D116: 240.138382 | E116: 2183.037109 | F116: 151.0101471 | G116: 181.9026642 | H116: 3240.050293 | I116: 3060.756592 | J116: 56.76879501 | K116: 0 | L116: 7.441134453 | M116: 0 | N116: 1.670434237 | O116: 0.440656275 | P116: 0.263791353 | Q116: 1.812239647 | R116: 26.06694412 | S116: 3.508185625 | T116: 155.0615845 | U116: 893.9587402 | V116: 0.602612436 | W116: 1.919434071 | X116: 2.913519859 | Y116: 297.7702332 | Z116: 49.27357483 | AA116: 224.0474701 | AB116: 1.287459254 | AC116: 0.038828287 | AD116: 20.52843285 | AE116: 16.9836483 | AF116: 80.91645813 | AG116: 23.23277473 | AH116: 15.34980869 | AI116: 16.84019279 | AJ116: 2952.954346 | AK116: 225.7386169 | AL116: 531.4054565 | AM116: 1.751389623 | AN116: 0 | AO116: 88.86994934 | AP116: 0 | AQ116: 0.277935535 | AR116: 3.227242947 | AS116: 0.872272313 | AT116: 4.673634052 | AU116: 480.6296997 | AV116: 964.5501709 | AW116: 1.695772648 | AX116: 2.721425772 | AY116: 72.59078217 | AZ116: 1 | BA116: 1 | BB116: 1
A117: 112 | B117: 165252.7188 | C117: 17 | D117: 434.7463989 | E117: 1433.469849 | F117: 116.3370285 | G117: 155.9593201 | H117: 2600.801514 | I117: 2408.639404 | J117: 72.61491394 | K117: 0.131782547 | L117: 0 | M117: 1.907832265 | N117: 2.048500061 | O117: 1.084118962 | P117: 0.310361117 | Q117: 3.890234232 | R117: 79.18487549 | S117: 9.470332146 | T117: 32.21772003 | U117: 793.0521851 | V117: 1.651239872 | W117: 5.558942318 | X117: 0 | Y117: 136.2797089 | Z117: 60.97991943 | AA117: 7.309645176 | AB117: 2.306396484 | AC117: 1.665084839 | AD117: 73.81902313 | AE117: 3.665588379 | AF117: 25.45859909 | AG117: 21.68969536 | AH117: 2.349245071 | AI117: 3.266617537 | AJ117: 805.7623901 | AK117: 104.7140427 | AL117: 332.7424011 | AM117: 3.903601646 | AN117: 1.381925225 | AO117: 56.05102921 | AP117: 0 | AQ117: 0 | AR117: 7.144551754 | AS117: 1.470075965 | AT117: 2.825750351 | AU117: 406.232605 | AV117: 664.6797485 | AW117: 1.519511461 | AX117: 0.178635716 | AY117: 73.92320251 | AZ117: 1 | BA117: 1 | BB117: 4
A118: 113 | B118: 165675.7969 | C118: 19 | D118: 695.5083008 | E118: 1810.738892 | F118: 94.85793304 | G118: 161.3579865 | H118: 3220.177734 | I118: 2730.150391 | J118: 32.49502563 | K118: 0 | L118: 0.146835595 | M118: 0 | N118: 1.603048921 | O118: 0.460855693 | P118: 0.298927069 | Q118: 4.668907166 | R118: 70.56385803 | S118: 17.9426918 | T118: 209.6786346 | U118: 2584.902344 | V118: 1.324050188 | W118: 14.92100334 | X118: 0.06401296 | Y118: 222.2136841 | Z118: 22.79066658 | AA118: 723.2634277 | AB118: 0.432847977 | AC118: 3.159235239 | AD118: 196.6971588 | AE118: 61.81531143 | AF118: 98.87653351 | AG118: 213.3001709 | AH118: 20.25409126 | AI118: 13.90083599 | AJ118: 2157.292725 | AK118: 374.1798706 | AL118: 1115.89917 | AM118: 3.512280941 | AN118: 0 | AO118: 92.36643219 | AP118: 0 | AQ118: 0 | AR118: 3.113735437 | AS118: 4.371542931 | AT118: 3.603343248 | AU118: 386.7008362 | AV118: 783.6898804 | AW118: 0 | AX118: 0 | AY118: 76.97158813 | AZ118: 1 | BA118: 1 | BB118: 2
A119: 114 | B119: 165898.6719 | C119: 17 | D119: 967.1743774 | E119: 2743.146729 | F119: 185.5192871 | G119: 313.4470215 | H119: 3836.674316 | I119: 3695.7854 | J119: 63.56268311 | K119: 1.302211881 | L119: 2.725406408 | M119: 0 | N119: 2.905751705 | O119: 3.395900011 | P119: 2.171004534 | Q119: 4.322785378 | R119: 120.768158 | S119: 50.44065857 | T119: 244.7221527 | U119: 3992.047852 | V119: 14.10152626 | W119: 6.905821323 | X119: 0.292992264 | Y119: 244.4650574 | Z119: 139.9052277 | AA119: 285.1656189 | AB119: 3.830184221 | AC119: 2.27934742 | AD119: 287.249176 | AE119: 60.65377045 | AF119: 230.2841339 | AG119: 175.3715057 | AH119: 35.31362915 | AI119: 38.72754669 | AJ119: 3657.156494 | AK119: 647.1565552 | AL119: 955.020813 | AM119: 0 | AN119: 0 | AO119: 173.7897949 | AP119: 0 | AQ119: 0.124411844 | AR119: 1.273693562 | AS119: 3.929262877 | AT119: 6.135859489 | AU119: 692.4584961 | AV119: 1556.778809 | AW119: 0.634628356 | AX119: 0.575152576 | AY119: 89.5464859 | AZ119: 1 | BA119: 1 | BB119: 1
A120: 115 | B120: 166074.5156 | C120: 15 | D120: 192.2702637 | E120: 1696.578613 | F120: 116.340065 | G120: 173.8882751 | H120: 2711.970947 | I120: 2502.618408 | J120: 71.21084595 | K120: 0 | L120: 1.331930995 | M120: 0 | N120: 1.114641547 | O120: 1.823385715 | P120: 0.712790966 | Q120: 3.654011965 | R120: 55.9239502 | S120: 9.746908188 | T120: 69.76983643 | U120: 1272.316895 | V120: 0 | W120: 2.211783648 | X120: 0.226364136 | Y120: 11.96736908 | Z120: 9.508358955 | AA120: 25.93972015 | AB120: 1.223458529 | AC120: 2.315158367 | AD120: 72.01483917 | AE120: 3.387072802 | AF120: 0.400707066 | AG120: 1.982601881 | AH120: 3.014384747 | AI120: 0.749676585 | AJ120: 267.8609314 | AK120: 21.52996445 | AL120: 96.33436584 | AM120: 0.432308823 | AN120: 0.046681203 | AO120: 31.41434479 | AP120: 0.191072062 | AQ120: 0.270884514 | AR120: 2.000136614 | AS120: 1.57651341 | AT120: 5.093855858 | AU120: 412.7792053 | AV120: 929.6170654 | AW120: 5.872463226 | AX120: 1.345549941 | AY120: 50.57775497 | AZ120: 1 | BA120: 1 | BB120: 1
A121: 116 | B121: 166137.1719 | C121: 17 | D121: 360.7623901 | E121: 1524.471313 | F121: 108.4695969 | G121: 142.6902771 | H121: 2574.682129 | I121: 2364.07251 | J121: 50.01860428 | K121: 0.394598901 | L121: 2.558359623 | M121: 1.254715085 | N121: 1.621666789 | O121: 1.011591434 | P121: 5.404484749 | Q121: 0.261590183 | R121: 23.50356674 | S121: 4.31826067 | T121: 70.27444458 | U121: 813.0247803 | V121: 0.346557647 | W121: 8.206716537 | X121: 1.300810099 | Y121: 72.13866425 | Z121: 21.07310867 | AA121: 69.50492096 | AB121: 0 | AC121: 1.754461765 | AD121: 106.8164215 | AE121: 72.84838867 | AF121: 192.3579712 | AG121: 97.7279892 | AH121: 43.73791885 | AI121: 81.85533905 | AJ121: 2615.385986 | AK121: 468.2379761 | AL121: 187.6652832 | AM121: 1.648378253 | AN121: 5.504702568 | AO121: 104.2815628 | AP121: 0 | AQ121: 0 | AR121: 1.068988562 | AS121: 0.831880987 | AT121: 1.90651226 | AU121: 398.6305847 | AV121: 763.8023682 | AW121: 2.713324785 | AX121: 4.720966339 | AY121: 80.5401535 | AZ121: 1 | BA121: 1 | BB121: 1
A122: 117 | B122: 166474.1094 | C122: 18 | D122: 180.8748474 | E122: 1201.491211 | F122: 90.83123016 | G122: 119.6478577 | H122: 2104.173828 | I122: 1971.417725 | J122: 23.35246086 | K122: 0.60574168 | L122: 1.375308633 | M122: 0 | N122: 0.200285777 | O122: 2.056373358 | P122: 1.898221135 | Q122: 0.39692533 | R122: 97.26683044 | S122: 18.15488243 | T122: 202.2280426 | U122: 1302.818481 | V122: 1.81700027 | W122: 4.905784607 | X122: 4.42832613 | Y122: 171.0937958 | Z122: 96.37534332 | AA122: 186.3226929 | AB122: 0.23678948 | AC122: 0.497670472 | AD122: 69.1512146 | AE122: 21.41601944 | AF122: 64.65136719 | AG122: 20.02826118 | AH122: 5.50421524 | AI122: 9.364929199 | AJ122: 1277.762573 | AK122: 26.23523712 | AL122: 220.394516 | AM122: 4.835971355 | AN122: 2.004472256 | AO122: 67.24806976 | AP122: 0.78893584 | AQ122: 0 | AR122: 6.454202652 | AS122: 3.787447929 | AT122: 3.37275815 | AU122: 341.1086426 | AV122: 601.8729248 | AW122: 3.609135866 | AX122: 0.688771784 | AY122: 73.77890778 | AZ122: 1 | BA122: 1 | BB122: 1
A123: 118 | B123: 166510.8906 | C123: 15 | D123: 298.8364563 | E123: 2083.82373 | F123: 114.0029297 | G123: 130.4858398 | H123: 3072.01001 | I123: 2790.651855 | J123: 34.25553894 | K123: 2.320401192 | L123: 0 | M123: 0 | N123: 3.35799408 | O123: 1.260032773 | P123: 1.661350846 | Q123: 0.129938692 | R123: 78.86738586 | S123: 7.259749413 | T123: 294.0895081 | U123: 681.4560547 | V123: 2.356093407 | W123: 9.56003952 | X123: 2.119586468 | Y123: 311.5656433 | Z123: 472.780304 | AA123: 167.328186 | AB123: 0 | AC123: 0 | AD123: 15.73762131 | AE123: 27.47841644 | AF123: 28.62535095 | AG123: 148.2823639 | AH123: 0.66382724 | AI123: 4.85253334 | AJ123: 1569.629639 | AK123: 175.3468475 | AL123: 320.2693787 | AM123: 4.249270439 | AN123: 0.05014113 | AO123: 82.87265778 | AP123: 0.981179595 | AQ123: 0.11313469 | AR123: 14.58690548 | AS123: 1.752122641 | AT123: 1.346439242 | AU123: 517.5032959 | AV123: 927.7609253 | AW123: 1.093903542 | AX123: 2.536209583 | AY123: 100.0181732 | AZ123: 1 | BA123: 1 | BB123: 2
A124: 119 | B124: 167281.375 | C124: 15 | D124: 477.3194275 | E124: 1196.932251 | F124: 93.10260773 | G124: 143.6249084 | H124: 2227.357178 | I124: 2157.05957 | J124: 91.12532806 | K124: 0 | L124: 0 | M124: 0 | N124: 2.931202412 | O124: 0 | P124: 1.390128255 | Q124: 2.360807657 | R124: 41.15471268 | S124: 6.769668102 | T124: 33.79161835 | U124: 919.8119507 | V124: 1.788520813 | W124: 29.52785683 | X124: 0.417419344 | Y124: 52.03516006 | Z124: 17.90324783 | AA124: 25.24851418 | AB124: 7.414596081 | AC124: 3.266330719 | AD124: 4.89154768 | AE124: 27.07689857 | AF124: 108.7295151 | AG124: 175.5120239 | AH124: 32.54534531 | AI124: 91.80210876 | AJ124: 3188.442871 | AK124: 167.0609589 | AL124: 305.4552002 | AM124: 3.694647312 | AN124: 0.610421836 | AO124: 11.53986645 | AP124: 0 | AQ124: 1.574354768 | AR124: 0.932968438 | AS124: 2.195207357 | AT124: 23.13544273 | AU124: 232.7834015 | AV124: 477.8677673 | AW124: 0 | AX124: 0.785092592 | AY124: 59.82229614 | AZ124: 1 | BA124: 1 | BB124: 2
A125: 120 | B125: 167691.1719 | C125: 15 | D125: 543.5490112 | E125: 2196.338867 | F125: 226.246048 | G125: 230.7546844 | H125: 3362.338867 | I125: 3218.357422 | J125: 85.02380371 | K125: 0 | L125: 1.369094849 | M125: 1.550505877 | N125: 1.016949654 | O125: 1.799361706 | P125: 1.485452056 | Q125: 1.583801627 | R125: 25.52781487 | S125: 2.878219128 | T125: 22.11609459 | U125: 1187.74353 | V125: 0.225779921 | W125: 4.042735577 | X125: 1.704865217 | Y125: 25.86709023 | Z125: 200.2641754 | AA125: 1.932096601 | AB125: 2.923397064 | AC125: 2.188958883 | AD125: 6.073219776 | AE125: 18.31567001 | AF125: 8.191636086 | AG125: 0.234256119 | AH125: 3.238125324 | AI125: 2.359241962 | AJ125: 563.4881592 | AK125: 140.6611938 | AL125: 448.7142944 | AM125: 5.406037807 | AN125: 0.364274502 | AO125: 23.70248604 | AP125: 0.288864464 | AQ125: 1.788766146 | AR125: 6.035551548 | AS125: 1.889798045 | AT125: 4.537554264 | AU125: 730.6013794 | AV125: 1530.378418 | AW125: 3.194001675 | AX125: 1.965333581 | AY125: 87.09355927 | AZ125: 1 | BA125: 1 | BB125: 4
A126: 121 | B126: 168429.2969 | C126: 19 | D126: 587.130188 | E126: 1187.630737 | F126: 90.2855072 | G126: 106.827095 | H126: 2306.099609 | I126: 1976.691284 | J126: 47.67805481 | K126: 0.579584658 | L126: 6.80789566 | M126: 0 | N126: 1.815406919 | O126: 0.878810704 | P126: 3.537456751 | Q126: 6.479754925 | R126: 37.7928772 | S126: 7.571416378 | T126: 142.5440826 | U126: 1392.227905 | V126: 3.897954464 | W126: 10.18498707 | X126: 1.968354583 | Y126: 221.7981415 | Z126: 59.09971237 | AA126: 22.47395515 | AB126: 0 | AC126: 3.93378973 | AD126: 15.56094646 | AE126: 24.64691734 | AF126: 66.03862 | AG126: 333.8418579 | AH126: 12.29921627 | AI126: 10.5482626 | AJ126: 2179.101807 | AK126: 60.4715004 | AL126: 306.3662415 | AM126: 3.96028471 | AN126: 3.664673805 | AO126: 81.57421112 | AP126: 0 | AQ126: 0.306806415 | AR126: 1.739131689 | AS126: 107.5992889 | AT126: 17.59239388 | AU126: 343.4491272 | AV126: 573.036438 | AW126: 0.091400549 | AX126: 1.256179929 | AY126: 62.62982941 | AZ126: 1 | BA126: 1 | BB126: 3
A127: 122 | B127: 168709.9219 | C127: 16 | D127: 347.9535522 | E127: 1618.245361 | F127: 106.6712723 | G127: 166.4325256 | H127: 2602.771729 | I127: 2275.646729 | J127: 58.20287323 | K127: 0.575599849 | L127: 7.862330437 | M127: 0 | N127: 1.287197948 | O127: 2.819863081 | P127: 0.040195104 | Q127: 0 | R127: 17.50170898 | S127: 0.771518707 | T127: 45.14811325 | U127: 686.4698486 | V127: 1.565711617 | W127: 31.4867897 | X127: 4.652994156 | Y127: 44.79476547 | Z127: 23.15499496 | AA127: 78.98349762 | AB127: 0.820104599 | AC127: 2.758057117 | AD127: 58.70236969 | AE127: 16.35341644 | AF127: 14.72503376 | AG127: 61.33622742 | AH127: 1.288059592 | AI127: 3.577321768 | AJ127: 661.9255371 | AK127: 72.23309326 | AL127: 381.4309692 | AM127: 3.269155025 | AN127: 1.580776811 | AO127: 42.27226639 | AP127: 0 | AQ127: 1.571392894 | AR127: 2.716333151 | AS127: 8.307189941 | AT127: 0.412787646 | AU127: 306.7817688 | AV127: 617.2182007 | AW127: 1.290637851 | AX127: 1.281405091 | AY127: 65.58727264 | AZ127: 1 | BA127: 1 | BB127: 1
A128: 123 | B128: 169209.6406 | C128: 17 | D128: 473.428009 | E128: 1510.032471 | F128: 108.1917801 | G128: 185.9255981 | H128: 2613.736328 | I128: 2613.637695 | J128: 49.91603851 | K128: 0.366206318 | L128: 0.153272778 | M128: 0 | N128: 0 | O128: 1.993511438 | P128: 0.861284792 | Q128: 6.052161217 | R128: 21.8700676 | S128: 0 | T128: 127.4818115 | U128: 1286.956055 | V128: 1.582629204 | W128: 11.64312744 | X128: 0.307347476 | Y128: 120.4483185 | Z128: 61.98633194 | AA128: 104.1522217 | AB128: 4.71399641 | AC128: 1.920584679 | AD128: 204.7938385 | AE128: 56.09325409 | AF128: 220.7045441 | AG128: 68.92108154 | AH128: 38.89294434 | AI128: 14.22851372 | AJ128: 2453.770752 | AK128: 657.6307983 | AL128: 767.6140747 | AM128: 1.47209692 | AN128: 0 | AO128: 90.76881409 | AP128: 0 | AQ128: 0.791872442 | AR128: 1.684785843 | AS128: 0 | AT128: 2.375170946 | AU128: 432.3047791 | AV128: 778.0411987 | AW128: 2.479049206 | AX128: 2.193363905 | AY128: 90.79892731 | AZ128: 1 | BA128: 1 | BB128: 2
A129: 124 | B129: 170605.2656 | C129: 15 | D129: 137.0982513 | E129: 1119.49707 | F129: 83.30485535 | G129: 112.2681351 | H129: 1875.617554 | I129: 1717.139038 | J129: 47.75771332 | K129: 0.966521084 | L129: 0.619242728 | M129: 0 | N129: 0.882267773 | O129: 0 | P129: 0.053017598 | Q129: 0 | R129: 3.579560995 | S129: 0 | T129: 0 | U129: 362.8067322 | V129: 0.473118573 | W129: 10.13199043 | X129: 0 | Y129: 53.30755234 | Z129: 4.948942184 | AA129: 1.97002244 | AB129: 1.964008808 | AC129: 2.950766325 | AD129: 0 | AE129: 5.128526688 | AF129: 0.986329138 | AG129: 32.34960175 | AH129: 2.71711874 | AI129: 0.202085242 | AJ129: 80.36636353 | AK129: 30.5931263 | AL129: 111.6865387 | AM129: 3.377197742 | AN129: 0.472644687 | AO129: 42.94219208 | AP129: 0 | AQ129: 0 | AR129: 16.1547451 | AS129: 0 | AT129: 6.807186127 | AU129: 330.3580933 | AV129: 588.1334839 | AW129: 0.301981151 | AX129: 3.134312868 | AY129: 51.1398201 | AZ129: 1 | BA129: 1 | BB129: 4
A130: 125 | B130: 171714.7344 | C130: 15 | D130: 159.7194214 | E130: 1097.436523 | F130: 70.63621521 | G130: 87.07100677 | H130: 1850.653809 | I130: 1813.974121 | J130: 48.10226822 | K130: 0 | L130: 0 | M130: 0 | N130: 3.272384405 | O130: 1.830424309 | P130: 1.852483034 | Q130: 12.66485882 | R130: 27.3905201 | S130: 2.796211004 | T130: 69.13983917 | U130: 1360.044189 | V130: 1.88056767 | W130: 12.4482708 | X130: 2.332385778 | Y130: 73.12824249 | Z130: 117.4543076 | AA130: 224.4675903 | AB130: 0.510930002 | AC130: 0.022860171 | AD130: 18.26786995 | AE130: 18.31553841 | AF130: 8.431866646 | AG130: 8.342222214 | AH130: 5.115632534 | AI130: 1.0506531 | AJ130: 432.3402405 | AK130: 96.87381744 | AL130: 148.3768616 | AM130: 2.969548464 | AN130: 3.228684187 | AO130: 34.90563965 | AP130: 0 | AQ130: 0.79502672 | AR130: 1.318713665 | AS130: 0.64342922 | AT130: 2.959614992 | AU130: 280.0269775 | AV130: 587.3100586 | AW130: 6.54152441 | AX130: 0.097371601 | AY130: 76.5283432 | AZ130: 1 | BA130: 1 | BB130: 2
A131: 126 | B131: 171841.7656 | C131: 17 | D131: 335.5469666 | E131: 1359.165894 | F131: 78.16872406 | G131: 144.151825 | H131: 2246.546387 | I131: 2213.484863 | J131: 50.77043915 | K131: 1.873998284 | L131: 4.084785461 | M131: 0 | N131: 1.941199183 | O131: 2.039040565 | P131: 0.875283539 | Q131: 10.08721352 | R131: 117.068367 | S131: 6.064344883 | T131: 202.6668854 | U131: 1273.998291 | V131: 3.247869253 | W131: 47.60889435 | X131: 1.298115373 | Y131: 94.20433807 | Z131: 80.05653381 | AA131: 44.9475441 | AB131: 1.765892744 | AC131: 2.701647997 | AD131: 70.6523819 | AE131: 86.08083344 | AF131: 364.5644836 | AG131: 23.14353371 | AH131: 27.29816818 | AI131: 61.65642548 | AJ131: 3597.549316 | AK131: 652.1883545 | AL131: 772.1704102 | AM131: 0.954011738 | AN131: 0.656042993 | AO131: 71.93473053 | AP131: 0 | AQ131: 0.695405126 | AR131: 1.700942755 | AS131: 44.87459564 | AT131: 2.438280821 | AU131: 309.4795227 | AV131: 660.1990356 | AW131: 3.668044329 | AX131: 0.902164102 | AY131: 89.05367279 | AZ131: 1 | BA131: 1 | BB131: 3
A132: 127 | B132: 172805.8594 | C132: 16 | D132: 123.8610229 | E132: 1110.365356 | F132: 65.47885132 | G132: 109.8483734 | H132: 2097.460693 | I132: 1988.758789 | J132: 44.17021942 | K132: 3.570842266 | L132: 329.528656 | M132: 0 | N132: 1.866171718 | O132: 1.265036106 | P132: 0 | Q132: 2.421990871 | R132: 57.12601852 | S132: 1.72526598 | T132: 30.59424782 | U132: 74.59576416 | V132: 1.411024451 | W132: 44.34391403 | X132: 4.304039001 | Y132: 0.531858087 | Z132: 15.12935734 | AA132: 2.943174601 | AB132: 7.381556511 | AC132: 2.947047234 | AD132: 0 | AE132: 5.193673134 | AF132: 24.9556694 | AG132: 3.015012264 | AH132: 2.813211203 | AI132: 9.632658958 | AJ132: 869.8689575 | AK132: 98.87134552 | AL132: 141.7380829 | AM132: 1.665189862 | AN132: 1.232258916 | AO132: 4.349383354 | AP132: 1.516426921 | AQ132: 0 | AR132: 0.998512983 | AS132: 1609.456909 | AT132: 2.575278759 | AU132: 419.5555115 | AV132: 865.6247559 | AW132: 2.562800646 | AX132: 0.262877703 | AY132: 62.02663422 | AZ132: 1 | BA132: 1 | BB132: 11
A133: 128 | B133: 173756.7813 | C133: 12 | D133: 131.5696259 | E133: 1139.23291 | F133: 77.04122925 | G133: 126.7340698 | H133: 1710.115967 | I133: 1632.447021 | J133: 66.29475403 | K133: 0.86705035 | L133: 19.11557007 | M133: 0.820189953 | N133: 1.60609746 | O133: 1.505294681 | P133: 0 | Q133: 0 | R133: 1.788055897 | S133: 1.597893834 | T133: 7.73559761 | U133: 502.7109375 | V133: 0 | W133: 0 | X133: 1.128625631 | Y133: 32.05681992 | Z133: 54.98470306 | AA133: 29.8689003 | AB133: 0.053788915 | AC133: 0 | AD133: 88.84469604 | AE133: 13.38267708 | AF133: 4.20620966 | AG133: 3.735453844 | AH133: 1.321120501 | AI133: 1.865192413 | AJ133: 288.1534424 | AK133: 96.92453003 | AL133: 117.4965897 | AM133: 1.807098031 | AN133: 1.210834026 | AO133: 38.17995453 | AP133: 0 | AQ133: 0 | AR133: 0 | AS133: 0.966216028 | AT133: 0 | AU133: 397.0751953 | AV133: 845.1225586 | AW133: 0.876400232 | AX133: 2.711698294 | AY133: 75.94441223 | AZ133: 1 | BA133: 1 | BB133: 1
A134: 129 | B134: 173949.4375 | C134: 16 | D134: 162.6342773 | E134: 1522.630981 | F134: 91.22616577 | G134: 119.4090881 | H134: 2594.664795 | I134: 2310.135254 | J134: 46.92478561 | K134: 0.75612396 | L134: 2.94359827 | M134: 2.434463263 | N134: 0.802988648 | O134: 3.4643116 | P134: 2.240272999 | Q134: 7.280861378 | R134: 18.64616585 | S134: 0.058055691 | T134: 85.77035522 | U134: 594.4764404 | V134: 2.341779232 | W134: 5.346124172 | X134: 1.932579756 | Y134: 44.93401337 | Z134: 18.74890137 | AA134: 121.882637 | AB134: 0.361871272 | AC134: 0.875226915 | AD134: 0.693539202 | AE134: 17.64642715 | AF134: 3.753581047 | AG134: 5.211056232 | AH134: 1.072259426 | AI134: 1.88235116 | AJ134: 1570.289673 | AK134: 96.84488678 | AL134: 84.1167984 | AM134: 1.16367209 | AN134: 1.687057495 | AO134: 6.134613037 | AP134: 0 | AQ134: 0 | AR134: 0.501980901 | AS134: 1.179379463 | AT134: 4.08782196 | AU134: 365.6319275 | AV134: 645.4450073 | AW134: 3.317623377 | AX134: 1.062762141 | AY134: 62.82539368 | AZ134: 1 | BA134: 1 | BB134: 9
A135: 130 | B135: 174384.5469 | C135: 15 | D135: 154.3156891 | E135: 832.4568481 | F135: 51.35121536 | G135: 76.190979 | H135: 1461.898315 | I135: 1351.840088 | J135: 42.9734726 | K135: 0.897515774 | L135: 0 | M135: 0 | N135: 0.088642314 | O135: 1.86156714 | P135: 2.945872068 | Q135: 4.939257145 | R135: 17.73021507 | S135: 0.899291396 | T135: 40.43703842 | U135: 307.4656982 | V135: 0 | W135: 77.91419983 | X135: 2.769451857 | Y135: 54.99581909 | Z135: 24.72979355 | AA135: 2.183769703 | AB135: 0 | AC135: 0 | AD135: 5.636536598 | AE135: 18.22328758 | AF135: 28.07672501 | AG135: 6.794806957 | AH135: 5.144499779 | AI135: 0 | AJ135: 771.6309814 | AK135: 77.68063354 | AL135: 258.3855896 | AM135: 2.415127277 | AN135: 0 | AO135: 18.95676994 | AP135: 0 | AQ135: 1.052101374 | AR135: 1.121703982 | AS135: 0 | AT135: 0.39689821 | AU135: 263.3182068 | AV135: 528.5444336 | AW135: 1.132066965 | AX135: 1.42652452 | AY135: 68.64035797 | AZ135: 1 | BA135: 1 | BB135: 4
A136: 131 | B136: 174466 | C136: 15 | D136: 615.8049316 | E136: 2361.546875 | F136: 216.3834534 | G136: 291.6765747 | H136: 3341.935791 | I136: 3209.211182 | J136: 128.3632355 | K136: 0.442536652 | L136: 0 | M136: 0 | N136: 3.789046764 | O136: 1.093759537 | P136: 0.408149809 | Q136: 3.543273449 | R136: 77.27979279 | S136: 1.643907785 | T136: 225.8888245 | U136: 1096.610718 | V136: 2.52272296 | W136: 6.517459393 | X136: 0.59139961 | Y136: 31.58338928 | Z136: 125.7082748 | AA136: 252.1086578 | AB136: 0.030312035 | AC136: 0.241830081 | AD136: 62.32385254 | AE136: 37.78455734 | AF136: 24.38325882 | AG136: 1.22684896 | AH136: 3.484152794 | AI136: 39.21370697 | AJ136: 2464.738281 | AK136: 109.1123199 | AL136: 168.2277832 | AM136: 1.82751739 | AN136: 0.926896393 | AO136: 162.8030701 | AP136: 0 | AQ136: 0 | AR136: 3.76887989 | AS136: 2.339803457 | AT136: 10.55614281 | AU136: 1087.138184 | AV136: 2032.553345 | AW136: 3.869186878 | AX136: 2.252535343 | AY136: 74.31984711 | AZ136: 1 | BA136: 1 | BB136: 2
A137: 132 | B137: 174926.0625 | C137: 19 | D137: 575.1385498 | E137: 1466.98877 | F137: 117.5326614 | G137: 153.6229858 | H137: 2649.017822 | I137: 2520.93457 | J137: 28.1178627 | K137: 0.172857329 | L137: 3.189758062 | M137: 0 | N137: 0 | O137: 3.227392673 | P137: 0 | Q137: 1.822403193 | R137: 39.96455765 | S137: 0 | T137: 47.9695816 | U137: 633.1993408 | V137: 4.706032753 | W137: 7.686765194 | X137: 6.031216621 | Y137: 161.7380219 | Z137: 36.09005737 | AA137: 218.4957428 | AB137: 0 | AC137: 2.905224085 | AD137: 34.60169983 | AE137: 67.71827698 | AF137: 33.61881638 | AG137: 29.3057003 | AH137: 18.71324158 | AI137: 28.33257103 | AJ137: 1510.178223 | AK137: 207.1107788 | AL137: 406.2241516 | AM137: 1.9936198 | AN137: 7.631795406 | AO137: 147.0083466 | AP137: 0.695436239 | AQ137: 1.482627869 | AR137: 2.653859377 | AS137: 4.650803566 | AT137: 11.2869091 | AU137: 365.13974 | AV137: 828.9550171 | AW137: 2.153745174 | AX137: 1.672304511 | AY137: 66.72686768 | AZ137: 1 | BA137: 1 | BB137: 1
A138: 133 | B138: 175697.7031 | C138: 23 | D138: 749.0830688 | E138: 2494.509277 | F138: 212.7041626 | G138: 277.6234131 | H138: 4178.910156 | I138: 3782.53125 | J138: 145.6155701 | K138: 0.720979929 | L138: 6.069274426 | M138: 0.24068521 | N138: 2.143070936 | O138: 4.769548416 | P138: 3.1523211 | Q138: 3.829351425 | R138: 61.86380386 | S138: 18.96109962 | T138: 166.8614502 | U138: 3026.331055 | V138: 0.804877579 | W138: 47.48368835 | X138: 2.349045753 | Y138: 211.58284 | Z138: 38.02965164 | AA138: 263.6139221 | AB138: 3.102236986 | AC138: 3.518337965 | AD138: 114.7112198 | AE138: 64.18044281 | AF138: 124.0377502 | AG138: 294.5512085 | AH138: 2.483724117 | AI138: 25.15367508 | AJ138: 2733.54248 | AK138: 491.8508606 | AL138: 1125.418701 | AM138: 4.042364597 | AN138: 3.89206028 | AO138: 247.60112 | AP138: 0 | AQ138: 0.054261763 | AR138: 49.7150383 | AS138: 3.124902964 | AT138: 5.519987583 | AU138: 513.3167725 | AV138: 953.8969727 | AW138: 0.599510372 | AX138: 2.529996157 | AY138: 76.96511078 | AZ138: 1 | BA138: 1 | BB138: 1
A139: 134 | B139: 175795.0313 | C139: 15 | D139: 336.0690002 | E139: 1010.222656 | F139: 58.36774445 | G139: 71.10217285 | H139: 1779.033936 | I139: 1547.167603 | J139: 23.05447006 | K139: 2.184152603 | L139: 0 | M139: 0 | N139: 2.708499193 | O139: 1.119541407 | P139: 1.654939055 | Q139: 3.040597916 | R139: 20.2295723 | S139: 9.052571297 | T139: 13.08328533 | U139: 352.0223389 | V139: 0.825416923 | W139: 14.16794777 | X139: 2.482926369 | Y139: 25.89564705 | Z139: 11.22336864 | AA139: 45.81759644 | AB139: 1.813064098 | AC139: 1.099548459 | AD139: 222.6368256 | AE139: 41.03921127 | AF139: 36.01392365 | AG139: 57.20220184 | AH139: 16.16620064 | AI139: 15.49839592 | AJ139: 1087.853882 | AK139: 76.2947464 | AL139: 245.8398132 | AM139: 1.404302239 | AN139: 1.553921819 | AO139: 89.76577759 | AP139: 0.245802239 | AQ139: 0 | AR139: 12.19812965 | AS139: 0.055522949 | AT139: 1.225018263 | AU139: 273.5307922 | AV139: 452.6865234 | AW139: 1.758219838 | AX139: 0.616765738 | AY139: 60.67864227 | AZ139: 1 | BA139: 1 | BB139: 2
A140: 135 | B140: 176279.4844 | C140: 14 | D140: 124.686409 | E140: 1277.421143 | F140: 64.30792236 | G140: 83.13108063 | H140: 2187.423096 | I140: 1975.997681 | J140: 10.26973057 | K140: 1.460392952 | L140: 0 | M140: 0 | N140: 1.181627274 | O140: 1.194950223 | P140: 0 | Q140: 0.492608517 | R140: 42.90774918 | S140: 1.737957239 | T140: 37.83522034 | U140: 177.7557831 | V140: 0.181344569 | W140: 30.3304348 | X140: 0 | Y140: 2.561805725 | Z140: 46.6816864 | AA140: 2.39144659 | AB140: 0 | AC140: 0 | AD140: 24.32770348 | AE140: 16.59990311 | AF140: 5.281871796 | AG140: 51.65272141 | AH140: 2.855179071 | AI140: 0.057835169 | AJ140: 80.87797546 | AK140: 24.42707253 | AL140: 19.06649971 | AM140: 3.164746284 | AN140: 0.041875724 | AO140: 23.81869316 | AP140: 0.329805136 | AQ140: 1.457339406 | AR140: 0.4635185 | AS140: 0.078251891 | AT140: 14.47803783 | AU140: 400.5950928 | AV140: 681.0597534 | AW140: 1.590441227 | AX140: 3.072403431 | AY140: 63.27227783 | AZ140: 1 | BA140: 1 | BB140: 5
A141: 136 | B141: 177532.8906 | C141: 16 | D141: 603.9868774 | E141: 3196.085938 | F141: 307.335144 | G141: 332.6098022 | H141: 4682.033203 | I141: 4312.069824 | J141: 89.49808502 | K141: 2.911886454 | L141: 8.411896706 | M141: 0.418440133 | N141: 2.295491219 | O141: 0 | P141: 0.559139848 | Q141: 1.068387151 | R141: 131.3334961 | S141: 7.200252533 | T141: 233.2833252 | U141: 3080.628418 | V141: 2.027442217 | W141: 1.814170837 | X141: 0.729027689 | Y141: 178.9178314 | Z141: 245.2420044 | AA141: 251.4280396 | AB141: 1.259073019 | AC141: 3.225139856 | AD141: 75.71676636 | AE141: 20.77360725 | AF141: 174.4525299 | AG141: 91.54213715 | AH141: 3.640381098 | AI141: 45.8845253 | AJ141: 4630.449219 | AK141: 533.6175537 | AL141: 656.052002 | AM141: 5.617622852 | AN141: 0.554299593 | AO141: 135.8593903 | AP141: 0 | AQ141: 0 | AR141: 2.499556541 | AS141: 0 | AT141: 1.476085305 | AU141: 803.657959 | AV141: 2076.582275 | AW141: 4.711781025 | AX141: 0.62684685 | AY141: 99.76589203 | AZ141: 1 | BA141: 1 | BB141: 1
A142: 137 | B142: 177586.5313 | C142: 15 | D142: 198.9008484 | E142: 955.6602173 | F142: 49.43528366 | G142: 70.17204285 | H142: 1808.9021 | I142: 1640.676392 | J142: 45.24411774 | K142: 2.48345685 | L142: 0 | M142: 0 | N142: 2.398783207 | O142: 3.058637142 | P142: 0 | Q142: 10.68920422 | R142: 34.84051132 | S142: 6.216466904 | T142: 84.25721741 | U142: 512.1585083 | V142: 2.252338886 | W142: 2.360069513 | X142: 10.4990263 | Y142: 44.6829567 | Z142: 24.89602852 | AA142: 21.66142273 | AB142: 0 | AC142: 0.907823265 | AD142: 11.81091976 | AE142: 19.90831947 | AF142: 75.20281219 | AG142: 17.08293152 | AH142: 0.115987375 | AI142: 21.54631042 | AJ142: 1332.77417 | AK142: 195.6626129 | AL142: 194.3599091 | AM142: 0.731223702 | AN142: 1.249379754 | AO142: 68.62034607 | AP142: 0 | AQ142: 0 | AR142: 0 | AS142: 1.568511486 | AT142: 4.473944187 | AU142: 213.6056824 | AV142: 548.0313721 | AW142: 0 | AX142: 0 | AY142: 66.12127686 | AZ142: 1 | BA142: 1 | BB142: 2
A143: 138 | B143: 177870.4375 | C143: 18 | D143: 323.578064 | E143: 1644.741089 | F143: 128.5194702 | G143: 217.4203796 | H143: 2916.086182 | I143: 2718.13623 | J143: 95.59701538 | K143: 0.922252476 | L143: 0.969508231 | M143: 0 | N143: 1.107905149 | O143: 2.637004375 | P143: 1.464830637 | Q143: 12.29656696 | R143: 119.4846344 | S143: 14.79772377 | T143: 265.6116638 | U143: 1317.19458 | V143: 2.697625875 | W143: 49.08169174 | X143: 2.750930071 | Y143: 127.7501831 | Z143: 37.42512131 | AA143: 460.077301 | AB143: 1.425563335 | AC143: 1.12189424 | AD143: 93.08345795 | AE143: 28.39276505 | AF143: 163.1526489 | AG143: 109.8992004 | AH143: 8.840227127 | AI143: 23.48628616 | AJ143: 2687.874268 | AK143: 216.1804657 | AL143: 726.2481079 | AM143: 2.759745836 | AN143: 2.203935623 | AO143: 92.42243958 | AP143: 1.641319871 | AQ143: 0.955900609 | AR143: 3.736479282 | AS143: 2.904235601 | AT143: 2.726459742 | AU143: 484.098175 | AV143: 1162.649536 | AW143: 3.505556583 | AX143: 0.538418472 | AY143: 73.82488251 | AZ143: 1 | BA143: 1 | BB143: 1
A144: 139 | B144: 179865.5938 | C144: 20 | D144: 1372.784058 | E144: 1029.152832 | F144: 79.86693573 | G144: 91.73249817 | H144: 2065.054932 | I144: 1823.169678 | J144: 25.44540405 | K144: 0.22768721 | L144: 0 | M144: 0 | N144: 4.133719921 | O144: 3.82174325 | P144: 1.021220803 | Q144: 3.107026815 | R144: 31.50574875 | S144: 5.856206894 | T144: 125.9334412 | U144: 1728.060791 | V144: 3.813040495 | W144: 0 | X144: 3.492219448 | Y144: 16.22723198 | Z144: 42.17152405 | AA144: 214.7822723 | AB144: 1.133195639 | AC144: 2.923582077 | AD144: 146.8277893 | AE144: 30.78751183 | AF144: 89.26183319 | AG144: 37.85177231 | AH144: 6.489167213 | AI144: 4.585264206 | AJ144: 1846.036011 | AK144: 40.30375671 | AL144: 2.078142405 | AM144: 3.072256088 | AN144: 2.199125528 | AO144: 82.45579529 | AP144: 0 | AQ144: 0.841887414 | AR144: 1.32293272 | AS144: 1.445078969 | AT144: 3.297690868 | AU144: 365.7680969 | AV144: 799.3180542 | AW144: 2.037730217 | AX144: 0.790467501 | AY144: 58.86609268 | AZ144: 1 | BA144: 1 | BB144: 2
A145: 140 | B145: 180680.0781 | C145: 15 | D145: 234.5037537 | E145: 1745.966064 | F145: 131.6990662 | G145: 186.0345917 | H145: 2683.048828 | I145: 2532.833984 | J145: 76.96147919 | K145: 0.020212248 | L145: 0 | M145: 0 | N145: 2.803715944 | O145: 0.596375823 | P145: 0 | Q145: 2.716883659 | R145: 74.41358185 | S145: 1.365813494 | T145: 146.9350433 | U145: 798.0350952 | V145: 1.218034863 | W145: 16.65425491 | X145: 1.558970332 | Y145: 72.94348907 | Z145: 133.3993835 | AA145: 70.23152161 | AB145: 0.873698771 | AC145: 0.139089495 | AD145: 17.32808495 | AE145: 11.93322754 | AF145: 86.47602844 | AG145: 53.10363388 | AH145: 1.828204751 | AI145: 23.45809174 | AJ145: 2423.032471 | AK145: 275.6301575 | AL145: 316.3251038 | AM145: 1.077979684 | AN145: 0.898201764 | AO145: 70.87789154 | AP145: 0.822051108 | AQ145: 0.848085523 | AR145: 0 | AS145: 0 | AT145: 2.271107912 | AU145: 483.1386719 | AV145: 1081.321777 | AW145: 1.264902711 | AX145: 2.32400465 | AY145: 85.96083832 | AZ145: 1 | BA145: 1 | BB145: 2
A146: 141 | B146: 181771.1406 | C146: 14 | D146: 363.2748718 | E146: 1565.910767 | F146: 141.4983063 | G146: 210.6829834 | H146: 2622.99707 | I146: 2345.642822 | J146: 83.13925934 | K146: 1.583540559 | L146: 0 | M146: 0 | N146: 1.286712289 | O146: 1.242725253 | P146: 0 | Q146: 1.890145779 | R146: 31.44348145 | S146: 1.501097679 | T146: 59.03133392 | U146: 348.0469055 | V146: 1.242885709 | W146: 0.046943083 | X146: 0.020806802 | Y146: 26.58226013 | Z146: 4.552206039 | AA146: 4.733267307 | AB146: 2.634098291 | AC146: 5.028069973 | AD146: 74.5120697 | AE146: 15.07934856 | AF146: 16.6153717 | AG146: 35.45982361 | AH146: 6.678242683 | AI146: 4.065804005 | AJ146: 834.7907104 | AK146: 65.93361664 | AL146: 572.9950562 | AM146: 7.541249752 | AN146: 1.328830242 | AO146: 44.62542725 | AP146: 0 | AQ146: 1.028318286 | AR146: 1.469007254 | AS146: 1.44474411 | AT146: 6.623487949 | AU146: 335.4354248 | AV146: 704.4761963 | AW146: 2.377054214 | AX146: 1.668336511 | AY146: 56.71601486 | AZ146: 1 | BA146: 1 | BB146: 4
A147: 142 | B147: 182555.5156 | C147: 16 | D147: 232.9536743 | E147: 1229.616577 | F147: 70.18835449 | G147: 124.0548019 | H147: 2289.858154 | I147: 2028.366577 | J147: 14.53029346 | K147: 0 | L147: 2.631680012 | M147: 0 | N147: 0 | O147: 1.044044852 | P147: 1.428863287 | Q147: 23.18911362 | R147: 70.04267883 | S147: 6.887144566 | T147: 122.4858627 | U147: 2040.305542 | V147: 2.174792767 | W147: 34.17707443 | X147: 1.997315764 | Y147: 34.08798981 | Z147: 23.07937431 | AA147: 152.7198181 | AB147: 0 | AC147: 0 | AD147: 208.2900696 | AE147: 32.58896637 | AF147: 78.96864319 | AG147: 7.697720528 | AH147: 21.59791565 | AI147: 26.00510025 | AJ147: 1968.62439 | AK147: 55.80743408 | AL147: 108.5553131 | AM147: 1.011551619 | AN147: 1.138383627 | AO147: 7.880308151 | AP147: 0 | AQ147: 0.610210776 | AR147: 1.492428899 | AS147: 0.999629498 | AT147: 5.754646301 | AU147: 261.6516724 | AV147: 576.5179443 | AW147: 2.302880287 | AX147: 1.857286453 | AY147: 60.23170471 | AZ147: 1 | BA147: 1 | BB147: 1
A148: 143 | B148: 183275.5781 | C148: 16 | D148: 318.1145325 | E148: 1804.390259 | F148: 138.7324677 | G148: 190.0599976 | H148: 2878.169922 | I148: 2776.713135 | J148: 45.66612625 | K148: 0 | L148: 0 | M148: 0 | N148: 1.680965185 | O148: 0 | P148: 0.35737744 | Q148: 1.56584537 | R148: 7.21483469 | S148: 4.179440498 | T148: 2.741894484 | U148: 484.5828552 | V148: 0.6677863 | W148: 2.690874577 | X148: 0.916733623 | Y148: 62.98554993 | Z148: 54.29956055 | AA148: 27.49223709 | AB148: 1.775729299 | AC148: 2.558202744 | AD148: 18.26857185 | AE148: 1.913056135 | AF148: 2.270923853 | AG148: 0.66848892 | AH148: 2.635979414 | AI148: 1.877864003 | AJ148: 418.0974426 | AK148: 60.62046432 | AL148: 443.5752563 | AM148: 2.883223057 | AN148: 0.27789703 | AO148: 1.911616802 | AP148: 0.102137759 | AQ148: 2.503149986 | AR148: 0.444940001 | AS148: 3.533757687 | AT148: 6.613928318 | AU148: 484.2221375 | AV148: 980.0288086 | AW148: 0.008354252 | AX148: 0.662817001 | AY148: 66.16074371 | AZ148: 1 | BA148: 1 | BB148: 2
A149: 144 | B149: 183282.8125 | C149: 17 | D149: 470.0135803 | E149: 1662.034302 | F149: 158.0504913 | G149: 128.9638977 | H149: 2635.24585 | I149: 2338.268066 | J149: 56.73414612 | K149: 0.694710314 | L149: 7.215727329 | M149: 1.637759328 | N149: 3.330108643 | O149: 0.504278004 | P149: 1.747060418 | Q149: 3.630738258 | R149: 90.46675873 | S149: 4.463100433 | T149: 220.5477905 | U149: 1542.066406 | V149: 0 | W149: 4.324082375 | X149: 0.314820379 | Y149: 127.6343842 | Z149: 23.47341156 | AA149: 117.2828979 | AB149: 0.076968335 | AC149: 1.100416541 | AD149: 92.27653503 | AE149: 10.1046896 | AF149: 105.3012924 | AG149: 331.4231262 | AH149: 4.527770519 | AI149: 17.42486954 | AJ149: 2524.709229 | AK149: 265.9384766 | AL149: 713.0617676 | AM149: 4.824073792 | AN149: 2.128740311 | AO149: 38.07578659 | AP149: 0 | AQ149: 0 | AR149: 3.886316538 | AS149: 0.556314707 | AT149: 4.474836826 | AU149: 388.1203308 | AV149: 599.4378662 | AW149: 1.555046678 | AX149: 0.756090641 | AY149: 70.82827759 | AZ149: 1 | BA149: 1 | BB149: 1
A150: 145 | B150: 184849.4688 | C150: 17 | D150: 206.1209259 | E150: 1493.392822 | F150: 98.13720703 | G150: 129.8903046 | H150: 2579.29834 | I150: 2315.464844 | J150: 42.60884476 | K150: 0 | L150: 0 | M150: 0 | N150: 1.145755768 | O150: 8.551727295 | P150: 2.807969093 | Q150: 11.73863602 | R150: 21.46441269 | S150: 11.93981552 | T150: 92.50240326 | U150: 2317.627441 | V150: 0.244930223 | W150: 20.19164467 | X150: 1.909781933 | Y150: 235.175705 | Z150: 19.03173828 | AA150: 47.07782364 | AB150: 11.5723629 | AC150: 0.179214701 | AD150: 104.7176437 | AE150: 45.71800995 | AF150: 140.2526093 | AG150: 26.56847954 | AH150: 27.0011673 | AI150: 41.06791687 | AJ150: 2317.700928 | AK150: 335.6723328 | AL150: 764.3932495 | AM150: 7.378073215 | AN150: 0 | AO150: 106.9889908 | AP150: 0.020386862 | AQ150: 0 | AR150: 2.869064808 | AS150: 0.687050402 | AT150: 1.195582271 | AU150: 366.2135925 | AV150: 918.7227173 | AW150: 4.488698483 | AX150: 2.73513341 | AY150: 78.12623596 | AZ150: 1 | BA150: 1 | BB150: 2
A151: 146 | B151: 185002.1875 | C151: 15 | D151: 268.4167175 | E151: 1552.272583 | F151: 117.1467819 | G151: 124.3573227 | H151: 2482.176514 | I151: 2214.517334 | J151: 66.89901733 | K151: 0.671344697 | L151: 1.781144023 | M151: 0 | N151: 0.453164488 | O151: 0.959982753 | P151: 0.88349998 | Q151: 1.37079215 | R151: 35.16686249 | S151: 1.309287548 | T151: 113.8218613 | U151: 580.9250488 | V151: 2.212517738 | W151: 2.012545347 | X151: 0.848603368 | Y151: 21.09421158 | Z151: 29.67756462 | AA151: 0.564381242 | AB151: 3.554480553 | AC151: 1.305525184 | AD151: 8.223631859 | AE151: 2.487704039 | AF151: 4.141199589 | AG151: 9.747935295 | AH151: 2.71719265 | AI151: 2.372191429 | AJ151: 689.5632935 | AK151: 149.0886688 | AL151: 138.1800232 | AM151: 2.244777918 | AN151: 2.849320889 | AO151: 24.84522247 | AP151: 0 | AQ151: 0 | AR151: 2.54991436 | AS151: 8.235789299 | AT151: 3.160135984 | AU151: 456.9395447 | AV151: 955.1904297 | AW151: 4.86026907 | AX151: 8.311915398 | AY151: 71.04992676 | AZ151: 1 | BA151: 1 | BB151: 4
A152: 147 | B152: 185371.8438 | C152: 15 | D152: 133.208725 | E152: 1164.048584 | F152: 76.24892426 | G152: 78.53247833 | H152: 1941.758911 | I152: 1775.963501 | J152: 40.36660767 | K152: 0.185692191 | L152: 0 | M152: 0 | N152: 1.395735025 | O152: 4.265126228 | P152: 0 | Q152: 2.828865767 | R152: 27.81944847 | S152: 4.805546761 | T152: 45.14599609 | U152: 590.5940552 | V152: 2.182210445 | W152: 1.779135704 | X152: 1.48809588 | Y152: 67.54281616 | Z152: 20.16278458 | AA152: 16.38404274 | AB152: 0 | AC152: 0.721477807 | AD152: 2.768449783 | AE152: 12.65681362 | AF152: 19.34271812 | AG152: 12.70496941 | AH152: 2.897800446 | AI152: 3.045980215 | AJ152: 396.1726379 | AK152: 30.17442894 | AL152: 192.3726196 | AM152: 0.195459694 | AN152: 0.768818676 | AO152: 15.14243317 | AP152: 0 | AQ152: 0.539002657 | AR152: 0.600706518 | AS152: 1.555445194 | AT152: 2.598771811 | AU152: 337.0745239 | AV152: 613.8258667 | AW152: 6.127491951 | AX152: 10.53412914 | AY152: 57.03380966 | AZ152: 1 | BA152: 1 | BB152: 2
A153: 148 | B153: 186009.5156 | C153: 14 | D153: 448.0024109 | E153: 2530.4104 | F153: 162.4239807 | G153: 259.5765381 | H153: 3441.208252 | I153: 3210.79126 | J153: 41.82027817 | K153: 0.217998981 | L153: 1.602029324 | M153: 0 | N153: 0 | O153: 1.061530471 | P153: 0 | Q153: 1.254809141 | R153: 69.72679901 | S153: 1.693186641 | T153: 145.8399353 | U153: 692.2526855 | V153: 1.51053381 | W153: 236.2670746 | X153: 0.431123346 | Y153: 189.3602753 | Z153: 86.57596588 | AA153: 66.32798767 | AB153: 2.902065992 | AC153: 3.346166372 | AD153: 91.69210052 | AE153: 44.09302902 | AF153: 205.8888092 | AG153: 345.4145813 | AH153: 13.33840275 | AI153: 19.68988228 | AJ153: 2401.597168 | AK153: 328.2043152 | AL153: 1076.747559 | AM153: 3.704322815 | AN153: 1.636112571 | AO153: 34.56835556 | AP153: 0 | AQ153: 0.404072613 | AR153: 0.3313981 | AS153: 285.1039429 | AT153: 11.75657558 | AU153: 698.6290283 | AV153: 1717.56604 | AW153: 0.761044919 | AX153: 0 | AY153: 80.72177124 | AZ153: 1 | BA153: 1 | BB153: 3
A154: 149 | B154: 186640.3906 | C154: 17 | D154: 891.0772705 | E154: 799.7415771 | F154: 56.02616501 | G154: 95.8916626 | H154: 1526.829224 | I154: 1402.989502 | J154: 18.55689049 | K154: 0 | L154: 5.63756752 | M154: 0 | N154: 1.583105326 | O154: 7.400324345 | P154: 0 | Q154: 3.047958136 | R154: 18.56243896 | S154: 13.14469528 | T154: 48.10134125 | U154: 753.6159668 | V154: 0.382509053 | W154: 13.10804462 | X154: 0.025905132 | Y154: 52.85288239 | Z154: 35.015728 | AA154: 9.622554779 | AB154: 0.833223224 | AC154: 4.655954838 | AD154: 24.10951233 | AE154: 14.01901722 | AF154: 20.11112404 | AG154: 35.0338974 | AH154: 4.438649654 | AI154: 2.32967639 | AJ154: 391.2646484 | AK154: 116.1677017 | AL154: 160.5498352 | AM154: 3.898577213 | AN154: 2.360630035 | AO154: 50.94312668 | AP154: 1.251127124 | AQ154: 2.913164377 | AR154: 7.877149582 | AS154: 10.44835377 | AT154: 6.372375965 | AU154: 317.0855713 | AV154: 600.3305664 | AW154: 2.886604548 | AX154: 3.967345238 | AY154: 66.79982758 | AZ154: 1 | BA154: 1 | BB154: 4
A155: 150 | B155: 186989.1406 | C155: 13 | D155: 76.1073761 | E155: 1075.908813 | F155: 101.8159637 | G155: 79.4991684 | H155: 1800.879272 | I155: 1676.675171 | J155: 41.06693649 | K155: 1.271349311 | L155: 0.861795068 | M155: 0 | N155: 0.256416589 | O155: 0.053772282 | P155: 0.459937572 | Q155: 1.873668194 | R155: 3.169646263 | S155: 0.618860722 | T155: 1.593647599 | U155: 179.7391357 | V155: 0.333104551 | W155: 0.768054426 | X155: 0.592749298 | Y155: 12.79918575 | Z155: 0 | AA155: 39.07043457 | AB155: 0 | AC155: 0.651229382 | AD155: 0.730663061 | AE155: 0.675184548 | AF155: 1.255810618 | AG155: 18.62561226 | AH155: 3.447593927 | AI155: 0.827952504 | AJ155: 252.6615601 | AK155: 66.5396347 | AL155: 92.13411713 | AM155: 3.525306463 | AN155: 2.802984476 | AO155: 15.00098991 | AP155: 0 | AQ155: 0 | AR155: 1.84194088 | AS155: 11.66229534 | AT155: 4.728089333 | AU155: 257.0731812 | AV155: 512.7736206 | AW155: 0.738165617 | AX155: 1.175993562 | AY155: 62.38738632 | AZ155: 1 | BA155: 1 | BB155: 2
A156: 151 | B156: 187197.3125 | C156: 17 | D156: 307.544342 | E156: 1886.762085 | F156: 142.2562408 | G156: 206.6558075 | H156: 3107.868164 | I156: 2871.810547 | J156: 29.24681282 | K156: 0 | L156: 2.829178095 | M156: 0.649050355 | N156: 0.995728791 | O156: 1.078086138 | P156: 1.942609429 | Q156: 3.604672909 | R156: 143.5722656 | S156: 1.187487602 | T156: 183.4910583 | U156: 974.4390869 | V156: 2.26575613 | W156: 20.18833542 | X156: 0.824971199 | Y156: 131.8278503 | Z156: 218.9153137 | AA156: 2.741134882 | AB156: 0.897868812 | AC156: 2.581094027 | AD156: 122.6892166 | AE156: 11.62576866 | AF156: 116.8768692 | AG156: 19.88448334 | AH156: 2.776472807 | AI156: 3.213628054 | AJ156: 1574.563477 | AK156: 203.1062012 | AL156: 686.2301025 | AM156: 5.273758411 | AN156: 1.570267677 | AO156: 54.80278397 | AP156: 0 | AQ156: 2.180366039 | AR156: 14.07967281 | AS156: 3.831534147 | AT156: 0 | AU156: 453.3855591 | AV156: 870.7094116 | AW156: 7.311689854 | AX156: 2.610160589 | AY156: 96.7743454 | AZ156: 1 | BA156: 1 | BB156: 4
A157: 152 | B157: 187426.7031 | C157: 17 | D157: 502.9390869 | E157: 933.9351196 | F157: 66.6137619 | G157: 91.60051727 | H157: 1729.365356 | I157: 1533.068481 | J157: 45.86588669 | K157: 0.163202927 | L157: 0.336363196 | M157: 0 | N157: 1.096333981 | O157: 4.614907742 | P157: 1.594027519 | Q157: 0.225752011 | R157: 20.6227684 | S157: 12.86463547 | T157: 87.39536285 | U157: 843.5098267 | V157: 3.147836208 | W157: 5.166268349 | X157: 1.907981753 | Y157: 51.88809204 | Z157: 33.11276245 | AA157: 100.8607254 | AB157: 7.140534878 | AC157: 0 | AD157: 92.69215393 | AE157: 26.76601982 | AF157: 162.7831726 | AG157: 61.84389496 | AH157: 25.34505272 | AI157: 78.18792725 | AJ157: 3268.836426 | AK157: 215.6373749 | AL157: 251.0791779 | AM157: 2.750763416 | AN157: 0 | AO157: 20.30384636 | AP157: 0.27983892 | AQ157: 0.953074157 | AR157: 1.322793841 | AS157: 0.761197269 | AT157: 2.005843163 | AU157: 310.6697998 | AV157: 556.6970215 | AW157: 2.512687206 | AX157: 1.983372569 | AY157: 74.69164276 | AZ157: 1 | BA157: 1 | BB157: 2
A158: 153 | B158: 187457.6563 | C158: 13 | D158: 123.9924698 | E158: 1756.325684 | F158: 153.5447388 | G158: 135.6652679 | H158: 2632.410889 | I158: 2516.637939 | J158: 29.80429077 | K158: 0.208656088 | L158: 0 | M158: 0.693781316 | N158: 3.897256613 | O158: 5.719698906 | P158: 0 | Q158: 4.142880917 | R158: 58.40861893 | S158: 0.233487681 | T158: 193.4245758 | U158: 1071.322876 | V158: 1.803861022 | W158: 0.971942723 | X158: 1.215634704 | Y158: 136.0130157 | Z158: 43.32727814 | AA158: 81.284729 | AB158: 14.8508997 | AC158: 0.162967622 | AD158: 47.76603699 | AE158: 62.32349396 | AF158: 234.670166 | AG158: 9.419411659 | AH158: 16.4335537 | AI158: 49.34963226 | AJ158: 3497.19043 | AK158: 504.89328 | AL158: 691.9421387 | AM158: 3.620669603 | AN158: 0.167718828 | AO158: 203.2320557 | AP158: 0 | AQ158: 0.590596914 | AR158: 4.537926197 | AS158: 1.505206466 | AT158: 4.960870266 | AU158: 716.677063 | AV158: 1395.098999 | AW158: 0.975204587 | AX158: 1.657741308 | AY158: 77.75888824 | AZ158: 1 | BA158: 1 | BB158: 2
A159: 154 | B159: 187571.0156 | C159: 14 | D159: 259.2277222 | E159: 1248.864746 | F159: 67.81499481 | G159: 112.2750015 | H159: 2174.09668 | I159: 1959.224243 | J159: 23.05111313 | K159: 0 | L159: 7.653096199 | M159: 0 | N159: 0.451478481 | O159: 0.024548735 | P159: 2.931407452 | Q159: 0.472258478 | R159: 45.29232407 | S159: 3.315229416 | T159: 109.9972458 | U159: 854.6970215 | V159: 0.572009325 | W159: 4.171034813 | X159: 0.943250239 | Y159: 130.9785614 | Z159: 140.5340576 | AA159: 107.9447632 | AB159: 1.141329527 | AC159: 0.858432233 | AD159: 26.21182632 | AE159: 14.18575001 | AF159: 10.84100246 | AG159: 120.9392319 | AH159: 4.93679285 | AI159: 25.25438118 | AJ159: 1218.95813 | AK159: 69.00254822 | AL159: 153.6255798 | AM159: 0.340199858 | AN159: 3.216889143 | AO159: 58.3528862 | AP159: 0 | AQ159: 0 | AR159: 0 | AS159: 119.3303375 | AT159: 3.106899738 | AU159: 506.4333496 | AV159: 946.1196289 | AW159: 1.562868834 | AX159: 0.158656463 | AY159: 83.25948334 | AZ159: 1 | BA159: 1 | BB159: 3
A160: 155 | B160: 187575.2969 | C160: 14 | D160: 256.1864319 | E160: 1395.584473 | F160: 86.89276123 | G160: 131.963028 | H160: 2332.487793 | I160: 1966.263306 | J160: 29.7324791 | K160: 0 | L160: 0.456100583 | M160: 0 | N160: 0 | O160: 0.627602339 | P160: 0 | Q160: 0 | R160: 3.591156006 | S160: 1.423000336 | T160: 0.0107699 | U160: 460.5043945 | V160: 0 | W160: 1.577838898 | X160: 3.713862419 | Y160: 26.32411194 | Z160: 14.80462074 | AA160: 13.40796375 | AB160: 0.858499706 | AC160: 0.976886272 | AD160: 10.23808479 | AE160: 0.243727192 | AF160: 8.26041317 | AG160: 25.28824234 | AH160: 0 | AI160: 1.539298654 | AJ160: 326.1987915 | AK160: 105.6589279 | AL160: 725.6726074 | AM160: 0 | AN160: 0 | AO160: 53.37081146 | AP160: 0.672333896 | AQ160: 0 | AR160: 0.053229872 | AS160: 1.846320629 | AT160: 0 | AU160: 244.332428 | AV160: 581.5501709 | AW160: 2.206410885 | AX160: 0.951269925 | AY160: 69.59469604 | AZ160: 1 | BA160: 1 | BB160: 4
A161: 156 | B161: 187770.0625 | C161: 14 | D161: 173.7298279 | E161: 1165.941528 | F161: 114.4767075 | G161: 127.916832 | H161: 2080.399658 | I161: 1988.794922 | J161: 74.53710938 | K161: 0.473432213 | L161: 4.783091545 | M161: 0 | N161: 0.695733249 | O161: 3.476534843 | P161: 0.320669651 | Q161: 0.50023216 | R161: 76.33438873 | S161: 7.244255066 | T161: 106.8782425 | U161: 1440.512207 | V161: 3.886029482 | W161: 16.31805801 | X161: 1.949682593 | Y161: 87.17121887 | Z161: 79.71471405 | AA161: 31.51297188 | AB161: 0 | AC161: 1.718756437 | AD161: 168.9471741 | AE161: 15.18907452 | AF161: 17.71787834 | AG161: 28.99534225 | AH161: 5.741862774 | AI161: 1.56114006 | AJ161: 713.9537354 | AK161: 65.77545166 | AL161: 239.6750641 | AM161: 1.390484095 | AN161: 2.687875748 | AO161: 14.75673103 | AP161: 0.930357277 | AQ161: 3.252379179 | AR161: 0.250303835 | AS161: 68.73866272 | AT161: 3.542333126 | AU161: 398.7023621 | AV161: 1002.9599 | AW161: 3.097404718 | AX161: 3.60287118 | AY161: 73.78637695 | AZ161: 1 | BA161: 1 | BB161: 3
A162: 157 | B162: 187807.9375 | C162: 15 | D162: 416.5875244 | E162: 1442.000488 | F162: 78.74451447 | G162: 132.8275299 | H162: 2485.072754 | I162: 2295.250732 | J162: 42.75516891 | K162: 0 | L162: 0 | M162: 0.107910067 | N162: 4.635932446 | O162: 2.819450855 | P162: 1.761188507 | Q162: 2.253343105 | R162: 44.71161652 | S162: 4.589904308 | T162: 124.7745132 | U162: 2330.941162 | V162: 3.007804871 | W162: 11.39000416 | X162: 2.856748343 | Y162: 431.5421143 | Z162: 110.2108536 | AA162: 1.691805363 | AB162: 1.541298032 | AC162: 0.630044281 | AD162: 8.476963997 | AE162: 1.53116858 | AF162: 224.9111633 | AG162: 0.059314366 | AH162: 2.541761398 | AI162: 20.50327492 | AJ162: 2159.981689 | AK162: 352.9638977 | AL162: 894.8776855 | AM162: 1.589899659 | AN162: 1.513957381 | AO162: 166.0613556 | AP162: 0 | AQ162: 0.289311677 | AR162: 0.981640637 | AS162: 3.728592873 | AT162: 3.432956457 | AU162: 320.4585266 | AV162: 740.9562988 | AW162: 4.471204758 | AX162: 0 | AY162: 80.84968567 | AZ162: 1 | BA162: 1 | BB162: 4
A163: 158 | B163: 187974.3281 | C163: 16 | D163: 483.9089355 | E163: 1131.824219 | F163: 79.41927338 | G163: 130.4662323 | H163: 2122.837891 | I163: 1877.678467 | J163: 68.84011078 | K163: 1.139061928 | L163: 0.142337292 | M163: 0 | N163: 1.441749692 | O163: 0.584622979 | P163: 0.483281106 | Q163: 7.92038393 | R163: 35.55373764 | S163: 6.491560936 | T163: 79.46437073 | U163: 960.182373 | V163: 0 | W163: 4.386795998 | X163: 0.318677038 | Y163: 68.62747955 | Z163: 4.001889229 | AA163: 27.88448524 | AB163: 1.337964416 | AC163: 0.158797994 | AD163: 70.37872314 | AE163: 15.52944756 | AF163: 18.89302826 | AG163: 16.07316399 | AH163: 0 | AI163: 1.893387437 | AJ163: 322.2158813 | AK163: 83.79091644 | AL163: 311.3687134 | AM163: 0.649838507 | AN163: 1.22630024 | AO163: 34.72602844 | AP163: 0 | AQ163: 0 | AR163: 0.641056836 | AS163: 2.116325855 | AT163: 4.004957199 | AU163: 322.7428589 | AV163: 617.8261108 | AW163: 2.027357817 | AX163: 0.597037852 | AY163: 60.57639694 | AZ163: 1 | BA163: 1 | BB163: 2
A164: 159 | B164: 189555.9844 | C164: 16 | D164: 431.7486572 | E164: 1228.871216 | F164: 124.8118134 | G164: 111.0175247 | H164: 2163.133057 | I164: 2086.045654 | J164: 48.7477684 | K164: 3.287140608 | L164: 2.600475788 | M164: 0.487110466 | N164: 1.76952672 | O164: 1.354733467 | P164: 0 | Q164: 0.014464028 | R164: 6.166107178 | S164: 1.397218704 | T164: 8.192011833 | U164: 938.5706787 | V164: 1.197481751 | W164: 52.41743469 | X164: 1.562079072 | Y164: 83.49575043 | Z164: 72.51322174 | AA164: 6.264094353 | AB164: 3.786466837 | AC164: 0.682669878 | AD164: 116.676033 | AE164: 6.978270054 | AF164: 64.63178253 | AG164: 38.56788254 | AH164: 7.876257896 | AI164: 1.254647732 | AJ164: 600.8155518 | AK164: 139.7370453 | AL164: 625.4825439 | AM164: 4.105852604 | AN164: 0.597262979 | AO164: 54.93907547 | AP164: 0.551372945 | AQ164: 3.373060703 | AR164: 3.463661909 | AS164: 3.951750994 | AT164: 2.690718412 | AU164: 683.1105347 | AV164: 1279.425659 | AW164: 3.710688591 | AX164: 0.826098084 | AY164: 76.0717926 | AZ164: 1 | BA164: 1 | BB164: 4
A165: 160 | B165: 190310.9688 | C165: 16 | D165: 322.5509338 | E165: 1624.050903 | F165: 106.9943542 | G165: 134.349823 | H165: 2555.899902 | I165: 2491.983643 | J165: 22.07975197 | K165: 1.462623239 | L165: 4.013733387 | M165: 0 | N165: 2.54505682 | O165: 5.163529396 | P165: 0.245707706 | Q165: 1.706718445 | R165: 2.006834745 | S165: 1.09271276 | T165: 3.745389938 | U165: 1695.717163 | V165: 3.159279585 | W165: 28.31085205 | X165: 4.505166531 | Y165: 206.2342987 | Z165: 22.00793266 | AA165: 116.612381 | AB165: 1.342009068 | AC165: 0.83666718 | AD165: 246.7292328 | AE165: 26.14519691 | AF165: 29.3121891 | AG165: 44.25287628 | AH165: 4.575889587 | AI165: 1.900176883 | AJ165: 407.1663818 | AK165: 118.4443588 | AL165: 563.3148193 | AM165: 3.093510151 | AN165: 0.564652145 | AO165: 38.75138092 | AP165: 0 | AQ165: 0.942233741 | AR165: 16.95212746 | AS165: 4.078279018 | AT165: 2.891507864 | AU165: 455.000824 | AV165: 994.9777222 | AW165: 0.320437133 | AX165: 2.700585604 | AY165: 63.27668381 | AZ165: 1 | BA165: 1 | BB165: 1
A166: 161 | B166: 190677.125 | C166: 14 | D166: 158.2637177 | E166: 1668.344238 | F166: 131.7916107 | G166: 214.9331207 | H166: 2620.740479 | I166: 2491.854492 | J166: 63.56038666 | K166: 2.691098452 | L166: 0 | M166: 0.235361785 | N166: 2.594670773 | O166: 1.933228731 | P166: 0.621694088 | Q166: 1.732694745 | R166: 14.99076748 | S166: 0.443836689 | T166: 20.98648453 | U166: 331.5230408 | V166: 0 | W166: 33.29391861 | X166: 0 | Y166: 25.22041893 | Z166: 47.43900299 | AA166: 1.121680617 | AB166: 0 | AC166: 0 | AD166: 12.36945629 | AE166: 3.666957617 | AF166: 10.12035751 | AG166: 1.956444383 | AH166: 2.544692516 | AI166: 2.457083464 | AJ166: 733.6517334 | AK166: 54.53099823 | AL166: 388.8341675 | AM166: 1.753653765 | AN166: 1.082904816 | AO166: 9.280800819 | AP166: 0.459628969 | AQ166: 0.687384009 | AR166: 0.259051174 | AS166: 4.30668211 | AT166: 1.953326583 | AU166: 321.6638489 | AV166: 678.6547852 | AW166: 0 | AX166: 0.909910202 | AY166: 68.39416504 | AZ166: 1 | BA166: 1 | BB166: 4
A167: 162 | B167: 190694.7969 | C167: 12 | D167: 82.46179199 | E167: 845.3638306 | F167: 54.29001999 | G167: 96.52728271 | H167: 1432.04541 | I167: 1331.564209 | J167: 53.37500763 | K167: 0.302844495 | L167: 2.575241566 | M167: 0 | N167: 6.177064896 | O167: 0 | P167: 3.106133938 | Q167: 1.404607296 | R167: 22.64882088 | S167: 11.81948471 | T167: 62.38133621 | U167: 616.3842773 | V167: 0.569371581 | W167: 2.79820776 | X167: 3.875172615 | Y167: 37.78800583 | Z167: 15.42866421 | AA167: 96.83727264 | AB167: 1.92594707 | AC167: 1.094323039 | AD167: 34.1241684 | AE167: 17.75525093 | AF167: 18.61716461 | AG167: 12.00853062 | AH167: 10.84269333 | AI167: 0 | AJ167: 792.5098877 | AK167: 123.2043076 | AL167: 554.6835938 | AM167: 2.25400424 | AN167: 0.206124455 | AO167: 40.79017639 | AP167: 0 | AQ167: 0 | AR167: 1.825197935 | AS167: 1.543695092 | AT167: 2.683761597 | AU167: 345.0271301 | AV167: 725.5576782 | AW167: 2.055174589 | AX167: 2.766614676 | AY167: 60.21788788 | AZ167: 1 | BA167: 1 | BB167: 1
A168: 163 | B168: 190918.4531 | C168: 14 | D168: 156.7768402 | E168: 1246.094604 | F168: 76.78153229 | G168: 122.5715866 | H168: 2070.682617 | I168: 2039.572998 | J168: 80.73252106 | K168: 0.837778509 | L168: 2.215031147 | M168: 0 | N168: 1.782074213 | O168: 0.184060693 | P168: 0.459695995 | Q168: 2.890048981 | R168: 20.60390663 | S168: 2.162023067 | T168: 24.19357109 | U168: 1003.452454 | V168: 0 | W168: 1.23303628 | X168: 3.162722588 | Y168: 17.65818596 | Z168: 43.60842133 | AA168: 69.53767395 | AB168: 0 | AC168: 0.912312806 | AD168: 20.83167076 | AE168: 48.92717361 | AF168: 36.09948349 | AG168: 8.366119385 | AH168: 11.84114265 | AI168: 33.87982941 | AJ168: 1731.765991 | AK168: 46.06454468 | AL168: 15.13264561 | AM168: 1.85697484 | AN168: 0.467421412 | AO168: 60.31506729 | AP168: 0 | AQ168: 0 | AR168: 4.755280495 | AS168: 1.517417312 | AT168: 2.412697554 | AU168: 462.2298584 | AV168: 991.7072754 | AW168: 6.612596512 | AX168: 0 | AY168: 64.28668213 | AZ168: 1 | BA168: 1 | BB168: 1
A169: 164 | B169: 191253.5313 | C169: 13 | D169: 111.7589264 | E169: 947.7717285 | F169: 64.62528992 | G169: 57.4719696 | H169: 1561.227783 | I169: 1467.110474 | J169: 34.70072937 | K169: 0.24111639 | L169: 38.0398941 | M169: 0.59283042 | N169: 1.218398213 | O169: 0.68039757 | P169: 0.405651599 | Q169: 0.876009107 | R169: 43.90378189 | S169: 5.069900036 | T169: 28.17229843 | U169: 505.9009094 | V169: 0 | W169: 11.41964054 | X169: 0.649532259 | Y169: 149.3263092 | Z169: 20.46156311 | AA169: 4.484930992 | AB169: 2.416827679 | AC169: 0 | AD169: 6.438233852 | AE169: 10.5759182 | AF169: 18.5131321 | AG169: 38.61386108 | AH169: 1.684584022 | AI169: 7.765893936 | AJ169: 1329.63501 | AK169: 63.19769669 | AL169: 117.1149063 | AM169: 1.247613192 | AN169: 0.06082388 | AO169: 2.369841337 | AP169: 0 | AQ169: 1.272520423 | AR169: 0.52032268 | AS169: 25.14263916 | AT169: 0.591900229 | AU169: 365.7256775 | AV169: 751.9563599 | AW169: 0.588559687 | AX169: 0 | AY169: 65.05748749 | AZ169: 1 | BA169: 1 | BB169: 10
A170: 165 | B170: 192950.25 | C170: 15 | D170: 172.5250244 | E170: 1176.879761 | F170: 72.95280457 | G170: 112.5820007 | H170: 2023.221069 | I170: 1829.814209 | J170: 35.81385422 | K170: 0.687218845 | L170: 0 | M170: 1.057263732 | N170: 2.451848745 | O170: 0 | P170: 1.398458123 | Q170: 0.503052592 | R170: 26.81521416 | S170: 0.211980402 | T170: 56.70674896 | U170: 253.9981995 | V170: 0.594091177 | W170: 2.187190294 | X170: 0.447573483 | Y170: 20.91726494 | Z170: 9.034543991 | AA170: 58.32804489 | AB170: 0 | AC170: 0.899898529 | AD170: 1.277987003 | AE170: 0.980255246 | AF170: 28.35866165 | AG170: 3.633843184 | AH170: 6.773862839 | AI170: 7.72135973 | AJ170: 1107.796631 | AK170: 26.8793335 | AL170: 43.81760025 | AM170: 0 | AN170: 0.547725856 | AO170: 8.84179306 | AP170: 0.069443345 | AQ170: 0.416046977 | AR170: 0.164406389 | AS170: 0.822829008 | AT170: 8.32393837 | AU170: 336.2382507 | AV170: 643.7999878 | AW170: 1.967852831 | AX170: 2.637398958 | AY170: 48.37599182 | AZ170: 1 | BA170: 1 | BB170: 2
A171: 166 | B171: 195236.7969 | C171: 16 | D171: 120.1295242 | E171: 1065.907715 | F171: 52.75276947 | G171: 89.65195465 | H171: 1784.303345 | I171: 1598.702393 | J171: 22.5626564 | K171: 1.708493352 | L171: 0 | M171: 0 | N171: 23.24294853 | O171: 0 | P171: 1.805306911 | Q171: 2.025802851 | R171: 21.05109406 | S171: 3.819070816 | T171: 3.123556614 | U171: 66.45578003 | V171: 0.820701182 | W171: 8.729161263 | X171: 0.65529865 | Y171: 4.816438198 | Z171: 9.687397957 | AA171: 6.675575256 | AB171: 1.066492438 | AC171: 1.039335728 | AD171: 0.083475605 | AE171: 15.21434498 | AF171: 1.587809801 | AG171: 2.999605656 | AH171: 0.006290378 | AI171: 2.829944372 | AJ171: 211.591507 | AK171: 74.56552124 | AL171: 187.2909393 | AM171: 4.61559248 | AN171: 0.333745658 | AO171: 2.564160585 | AP171: 0 | AQ171: 1.956290126 | AR171: 0.717348754 | AS171: 0.384887934 | AT171: 3.998785496 | AU171: 306.0164185 | AV171: 640.6211548 | AW171: 2.250363588 | AX171: 0.672051311 | AY171: 55.65118408 | AZ171: 1 | BA171: 1 | BB171: 4
A172: 167 | B172: 195818.5 | C172: 14 | D172: 157.7795715 | E172: 1793.853882 | F172: 141.3824158 | G172: 162.3795013 | H172: 2579.250244 | I172: 2553.783447 | J172: 35.00979996 | K172: 0.372821748 | L172: 0 | M172: 0 | N172: 5.555488586 | O172: 0.24217543 | P172: 0 | Q172: 1.637296796 | R172: 15.31884956 | S172: 1.939984441 | T172: 52.46975708 | U172: 327.0986023 | V172: 0 | W172: 0 | X172: 1.147204399 | Y172: 15.05588913 | Z172: 9.98695755 | AA172: 21.38814545 | AB172: 1.776493907 | AC172: 0 | AD172: 0.85918051 | AE172: 1.42843771 | AF172: 5.201451778 | AG172: 198.3894806 | AH172: 0 | AI172: 8.200785637 | AJ172: 2124.598389 | AK172: 60.59520721 | AL172: 119.6844559 | AM172: 0 | AN172: 0.03846762 | AO172: 55.66202164 | AP172: 0 | AQ172: 0 | AR172: 0.974791646 | AS172: 0.814924419 | AT172: 0.428121299 | AU172: 308.7887573 | AV172: 549.1259155 | AW172: 1.618004918 | AX172: 0.253823519 | AY172: 58.54299164 | AZ172: 1 | BA172: 1 | BB172: 2
A173: 168 | B173: 196267.7656 | C173: 16 | D173: 375.5765991 | E173: 2414.609619 | F173: 193.5301514 | G173: 228.227478 | H173: 3408.154053 | I173: 3231.873047 | J173: 65.39214325 | K173: 0.791107893 | L173: 9.121713638 | M173: 0 | N173: 1.571280956 | O173: 3.196824312 | P173: 0 | Q173: 2.834240913 | R173: 150.0533447 | S173: 8.759283066 | T173: 269.4595032 | U173: 2473.101563 | V173: 1.66245389 | W173: 1.789093137 | X173: 1.65402472 | Y173: 202.9021301 | Z173: 217.0987854 | AA173: 465.8380737 | AB173: 0.58443594 | AC173: 0 | AD173: 64.93378448 | AE173: 7.154342175 | AF173: 176.4901581 | AG173: 67.49783325 | AH173: 6.128202915 | AI173: 1.30484736 | AJ173: 2235.117188 | AK173: 207.1835632 | AL173: 395.6384888 | AM173: 0 | AN173: 2.011167526 | AO173: 46.82771301 | AP173: 0.595174968 | AQ173: 0 | AR173: 3.608442545 | AS173: 0.797305107 | AT173: 3.282138348 | AU173: 598.138855 | AV173: 1283.251099 | AW173: 3.75858283 | AX173: 0.376676381 | AY173: 90.28183746 | AZ173: 1 | BA173: 1 | BB173: 1
A174: 169 | B174: 196476.875 | C174: 18 | D174: 227.3043213 | E174: 1486.125977 | F174: 107.988678 | G174: 150.5304108 | H174: 2497.42627 | I174: 2314.443848 | J174: 52.87770844 | K174: 0 | L174: 0 | M174: 0 | N174: 1.387219906 | O174: 6.981925011 | P174: 1.269581556 | Q174: 0.304040879 | R174: 131.035614 | S174: 7.081430435 | T174: 269.5784912 | U174: 978.4360962 | V174: 4.753171444 | W174: 9.127973557 | X174: 2.032885313 | Y174: 64.57681274 | Z174: 63.30948639 | AA174: 169.2019348 | AB174: 1.736669421 | AC174: 1.587020516 | AD174: 14.08075237 | AE174: 7.582448959 | AF174: 6.058426857 | AG174: 4.030504704 | AH174: 4.345757961 | AI174: 7.873044014 | AJ174: 1410.132324 | AK174: 4.366780281 | AL174: 56.30004501 | AM174: 1.398235321 | AN174: 1.121404171 | AO174: 22.10847092 | AP174: 0 | AQ174: 0.243489593 | AR174: 2.13709259 | AS174: 1.297570229 | AT174: 2.271767855 | AU174: 401.6369324 | AV174: 757.7399902 | AW174: 3.831054449 | AX174: 0.084636524 | AY174: 70.2952652 | AZ174: 1 | BA174: 1 | BB174: 2
A175: 170 | B175: 197722.7813 | C175: 16 | D175: 197.3948822 | E175: 1615.92749 | F175: 107.6181793 | G175: 155.9792786 | H175: 2985.559082 | I175: 2578.544434 | J175: 53.80821228 | K175: 0.723008037 | L175: 2.39283371 | M175: 0 | N175: 2.57779026 | O175: 0.355122745 | P175: 1.681774735 | Q175: 1.01273644 | R175: 88.84773254 | S175: 3.518640995 | T175: 212.7657471 | U175: 486.1160278 | V175: 0.759839773 | W175: 4.13800478 | X175: 0.0379389 | Y175: 84.81668854 | Z175: 17.94065666 | AA175: 193.3502808 | AB175: 1.274455905 | AC175: 0.807935596 | AD175: 7.625156879 | AE175: 15.84686184 | AF175: 35.49159622 | AG175: 4.396459579 | AH175: 5.45674181 | AI175: 4.668080807 | AJ175: 835.270874 | AK175: 27.48567581 | AL175: 123.6412354 | AM175: 0 | AN175: 0.616248906 | AO175: 33.70561218 | AP175: 0 | AQ175: 0 | AR175: 0.297725052 | AS175: 3.996952057 | AT175: 1.659147978 | AU175: 575.0480957 | AV175: 1064.236572 | AW175: 2.902102232 | AX175: 0.038481865 | AY175: 56.6007843 | AZ175: 1 | BA175: 1 | BB175: 9
A176: 171 | B176: 197878.8594 | C176: 16 | D176: 330.4816284 | E176: 1569.819458 | F176: 111.9073334 | G176: 116.4250793 | H176: 2572.874268 | I176: 2329.937012 | J176: 8.015806198 | K176: 0.809531152 | L176: 2.020523071 | M176: 0 | N176: 0 | O176: 2.444154978 | P176: 0 | Q176: 4.274200439 | R176: 26.86386108 | S176: 11.88905144 | T176: 73.36251068 | U176: 383.4433899 | V176: 0 | W176: 5.08951807 | X176: 1.175045013 | Y176: 90.1129837 | Z176: 53.99258423 | AA176: 47.21601105 | AB176: 0.756650209 | AC176: 1.44781673 | AD176: 118.8984833 | AE176: 42.19337845 | AF176: 40.9968338 | AG176: 14.66996574 | AH176: 4.360651016 | AI176: 0.5808658 | AJ176: 624.315918 | AK176: 133.8259888 | AL176: 329.3847961 | AM176: 0 | AN176: 1.59673965 | AO176: 111.0112305 | AP176: 0 | AQ176: 1.718683124 | AR176: 1.324921966 | AS176: 0.786209941 | AT176: 2.367236376 | AU176: 432.206604 | AV176: 830.3902588 | AW176: 1.824419975 | AX176: 4.052200317 | AY176: 76.4040451 | AZ176: 1 | BA176: 1 | BB176: 1
A177: 172 | B177: 198563.375 | C177: 14 | D177: 212.8382416 | E177: 1338.191895 | F177: 77.13632965 | G177: 145.4948883 | H177: 2044.107544 | I177: 2047.586914 | J177: 72.98609924 | K177: 1.645507336 | L177: 0.093701094 | M177: 0 | N177: 1.719957471 | O177: 1.712579131 | P177: 0 | Q177: 0.300984263 | R177: 7.729002953 | S177: 4.24030447 | T177: 0.142254934 | U177: 401.9874268 | V177: 0 | W177: 3.533288956 | X177: 0.142098114 | Y177: 64.8241272 | Z177: 38.55252457 | AA177: 43.44755936 | AB177: 6.361111641 | AC177: 0.986801028 | AD177: 48.4249115 | AE177: 13.84791374 | AF177: 0.202500954 | AG177: 8.451906204 | AH177: 15.34992981 | AI177: 1.938987136 | AJ177: 444.410675 | AK177: 211.957489 | AL177: 327.1447754 | AM177: 5.747591496 | AN177: 3.729573011 | AO177: 119.3705902 | AP177: 0 | AQ177: 0 | AR177: 0 | AS177: 5.14392519 | AT177: 11.45929623 | AU177: 515.7087402 | AV177: 1003.786438 | AW177: 2.192592621 | AX177: 0.214922085 | AY177: 68.95687103 | AZ177: 1 | BA177: 1 | BB177: 2
A178: 173 | B178: 198689.0313 | C178: 15 | D178: 155.1455994 | E178: 1062.767822 | F178: 77.84198761 | G178: 137.2088013 | H178: 1902.000244 | I178: 1783.210205 | J178: 41.82444 | K178: 0 | L178: 2.825884104 | M178: 0.00089243 | N178: 1.810449362 | O178: 0.955061316 | P178: 0 | Q178: 0.608878016 | R178: 36.51412201 | S178: 8.563277245 | T178: 32.87074661 | U178: 214.9641113 | V178: 0 | W178: 25.52712059 | X178: 2.069612026 | Y178: 17.1478405 | Z178: 22.59692764 | AA178: 35.20673752 | AB178: 0 | AC178: 0 | AD178: 2.193123579 | AE178: 1.291089177 | AF178: 8.816523552 | AG178: 67.38829803 | AH178: 0.884107411 | AI178: 7.986683846 | AJ178: 1323.38623 | AK178: 51.91306686 | AL178: 8.361290932 | AM178: 0.328506052 | AN178: 0.784191072 | AO178: 22.72878265 | AP178: 0.583602548 | AQ178: 0 | AR178: 0 | AS178: 0.726424158 | AT178: 1.731871009 | AU178: 346.1194458 | AV178: 667.324646 | AW178: 2.573520184 | AX178: 0.808457077 | AY178: 60.90993881 | AZ178: 1 | BA178: 1 | BB178: 9
A179: 174 | B179: 199519.8281 | C179: 17 | D179: 374.3013306 | E179: 1365.776245 | F179: 101.6330032 | G179: 144.283844 | H179: 2115.93335 | I179: 2123.912842 | J179: 46.92049408 | K179: 0 | L179: 2.615971565 | M179: 0 | N179: 3.648147583 | O179: 3.630894184 | P179: 0.443420678 | Q179: 3.349741459 | R179: 40.04193878 | S179: 2.131545544 | T179: 104.0022507 | U179: 683.4805908 | V179: 1.69123888 | W179: 7.814993858 | X179: 1.196919084 | Y179: 5.728693962 | Z179: 19.52552795 | AA179: 36.27155685 | AB179: 2.327790976 | AC179: 1.816280127 | AD179: 23.36354637 | AE179: 21.81457329 | AF179: 34.0497818 | AG179: 6.31362915 | AH179: 8.885733604 | AI179: 22.790905 | AJ179: 1294.807251 | AK179: 144.0878906 | AL179: 58.87243652 | AM179: 1.551498532 | AN179: 0 | AO179: 20.22695541 | AP179: 0 | AQ179: 0.705823541 | AR179: 0.139745206 | AS179: 4.643007278 | AT179: 1.175404429 | AU179: 292.1259155 | AV179: 635.8710938 | AW179: 0.023408024 | AX179: 1.848529816 | AY179: 67.80812836 | AZ179: 1 | BA179: 1 | BB179: 1
A180: 175 | B180: 199867.3125 | C180: 15 | D180: 222.6362305 | E180: 2467.306885 | F180: 188.2222137 | G180: 215.7575989 | H180: 3655.208984 | I180: 3502.25 | J180: 42.8164711 | K180: 0.096005276 | L180: 25.24814987 | M180: 0 | N180: 2.76694417 | O180: 1.199043989 | P180: 0 | Q180: 0 | R180: 71.34185028 | S180: 10.33516121 | T180: 193.0548553 | U180: 2788.850586 | V180: 0.160853326 | W180: 0.413674474 | X180: 1.118708611 | Y180: 163.6269531 | Z180: 128.5208588 | AA180: 248.9627075 | AB180: 0.450257391 | AC180: 1.548086047 | AD180: 217.1211853 | AE180: 28.43820763 | AF180: 3.664072514 | AG180: 116.6394348 | AH180: 4.091236115 | AI180: 3.351256847 | AJ180: 3213.52832 | AK180: 56.98407364 | AL180: 173.4009247 | AM180: 2.56233573 | AN180: 13.57513332 | AO180: 46.66227722 | AP180: 0 | AQ180: 0 | AR180: 0.313034296 | AS180: 1.806704998 | AT180: 3.689810991 | AU180: 937.3798218 | AV180: 2062.901367 | AW180: 4.144070625 | AX180: 0.482394844 | AY180: 77.30471802 | AZ180: 1 | BA180: 1 | BB180: 1
A181: 176 | B181: 199912.7813 | C181: 17 | D181: 871.685791 | E181: 1631.751099 | F181: 111.0402451 | G181: 139.0081024 | H181: 2564.617676 | I181: 2487.625488 | J181: 32.54430771 | K181: 0.525255919 | L181: 4.171910286 | M181: 0 | N181: 0 | O181: 1.945136309 | P181: 0 | Q181: 1.052871943 | R181: 40.08404541 | S181: 0.51469785 | T181: 95.64117432 | U181: 909.892334 | V181: 0.745998561 | W181: 1.502627254 | X181: 1.666921616 | Y181: 72.64318848 | Z181: 13.03806782 | AA181: 236.0591431 | AB181: 0.84485513 | AC181: 2.359760523 | AD181: 131.0841217 | AE181: 33.29430389 | AF181: 60.63762283 | AG181: 19.30084419 | AH181: 0 | AI181: 0 | AJ181: 748.1362915 | AK181: 163.7133331 | AL181: 309.944519 | AM181: 2.593106747 | AN181: 0 | AO181: 124.6664352 | AP181: 0.670210421 | AQ181: 0 | AR181: 6.770128727 | AS181: 1.921545267 | AT181: 4.726999283 | AU181: 401.4481812 | AV181: 866.673584 | AW181: 2.413222313 | AX181: 0 | AY181: 67.02419281 | AZ181: 1 | BA181: 1 | BB181: 1
A182: 177 | B182: 200099.5938 | C182: 14 | D182: 631.4383545 | E182: 2527.768555 | F182: 245.8143005 | G182: 343.4571838 | H182: 3339.727295 | I182: 3084.711182 | J182: 115.7203827 | K182: 1.696766376 | L182: 0 | M182: 0 | N182: 0 | O182: 4.612707615 | P182: 5.769032478 | Q182: 3.597668409 | R182: 85.11475372 | S182: 2.251103401 | T182: 370.5824585 | U182: 2097.852051 | V182: 0 | W182: 4.213577747 | X182: 1.218357921 | Y182: 94.00313568 | Z182: 70.22483063 | AA182: 301.2564697 | AB182: 2.491147518 | AC182: 1.380478501 | AD182: 50.97446823 | AE182: 10.04192829 | AF182: 137.2958374 | AG182: 106.5208054 | AH182: 5.789088249 | AI182: 11.467556 | AJ182: 3007.148438 | AK182: 349.2746582 | AL182: 390.796875 | AM182: 0.684673429 | AN182: 1.46171093 | AO182: 106.1300583 | AP182: 0 | AQ182: 0 | AR182: 0.436967432 | AS182: 0.059115313 | AT182: 4.040230274 | AU182: 770.4202881 | AV182: 1715.985229 | AW182: 2.093790293 | AX182: 2.298813343 | AY182: 83.37510681 | AZ182: 1 | BA182: 1 | BB182: 2
A183: 178 | B183: 201004.3438 | C183: 16 | D183: 316.6531372 | E183: 2262.810791 | F183: 135.3740234 | G183: 140.1183167 | H183: 3507.779053 | I183: 3201.002441 | J183: 19.20651054 | K183: 1.141385317 | L183: 0.998520613 | M183: 3.279714346 | N183: 0 | O183: 1.939014196 | P183: 1.482594728 | Q183: 1.445432782 | R183: 79.62839508 | S183: 18.80916405 | T183: 203.0854645 | U183: 1050.039307 | V183: 1.480795979 | W183: 38.8408165 | X183: 2.606314421 | Y183: 133.1573029 | Z183: 83.41324615 | AA183: 217.630249 | AB183: 2.505806446 | AC183: 0.649760902 | AD183: 378.6295166 | AE183: 51.98620224 | AF183: 18.1805191 | AG183: 35.04200745 | AH183: 1.658544064 | AI183: 4.941566467 | AJ183: 1643.582031 | AK183: 202.0973969 | AL183: 871.1692505 | AM183: 2.781757832 | AN183: 0.725544333 | AO183: 117.7423401 | AP183: 0.928317904 | AQ183: 0 | AR183: 1.176930189 | AS183: 2.933474541 | AT183: 7.327131748 | AU183: 608.2094727 | AV183: 1292.690552 | AW183: 0.337728262 | AX183: 3.084376812 | AY183: 77.04535675 | AZ183: 1 | BA183: 1 | BB183: 1
A184: 179 | B184: 202363.8125 | C184: 19 | D184: 597.3699951 | E184: 1163.645996 | F184: 104.8197632 | G184: 148.6693878 | H184: 2115.361084 | I184: 1953.603027 | J184: 60.18332291 | K184: 0 | L184: 2.625370741 | M184: 2.27615428 | N184: 6.132017612 | O184: 20.85596657 | P184: 0.491945952 | Q184: 4.900107861 | R184: 157.4546051 | S184: 21.02716255 | T184: 287.0572815 | U184: 1086.638916 | V184: 1.304795027 | W184: 9.501699448 | X184: 0 | Y184: 46.76312256 | Z184: 58.87278748 | AA184: 1.290004849 | AB184: 3.888548613 | AC184: 2.263446569 | AD184: 75.8527832 | AE184: 75.45513916 | AF184: 126.5778503 | AG184: 37.79811478 | AH184: 40.27219391 | AI184: 137.8743896 | AJ184: 4093.124512 | AK184: 372.7989502 | AL184: 253.6274872 | AM184: 2.469673872 | AN184: 0 | AO184: 234.4100952 | AP184: 0.195344374 | AQ184: 0 | AR184: 1.127164125 | AS184: 4.373318672 | AT184: 18.87001991 | AU184: 476.6264343 | AV184: 923.5177002 | AW184: 2.746637106 | AX184: 3.49345541 | AY184: 70.41707611 | AZ184: 1 | BA184: 1 | BB184: 4
A185: 180 | B185: 202537.9063 | C185: 16 | D185: 306.4681091 | E185: 1452.161743 | F185: 99.95355988 | G185: 146.5873413 | H185: 2775.989502 | I185: 2476.351563 | J185: 58.35974503 | K185: 1.195662379 | L185: 0 | M185: 0 | N185: 2.396865606 | O185: 3.105198383 | P185: 1.297711611 | Q185: 0.31694755 | R185: 89.47952271 | S185: 0.04203365 | T185: 238.1511688 | U185: 636.5997925 | V185: 0.534988761 | W185: 4.48235178 | X185: 15.92678356 | Y185: 262.0026245 | Z185: 85.2493515 | AA185: 332.6485291 | AB185: 0.054097306 | AC185: 0 | AD185: 46.70105362 | AE185: 16.01736641 | AF185: 70.76992798 | AG185: 66.08019257 | AH185: 2.349173546 | AI185: 42.46839142 | AJ185: 2769.587646 | AK185: 246.5565338 | AL185: 691.9571533 | AM185: 0.643825591 | AN185: 2.896964312 | AO185: 96.06983948 | AP185: 0 | AQ185: 1.315794468 | AR185: 1.078695536 | AS185: 0.38802281 | AT185: 1.944921732 | AU185: 483.9302979 | AV185: 1152.663574 | AW185: 1.952110887 | AX185: 0 | AY185: 78.41951752 | AZ185: 1 | BA185: 1 | BB185: 2
A186: 181 | B186: 202582.4219 | C186: 13 | D186: 167.3489075 | E186: 1303.02832 | F186: 90.03816986 | G186: 160.265564 | H186: 2229.844482 | I186: 2120.092773 | J186: 33.42076874 | K186: 0.372100264 | L186: 0 | M186: 0 | N186: 1.977060676 | O186: 1.709009171 | P186: 0.871815741 | Q186: 1.66411376 | R186: 64.96976471 | S186: 2.317708969 | T186: 146.4138489 | U186: 212.5000153 | V186: 0.216621071 | W186: 5.099162579 | X186: 1.67952323 | Y186: 34.18800354 | Z186: 14.59305 | AA186: 49.9069519 | AB186: 1.993192911 | AC186: 0 | AD186: 11.66799164 | AE186: 5.406426907 | AF186: 6.024733543 | AG186: 7.242537022 | AH186: 0.319680184 | AI186: 4.754378319 | AJ186: 470.6072388 | AK186: 55.42222977 | AL186: 163.9061584 | AM186: 2.372636557 | AN186: 0.484228462 | AO186: 67.43239594 | AP186: 0 | AQ186: 0 | AR186: 5.072281361 | AS186: 0 | AT186: 4.768684387 | AU186: 348.4487915 | AV186: 882.1069336 | AW186: 0.736766994 | AX186: 0 | AY186: 55.49052048 | AZ186: 1 | BA186: 1 | BB186: 2
A187: 182 | B187: 203029.1875 | C187: 16 | D187: 551.0042725 | E187: 2044.436768 | F187: 149.9668274 | G187: 165.4022827 | H187: 3210.913086 | I187: 2846.927002 | J187: 51.49251556 | K187: 0.744767904 | L187: 2.923929453 | M187: 1.506265998 | N187: 0.170595691 | O187: 1.062657118 | P187: 1.817058444 | Q187: 1.256973028 | R187: 5.887630939 | S187: 1.337681651 | T187: 74.13800812 | U187: 1034.387939 | V187: 3.690274715 | W187: 32.04230881 | X187: 1.293232679 | Y187: 278.5908813 | Z187: 114.4155807 | AA187: 2.881582737 | AB187: 2.42503953 | AC187: 0 | AD187: 48.99064255 | AE187: 38.15858459 | AF187: 48.15351105 | AG187: 167.4137421 | AH187: 11.79509735 | AI187: 3.825716972 | AJ187: 1309.370239 | AK187: 220.7891846 | AL187: 1185.083618 | AM187: 1.782584667 | AN187: 0 | AO187: 41.38145065 | AP187: 2.090386391 | AQ187: 0.510040939 | AR187: 7.838485718 | AS187: 2.669484138 | AT187: 0.743161201 | AU187: 515.4509888 | AV187: 1177.232178 | AW187: 1.118166208 | AX187: 3.144901276 | AY187: 89.12987518 | AZ187: 1 | BA187: 1 | BB187: 5
A188: 183 | B188: 203238.1719 | C188: 13 | D188: 151.9528809 | E188: 1700.512451 | F188: 168.9845886 | G188: 193.9733124 | H188: 2425.345215 | I188: 2379.63208 | J188: 72.02378845 | K188: 1.360961914 | L188: 0.385680526 | M188: 0 | N188: 2.087295055 | O188: 2.117610693 | P188: 1.227066278 | Q188: 0 | R188: 3.173253536 | S188: 2.397559166 | T188: 38.4136734 | U188: 384.0507202 | V188: 0 | W188: 6.959890366 | X188: 0 | Y188: 75.91999054 | Z188: 8.102755547 | AA188: 124.2203827 | AB188: 2.072546721 | AC188: 0.717840612 | AD188: 23.50686455 | AE188: 10.60754013 | AF188: 62.73819733 | AG188: 13.40929222 | AH188: 14.36399174 | AI188: 0.360080868 | AJ188: 1371.448364 | AK188: 52.35478973 | AL188: 247.2319946 | AM188: 1.994112968 | AN188: 1.237960458 | AO188: 14.9694128 | AP188: 0.621133864 | AQ188: 0.570806444 | AR188: 3.790062666 | AS188: 1.298359752 | AT188: 1.673605323 | AU188: 288.3537292 | AV188: 550.892395 | AW188: 0 | AX188: 4.045196056 | AY188: 57.96916199 | AZ188: 1 | BA188: 1 | BB188: 2
A189: 184 | B189: 203461.2969 | C189: 16 | D189: 556.0198364 | E189: 1373.94104 | F189: 96.31719208 | G189: 119.6391373 | H189: 2512.726074 | I189: 2306.218994 | J189: 28.17192078 | K189: 0 | L189: 0 | M189: 0.711345017 | N189: 4.140107155 | O189: 2.328173161 | P189: 1.141672492 | Q189: 0.369134545 | R189: 18.23854446 | S189: 0.418133229 | T189: 7.961709023 | U189: 1420.99231 | V189: 1.608253598 | W189: 3.123379469 | X189: 2.503245831 | Y189: 20.29938316 | Z189: 74.42584229 | AA189: 6.421117783 | AB189: 0.082776316 | AC189: 0.715059459 | AD189: 16.47326279 | AE189: 10.61164474 | AF189: 3.182686567 | AG189: 0 | AH189: 5.310018063 | AI189: 5.503239632 | AJ189: 1239.800659 | AK189: 66.41717529 | AL189: 353.3068848 | AM189: 4.81797123 | AN189: 3.544234991 | AO189: 29.53506088 | AP189: 0 | AQ189: 1.208429813 | AR189: 0 | AS189: 0.158000708 | AT189: 4.623726845 | AU189: 292.5684814 | AV189: 634.7655029 | AW189: 2.492036104 | AX189: 2.270553112 | AY189: 66.43282318 | AZ189: 1 | BA189: 1 | BB189: 4
A190: 185 | B190: 204353.8125 | C190: 19 | D190: 275.3744507 | E190: 1615.688843 | F190: 136.4562531 | G190: 145.1820831 | H190: 2716.345459 | I190: 2507.365967 | J190: 64.02953339 | K190: 0.826132476 | L190: 0.358025014 | M190: 0 | N190: 0.500504315 | O190: 1.27610445 | P190: 1.832691073 | Q190: 2.366786003 | R190: 63.4529686 | S190: 2.132428169 | T190: 139.9740143 | U190: 1258.30481 | V190: 1.524427176 | W190: 23.59234428 | X190: 0 | Y190: 146.4824066 | Z190: 85.82775879 | AA190: 824.8285522 | AB190: 0.660706699 | AC190: 0.936991155 | AD190: 9.924024582 | AE190: 11.97532654 | AF190: 71.99676514 | AG190: 52.43474197 | AH190: 0.497462064 | AI190: 13.61294842 | AJ190: 2012.000488 | AK190: 150.8569336 | AL190: 104.9583359 | AM190: 1.800802469 | AN190: 1.011542439 | AO190: 10.04218578 | AP190: 0 | AQ190: 0.718966246 | AR190: 1.041438699 | AS190: 0 | AT190: 4.379042149 | AU190: 508.690094 | AV190: 968.9179077 | AW190: 3.18543601 | AX190: 1.404250026 | AY190: 80.10771942 | AZ190: 1 | BA190: 1 | BB190: 2
A191: 186 | B191: 204461.5469 | C191: 18 | D191: 956.8491821 | E191: 1961.338379 | F191: 120.1167755 | G191: 160.2149048 | H191: 3033.699951 | I191: 2774.718506 | J191: 39.07078934 | K191: 1.047443032 | L191: 4.895746231 | M191: 0 | N191: 0.379211217 | O191: 1.15910697 | P191: 1.288605809 | Q191: 1.902961254 | R191: 95.85276031 | S191: 5.224555016 | T191: 201.6097717 | U191: 400.8372498 | V191: 0.233768642 | W191: 0.981794357 | X191: 6.202296734 | Y191: 146.8795471 | Z191: 80.2342453 | AA191: 20.40371513 | AB191: 0 | AC191: 1.516463876 | AD191: 92.74151611 | AE191: 98.03435516 | AF191: 441.7842102 | AG191: 111.3082199 | AH191: 55.5590744 | AI191: 121.6519394 | AJ191: 3989.779785 | AK191: 719.2653809 | AL191: 925.7564697 | AM191: 1.02402699 | AN191: 1.968272805 | AO191: 123.0218124 | AP191: 0 | AQ191: 0 | AR191: 1.258059621 | AS191: 2.09691906 | AT191: 0.75624609 | AU191: 399.072876 | AV191: 874.5601196 | AW191: 5.38072443 | AX191: 0.306109011 | AY191: 92.47219849 | AZ191: 1 | BA191: 1 | BB191: 1
A192: 187 | B192: 205139.1563 | C192: 18 | D192: 203.9946594 | E192: 1430.587036 | F192: 116.4427567 | G192: 144.5342712 | H192: 2585.734375 | I192: 2334.503418 | J192: 63.35087585 | K192: 3.350452423 | L192: 0 | M192: 0 | N192: 0 | O192: 17.88533783 | P192: 0.025377043 | Q192: 4.055693626 | R192: 67.92599487 | S192: 6.741866589 | T192: 104.2789383 | U192: 1926.241943 | V192: 5.355585575 | W192: 3.073091984 | X192: 0 | Y192: 88.03125763 | Z192: 40.40054321 | AA192: 76.36097717 | AB192: 1.952615023 | AC192: 0 | AD192: 52.35754776 | AE192: 7.284907818 | AF192: 13.19404984 | AG192: 6.001737595 | AH192: 3.170295954 | AI192: 0.064016722 | AJ192: 639.6638184 | AK192: 45.82743835 | AL192: 228.1259766 | AM192: 2.426395655 | AN192: 2.862836838 | AO192: 48.35507202 | AP192: 0.949145198 | AQ192: 1.353390694 | AR192: 2.77374506 | AS192: 3.125795126 | AT192: 1.831606507 | AU192: 341.0968933 | AV192: 728.9388428 | AW192: 4.740900517 | AX192: 4.751523018 | AY192: 69.68579865 | AZ192: 1 | BA192: 1 | BB192: 2
A193: 188 | B193: 205178.375 | C193: 17 | D193: 305.356842 | E193: 1628.799805 | F193: 131.7774811 | G193: 134.0050507 | H193: 3056.36792 | I193: 2672.873291 | J193: 22.5465374 | K193: 0.317380607 | L193: 0 | M193: 0 | N193: 2.94549799 | O193: 2.23226881 | P193: 0 | Q193: 4.826682091 | R193: 90.82874298 | S193: 17.54049492 | T193: 170.8688965 | U193: 677.9025269 | V193: 1.687758684 | W193: 12.66496563 | X193: 0.696201146 | Y193: 52.60068893 | Z193: 33.39034653 | AA193: 39.06768417 | AB193: 1.231908917 | AC193: 2.485698938 | AD193: 94.16651154 | AE193: 37.67319489 | AF193: 57.26362228 | AG193: 20.21033859 | AH193: 3.844312191 | AI193: 4.624732494 | AJ193: 921.4631348 | AK193: 187.2596436 | AL193: 532.5274048 | AM193: 4.149834633 | AN193: 0.230495065 | AO193: 53.52640152 | AP193: 0.384706259 | AQ193: 0.880736411 | AR193: 2.190161943 | AS193: 4.174688339 | AT193: 1.603307486 | AU193: 404.109436 | AV193: 742.1845093 | AW193: 5.309473515 | AX193: 0 | AY193: 73.0434494 | AZ193: 1 | BA193: 1 | BB193: 2
A194: 189 | B194: 205911.9844 | C194: 15 | D194: 266.5231323 | E194: 1707.545044 | F194: 120.1083679 | G194: 145.9430389 | H194: 2618.877441 | I194: 2444.948242 | J194: 34.70930481 | K194: 0.327683896 | L194: 0 | M194: 0 | N194: 0.056269079 | O194: 0.934463739 | P194: 0 | Q194: 0.021601291 | R194: 19.11222076 | S194: 0 | T194: 11.23530865 | U194: 298.6083679 | V194: 0 | W194: 1.167648435 | X194: 2.324642897 | Y194: 104.1769943 | Z194: 44.96598053 | AA194: 15.69653606 | AB194: 2.45822382 | AC194: 0 | AD194: 0 | AE194: 2.937208414 | AF194: 0.390264362 | AG194: 2.145104408 | AH194: 1.715785265 | AI194: 1.211032391 | AJ194: 283.3144836 | AK194: 51.32614517 | AL194: 328.1083679 | AM194: 2.510661602 | AN194: 0.272378445 | AO194: 1.053956628 | AP194: 0.360482275 | AQ194: 2.11809063 | AR194: 0.705517411 | AS194: 1.253489375 | AT194: 0.739726067 | AU194: 277.136322 | AV194: 576.9841309 | AW194: 0 | AX194: 0 | AY194: 70.84247589 | AZ194: 1 | BA194: 1 | BB194: 4
A195: 190 | B195: 206280.7656 | C195: 15 | D195: 218.3697815 | E195: 2080.819824 | F195: 128.8180084 | G195: 181.9576569 | H195: 3290.928467 | I195: 3112.857666 | J195: 41.24801254 | K195: 0 | L195: 0 | M195: 0 | N195: 1.426620603 | O195: 4.329262257 | P195: 0.401312679 | Q195: 0.327231377 | R195: 50.48251724 | S195: 4.116319656 | T195: 100.2282028 | U195: 2588.943115 | V195: 4.779225349 | W195: 1.820295095 | X195: 1.735711932 | Y195: 310.2546692 | Z195: 35.10102081 | AA195: 154.8474884 | AB195: 1.852886081 | AC195: 1.98376286 | AD195: 59.64032745 | AE195: 25.09242439 | AF195: 158.8759766 | AG195: 30.9233799 | AH195: 1.699545741 | AI195: 28.43235397 | AJ195: 2694.73877 | AK195: 337.7970886 | AL195: 813.0585938 | AM195: 2.460703611 | AN195: 0.855059206 | AO195: 4.336804867 | AP195: 0 | AQ195: 0 | AR195: 1.48140204 | AS195: 1.123362184 | AT195: 3.435281754 | AU195: 456.1151733 | AV195: 952.8444214 | AW195: 1.843703032 | AX195: 2.834264994 | AY195: 76.70922852 | AZ195: 1 | BA195: 1 | BB195: 2
A196: 191 | B196: 208064.1719 | C196: 19 | D196: 177.4891205 | E196: 2111.86499 | F196: 141.9640503 | G196: 169.6060181 | H196: 3199.380371 | I196: 3261.179443 | J196: 34.8297081 | K196: 0.34305045 | L196: 1.72869122 | M196: 0 | N196: 2.014915228 | O196: 2.745841742 | P196: 0.745500982 | Q196: 0 | R196: 13.2065382 | S196: 5.53576088 | T196: 36.12817383 | U196: 1007.003967 | V196: 0.22882475 | W196: 12.35538769 | X196: 1.842657447 | Y196: 125.6733551 | Z196: 61.83294296 | AA196: 20.04743576 | AB196: 2.754584551 | AC196: 1.049123764 | AD196: 90.30419922 | AE196: 37.52986145 | AF196: 8.149581909 | AG196: 39.66736221 | AH196: 16.00209808 | AI196: 29.74801445 | AJ196: 2322.035889 | AK196: 61.29389954 | AL196: 270.6744995 | AM196: 3.808951855 | AN196: 1.905627728 | AO196: 52.77962875 | AP196: 0 | AQ196: 0 | AR196: 2.314837694 | AS196: 2.67821455 | AT196: 4.417704582 | AU196: 465.4453735 | AV196: 1037.12793 | AW196: 0.360804498 | AX196: 0 | AY196: 67.66325378 | AZ196: 1 | BA196: 1 | BB196: 1
A197: 192 | B197: 208258.7813 | C197: 17 | D197: 244.566864 | E197: 1228.209839 | F197: 95.66242218 | G197: 118.5660324 | H197: 2212.074951 | I197: 1980.832031 | J197: 22.4047718 | K197: 0 | L197: 0 | M197: 0 | N197: 2.484759569 | O197: 1.806650519 | P197: 0 | Q197: 0.06589748 | R197: 6.303482056 | S197: 2.847431898 | T197: 15.79553699 | U197: 196.6579132 | V197: 0 | W197: 29.23517036 | X197: 13.92896557 | Y197: 12.80653477 | Z197: 16.49326134 | AA197: 10.53902054 | AB197: 3.104316235 | AC197: 0.32127586 | AD197: 8.847434044 | AE197: 12.95327282 | AF197: 1.542885065 | AG197: 2.318736792 | AH197: 5.499363422 | AI197: 3.807823658 | AJ197: 205.3469238 | AK197: 10.13917351 | AL197: 182.1363831 | AM197: 1.202064157 | AN197: 0.540091217 | AO197: 39.88124847 | AP197: 0 | AQ197: 0 | AR197: 1.394748688 | AS197: 1.563781381 | AT197: 7.665821552 | AU197: 305.8339539 | AV197: 672.8007202 | AW197: 1.885200262 | AX197: 0.536085188 | AY197: 48.63370895 | AZ197: 1 | BA197: 1 | BB197: 4
A198: 193 | B198: 208507.875 | C198: 14 | D198: 444.5687561 | E198: 1790.486328 | F198: 155.4950714 | G198: 214.4150085 | H198: 2745.371094 | I198: 2493.82959 | J198: 76.59367371 | K198: 1.019075155 | L198: 0 | M198: 0 | N198: 1.295686364 | O198: 0 | P198: 0.368584931 | Q198: 0.289210111 | R198: 2.814044952 | S198: 1.953982353 | T198: 1.502849698 | U198: 1062.244019 | V198: 0.113741279 | W198: 24.49061584 | X198: 0 | Y198: 102.0214005 | Z198: 14.04045296 | AA198: 52.53230667 | AB198: 1.535748601 | AC198: 0.633270085 | AD198: 6.241139412 | AE198: 2.669087172 | AF198: 13.50686169 | AG198: 9.015262604 | AH198: 6.188896179 | AI198: 4.480825424 | AJ198: 1246.023438 | AK198: 46.30740738 | AL198: 638.255188 | AM198: 2.25099349 | AN198: 0.762504876 | AO198: 11.12997437 | AP198: 0 | AQ198: 0 | AR198: 0.490010142 | AS198: 0 | AT198: 0.325197607 | AU198: 274.8410645 | AV198: 723.7683105 | AW198: 0.077718265 | AX198: 1.600207686 | AY198: 61.55519867 | AZ198: 1 | BA198: 1 | BB198: 2
A199: 194 | B199: 208662.2188 | C199: 18 | D199: 366.8793945 | E199: 1087.078003 | F199: 54.58209229 | G199: 84.71029663 | H199: 1945.519409 | I199: 1763.633911 | J199: 14.93505287 | K199: 0.801747084 | L199: 0 | M199: 0 | N199: 1.314691544 | O199: 0 | P199: 0.621389627 | Q199: 0.14857018 | R199: 7.457082748 | S199: 6.94652319 | T199: 7.764662266 | U199: 642.5427246 | V199: 0 | W199: 348.7003479 | X199: 0 | Y199: 153.9743042 | Z199: 10.16955948 | AA199: 2.003212214 | AB199: 0.384078026 | AC199: 0.428557754 | AD199: 18.10918999 | AE199: 13.73900127 | AF199: 6.585829258 | AG199: 16.50960159 | AH199: 12.21812916 | AI199: 1.781014442 | AJ199: 462.3024597 | AK199: 99.31430817 | AL199: 525.5358276 | AM199: 2.533851385 | AN199: 1.722394943 | AO199: 19.36722374 | AP199: 0 | AQ199: 0.373248875 | AR199: 0.627845824 | AS199: 0 | AT199: 3.381398916 | AU199: 197.7660065 | AV199: 402.2251587 | AW199: 0.862134814 | AX199: 0.735452533 | AY199: 62.6570816 | AZ199: 1 | BA199: 1 | BB199: 4
A200: 195 | B200: 210440.6094 | C200: 14 | D200: 253.194809 | E200: 1354.836914 | F200: 73.94416046 | G200: 146.5746918 | H200: 2332.419434 | I200: 2044.960938 | J200: 53.64716721 | K200: 0 | L200: 2.548378944 | M200: 0 | N200: 0 | O200: 4.374233723 | P200: 0 | Q200: 2.659731388 | R200: 11.76641083 | S200: 7.298063278 | T200: 27.18920708 | U200: 700.6640015 | V200: 0.270515323 | W200: 15.78858185 | X200: 0 | Y200: 160.8178101 | Z200: 19.59896278 | AA200: 51.14788055 | AB200: 0.958867848 | AC200: 0 | AD200: 122.0485764 | AE200: 16.64306831 | AF200: 23.95643234 | AG200: 6.211514473 | AH200: 5.551314831 | AI200: 9.511213303 | AJ200: 922.0854492 | AK200: 105.8094025 | AL200: 194.1878815 | AM200: 0.545202672 | AN200: 0.476724744 | AO200: 44.84199142 | AP200: 0.435955703 | AQ200: 0 | AR200: 3.839998722 | AS200: 1.394665956 | AT200: 6.03534317 | AU200: 447.071106 | AV200: 825.755127 | AW200: 0.466894895 | AX200: 0 | AY200: 64.86380768 | AZ200: 1 | BA200: 1 | BB200: 1
... 925 more rows

Sheet E1 state subset
A1: Each of the following sheet (starting from here) are a subset of the CCAST clusters and correspond to each identified EMT state individually (Total of 8).
A2: These are related to graphs in Figure 3c, FDLs in Figure 3d-e and Supplementary Fig 6a biaxial plots and 6c heatmap (left). Data here include marker expression level (transformed), per time point, per cluster id for each cell individually
A4: Cluster ID 2 = E1 state
A5: Filename: State 2.fcs
A6: Event # | B6: Time | C6: Event_length | D6: CD45 | E6: Barcode_1 | F6: Barcode_2 | G6: Barcode_3 | H6: Barcode_4 | I6: Barcode_5 | J6: Barcode_6 | K6: FAP | L6: CD44 | M6: IdU | N6: Bead_1_CD34 | O6: c_caspase_3 | P6: CD117 | Q6: p_Src | R6: p_EGFR | S6: EGFR__total | T6: pAxl | U6: TROP2 | V6: CD140b | W6: OCT3_4 | X6: Notch_3 | Y6: keratin_8 | Z6: CD274 | AA6: MUC1 | AB6: RUNX1 | AC6: SNAIL | AD6: CD324 | AE6: Nanog | AF6: p_H3__S28 | AG6: CD24 | AH6: p_Smad2__S465_467__Smad3__S423_425_ | AI6: p_NFkB__S529 | AJ6: p_S6__S235_S236 | AK6: p_Rb__S807_S811 | AL6: keratin_7 | AM6: Twist | AN6: CD140a | AO6: b_catenin | AP6: CD31 | AQ6: Slug | AR6: CD104 | AS6: Vimentin | AT6: p_AMPK | AU6: DNA_1 | AV6: DNA_2 | AW6: Viability | AX6: Viability2 | AY6: beadDist | AZ6: days | BA6: Timepoint | BB6: clusterids | BC6: daylabelid
A7: 1 | B7: 15.11690617 | C7: 3.402306557 | D7: 3.306738615 | E7: 3.652768135 | F7: 7.476260662 | G7: 5.258613586 | H7: 7.96911478 | I7: 7.803943157 | J7: 4.828221798 | K7: 0.3033180833 | L7: 0 | M7: 0 | N7: 1.613117218 | O7: 3.118641376 | P7: 0.04543910548 | Q7: 1.648759842 | R7: 4.798957825 | S7: 2.166079521 | T7: 4.738729954 | U7: 6.477716446 | V7: 0.2105997801 | W7: 0.644461751 | X7: 1.436815023 | Y7: 5.721920967 | Z7: 5.216710567 | AA7: 6.503648758 | AB7: 1.387467384 | AC7: 0.7118781805 | AD7: 3.194040537 | AE7: 3.2741189 | AF7: 1.010153055 | AG7: 3.011245728 | AH7: 3.180759192 | AI7: 1.227150083 | AJ7: 6.431348324 | AK7: 4.776418686 | AL7: 5.196599007 | AM7: 1.573172927 | AN7: 1.673665881 | AO7: 3.706857204 | AP7: 0.8263498545 | AQ7: 0.7376064658 | AR7: 1.440902829 | AS7: 1.764218569 | AT7: 1.628795981 | AU7: 6.701887608 | AV7: 7.238638401 | AW7: 2.007257462 | AX7: 1.266961932 | AY7: 76.54468536 | AZ7: 1 | BA7: 7 | BB7: 2 | BC7: 20
A8: 2 | B8: 14.87548351 | C8: 3.402306557 | D8: 6.5252738 | E8: 3.635756493 | F8: 7.777129173 | G8: 8.143138885 | H8: 5.34735775 | I8: 5.455590725 | J8: 7.856416225 | K8: 0.8673985004 | L8: 0 | M8: 0 | N8: 1.725175738 | O8: 1.305780292 | P8: 0.6957840323 | Q8: 3.81782937 | R8: 5.293259144 | S8: 3.920985937 | T8: 5.912874222 | U8: 6.38116312 | V8: 2.275439739 | W8: 5.229753971 | X8: 2.149370193 | Y8: 4.324113846 | Z8: 5.136338711 | AA8: 7.036511421 | AB8: 0.992156744 | AC8: 0.01691115648 | AD8: 5.179945469 | AE8: 3.685212135 | AF8: 5.96311903 | AG8: 4.752328873 | AH8: 2.964322329 | AI8: 4.520493031 | AJ8: 8.517526627 | AK8: 6.433984756 | AL8: 6.90496397 | AM8: 0.3394142687 | AN8: 0 | AO8: 5.371693611 | AP8: 0 | AQ8: 0 | AR8: 0 | AS8: 1.820322394 | AT8: 1.79328084 | AU8: 6.217587948 | AV8: 7.050573826 | AW8: 0 | AX8: 1.298968434 | AY8: 73.99931335 | AZ8: 1 | BA8: 6 | BB8: 2 | BC8: 16
A9: 3 | B9: 14.15730762 | C9: 3.333477497 | D9: 6.165149689 | E9: 8.094498634 | F9: 5.574515343 | G9: 5.645326614 | H9: 8.508264542 | I9: 8.433135033 | J9: 4.89519453 | K9: 0 | L9: 0.1136253551 | M9: 0 | N9: 1.77203536 | O9: 0.1722888798 | P9: 1.274058938 | Q9: 1.106122017 | R9: 4.298244953 | S9: 2.463776827 | T9: 5.210154057 | U9: 7.056420326 | V9: 0.9363210201 | W9: 3.010449648 | X9: 0 | Y9: 3.319384575 | Z9: 3.796892643 | AA9: 5.169454575 | AB9: 1.304969549 | AC9: 1.542521477 | AD9: 3.404384136 | AE9: 2.983462572 | AF9: 4.652311325 | AG9: 2.029699326 | AH9: 1.870325327 | AI9: 1.537377954 | AJ9: 7.850844383 | AK9: 5.30081749 | AL9: 5.422248363 | AM9: 0.003894676222 | AN9: 0.1445373297 | AO9: 5.124117851 | AP9: 0 | AQ9: 0.667044282 | AR9: 1.839259624 | AS9: 1.997834563 | AT9: 1.442533731 | AU9: 6.578785419 | AV9: 7.299455643 | AW9: 0.9034282565 | AX9: 0.2725454271 | AY9: 65.67243195 | AZ9: 1 | BA9: 1 | BB9: 2 | BC9: 0
A10: 4 | B10: 14.89633083 | C10: 3.689503908 | D10: 6.507885456 | E10: 3.257998466 | F10: 7.564601421 | G10: 5.181545734 | H10: 7.996996403 | I10: 7.910567284 | J10: 4.216951847 | K10: 0 | L10: 0 | M10: 0 | N10: 0.7187824845 | O10: 3.672023773 | P10: 0.426450938 | Q10: 3.318280458 | R10: 5.287349224 | S10: 4.056938171 | T10: 6.205016613 | U10: 6.34796524 | V10: 1.025161982 | W10: 4.412949562 | X10: 2.328027725 | Y10: 4.918533325 | Z10: 5.533013821 | AA10: 5.613145351 | AB10: 1.466627598 | AC10: 3.162520409 | AD10: 5.252686501 | AE10: 5.093022823 | AF10: 4.670860767 | AG10: 4.619425297 | AH10: 4.780792713 | AI10: 5.750923634 | AJ10: 9.175882339 | AK10: 7.368704796 | AL10: 6.605684757 | AM10: 0.9674741626 | AN10: 1.521575809 | AO10: 6.227343082 | AP10: 0 | AQ10: 0 | AR10: 1.01319313 | AS10: 2.101914883 | AT10: 2.377691031 | AU10: 6.333890438 | AV10: 7.004951 | AW10: 0.653199017 | AX10: 3.626511097 | AY10: 82.36381531 | AZ10: 1 | BA10: 7 | BB10: 2 | BC10: 20
A11: 5 | B11: 15.73733997 | C11: 3.638278008 | D11: 4.856259823 | E11: 7.973472118 | F11: 5.502477169 | G11: 5.581558228 | H11: 8.477449417 | I11: 8.399448395 | J11: 4.653757572 | K11: 0.2325074077 | L11: 0.2751773298 | M11: 1.363111734 | N11: 0 | O11: 0.4627756476 | P11: 0.2306409031 | Q11: 0 | R11: 3.048636198 | S11: 1.352353811 | T11: 2.6468153 | U11: 7.302500725 | V11: 0.6752560139 | W11: 5.957429886 | X11: 0.2164892405 | Y11: 5.792891502 | Z11: 5.400763988 | AA11: 5.540100098 | AB11: 0.8714401126 | AC11: 0.450167954 | AD11: 3.706644535 | AE11: 1.77125442 | AF11: 1.772923946 | AG11: 1.598870397 | AH11: 0.7585225701 | AI11: 1.296799183 | AJ11: 5.875141621 | AK11: 4.510154247 | AL11: 4.962938309 | AM11: 1.141032934 | AN11: 2.02299571 | AO11: 3.357604265 | AP11: 0 | AQ11: 0.9890072346 | AR11: 1.219386697 | AS11: 2.296304941 | AT11: 1.741184473 | AU11: 6.666052341 | AV11: 7.438673019 | AW11: 0.4345556796 | AX11: 6.71891737 | AY11: 83.76339722 | AZ11: 1 | BA11: 1 | BB11: 2 | BC11: 0
A12: 6 | B12: 14.7589817 | C12: 3.402306557 | D12: 5.446716785 | E12: 7.851280689 | F12: 5.335024357 | G12: 5.725259781 | H12: 8.296033859 | I12: 8.25605011 | J12: 5.123651505 | K12: 0.2469517291 | L12: 0 | M12: 0 | N12: 1.316876888 | O12: 1.814150572 | P12: 1.145308733 | Q12: 0.9417456388 | R12: 3.866579294 | S12: 2.187813044 | T12: 3.909961462 | U12: 7.140865326 | V12: 0.04402189702 | W12: 2.286969423 | X12: 1.853024602 | Y12: 5.348134518 | Z12: 4.008903503 | AA12: 5.084796906 | AB12: 1.383437395 | AC12: 1.425552368 | AD12: 4.102417946 | AE12: 4.235984325 | AF12: 2.951294422 | AG12: 4.000943184 | AH12: 0.3165435493 | AI12: 3.669339895 | AJ12: 7.880497932 | AK12: 4.559514046 | AL12: 5.670264721 | AM12: 0.651296556 | AN12: 1.027926564 | AO12: 4.274866104 | AP12: 0 | AQ12: 0 | AR12: 1.609395742 | AS12: 1.842415333 | AT12: 0 | AU12: 6.853686333 | AV12: 7.46745348 | AW12: 2.574943304 | AX12: 4.18689394 | AY12: 66.56716919 | AZ12: 1 | BA12: 1 | BB12: 2 | BC12: 0
A13: 7 | B13: 10.31988239 | C13: 3.584289551 | D13: 6.296863079 | E13: 2.718993902 | F13: 7.50111866 | G13: 5.432271957 | H13: 7.822725296 | I13: 7.766502857 | J13: 5.167462349 | K13: 0.6426047087 | L13: 0 | M13: 0 | N13: 1.738275647 | O13: 1.025386333 | P13: 1.756820202 | Q13: 2.953075409 | R13: 5.310826778 | S13: 3.053526402 | T13: 5.912598133 | U13: 7.477152824 | V13: 0.1777107418 | W13: 2.849999905 | X13: 1.907075524 | Y13: 3.72177124 | Z13: 5.82413578 | AA13: 6.612493038 | AB13: 2.941151619 | AC13: 1.439965367 | AD13: 4.621037483 | AE13: 4.411753178 | AF13: 4.274870396 | AG13: 4.594302654 | AH13: 3.546682119 | AI13: 4.276884079 | AJ13: 8.421246529 | AK13: 6.070736408 | AL13: 5.527154446 | AM13: 1.155577779 | AN13: 0.9268331528 | AO13: 4.697937965 | AP13: 1.255596519 | AQ13: 0 | AR13: 0.5567233562 | AS13: 1.056087136 | AT13: 2.485335112 | AU13: 6.283091068 | AV13: 6.950415611 | AW13: 1.878498197 | AX13: 2.387052774 | AY13: 77.22903442 | AZ13: 1 | BA13: 7 | BB13: 2 | BC13: 20
A14: 8 | B14: 13.90290642 | C14: 3.466711044 | D14: 6.296031952 | E14: 8.02696991 | F14: 5.520565987 | G14: 5.523531914 | H14: 8.507036209 | I14: 8.480706215 | J14: 4.133647919 | K14: 0.7557903528 | L14: 0 | M14: 0 | N14: 0.2586004734 | O14: 1.197766542 | P14: 1.331977725 | Q14: 0 | R14: 4.225199699 | S14: 2.811462164 | T14: 4.391702175 | U14: 7.349666119 | V14: 0.7548061609 | W14: 2.549167871 | X14: 2.456788778 | Y14: 4.854186058 | Z14: 4.244935036 | AA14: 5.485173702 | AB14: 0.3688590229 | AC14: 1.709147334 | AD14: 4.665816307 | AE14: 2.498025894 | AF14: 2.544810534 | AG14: 3.533652306 | AH14: 2.132269621 | AI14: 1.450136423 | AJ14: 7.608386993 | AK14: 4.917123318 | AL14: 6.582128048 | AM14: 1.253873348 | AN14: 0.4355982244 | AO14: 4.566375732 | AP14: 0 | AQ14: 0 | AR14: 0 | AS14: 1.305283666 | AT14: 0.5593991876 | AU14: 6.912365437 | AV14: 7.710040092 | AW14: 0.4271005094 | AX14: 0.009498657659 | AY14: 69.17906952 | AZ14: 1 | BA14: 1 | BB14: 2 | BC14: 0
A15: 9 | B15: 14.1280489 | C15: 3.402306557 | D15: 6.473212719 | E15: 8.130608559 | F15: 5.33344698 | G15: 5.562195778 | H15: 8.582803726 | I15: 8.535481453 | J15: 4.489166737 | K15: 0.1313532442 | L15: 0 | M15: 0 | N15: 1.166498661 | O15: 1.732177138 | P15: 1.211179376 | Q15: 0.1705762595 | R15: 3.384539604 | S15: 3.245085716 | T15: 4.714433193 | U15: 8.233876228 | V15: 1.226563454 | W15: 2.723678589 | X15: 0.7273965478 | Y15: 4.963442802 | Z15: 3.988186121 | AA15: 6.332386971 | AB15: 0.6005539894 | AC15: 0.7766754627 | AD15: 5.199367046 | AE15: 3.770466328 | AF15: 5.411252975 | AG15: 5.464374542 | AH15: 3.494699717 | AI15: 0 | AJ15: 8.200638771 | AK15: 5.934270382 | AL15: 6.838939667 | AM15: 1.313168764 | AN15: 1.480085135 | AO15: 5.148926258 | AP15: 0 | AQ15: 1.300593972 | AR15: 0.1971547902 | AS15: 1.634882808 | AT15: 0.9457568526 | AU15: 6.637853622 | AV15: 7.359076023 | AW15: 1.786224365 | AX15: 2.806436777 | AY15: 74.233078 | AZ15: 1 | BA15: 1 | BB15: 2 | BC15: 0
A16: 10 | B16: 15.78135395 | C16: 3.584289551 | D16: 6.479255199 | E16: 8.028120041 | F16: 5.247862816 | G16: 5.299634933 | H16: 8.587686539 | I16: 8.481684685 | J16: 4.118668079 | K16: 0.09804406017 | L16: 0 | M16: 0 | N16: 1.021899223 | O16: 0.2773992419 | P16: 0 | Q16: 1.463308334 | R16: 5.232038498 | S16: 3.463259459 | T16: 6.296076775 | U16: 7.593513489 | V16: 1.779365659 | W16: 3.117417097 | X16: 0.6725971103 | Y16: 5.134278297 | Z16: 4.338201046 | AA16: 5.367298126 | AB16: 0.3559180498 | AC16: 1.688002586 | AD16: 5.311143875 | AE16: 4.538772583 | AF16: 5.259163857 | AG16: 5.744576454 | AH16: 3.994459152 | AI16: 5.047113895 | AJ16: 8.81653595 | AK16: 6.260003567 | AL16: 6.083045959 | AM16: 1.928687096 | AN16: 0.7358314395 | AO16: 4.44815731 | AP16: 0 | AQ16: 0 | AR16: 1.591725349 | AS16: 2.410398722 | AT16: 0.408164978 | AU16: 6.62492466 | AV16: 7.530097008 | AW16: 1.739039183 | AX16: 2.864599943 | AY16: 84.78753662 | AZ16: 1 | BA16: 1 | BB16: 2 | BC16: 0
A17: 11 | B17: 15.32063389 | C17: 3.402306557 | D17: 6.880200386 | E17: 7.913174629 | F17: 5.269351482 | G17: 5.734829426 | H17: 8.487065315 | I17: 8.431193352 | J17: 4.106938362 | K17: 0 | L17: 0 | M17: 0 | N17: 0 | O17: 0 | P17: 0.9215946794 | Q17: 1.295621872 | R17: 5.350995541 | S17: 0.179492265 | T17: 5.659370899 | U17: 7.48860836 | V17: 2.186220646 | W17: 2.36873126 | X17: 1.257702827 | Y17: 5.395415783 | Z17: 5.060306549 | AA17: 4.105904579 | AB17: 1.311241388 | AC17: 0.4653635025 | AD17: 4.479645729 | AE17: 4.275806427 | AF17: 1.991984487 | AG17: 3.288824558 | AH17: 0 | AI17: 3.675777197 | AJ17: 7.980600834 | AK17: 5.606901169 | AL17: 5.792022228 | AM17: 1.966499567 | AN17: 0.6462306976 | AO17: 5.037969112 | AP17: 0 | AQ17: 0 | AR17: 0.2658075094 | AS17: 2.113634109 | AT17: 2.594251633 | AU17: 6.840750694 | AV17: 7.438278198 | AW17: 3.607839823 | AX17: 1.224084496 | AY17: 75.72766876 | AZ17: 1 | BA17: 1 | BB17: 2 | BC17: 0
A18: 12 | B18: 12.36148453 | C18: 3.333477497 | D18: 6.096638203 | E18: 7.902983665 | F18: 5.142791748 | G18: 5.299265385 | H18: 8.512496948 | I18: 8.455451965 | J18: 4.641345501 | K18: 0.2287679464 | L18: 0 | M18: 0 | N18: 0.5182862282 | O18: 1.065378785 | P18: 0.04752557725 | Q18: 1.237068892 | R18: 3.814320803 | S18: 3.81809783 | T18: 4.726653576 | U18: 7.811793804 | V18: 0.6389714479 | W18: 3.310220003 | X18: 1.265769362 | Y18: 5.67372036 | Z18: 3.894913435 | AA18: 5.591337681 | AB18: 1.803328156 | AC18: 1.318549275 | AD18: 5.990357876 | AE18: 3.532743454 | AF18: 2.764979839 | AG18: 1.952626109 | AH18: 2.279352188 | AI18: 1.464295149 | AJ18: 7.052904129 | AK18: 5.148582458 | AL18: 6.612517834 | AM18: 1.186862111 | AN18: 1.350314856 | AO18: 4.236195564 | AP18: 0 | AQ18: 0 | AR18: 1.152599692 | AS18: 1.136149764 | AT18: 1.634266019 | AU18: 6.707173347 | AV18: 7.560907364 | AW18: 2.542798281 | AX18: 0.9763455391 | AY18: 65.90085602 | AZ18: 1 | BA18: 1 | BB18: 2 | BC18: 0
A19: 13 | B19: 11.87032795 | C19: 3.527224541 | D19: 6.837965012 | E19: 8.745503426 | F19: 6.257975578 | G19: 6.217429638 | H19: 9.123632431 | I19: 9.034117699 | J19: 5.451209068 | K19: 1.271983385 | L19: 0.6093921661 | M19: 0 | N19: 1.128950596 | O19: 2.536062002 | P19: 1.658975244 | Q19: 2.252004623 | R19: 6.175548077 | S19: 3.586584568 | T19: 6.626450539 | U19: 8.441679955 | V19: 0.8074098229 | W19: 4.758413315 | X19: 0.5677859187 | Y19: 7.059932232 | Z19: 5.58053875 | AA19: 6.965946674 | AB19: 1.08851099 | AC19: 0.7291973233 | AD19: 5.766865253 | AE19: 4.37994051 | AF19: 6.383851528 | AG19: 5.404856205 | AH19: 2.09825635 | AI19: 1.78615272 | AJ19: 8.176057816 | AK19: 6.505542755 | AL19: 7.774049282 | AM19: 1.232085228 | AN19: 0.9944816232 | AO19: 5.413054943 | AP19: 0.7983262539 | AQ19: 0.303996563 | AR19: 1.719189167 | AS19: 1.545246363 | AT19: 1.26186955 | AU19: 7.617725372 | AV19: 8.332841873 | AW19: 4.286426544 | AX19: 0 | AY19: 85.40863037 | AZ19: 1 | BA19: 1 | BB19: 2 | BC19: 0
A20: 14 | B20: 15.60906887 | C20: 3.527224541 | D20: 5.538104057 | E20: 4.158813477 | F20: 8.332671165 | G20: 6.078010082 | H20: 8.671984673 | I20: 8.57886982 | J20: 5.692131996 | K20: 1.723400116 | L20: 0 | M20: 0 | N20: 2.930605412 | O20: 2.179836512 | P20: 1.213845015 | Q20: 3.071096659 | R20: 6.459558487 | S20: 4.448040962 | T20: 6.686598778 | U20: 7.122375965 | V20: 0.9844088554 | W20: 6.199062824 | X20: 0.2015721202 | Y20: 4.998513699 | Z20: 6.233252525 | AA20: 6.69400835 | AB20: 0.3146770298 | AC20: 0.908126533 | AD20: 5.551513195 | AE20: 4.143474579 | AF20: 3.424289465 | AG20: 3.57497716 | AH20: 3.402187109 | AI20: 3.97807169 | AJ20: 8.907019615 | AK20: 6.816432953 | AL20: 6.523071289 | AM20: 0.4827260077 | AN20: 1.948584676 | AO20: 4.150364876 | AP20: 0 | AQ20: 1.339625478 | AR20: 0.6969048381 | AS20: 0.08693486452 | AT20: 2.852362633 | AU20: 6.993148327 | AV20: 7.643083572 | AW20: 2.126963854 | AX20: 0.9769348502 | AY20: 92.3131485 | AZ20: 1 | BA20: 7 | BB20: 2 | BC20: 20
A21: 15 | B21: 15.12753296 | C21: 3.466711044 | D21: 6.029551029 | E21: 7.666572571 | F21: 4.91581583 | G21: 5.115545273 | H21: 8.246058464 | I21: 8.169463158 | J21: 4.354627609 | K21: 1.110647798 | L21: 0 | M21: 0.6508172154 | N21: 1.329385519 | O21: 1.386944056 | P21: 0.0982291773 | Q21: 0 | R21: 4.188808441 | S21: 1.578885317 | T21: 5.108895779 | U21: 6.864351273 | V21: 0.6774874926 | W21: 2.216982365 | X21: 0.9805750251 | Y21: 4.115481853 | Z21: 3.789436102 | AA21: 4.996737957 | AB21: 0.7887907028 | AC21: 1.457532287 | AD21: 4.581984043 | AE21: 2.830697536 | AF21: 3.49427104 | AG21: 3.55377841 | AH21: 3.033936501 | AI21: 3.880671978 | AJ21: 8.035642624 | AK21: 4.992923737 | AL21: 5.790192604 | AM21: 1.695295811 | AN21: 1.870812058 | AO21: 4.052653313 | AP21: 0 | AQ21: 1.772432923 | AR21: 1.39700675 | AS21: 1.610822439 | AT21: 1.254334211 | AU21: 6.231638908 | AV21: 6.752361298 | AW21: 0.5641186237 | AX21: 1.996173978 | AY21: 60.76670837 | AZ21: 1 | BA21: 1 | BB21: 2 | BC21: 0
A22: 16 | B22: 15.75672722 | C22: 3.333477497 | D22: 7.197127819 | E22: 8.160996437 | F22: 5.324240685 | G22: 5.605415821 | H22: 8.61869812 | I22: 8.486701965 | J22: 4.193714619 | K22: 0.6455225348 | L22: 0.7091257572 | M22: 0.5100671053 | N22: 1.761044741 | O22: 1.826166749 | P22: 0 | Q22: 0.1076904386 | R22: 5.029011726 | S22: 2.214527845 | T22: 5.436206818 | U22: 7.032112122 | V22: 1.085386038 | W22: 4.379535675 | X22: 0.5517130494 | Y22: 2.875903845 | Z22: 4.312801838 | AA22: 4.597900391 | AB22: 0 | AC22: 1.700369596 | AD22: 5.377494812 | AE22: 3.809898853 | AF22: 3.506539822 | AG22: 3.035105228 | AH22: 1.410824537 | AI22: 1.683806896 | AJ22: 7.130557537 | AK22: 5.021044254 | AL22: 6.710229874 | AM22: 1.556138277 | AN22: 0.00808017049 | AO22: 5.267753601 | AP22: 0.5815445185 | AQ22: 0.3427672088 | AR22: 0 | AS22: 1.508051991 | AT22: 1.191950679 | AU22: 6.866785049 | AV22: 7.720398426 | AW22: 1.557189941 | AX22: 0.318037957 | AY22: 70.45149994 | AZ22: 1 | BA22: 1 | BB22: 2 | BC22: 0
A23: 17 | B23: 14.94560051 | C23: 3.584289551 | D23: 6.201883316 | E23: 7.959754944 | F23: 5.031126976 | G23: 5.384334087 | H23: 8.486065865 | I23: 8.449112892 | J23: 4.080057144 | K23: 1.254284263 | L23: 0 | M23: 1.392678499 | N23: 1.036430597 | O23: 2.138991117 | P23: 0.3232590556 | Q23: 1.021288157 | R23: 3.72287035 | S23: 3.554376841 | T23: 4.802208424 | U23: 7.045389652 | V23: 0.7739167213 | W23: 4.549610615 | X23: 1.65626812 | Y23: 5.831397533 | Z23: 4.509821415 | AA23: 6.255622387 | AB23: 0.9456261992 | AC23: 1.187432647 | AD23: 4.622992992 | AE23: 2.709647894 | AF23: 1.515734434 | AG23: 4.235501289 | AH23: 0.912979126 | AI23: 2.719965935 | AJ23: 6.434276581 | AK23: 5.664641857 | AL23: 6.786829948 | AM23: 1.318569541 | AN23: 1.509901285 | AO23: 2.086197376 | AP23: 0 | AQ23: 1.061373949 | AR23: 0.7924234271 | AS23: 1.372748137 | AT23: 1.831701636 | AU23: 6.46000433 | AV23: 7.15645647 | AW23: 0 | AX23: 0.8677984476 | AY23: 67.3986969 | AZ23: 1 | BA23: 1 | BB23: 2 | BC23: 0
A24: 18 | B24: 15.53896427 | C24: 3.466711044 | D24: 5.767585278 | E24: 7.523090839 | F24: 4.732313633 | G24: 4.896687031 | H24: 8.135168076 | I24: 8.039770126 | J24: 3.647064447 | K24: 0 | L24: 0 | M24: 0 | N24: 1.530034423 | O24: 0 | P24: 2.428873777 | Q24: 1.071958423 | R24: 3.934639931 | S24: 1.558080673 | T24: 5.175739765 | U24: 7.235480785 | V24: 1.751879334 | W24: 2.304055691 | X24: 1.092066407 | Y24: 4.089400768 | Z24: 3.178188086 | AA24: 3.796479225 | AB24: 0.6603664756 | AC24: 0.3755100071 | AD24: 4.471934795 | AE24: 2.826390743 | AF24: 1.835846782 | AG24: 4.972758293 | AH24: 0.7167905569 | AI24: 0.05989994854 | AJ24: 6.70406723 | AK24: 4.035096169 | AL24: 3.088912964 | AM24: 0.6828269958 | AN24: 0.362731874 | AO24: 3.484678268 | AP24: 0.7287277579 | AQ24: 0.4956347048 | AR24: 0.919300437 | AS24: 0.8343442678 | AT24: 1.118172526 | AU24: 6.077860355 | AV24: 6.789160252 | AW24: 5.197649479 | AX24: 1.863080025 | AY24: 55.70727539 | AZ24: 1 | BA24: 1 | BB24: 2 | BC24: 0
A25: 19 | B25: 15.10562038 | C25: 3.402306557 | D25: 4.416296482 | E25: 3.044822693 | F25: 7.727980614 | G25: 5.14226532 | H25: 8.094528198 | I25: 7.953334808 | J25: 5.003303051 | K25: 0.3125171363 | L25: 0 | M25: 0 | N25: 1.544236541 | O25: 0.36540398 | P25: 0 | Q25: 0.5013968945 | R25: 4.173492908 | S25: 2.54035759 | T25: 3.938195944 | U25: 6.107685089 | V25: 0.4568422139 | W25: 2.679903507 | X25: 0.3441969156 | Y25: 4.265172482 | Z25: 4.602045059 | AA25: 6.163695812 | AB25: 1.933468223 | AC25: 0.8584145308 | AD25: 3.857414961 | AE25: 1.550522804 | AF25: 1.179793358 | AG25: 1.048222303 | AH25: 1.515013576 | AI25: 0.3581754565 | AJ25: 5.783220291 | AK25: 3.284296036 | AL25: 3.37537694 | AM25: 1.045885205 | AN25: 0.6876785755 | AO25: 2.450013161 | AP25: 0 | AQ25: 0 | AR25: 0.9941170216 | AS25: 0.6921429038 | AT25: 2.02063036 | AU25: 6.715202808 | AV25: 7.254505634 | AW25: 3.077878237 | AX25: 3.674827099 | AY25: 64.48284149 | AZ25: 1 | BA25: 7 | BB25: 2 | BC25: 20
A26: 20 | B26: 14.35088539 | C26: 3.466711044 | D26: 6.090920448 | E26: 4.277574539 | F26: 7.861912251 | G26: 8.239222527 | H26: 5.825320721 | I26: 5.700883389 | J26: 8.009925842 | K26: 1.365956068 | L26: 0 | M26: 2.028023481 | N26: 2.50944066 | O26: 3.129904985 | P26: 1.801887393 | Q26: 3.190624237 | R26: 5.113320827 | S26: 4.145309925 | T26: 5.706983089 | U26: 8.041470528 | V26: 0 | W26: 5.500724316 | X26: 1.308422089 | Y26: 4.533556461 | Z26: 6.024165154 | AA26: 6.669554234 | AB26: 1.621248841 | AC26: 1.582817197 | AD26: 5.219438076 | AE26: 4.475130558 | AF26: 2.902851343 | AG26: 3.785628557 | AH26: 3.685117006 | AI26: 4.948257446 | AJ26: 8.655381203 | AK26: 6.72416687 | AL26: 6.627658367 | AM26: 1.651469946 | AN26: 1.683298945 | AO26: 5.545868874 | AP26: 0 | AQ26: 0.3096476793 | AR26: 1.307957292 | AS26: 1.630878568 | AT26: 2.033739567 | AU26: 6.870124817 | AV26: 7.555505753 | AW26: 0.03743060678 | AX26: 0 | AY26: 83.01853943 | AZ26: 1 | BA26: 6 | BB26: 2 | BC26: 16
A27: 21 | B27: 15.14074516 | C27: 3.333477497 | D27: 6.135896206 | E27: 8.26074028 | F27: 5.494384289 | G27: 5.743704319 | H27: 8.708675385 | I27: 8.661214828 | J27: 4.155508041 | K27: 0.8328577876 | L27: 0 | M27: 1.45996654 | N27: 1.390445232 | O27: 0.6635074019 | P27: 0 | Q27: 1.408535242 | R27: 3.63487339 | S27: 1.414337873 | T27: 4.465944767 | U27: 7.284343719 | V27: 0 | W27: 4.452778816 | X27: 0.9095965624 | Y27: 5.672665119 | Z27: 1.701652527 | AA27: 3.831649303 | AB27: 0 | AC27: 0.6801795363 | AD27: 5.890089512 | AE27: 4.701539993 | AF27: 4.407241821 | AG27: 3.835249662 | AH27: 3.565098286 | AI27: 4.211822033 | AJ27: 8.575201035 | AK27: 6.70170784 | AL27: 6.355916977 | AM27: 0.7371352315 | AN27: 1.87212491 | AO27: 5.39306879 | AP27: 0 | AQ27: 0.3424216509 | AR27: 0.1114441156 | AS27: 0 | AT27: 3.195659637 | AU27: 7.345565319 | AV27: 7.991085052 | AW27: 1.748393655 | AX27: 0.2871997654 | AY27: 69.30924988 | AZ27: 1 | BA27: 1 | BB27: 2 | BC27: 0
A28: 22 | B28: 12.82326603 | C28: 3.402306557 | D28: 5.585078716 | E28: 7.752806664 | F28: 5.027193546 | G28: 5.056699753 | H28: 8.264496803 | I28: 8.175245285 | J28: 4.391303539 | K28: 0.1846412569 | L28: 0 | M28: 0 | N28: 1.13550055 | O28: 2.157086849 | P28: 0 | Q28: 1.762893319 | R28: 4.01920557 | S28: 2.273571968 | T28: 4.503171444 | U28: 7.074276924 | V28: 1.522274375 | W28: 1.340263009 | X28: 1.188141823 | Y28: 4.905963898 | Z28: 3.697600126 | AA28: 3.490385056 | AB28: 0 | AC28: 0.6701731086 | AD28: 1.742564082 | AE28: 3.232899904 | AF28: 3.656130791 | AG28: 3.236685514 | AH28: 1.785622954 | AI28: 1.832887292 | AJ28: 6.67499876 | AK28: 4.10041666 | AL28: 5.952588081 | AM28: 0.1942360401 | AN28: 0.7081341743 | AO28: 3.411736727 | AP28: 0 | AQ28: 0.515822053 | AR28: 0.5694306493 | AS28: 1.22513032 | AT28: 1.683302164 | AU28: 6.513453484 | AV28: 7.112859249 | AW28: 6.127491951 | AX28: 10.53412914 | AY28: 57.03380966 | AZ28: 1 | BA28: 1 | BB28: 2 | BC28: 0
A29: 23 | B29: 14.25859261 | C29: 3.333477497 | D29: 6.516218662 | E29: 8.342188835 | F29: 5.795507431 | G29: 5.843766212 | H29: 8.763674736 | I29: 8.7320261 | J29: 4.013586044 | K29: 0.005183305126 | L29: 0 | M29: 0 | N29: 1.773296714 | O29: 0.9835887551 | P29: 0 | Q29: 1.22092557 | R29: 2.669944763 | S29: 1.90401423 | T29: 0 | U29: 7.872922421 | V29: 0.9878162742 | W29: 5.137470245 | X29: 0.03142554313 | Y29: 5.767598629 | Z29: 4.2177701 | AA29: 4.654808521 | AB29: 1.024816871 | AC29: 1.142894864 | AD29: 5.114239216 | AE29: 2.728378534 | AF29: 3.638906002 | AG29: 3.154606104 | AH29: 2.24685359 | AI29: 1.648847461 | AJ29: 7.129641056 | AK29: 5.925834179 | AL29: 7.681923389 | AM29: 1.623665333 | AN29: 1.501764774 | AO29: 4.734508514 | AP29: 1.11164999 | AQ29: 0.4866172969 | AR29: 0.8996606469 | AS29: 1.744271874 | AT29: 1.893287182 | AU29: 6.882812977 | AV29: 7.659225941 | AW29: 0 | AX29: 2.238636255 | AY29: 75.2557373 | AZ29: 1 | BA29: 1 | BB29: 2 | BC29: 0
A30: 24 | B30: 15.6586895 | C30: 3.402306557 | D30: 5.819723606 | E30: 8.125961304 | F30: 5.23729372 | G30: 5.287772179 | H30: 8.622324944 | I30: 8.535772324 | J30: 3.723858595 | K30: 0.8534199595 | L30: 0 | M30: 0 | N30: 1.214182019 | O30: 2.789562941 | P30: 0.8546934724 | Q30: 0.9481864572 | R30: 3.426653385 | S30: 0.3059511483 | T30: 1.41027379 | U30: 8.170866966 | V30: 1.801763654 | W30: 4.2299757 | X30: 0.9141501784 | Y30: 5.08556366 | Z30: 5.605815887 | AA30: 4.333866596 | AB30: 0.7696431875 | AC30: 0.8562674522 | AD30: 5.29513073 | AE30: 3.275769234 | AF30: 0 | AG30: 1.505892754 | AH30: 0.9018829465 | AI30: 1.819535851 | AJ30: 6.795919895 | AK30: 5.345295906 | AL30: 5.859368801 | AM30: 0.8602460623 | AN30: 1.196533561 | AO30: 3.384749651 | AP30: 0 | AQ30: 0 | AR30: 0.9106816053 | AS30: 1.607197523 | AT30: 2.372869968 | AU30: 6.858475685 | AV30: 7.504105091 | AW30: 3.744361162 | AX30: 1.534349442 | AY30: 80.27127838 | AZ30: 1 | BA30: 1 | BB30: 2 | BC30: 0
A31: 25 | B31: 14.39845753 | C31: 3.638278008 | D31: 7.102823257 | E31: 7.978844166 | F31: 5.188441277 | G31: 5.440961838 | H31: 8.486293793 | I31: 8.417756081 | J31: 4.586942673 | K31: 1.341268897 | L31: 0.5164075494 | M31: 0 | N31: 1.679541349 | O31: 1.263705015 | P31: 0.5932206511 | Q31: 2.075216532 | R31: 4.993983269 | S31: 2.777874947 | T31: 5.531489849 | U31: 6.547307968 | V31: 0.4339520335 | W31: 2.400962591 | X31: 2.208649397 | Y31: 5.414041042 | Z31: 5.127448559 | AA31: 4.950474739 | AB31: 0.73236835 | AC31: 1.119605422 | AD31: 2.372568369 | AE31: 3.700938225 | AF31: 3.70810461 | AG31: 3.397284985 | AH31: 0 | AI31: 2.975331783 | AJ31: 7.849065304 | AK31: 4.478052616 | AL31: 5.439508438 | AM31: 1.677671194 | AN31: 1.336063027 | AO31: 4.326276779 | AP31: 0.7752127051 | AQ31: 1.68134594 | AR31: 0.5557188392 | AS31: 1.294796348 | AT31: 2.29303813 | AU31: 6.336091518 | AV31: 7.190684795 | AW31: 3.482078552 | AX31: 1.109951973 | AY31: 68.87050629 | AZ31: 1 | BA31: 1 | BB31: 2 | BC31: 0
A32: 26 | B32: 14.67196655 | C32: 3.466711044 | D32: 7.20617342 | E32: 8.036916733 | F32: 5.32993412 | G32: 5.605167389 | H32: 8.590756416 | I32: 8.497708321 | J32: 4.60342598 | K32: 0 | L32: 0 | M32: 0 | N32: 1.756963134 | O32: 1.355888367 | P32: 0 | Q32: 1.992142558 | R32: 3.640306711 | S32: 0.1487121433 | T32: 4.938826084 | U32: 7.099573612 | V32: 1.444204569 | W32: 2.20741868 | X32: 0.5339871645 | Y32: 3.558961391 | Z32: 3.734511852 | AA32: 4.567701817 | AB32: 2.215725183 | AC32: 0.8237618208 | AD32: 5.298490524 | AE32: 3.504023552 | AF32: 6.13307333 | AG32: 4.970342636 | AH32: 3.224798918 | AI32: 4.655750751 | AJ32: 8.756408691 | AK32: 6.109633923 | AL32: 6.131353855 | AM32: 1.60703671 | AN32: 0.3887580633 | AO32: 4.76954031 | AP32: 0 | AQ32: 1.127347708 | AR32: 0.8650673628 | AS32: 1.919679999 | AT32: 1.040791631 | AU32: 6.512456894 | AV32: 7.191832066 | AW32: 3.991500378 | AX32: 0.8936372995 | AY32: 67.84375 | AZ32: 1 | BA32: 1 | BB32: 2 | BC32: 0
A33: 27 | B33: 15.70228767 | C33: 3.402306557 | D33: 5.912228584 | E33: 3.571791172 | F33: 8.049818039 | G33: 8.323523521 | H33: 5.512045383 | I33: 4.947030544 | J33: 8.139703751 | K33: 1.108958244 | L33: 0.2920393348 | M33: 0 | N33: 2.588102818 | O33: 1.720578432 | P33: 0 | Q33: 1.278807521 | R33: 5.177397728 | S33: 1.943572164 | T33: 6.176002502 | U33: 6.023901939 | V33: 1.467245102 | W33: 4.631176472 | X33: 0.9736305475 | Y33: 4.467638016 | Z33: 4.932691574 | AA33: 5.689757824 | AB33: 0.8418832421 | AC33: 1.357977986 | AD33: 5.09768486 | AE33: 3.758651257 | AF33: 4.390769005 | AG33: 4.328004837 | AH33: 3.559928656 | AI33: 4.824336529 | AJ33: 8.721915245 | AK33: 6.282335758 | AL33: 5.410244465 | AM33: 1.451575279 | AN33: 0.3144051135 | AO33: 4.942717552 | AP33: 0 | AQ33: 0 | AR33: 2.735364437 | AS33: 1.480613351 | AT33: 1.120889783 | AU33: 6.299530983 | AV33: 7.204432964 | AW33: 0 | AX33: 0 | AY33: 78.51138306 | AZ33: 1 | BA33: 6 | BB33: 2 | BC33: 16
A34: 28 | B34: 14.77278328 | C34: 3.402306557 | D34: 6.654064655 | E34: 8.697278976 | F34: 6.62395668 | G34: 6.654230118 | H34: 9.001151085 | I34: 8.933094978 | J34: 5.89217329 | K34: 0.05372293666 | L34: 0 | M34: 0 | N34: 0.5007782578 | O34: 0.5255132318 | P34: 0.3247473836 | Q34: 0 | R34: 5.610950947 | S34: 3.2360816 | T34: 6.871387482 | U34: 7.823812008 | V34: 0.5746535063 | W34: 0.7332158685 | X34: 0.3512169123 | Y34: 5.338757515 | Z34: 3.727044582 | AA34: 6.90359211 | AB34: 0.8816308379 | AC34: 0.4228808582 | AD34: 4.664243698 | AE34: 3.161077023 | AF34: 4.734134197 | AG34: 6.019672394 | AH34: 2.239198685 | AI34: 0.3169367015 | AJ34: 8.370773315 | AK34: 4.765079975 | AL34: 4.556031227 | AM34: 0.7873197794 | AN34: 0 | AO34: 5.626875401 | AP34: 0 | AQ34: 0 | AR34: 4.068014622 | AS34: 0 | AT34: 2.632071733 | AU34: 7.417469978 | AV34: 8.132061958 | AW34: 0 | AX34: 4.091011524 | AY34: 61.56429672 | AZ34: 1 | BA34: 1 | BB34: 2 | BC34: 0
A35: 29 | B35: 15.54352283 | C35: 3.259572506 | D35: 5.565279484 | E35: 3.569689512 | F35: 7.569515228 | G35: 5.358733177 | H35: 7.944434643 | I35: 7.812140942 | J35: 4.099372387 | K35: 0 | L35: 0.4182851911 | M35: 0 | N35: 2.939699173 | O35: 2.885984898 | P35: 0 | Q35: 1.732842922 | R35: 5.242661953 | S35: 2.443655491 | T35: 5.681542873 | U35: 5.629069328 | V35: 0.1798713803 | W35: 2.706472635 | X35: 2.054943562 | Y35: 3.236514807 | Z35: 5.16745472 | AA35: 5.4320364 | AB35: 0 | AC35: 0.6065299511 | AD35: 4.388636112 | AE35: 3.994374752 | AF35: 2.215644121 | AG35: 2.009595633 | AH35: 0.7777272463 | AI35: 3.592195034 | AJ35: 7.729318619 | AK35: 5.39313364 | AL35: 5.017110348 | AM35: 0 | AN35: 0 | AO35: 4.748338223 | AP35: 0 | AQ35: 0 | AR35: 0.1290778667 | AS35: 0.9294505715 | AT35: 1.907505989 | AU35: 6.554702759 | AV35: 7.236057281 | AW35: 0.7181039453 | AX35: 0 | AY35: 66.91342926 | AZ35: 1 | BA35: 7 | BB35: 2 | BC35: 20
A36: 30 | B36: 15.14134789 | C36: 3.689503908 | D36: 6.925548077 | E36: 4.346916676 | F36: 7.980233669 | G36: 5.848572254 | H36: 8.395629883 | I36: 8.311408997 | J36: 5.422474861 | K36: 2.287942171 | L36: 0 | M36: 0 | N36: 2.900801659 | O36: 3.063607454 | P36: 2.626399755 | Q36: 4.234033585 | R36: 6.388392448 | S36: 4.347047806 | T36: 6.74243784 | U36: 7.125653744 | V36: 2.084778309 | W36: 5.32630825 | X36: 2.117199183 | Y36: 6.223931313 | Z36: 6.442811489 | AA36: 7.6291008 | AB36: 2.498167276 | AC36: 1.27906096 | AD36: 6.774687767 | AE36: 6.018464088 | AF36: 5.362565994 | AG36: 5.344145775 | AH36: 5.331637383 | AI36: 5.956985474 | AJ36: 9.456188202 | AK36: 7.880576611 | AL36: 7.265116692 | AM36: 2.26943469 | AN36: 1.951039672 | AO36: 6.932735443 | AP36: 0 | AQ36: 0 | AR36: 0.04046824574 | AS36: 2.046583176 | AT36: 3.20401597 | AU36: 6.513374805 | AV36: 7.380808353 | AW36: 1.224122405 | AX36: 2.564025164 | AY36: 88.7739563 | AZ36: 1 | BA36: 7 | BB36: 2 | BC36: 20
A37: 31 | B37: 14.54350376 | C37: 3.402306557 | D37: 6.485894203 | E37: 8.042779922 | F37: 5.406249046 | G37: 5.350064754 | H37: 8.527844429 | I37: 8.425592422 | J37: 4.67154932 | K37: 0.4304847121 | L37: 0 | M37: 0 | N37: 1.97380054 | O37: 0.1987970769 | P37: 2.091292858 | Q37: 0.870136261 | R37: 2.71689868 | S37: 0.2313691378 | T37: 4.298426151 | U37: 6.003545761 | V37: 0.9206216931 | W37: 4.056402206 | X37: 0 | Y37: 1.316457272 | Z37: 2.273945332 | AA37: 5.003591061 | AB37: 0.4972702265 | AC37: 0 | AD37: 0.6468199492 | AE37: 1.675168514 | AF37: 4.909341335 | AG37: 0.9412742257 | AH37: 0.2893497348 | AI37: 2.150023222 | AJ37: 7.40941143 | AK37: 4.417949677 | AL37: 5.13233614 | AM37: 2.036343575 | AN37: 0.8866136074 | AO37: 3.809118509 | AP37: 0 | AQ37: 0.5934877992 | AR37: 0.0198775623 | AS37: 0.8576776385 | AT37: 1.460283756 | AU37: 6.359369278 | AV37: 6.930630684 | AW37: 1.677499056 | AX37: 0.7148263454 | AY37: 54.42182922 | AZ37: 1 | BA37: 1 | BB37: 2 | BC37: 0
A38: 32 | B38: 15.34345627 | C38: 3.402306557 | D38: 6.74563694 | E38: 8.254778862 | F38: 5.739022732 | G38: 5.673114777 | H38: 8.739373207 | I38: 8.670413971 | J38: 4.629775524 | K38: 1.211112261 | L38: 0 | M38: 0 | N38: 0.3978262544 | O38: 1.17640686 | P38: 0 | Q38: 3.039262533 | R38: 4.23191309 | S38: 0.6392841339 | T38: 5.234402657 | U38: 8.026074409 | V38: 0.5180423856 | W38: 1.390538931 | X38: 1.569133878 | Y38: 6.07876873 | Z38: 6.250833988 | AA38: 5.648092747 | AB38: 0.4773759544 | AC38: 0.7665563822 | AD38: 3.53208065 | AE38: 3.759367704 | AF38: 5.110548973 | AG38: 1.755687952 | AH38: 3.777568102 | AI38: 4.413920403 | AJ38: 8.748213768 | AK38: 5.915312767 | AL38: 6.891146183 | AM38: 1.398554087 | AN38: 1.165934324 | AO38: 5.585378647 | AP38: 0 | AQ38: 2.049274445 | AR38: 1.07604754 | AS38: 1.021021605 | AT38: 1.28343761 | AU38: 6.935294151 | AV38: 7.691652298 | AW38: 0 | AX38: 1.428595185 | AY38: 95.33075714 | AZ38: 1 | BA38: 1 | BB38: 2 | BC38: 0
A39: 33 | B39: 15.64343071 | C39: 3.527224541 | D39: 5.271638393 | E39: 7.782962322 | F39: 5.077961445 | G39: 5.488907337 | H39: 8.289842606 | I39: 8.169997215 | J39: 4.268742561 | K39: 0.07716778666 | L39: 0.1113477126 | M39: 0 | N39: 0.8932374716 | O39: 2.586821795 | P39: 0.5450648665 | Q39: 3.130506516 | R39: 3.483554125 | S39: 0.8972312808 | T39: 4.733026981 | U39: 6.9928298 | V39: 0.8028624058 | W39: 2.644442558 | X39: 1.587506771 | Y39: 4.616547585 | Z39: 4.0470891 | AA39: 4.917934895 | AB39: 0 | AC39: 1.341650009 | AD39: 2.452388287 | AE39: 2.534563303 | AF39: 1.54070437 | AG39: 3.523105621 | AH39: 2.460297346 | AI39: 2.425493479 | AJ39: 7.308357239 | AK39: 3.860157728 | AL39: 4.285842896 | AM39: 1.082050085 | AN39: 2.090018034 | AO39: 1.016021609 | AP39: 0 | AQ39: 0.2637075782 | AR39: 1.31464684 | AS39: 0 | AT39: 0 | AU39: 6.374432564 | AV39: 6.94010067 | AW39: 1.418614864 | AX39: 0.6031657457 | AY39: 64.62165833 | AZ39: 1 | BA39: 1 | BB39: 2 | BC39: 0
A40: 34 | B40: 15.02957058 | C40: 3.466711044 | D40: 6.389885426 | E40: 8.255032539 | F40: 5.532958984 | G40: 5.82726717 | H40: 8.803441048 | I40: 8.715226173 | J40: 4.390397072 | K40: 0.5757257342 | L40: 0 | M40: 0.003503951011 | N40: 1.809853554 | O40: 1.909730792 | P40: 1.347021818 | Q40: 2.915036201 | R40: 3.961598158 | S40: 3.774667263 | T40: 5.19240427 | U40: 8.181118011 | V40: 0.05444651097 | W40: 3.243051052 | X40: 2.456419706 | Y40: 6.067153454 | Z40: 5.573079109 | AA40: 6.830057621 | AB40: 1.775078773 | AC40: 1.772781372 | AD40: 3.961206675 | AE40: 3.907288551 | AF40: 5.081142426 | AG40: 5.749763012 | AH40: 2.579545736 | AI40: 1.76660347 | AJ40: 8.132547379 | AK40: 6.600571632 | AL40: 6.884763718 | AM40: 2.109018087 | AN40: 1.348377585 | AO40: 5.335644245 | AP40: 0 | AQ40: 0.7445619702 | AR40: 0.9336857796 | AS40: 2.445430756 | AT40: 4.224336624 | AU40: 7.454764843 | AV40: 8.199690819 | AW40: 1.953258872 | AX40: 1.750324845 | AY40: 66.76462555 | AZ40: 1 | BA40: 1 | BB40: 2 | BC40: 0
A41: 35 | B41: 14.07625771 | C41: 3.466711044 | D41: 6.66469717 | E41: 3.419161081 | F41: 7.275517464 | G41: 5.361832619 | H41: 7.725654602 | I41: 7.604864597 | J41: 4.582657814 | K41: 0.2324966043 | L41: 0.07413987815 | M41: 2.759677649 | N41: 1.844719291 | O41: 2.77854538 | P41: 1.633728623 | Q41: 2.905225992 | R41: 5.453477383 | S41: 2.582114697 | T41: 6.419644833 | U41: 5.89673996 | V41: 1.611202598 | W41: 1.308538437 | X41: 0 | Y41: 4.231685162 | Z41: 5.03308773 | AA41: 6.987375736 | AB41: 1.988293409 | AC41: 0.09501063824 | AD41: 5.278828621 | AE41: 4.898304939 | AF41: 4.653222084 | AG41: 4.874632359 | AH41: 3.784128904 | AI41: 4.628880978 | AJ41: 8.222608566 | AK41: 6.170062542 | AL41: 5.868722439 | AM41: 1.118317723 | AN41: 1.521735668 | AO41: 5.575119019 | AP41: 0 | AQ41: 0.3448518813 | AR41: 2.037267447 | AS41: 3.031343222 | AT41: 4.139986515 | AU41: 5.858951092 | AV41: 6.650076389 | AW41: 0.8708373308 | AX41: 0.5931529403 | AY41: 71.24443817 | AZ41: 1 | BA41: 7 | BB41: 2 | BC41: 20
A42: 36 | B42: 15.57586384 | C42: 3.333477497 | D42: 6.463968277 | E42: 3.647785664 | F42: 7.729335308 | G42: 5.613544941 | H42: 8.035996437 | I42: 7.890453339 | J42: 5.171343803 | K42: 0.4846807122 | L42: 0.7507596016 | M42: 0 | N42: 3.563128233 | O42: 3.213419437 | P42: 0 | Q42: 3.163716078 | R42: 5.49974823 | S42: 3.404086351 | T42: 6.308071613 | U42: 6.833286285 | V42: 0.9929401875 | W42: 3.885265589 | X42: 0 | Y42: 4.193505764 | Z42: 6.198629379 | AA42: 6.86078167 | AB42: 1.592320681 | AC42: 2.012023211 | AD42: 5.560557842 | AE42: 4.717360973 | AF42: 5.018782616 | AG42: 1.768237591 | AH42: 3.681544304 | AI42: 3.521213531 | AJ42: 8.042636871 | AK42: 6.43087101 | AL42: 6.19103241 | AM42: 0.9532009959 | AN42: 0.3295734823 | AO42: 5.75685215 | AP42: 0 | AQ42: 0 | AR42: 0.9400118589 | AS42: 1.296577096 | AT42: 1.099749088 | AU42: 6.890472889 | AV42: 7.430995941 | AW42: 0.7866916656 | AX42: 1.542124748 | AY42: 91.00113678 | AZ42: 1 | BA42: 7 | BB42: 2 | BC42: 20
A43: 37 | B43: 14.87944984 | C43: 3.333477497 | D43: 6.251521587 | E43: 7.861936092 | F43: 4.788231373 | G43: 5.36521244 | H43: 8.353154182 | I43: 8.218127251 | J43: 4.01531744 | K43: 0.3642587066 | L43: 0 | M43: 0 | N43: 0.7968546748 | O43: 1.997055054 | P43: 0.7412047982 | Q43: 1.968580246 | R43: 4.555603981 | S43: 1.238935113 | T43: 5.347324848 | U43: 6.90643549 | V43: 0 | W43: 5.821215153 | X43: 0 | Y43: 5.385847569 | Z43: 4.272312164 | AA43: 3.477932215 | AB43: 0.4374727309 | AC43: 0.9868378043 | AD43: 3.60644722 | AE43: 3.531324863 | AF43: 5.18604517 | AG43: 5.050824165 | AH43: 2.655150652 | AI43: 4.171953201 | AJ43: 8.280278206 | AK43: 5.927234173 | AL43: 6.630346775 | AM43: 2.097081661 | AN43: 0 | AO43: 5.05434227 | AP43: 0 | AQ43: 1.193528175 | AR43: 0.816788137 | AS43: 1.023748636 | AT43: 0.6274452209 | AU43: 6.520315647 | AV43: 7.28331995 | AW43: 1.381605864 | AX43: 0.2950006425 | AY43: 77.94748688 | AZ43: 1 | BA43: 1 | BB43: 2 | BC43: 0
A44: 38 | B44: 13.9484539 | C44: 3.333477497 | D44: 6.725928307 | E44: 8.010612488 | F44: 4.953565598 | G44: 5.284735203 | H44: 8.457115173 | I44: 8.342862129 | J44: 4.496939182 | K44: 1.750459909 | L44: 0 | M44: 0 | N44: 0 | O44: 0.9760286808 | P44: 2.005926847 | Q44: 1.595288754 | R44: 3.693138361 | S44: 0.4938830435 | T44: 5.015989304 | U44: 7.956251144 | V44: 0.2128474265 | W44: 5.677811146 | X44: 0.007009642199 | Y44: 5.747074604 | Z44: 4.77230072 | AA44: 5.600170135 | AB44: 0.6805240512 | AC44: 0.7871620059 | AD44: 6.240717411 | AE44: 3.200121641 | AF44: 4.732645512 | AG44: 6.136861324 | AH44: 2.0054636 | AI44: 3.802021265 | AJ44: 8.019218445 | AK44: 6.02664566 | AL44: 7.053580761 | AM44: 1.010348916 | AN44: 1.147527099 | AO44: 4.39055872 | AP44: 0 | AQ44: 1.283188224 | AR44: 1.599743724 | AS44: 1.869534135 | AT44: 2.655251503 | AU44: 6.834421158 | AV44: 7.559957504 | AW44: 1.955139637 | AX44: 0.4413237274 | AY44: 72.5912323 | AZ44: 1 | BA44: 1 | BB44: 2 | BC44: 0
A45: 39 | B45: 14.38515568 | C45: 3.259572506 | D45: 6.343996048 | E45: 7.707081318 | F45: 5.190270424 | G45: 5.496482849 | H45: 8.261845589 | I45: 8.152282715 | J45: 4.512300491 | K45: 1.061499238 | L45: 0 | M45: 0 | N45: 0 | O45: 0.2440574169 | P45: 0 | Q45: 0.2552434504 | R45: 4.040662766 | S45: 1.762956023 | T45: 4.754850388 | U45: 5.234348297 | V45: 0.1297032833 | W45: 2.226827383 | X45: 1.631454468 | Y45: 5.228832722 | Z45: 2.674053431 | AA45: 4.88777256 | AB45: 0 | AC45: 0.5569838881 | AD45: 2.372626781 | AE45: 2.914558411 | AF45: 3.400976896 | AG45: 3.97174859 | AH45: 1.512379646 | AI45: 1.023388028 | AJ45: 7.346273899 | AK45: 3.888401508 | AL45: 5.341392517 | AM45: 0.8265041709 | AN45: 0 | AO45: 3.294407606 | AP45: 0 | AQ45: 0 | AR45: 0 | AS45: 0.9575541019 | AT45: 0.1948884577 | AU45: 6.339502335 | AV45: 6.882945538 | AW45: 1.882787704 | AX45: 0 | AY45: 57.53058624 | AZ45: 1 | BA45: 1 | BB45: 2 | BC45: 0
A46: 40 | B46: 15.08982372 | C46: 3.402306557 | D46: 5.381446362 | E46: 8.20102787 | F46: 5.544100285 | G46: 5.757539272 | H46: 8.675479889 | I46: 8.53608036 | J46: 4.900690079 | K46: 0.4649796188 | L46: 0 | M46: 1.564566016 | N46: 1.055513501 | O46: 2.162025213 | P46: 1.222895622 | Q46: 3.094728708 | R46: 5.078481197 | S46: 1.135538578 | T46: 6.045480251 | U46: 7.489488125 | V46: 1.970989227 | W46: 0 | X46: 1.725813508 | Y46: 5.593685627 | Z46: 4.887726784 | AA46: 6.426554203 | AB46: 1.728295684 | AC46: 0 | AD46: 4.153492451 | AE46: 3.488687754 | AF46: 5.465012074 | AG46: 3.273150682 | AH46: 0.5619240999 | AI46: 4.057375908 | AJ46: 8.627175331 | AK46: 6.596869946 | AL46: 6.424641609 | AM46: 0 | AN46: 0 | AO46: 5.122219563 | AP46: 0 | AQ46: 0.06521487981 | AR46: 3.174334764 | AS46: 0.01926808432 | AT46: 0.9621631503 | AU46: 7.125310898 | AV46: 7.840581894 | AW46: 1.931408405 | AX46: 1.250594258 | AY46: 84.54994202 | AZ46: 1 | BA46: 1 | BB46: 2 | BC46: 0
A47: 41 | B47: 15.15881634 | C47: 3.402306557 | D47: 6.358868122 | E47: 7.787102699 | F47: 5.410329342 | G47: 5.53086853 | H47: 8.384353638 | I47: 8.265962601 | J47: 4.855619907 | K47: 0.9255105853 | L47: 0 | M47: 0 | N47: 2.307188034 | O47: 2.745188951 | P47: 0.3652481437 | Q47: 1.977377057 | R47: 5.297321796 | S47: 2.273104429 | T47: 6.376277447 | U47: 6.44924736 | V47: 0.7531370521 | W47: 2.383003235 | X47: 2.443516016 | Y47: 5.58620739 | Z47: 4.116836548 | AA47: 5.348934174 | AB47: 1.260127544 | AC47: 1.701908946 | AD47: 4.692312241 | AE47: 4.092182159 | AF47: 6.058022022 | AG47: 4.830872059 | AH47: 2.306137323 | AI47: 3.63882947 | AJ47: 8.512378693 | AK47: 6.221472263 | AL47: 6.766212463 | AM47: 1.494235873 | AN47: 1.619336486 | AO47: 5.17683506 | AP47: 0 | AQ47: 1.124124527 | AR47: 1.811058283 | AS47: 0.5337794423 | AT47: 0 | AU47: 6.741027355 | AV47: 7.448346138 | AW47: 2.506482363 | AX47: 0 | AY47: 68.93356323 | AZ47: 1 | BA47: 1 | BB47: 2 | BC47: 0
A48: 42 | B48: 15.80989552 | C48: 3.466711044 | D48: 7.126499176 | E48: 7.92808485 | F48: 4.891099453 | G48: 5.49963522 | H48: 8.45765686 | I48: 8.326428413 | J48: 4.651313305 | K48: 1.119471669 | L48: 0 | M48: 0 | N48: 2.055186987 | O48: 1.170152307 | P48: 0 | Q48: 0.8195824027 | R48: 3.963964462 | S48: 2.6971035 | T48: 4.954474449 | U48: 6.460165501 | V48: 0.8484557867 | W48: 4.94472599 | X48: 1.385593534 | Y48: 5.419492722 | Z48: 5.478802681 | AA48: 4.553996563 | AB48: 1.446457028 | AC48: 0.1504270583 | AD48: 5.48960495 | AE48: 5.127203941 | AF48: 4.976892948 | AG48: 5.804464817 | AH48: 5.128946781 | AI48: 5.548199177 | AJ48: 8.968069077 | AK48: 7.152511597 | AL48: 7.310260296 | AM48: 1.840988994 | AN48: 0.4384416044 | AO48: 6.3491745 | AP48: 0 | AQ48: 0 | AR48: 1.892475128 | AS48: 1.207600117 | AT48: 1.567792773 | AU48: 6.043463707 | AV48: 7.040149689 | AW48: 1.659412861 | AX48: 0.8328548074 | AY48: 94.8529129 | AZ48: 1 | BA48: 1 | BB48: 2 | BC48: 0
A49: 43 | B49: 13.07551575 | C49: 3.402306557 | D49: 7.064995766 | E49: 7.719214439 | F49: 5.389441013 | G49: 5.512705326 | H49: 8.273627281 | I49: 8.213795662 | J49: 4.858860493 | K49: 0 | L49: 0 | M49: 0 | N49: 1.467229366 | O49: 1.642756104 | P49: 1.422678351 | Q49: 1.357448936 | R49: 2.853261709 | S49: 1.713367701 | T49: 4.503994465 | U49: 6.257937908 | V49: 1.006289482 | W49: 1.46853447 | X49: 0 | Y49: 3.710069656 | Z49: 2.631345987 | AA49: 4.988166809 | AB49: 2.236908197 | AC49: 0.6701608896 | AD49: 4.988407612 | AE49: 4.327867985 | AF49: 4.615735054 | AG49: 2.744372845 | AH49: 2.883569002 | AI49: 4.323338985 | AJ49: 8.145195007 | AK49: 5.993495464 | AL49: 7.2515769 | AM49: 1.806869388 | AN49: 1.158400774 | AO49: 5.661279202 | AP49: 0 | AQ49: 0.3659247756 | AR49: 1.09714067 | AS49: 2.231904268 | AT49: 4.156560421 | AU49: 6.238246918 | AV49: 6.977941513 | AW49: 1.903774977 | AX49: 0 | AY49: 59.80892563 | AZ49: 1 | BA49: 1 | BB49: 2 | BC49: 0
A50: 44 | B50: 14.77732182 | C50: 3.584289551 | D50: 6.848096371 | E50: 8.416369438 | F50: 5.71343708 | G50: 6.235610008 | H50: 8.86978817 | I50: 8.785960197 | J50: 4.69256258 | K50: 0 | L50: 0 | M50: 1.999868155 | N50: 1.047840714 | O50: 2.266480684 | P50: 1.35583806 | Q50: 2.387707949 | R50: 5.328141212 | S50: 2.215173006 | T50: 6.197939396 | U50: 7.872436523 | V50: 0.7059713602 | W50: 3.283433676 | X50: 1.595123649 | Y50: 5.457661629 | Z50: 6.31977272 | AA50: 5.984392643 | AB50: 0.7024670839 | AC50: 1.15056479 | AD50: 5.209825993 | AE50: 4.399737358 | AF50: 5.373314381 | AG50: 4.29521513 | AH50: 2.991217852 | AI50: 5.127091885 | AJ50: 8.628932953 | AK50: 5.471411705 | AL50: 6.082308769 | AM50: 1.405195475 | AN50: 0.165828526 | AO50: 5.538074493 | AP50: 0 | AQ50: 0 | AR50: 0.5253660083 | AS50: 0.3728189766 | AT50: 1.361621141 | AU50: 7.012086391 | AV50: 7.731281757 | AW50: 2.173632622 | AX50: 3.51602006 | AY50: 89.73377228 | AZ50: 1 | BA50: 1 | BB50: 2 | BC50: 0
A51: 45 | B51: 15.31227207 | C51: 3.333477497 | D51: 6.300867558 | E51: 3.390720129 | F51: 7.92499733 | G51: 5.123449326 | H51: 8.16008091 | I51: 8.118873596 | J51: 5.070351124 | K51: 0.8853932023 | L51: 0 | M51: 0.4291389287 | N51: 1.615654945 | O51: 0.8687958121 | P51: 0.3311715126 | Q51: 1.814250112 | R51: 4.799407482 | S51: 2.076787472 | T51: 5.226648331 | U51: 5.280855179 | V51: 0.4244074523 | W51: 2.957660675 | X51: 0.7488890886 | Y51: 3.801880598 | Z51: 4.860534191 | AA51: 4.96313858 | AB51: 1.304244041 | AC51: 1.108335137 | AD51: 3.872363806 | AE51: 4.275058746 | AF51: 3.666080236 | AG51: 1.19451499 | AH51: 3.337560654 | AI51: 5.090502262 | AJ51: 8.451109886 | AK51: 5.453420162 | AL51: 5.270092964 | AM51: 1.732974052 | AN51: 0.6503778696 | AO51: 5.402883053 | AP51: 0 | AQ51: 0 | AR51: 1.241852283 | AS51: 0.336555481 | AT51: 1.851987839 | AU51: 6.890175819 | AV51: 7.489343643 | AW51: 3.785990477 | AX51: 0.900675118 | AY51: 73.28173065 | AZ51: 1 | BA51: 7 | BB51: 2 | BC51: 20
A52: 46 | B52: 14.93371391 | C52: 3.466711044 | D52: 6.257226467 | E52: 8.16697216 | F52: 5.417949677 | G52: 5.428119183 | H52: 8.643876076 | I52: 8.593214035 | J52: 4.864022732 | K52: 0 | L52: 0 | M52: 0 | N52: 1.775043011 | O52: 0.1252316684 | P52: 0 | Q52: 0.4100034237 | R52: 2.999403954 | S52: 0.6414321661 | T52: 0.3246669173 | U52: 6.818985462 | V52: 1.569833398 | W52: 1.097404599 | X52: 0.797072649 | Y52: 3.973288298 | Z52: 3.123201132 | AA52: 4.414966583 | AB52: 0.7883452177 | AC52: 0.8631139994 | AD52: 0 | AE52: 1.115931869 | AF52: 1.861920595 | AG52: 2.206161499 | AH52: 2.201656103 | AI52: 1.426969528 | AJ52: 6.592543602 | AK52: 2.781608105 | AL52: 1.876166821 | AM52: 0.373030901 | AN52: 0 | AO52: 2.79230237 | AP52: 0 | AQ52: 1.670058727 | AR52: 4.294043541 | AS52: 0.9703469276 | AT52: 2.373421669 | AU52: 6.5733428 | AV52: 7.288415909 | AW52: 2.471468925 | AX52: 3.724301338 | AY52: 47.12577438 | AZ52: 1 | BA52: 1 | BB52: 2 | BC52: 0
A53: 47 | B53: 14.64420605 | C53: 3.466711044 | D53: 6.248290062 | E53: 7.577674866 | F53: 5.077606678 | G53: 5.184907913 | H53: 8.138137817 | I53: 8.026535988 | J53: 3.983434439 | K53: 0.3829807937 | L53: 0 | M53: 0 | N53: 1.064590812 | O53: 2.169959784 | P53: 1.996822119 | Q53: 1.749226689 | R53: 1.637845397 | S53: 1.273089647 | T53: 1.846566558 | U53: 7.342672825 | V53: 0.4157838523 | W53: 0.5252882242 | X53: 0.672462821 | Y53: 5.589329243 | Z53: 4.788275242 | AA53: 3.857791185 | AB53: 0 | AC53: 1.21577239 | AD53: 4.366716862 | AE53: 3.497421741 | AF53: 2.24571991 | AG53: 2.567774773 | AH53: 1.550545454 | AI53: 0.977997601 | AJ53: 6.869822979 | AK53: 5.159674644 | AL53: 6.994289875 | AM53: 2.366141319 | AN53: 0.5115969181 | AO53: 3.796414852 | AP53: 0 | AQ53: 0 | AR53: 0.1473592371 | AS53: 0.1788721085 | AT53: 2.21190691 | AU53: 6.072686195 | AV53: 6.733247757 | AW53: 2.61458683 | AX53: 0.6030334234 | AY53: 71.17303467 | AZ53: 1 | BA53: 1 | BB53: 2 | BC53: 0
A54: 48 | B54: 13.76547623 | C54: 3.333477497 | D54: 5.826561451 | E54: 7.740792274 | F54: 4.993572712 | G54: 5.564282894 | H54: 8.387573242 | I54: 8.282405853 | J54: 4.297702789 | K54: 0 | L54: 0 | M54: 0 | N54: 0.3903759718 | O54: 0 | P54: 0.4093277752 | Q54: 0 | R54: 3.212595701 | S54: 2.04201889 | T54: 4.040237904 | U54: 6.693460464 | V54: 0.02569806576 | W54: 2.368765593 | X54: 1.649176478 | Y54: 5.29329586 | Z54: 4.608054161 | AA54: 5.271379471 | AB54: 0.2343570739 | AC54: 0 | AD54: 1.647937775 | AE54: 2.003961802 | AF54: 2.310817003 | AG54: 1.444325566 | AH54: 0.4775868356 | AI54: 1.232549906 | AJ54: 7.006731987 | AK54: 4.951441288 | AL54: 5.932712555 | AM54: 2.086722374 | AN54: 0 | AO54: 4.420385838 | AP54: 0 | AQ54: 0.7997971773 | AR54: 1.240150213 | AS54: 0.773326695 | AT54: 0.7137187123 | AU54: 6.328269005 | AV54: 7.183775425 | AW54: 2.564006567 | AX54: 0.4639378488 | AY54: 69.64434814 | AZ54: 1 | BA54: 1 | BB54: 2 | BC54: 0
A55: 49 | B55: 14.88720417 | C55: 3.584289551 | D55: 6.510578156 | E55: 8.232881546 | F55: 5.661275864 | G55: 5.722433567 | H55: 8.700303078 | I55: 8.60578537 | J55: 4.991070747 | K55: 1.122605562 | L55: 0 | M55: 0 | N55: 1.641318679 | O55: 1.752575636 | P55: 1.385021448 | Q55: 0.3240326047 | R55: 4.565338135 | S55: 1.513760209 | T55: 5.823734283 | U55: 6.82020092 | V55: 1.736515999 | W55: 1.939393759 | X55: 2.373645306 | Y55: 4.982620239 | Z55: 4.76570797 | AA55: 5.697490215 | AB55: 1.181117415 | AC55: 1.24145174 | AD55: 3.318569899 | AE55: 1.848337173 | AF55: 5.47286272 | AG55: 3.767199516 | AH55: 0.7454197407 | AI55: 2.381557941 | AJ55: 8.065054893 | AK55: 5.102361679 | AL55: 5.719623089 | AM55: 1.9786731 | AN55: 1.006705523 | AO55: 2.803683758 | AP55: 0 | AQ55: 0.2670276463 | AR55: 1.745190024 | AS55: 1.462891102 | AT55: 2.143009901 | AU55: 6.958399773 | AV55: 7.725846767 | AW55: 1.933945656 | AX55: 0.7112204432 | AY55: 65.45417786 | AZ55: 1 | BA55: 1 | BB55: 2 | BC55: 0
A56: 50 | B56: 14.98726463 | C56: 3.333477497 | D56: 6.269768715 | E56: 3.669718504 | F56: 7.906574726 | G56: 5.601356983 | H56: 8.257951736 | I56: 8.126794815 | J56: 5.056500435 | K56: 0 | L56: 0 | M56: 0 | N56: 0 | O56: 1.006307006 | P56: 0.8473053575 | Q56: 1.832711339 | R56: 5.940522671 | S56: 3.215593576 | T56: 6.516139507 | U56: 7.437021255 | V56: 1.504098535 | W56: 1.858204842 | X56: 1.612919688 | Y56: 5.722891331 | Z56: 6.774526119 | AA56: 7.652637959 | AB56: 1.19007206 | AC56: 0.791808188 | AD56: 6.102729797 | AE56: 5.760983467 | AF56: 5.131840229 | AG56: 5.285560608 | AH56: 4.440854549 | AI56: 5.272857666 | AJ56: 8.901262283 | AK56: 6.946934223 | AL56: 6.972995758 | AM56: 0.5025703311 | AN56: 1.118777394 | AO56: 5.095040321 | AP56: 0 | AQ56: 0.2446457893 | AR56: 1.771374226 | AS56: 1.618430257 | AT56: 1.427285075 | AU56: 6.921014786 | AV56: 7.669734001 | AW56: 0.9945505261 | AX56: 0 | AY56: 101.2384338 | AZ56: 1 | BA56: 7 | BB56: 2 | BC56: 20
A57: 51 | B57: 15.25094223 | C57: 3.333477497 | D57: 6.545758724 | E57: 7.944837093 | F57: 5.558749676 | G57: 5.70883894 | H57: 8.51595974 | I57: 8.447433472 | J57: 4.078645706 | K57: 0 | L57: 0.4327945113 | M57: 1.780611038 | N57: 1.217128038 | O57: 1.695327163 | P57: 0 | Q57: 0.3001679182 | R57: 1.800948501 | S57: 1.851112127 | T57: 3.455248117 | U57: 5.580595493 | V57: 0 | W57: 1.259295464 | X57: 1.261680007 | Y57: 2.464862108 | Z57: 4.032443523 | AA57: 4.270350456 | AB57: 1.089486957 | AC57: 0 | AD57: 2.371045828 | AE57: 1.855400443 | AF57: 0.2480215132 | AG57: 1.510186672 | AH57: 0.454829663 | AI57: 1.611639738 | AJ57: 5.339482784 | AK57: 0.3859178722 | AL57: 4.540207863 | AM57: 1.419601202 | AN57: 0.5179935098 | AO57: 2.548618793 | AP57: 0 | AQ57: 1.670536041 | AR57: 1.100383639 | AS57: 0.7649513483 | AT57: 0.7906048894 | AU57: 6.263793945 | AV57: 6.921811581 | AW57: 1.757441759 | AX57: 0.4726964831 | AY57: 62.58879089 | AZ57: 1 | BA57: 1 | BB57: 2 | BC57: 0
A58: 52 | B58: 14.44880199 | C58: 3.466711044 | D58: 6.403871536 | E58: 8.232068062 | F58: 5.548900127 | G58: 5.898839474 | H58: 8.652113914 | I58: 8.562047005 | J58: 3.566958427 | K58: 1.257099986 | L58: 0 | M58: 0 | N58: 1.376478434 | O58: 0.1038848013 | P58: 0.4562903941 | Q58: 1.614227295 | R58: 5.299257278 | S58: 0.2983081341 | T58: 5.968998432 | U58: 6.812007904 | V58: 1.532066584 | W58: 0.1121559963 | X58: 1.322026491 | Y58: 4.143218994 | Z58: 4.369046688 | AA58: 5.602314949 | AB58: 0.9113502502 | AC58: 1.079188585 | AD58: 5.531834126 | AE58: 3.908397436 | AF58: 3.28216958 | AG58: 2.71949625 | AH58: 0.6972976923 | AI58: 2.460722446 | AJ58: 7.87135601 | AK58: 4.620414257 | AL58: 4.010712147 | AM58: 1.798591971 | AN58: 1.649289727 | AO58: 5.297171593 | AP58: 0 | AQ58: 0.9022265077 | AR58: 1.135840058 | AS58: 1.67506671 | AT58: 1.6766783 | AU58: 6.847727299 | AV58: 7.480944157 | AW58: 1.471439004 | AX58: 0 | AY58: 62.22576523 | AZ58: 1 | BA58: 1 | BB58: 2 | BC58: 0
A59: 53 | B59: 15.82991505 | C59: 3.333477497 | D59: 7.426018715 | E59: 8.062458992 | F59: 5.362637997 | G59: 5.923440456 | H59: 8.561609268 | I59: 8.471104622 | J59: 5.266034126 | K59: 0.5771936774 | L59: 0 | M59: 0 | N59: 1.274968028 | O59: 1.759536266 | P59: 1.704978704 | Q59: 1.531453729 | R59: 4.999200344 | S59: 1.388748765 | T59: 5.464590073 | U59: 7.93846941 | V59: 0.7618077993 | W59: 0.4636799693 | X59: 1.936105013 | Y59: 5.054180622 | Z59: 5.878673077 | AA59: 5.717391968 | AB59: 1.774023414 | AC59: 0.563164115 | AD59: 4.782300472 | AE59: 4.383166313 | AF59: 5.935449123 | AG59: 0 | AH59: 3.466133118 | AI59: 3.33262372 | AJ59: 8.763882637 | AK59: 6.680688381 | AL59: 7.344606876 | AM59: 1.650916934 | AN59: 1.144649267 | AO59: 5.996736526 | AP59: 0 | AQ59: 0.3608283103 | AR59: 2.984974861 | AS59: 1.221715569 | AT59: 2.665067673 | AU59: 6.427517891 | AV59: 7.375894547 | AW59: 9.225377083 | AX59: 1.032494426 | AY59: 89.72609711 | AZ59: 1 | BA59: 1 | BB59: 2 | BC59: 0
A60: 54 | B60: 14.76620197 | C60: 3.466711044 | D60: 5.697324276 | E60: 7.7747612 | F60: 5.181652546 | G60: 5.489237309 | H60: 8.29567337 | I60: 8.205037117 | J60: 4.313460827 | K60: 0 | L60: 0 | M60: 0 | N60: 0.2515183389 | O60: 1.67887485 | P60: 0.8279979229 | Q60: 1.743642211 | R60: 4.668708324 | S60: 2.541195869 | T60: 5.240092278 | U60: 7.781508923 | V60: 0.7996718884 | W60: 6.053021431 | X60: 1.893921256 | Y60: 5.310852051 | Z60: 4.802044868 | AA60: 5.661497593 | AB60: 0.595579803 | AC60: 0.7121270299 | AD60: 5.214901924 | AE60: 4.272027969 | AF60: 4.439668655 | AG60: 3.905832052 | AH60: 2.647850513 | AI60: 2.637980223 | AJ60: 7.414968014 | AK60: 5.716999054 | AL60: 6.415881634 | AM60: 1.860011816 | AN60: 0.04950543866 | AO60: 6.079134464 | AP60: 0 | AQ60: 0.150203526 | AR60: 3.343635559 | AS60: 3.150541782 | AT60: 3.680828333 | AU60: 6.748765469 | AV60: 7.455904007 | AW60: 1.696526051 | AX60: 1.332318306 | AY60: 67.39968872 | AZ60: 1 | BA60: 1 | BB60: 2 | BC60: 0
A61: 55 | B61: 13.76214409 | C61: 3.402306557 | D61: 6.472708702 | E61: 4.369222641 | F61: 8.267590523 | G61: 6.029594421 | H61: 8.524742126 | I61: 8.474071503 | J61: 4.841804981 | K61: 2.143419504 | L61: 0.2438290715 | M61: 0.6274223328 | N61: 1.368792415 | O61: 1.648418903 | P61: 1.969476342 | Q61: 2.492312908 | R61: 5.610757828 | S61: 1.767714024 | T61: 6.223397255 | U61: 6.654607296 | V61: 0.3921998441 | W61: 0.9146244526 | X61: 1.547960162 | Y61: 4.848701477 | Z61: 6.100450516 | AA61: 6.563384056 | AB61: 2.122824192 | AC61: 0.7787689567 | AD61: 5.65218544 | AE61: 3.730688334 | AF61: 3.254043579 | AG61: 3.163742781 | AH61: 2.477351427 | AI61: 4.865013123 | AJ61: 8.820854187 | AK61: 5.733515263 | AL61: 6.010920525 | AM61: 0.1120173037 | AN61: 1.48011899 | AO61: 5.111605167 | AP61: 0.701800108 | AQ61: 0.1240318716 | AR61: 1.402688265 | AS61: 0 | AT61: 2.467734337 | AU61: 7.00230217 | AV61: 7.817800999 | AW61: 0.109214142 | AX61: 0.1710847318 | AY61: 85.82796478 | AZ61: 1 | BA61: 7 | BB61: 2 | BC61: 20
A62: 56 | B62: 14.95889854 | C62: 3.402306557 | D62: 6.005781651 | E62: 4.134241581 | F62: 8.023933411 | G62: 5.764770985 | H62: 8.288705826 | I62: 8.181331635 | J62: 4.878002167 | K62: 0.3222889006 | L62: 0 | M62: 2.293463945 | N62: 0.4984895289 | O62: 1.190234303 | P62: 0 | Q62: 1.004709959 | R62: 0.8050095439 | S62: 3.316141129 | T62: 0.2726177573 | U62: 6.902478218 | V62: 1.630260706 | W62: 2.91994381 | X62: 1.646920562 | Y62: 5.224391937 | Z62: 4.591878414 | AA62: 5.83604002 | AB62: 1.230095744 | AC62: 0.4250214994 | AD62: 5.389381886 | AE62: 4.137883663 | AF62: 1.760124803 | AG62: 1.285529017 | AH62: 3.534840107 | AI62: 3.95899272 | AJ62: 8.08538723 | AK62: 5.950158119 | AL62: 6.834913731 | AM62: 2.61352253 | AN62: 0.7847806811 | AO62: 4.786019802 | AP62: 0 | AQ62: 1.369769335 | AR62: 2.104939222 | AS62: 1.651603341 | AT62: 1.500492215 | AU62: 6.825155735 | AV62: 7.501094341 | AW62: 9.77808857 | AX62: 6.188982964 | AY62: 71.80461884 | AZ62: 1 | BA62: 7 | BB62: 2 | BC62: 20
A63: 57 | B63: 15.83268738 | C63: 3.638278008 | D63: 6.851523399 | E63: 8.164125443 | F63: 5.224416733 | G63: 5.702197075 | H63: 8.599579811 | I63: 8.571437836 | J63: 4.716389179 | K63: 1.035810113 | L63: 0 | M63: 0 | N63: 2.795657873 | O63: 1.835309505 | P63: 0.9350275397 | Q63: 3.65975976 | R63: 4.602303982 | S63: 2.453262806 | T63: 5.818561554 | U63: 7.018145084 | V63: 1.826660037 | W63: 3.398572922 | X63: 0.9777987003 | Y63: 4.915093899 | Z63: 5.412221432 | AA63: 5.543418884 | AB63: 2.559381247 | AC63: 2.412018299 | AD63: 5.599452972 | AE63: 4.831444263 | AF63: 5.860907078 | AG63: 4.58335495 | AH63: 4.277996063 | AI63: 4.751337528 | AJ63: 8.629343033 | AK63: 7.01200819 | AL63: 7.333025932 | AM63: 2.604973555 | AN63: 1.613613486 | AO63: 5.397413254 | AP63: 0.6909874678 | AQ63: 1.094504118 | AR63: 2.292090654 | AS63: 1.829839706 | AT63: 1.583461881 | AU63: 6.582826138 | AV63: 7.323582649 | AW63: 1.727225542 | AX63: 3.1345613 | AY63: 91.33310699 | AZ63: 1 | BA63: 1 | BB63: 2 | BC63: 0
A64: 58 | B64: 14.9186039 | C64: 3.466711044 | D64: 6.90709877 | E64: 8.269276619 | F64: 5.685881615 | G64: 5.829051018 | H64: 8.796794891 | I64: 8.626614571 | J64: 4.394175529 | K64: 0 | L64: 0 | M64: 0.1822052896 | N64: 2.072219849 | O64: 1.501001239 | P64: 0.3852609396 | Q64: 1.382286787 | R64: 4.616145611 | S64: 0.01814467274 | T64: 5.83581686 | U64: 7.200233459 | V64: 2.191834688 | W64: 0.6229382157 | X64: 1.082692623 | Y64: 4.987490654 | Z64: 3.701056242 | AA64: 3.981291771 | AB64: 1.381031513 | AC64: 0.05354397371 | AD64: 4.862771511 | AE64: 3.801533461 | AF64: 3.283118963 | AG64: 5.152369976 | AH64: 3.234575748 | AI64: 2.131179094 | AJ64: 8.476178169 | AK64: 5.974229336 | AL64: 6.611674309 | AM64: 2.104985237 | AN64: 0.154198885 | AO64: 5.35101366 | AP64: 0 | AQ64: 0 | AR64: 1.066435218 | AS64: 1.248399615 | AT64: 0.9844468832 | AU64: 7.320244312 | AV64: 7.963432312 | AW64: 1.99979043 | AX64: 0 | AY64: 65.5089798 | AZ64: 1 | BA64: 1 | BB64: 2 | BC64: 0
A65: 59 | B65: 14.72015381 | C65: 3.402306557 | D65: 6.583546638 | E65: 8.154730797 | F65: 5.691622734 | G65: 5.951701164 | H65: 8.57716465 | I65: 8.4967556 | J65: 5.174910545 | K65: 1.160568237 | L65: 0 | M65: 0 | N65: 0.411513716 | O65: 0.2329353392 | P65: 0 | Q65: 1.543297887 | R65: 2.710125685 | S65: 0.9696415663 | T65: 3.310843229 | U65: 7.269792557 | V65: 1.213661909 | W65: 4.513851166 | X65: 0.3710967004 | Y65: 5.27782011 | Z65: 4.375286102 | AA65: 4.136234283 | AB65: 0.3697008491 | AC65: 1.010129571 | AD65: 2.412226915 | AE65: 1.662514925 | AF65: 4.873332024 | AG65: 2.769379616 | AH65: 3.642103434 | AI65: 2.300157309 | AJ65: 8.16541481 | AK65: 6.106477737 | AL65: 6.474572182 | AM65: 1.117172599 | AN65: 1.439540863 | AO65: 1.919158459 | AP65: 0 | AQ65: 0.7344315648 | AR65: 0 | AS65: 0.04261548445 | AT65: 0.4970663488 | AU65: 6.675767422 | AV65: 7.459925652 | AW65: 1.932556629 | AX65: 0 | AY65: 84.65437317 | AZ65: 1 | BA65: 1 | BB65: 2 | BC65: 0
A66: 60 | B66: 15.49595261 | C66: 3.466711044 | D66: 6.13978672 | E66: 8.092258453 | F66: 4.990177631 | G66: 5.574555397 | H66: 8.567139626 | I66: 8.537519455 | J66: 4.717814445 | K66: 0.134680599 | L66: 0 | M66: 0 | N66: 1.776855707 | O66: 2.467403889 | P66: 0.3430624008 | Q66: 1.253261447 | R66: 4.89083147 | S66: 2.532904625 | T66: 5.515155792 | U66: 7.865161419 | V66: 1.822878718 | W66: 1.055546165 | X66: 1.462549567 | Y66: 6.07794857 | Z66: 3.324566841 | AA66: 6.257019997 | AB66: 0.7142785788 | AC66: 0.4800560176 | AD66: 4.871585369 | AE66: 2.831652403 | AF66: 1.748676419 | AG66: 5.787365913 | AH66: 2.099930763 | AI66: 3.025051355 | AJ66: 8.015548706 | AK66: 4.891550064 | AL66: 6.757243633 | AM66: 0 | AN66: 0.132067427 | AO66: 4.331085205 | AP66: 0 | AQ66: 0 | AR66: 3.675037861 | AS66: 1.559271812 | AT66: 0.2828780115 | AU66: 6.540964603 | AV66: 7.126975536 | AW66: 1.193313241 | AX66: 2.959165573 | AY66: 61.58836365 | AZ66: 1 | BA66: 1 | BB66: 2 | BC66: 0
A67: 61 | B67: 13.92719269 | C67: 3.402306557 | D67: 6.970831394 | E67: 7.956904888 | F67: 5.326465607 | G67: 5.796613216 | H67: 8.435136795 | I67: 8.367636681 | J67: 5.015142918 | K67: 0.7824263573 | L67: 0 | M67: 2.116423845 | N67: 0.0369024761 | O67: 1.365869522 | P67: 0 | Q67: 0.8691917062 | R67: 4.558110714 | S67: 1.140286207 | T67: 5.589036942 | U67: 7.134179115 | V67: 1.234778881 | W67: 3.234505415 | X67: 0.7574346066 | Y67: 3.968927622 | Z67: 2.683512688 | AA67: 4.289082527 | AB67: 0 | AC67: 1.167117715 | AD67: 5.284662724 | AE67: 3.062253237 | AF67: 2.528962374 | AG67: 0.5716626644 | AH67: 0.9265345335 | AI67: 2.508158445 | AJ67: 7.486866474 | AK67: 5.587396622 | AL67: 6.863167286 | AM67: 1.198563576 | AN67: 0 | AO67: 4.789843082 | AP67: 0 | AQ67: 1.075154185 | AR67: 0.6615319252 | AS67: 0.9968358874 | AT67: 2.360006094 | AU67: 6.962640285 | AV67: 7.667451382 | AW67: 1.064009905 | AX67: 1.760177374 | AY67: 64.683815 | AZ67: 1 | BA67: 1 | BB67: 2 | BC67: 0
A68: 62 | B68: 14.34638405 | C68: 3.527224541 | D68: 6.358694077 | E68: 8.106814384 | F68: 5.130678177 | G68: 5.859186649 | H68: 8.619935989 | I68: 8.571644783 | J68: 4.617341995 | K68: 0.5419185758 | L68: 0 | M68: 1.195464492 | N68: 0.7807804346 | O68: 1.281754255 | P68: 0.5890197158 | Q68: 1.658401608 | R68: 5.098746777 | S68: 0.8300892711 | T68: 5.281106949 | U68: 7.14179039 | V68: 0.5080564618 | W68: 4.400470734 | X68: 0.8836352229 | Y68: 5.306453228 | Z68: 4.896894932 | AA68: 5.226656914 | AB68: 0.6503508091 | AC68: 0.2026573569 | AD68: 4.839604855 | AE68: 3.870458603 | AF68: 5.030723572 | AG68: 0 | AH68: 3.049880743 | AI68: 2.721809626 | AJ68: 8.061008453 | AK68: 5.71946907 | AL68: 6.712898731 | AM68: 1.774448633 | AN68: 1.264641643 | AO68: 5.349692345 | AP68: 0 | AQ68: 0 | AR68: 1.457453132 | AS68: 2.04385066 | AT68: 0.8643417358 | AU68: 6.76718998 | AV68: 7.307760239 | AW68: 0.7768087983 | AX68: 1.465747118 | AY68: 75.70563507 | AZ68: 1 | BA68: 1 | BB68: 2 | BC68: 0
A69: 63 | B69: 14.23034859 | C69: 3.466711044 | D69: 6.893540382 | E69: 8.127503395 | F69: 5.338071346 | G69: 5.860874653 | H69: 8.587976456 | I69: 8.506884575 | J69: 4.90435648 | K69: 1.514477968 | L69: 0 | M69: 1.207218647 | N69: 1.350244522 | O69: 1.721261144 | P69: 1.748328209 | Q69: 1.658795476 | R69: 4.853038311 | S69: 0.9136146307 | T69: 6.218328476 | U69: 7.13828373 | V69: 0 | W69: 2.036139965 | X69: 0.08559993654 | Y69: 5.8167243 | Z69: 5.33848381 | AA69: 6.270021439 | AB69: 1.618405461 | AC69: 0.6641760468 | AD69: 3.829935789 | AE69: 3.762240887 | AF69: 1.866023183 | AG69: 3.129881859 | AH69: 1.921079159 | AI69: 3.315600157 | AJ69: 7.848945618 | AK69: 6.051622868 | AL69: 6.346310616 | AM69: 2.539103031 | AN69: 1.642715335 | AO69: 4.965341091 | AP69: 0 | AQ69: 0.5194377303 | AR69: 1.28028965 | AS69: 1.193543077 | AT69: 1.785209417 | AU69: 6.678695202 | AV69: 7.463232994 | AW69: 4.430913448 | AX69: 3.423108816 | AY69: 79.30852509 | AZ69: 1 | BA69: 1 | BB69: 2 | BC69: 0
A70: 64 | B70: 15.47537994 | C70: 3.689503908 | D70: 6.830702782 | E70: 8.21637249 | F70: 5.261555195 | G70: 5.508949757 | H70: 8.72352314 | I70: 8.660964012 | J70: 3.43547821 | K70: 0.383697778 | L70: 0 | M70: 0.5831902027 | N70: 1.112911344 | O70: 1.533488393 | P70: 0.4786245227 | Q70: 1.777850986 | R70: 3.74146843 | S70: 1.995307803 | T70: 4.600445747 | U70: 7.155844688 | V70: 0.004884207156 | W70: 1.391433597 | X70: 0.6282914281 | Y70: 4.865986824 | Z70: 4.326077938 | AA70: 3.778804064 | AB70: 1.145946741 | AC70: 1.345304847 | AD70: 3.689833164 | AE70: 3.820814848 | AF70: 3.562522888 | AG70: 3.655948877 | AH70: 3.0844841 | AI70: 3.446411371 | AJ70: 8.659678459 | AK70: 6.353243351 | AL70: 5.63889122 | AM70: 2.481316328 | AN70: 0.6241070032 | AO70: 4.289486885 | AP70: 0 | AQ70: 1.423905969 | AR70: 0.2841773033 | AS70: 2.648900032 | AT70: 2.193760395 | AU70: 6.470528126 | AV70: 7.172705173 | AW70: 3.936603785 | AX70: 0.4294053018 | AY70: 75.51270294 | AZ70: 1 | BA70: 1 | BB70: 2 | BC70: 0
A71: 65 | B71: 15.03821278 | C71: 3.527224541 | D71: 6.070966244 | E71: 8.039557457 | F71: 5.458661556 | G71: 5.291989326 | H71: 8.59948349 | I71: 8.491113663 | J71: 4.074801922 | K71: 0 | L71: 0 | M71: 0.4053152502 | N71: 1.121266246 | O71: 0.5697569251 | P71: 0 | Q71: 1.606943011 | R71: 3.27311945 | S71: 1.591153145 | T71: 4.555758953 | U71: 6.875314236 | V71: 0 | W71: 1.075520515 | X71: 0.5204666257 | Y71: 4.361068726 | Z71: 4.03762722 | AA71: 5.37245512 | AB71: 1.746717334 | AC71: 0.541201055 | AD71: 2.320868731 | AE71: 2.172668219 | AF71: 2.449347019 | AG71: 4.418479919 | AH71: 0.8345309496 | AI71: 2.219555378 | AJ71: 7.199770927 | AK71: 4.043260098 | AL71: 3.290636063 | AM71: 2.080832005 | AN71: 1.120129108 | AO71: 4.436451435 | AP71: 1.100752711 | AQ71: 0 | AR71: 1.412824512 | AS71: 0.978731811 | AT71: 1.997197628 | AU71: 6.627301216 | AV71: 7.28724575 | AW71: 0.5148942471 | AX71: 1.842846155 | AY71: 58.53929138 | AZ71: 1 | BA71: 1 | BB71: 2 | BC71: 0
A72: 66 | B72: 15.90872192 | C72: 3.402306557 | D72: 6.250602245 | E72: 8.457904816 | F72: 5.804411411 | G72: 6.053889275 | H72: 8.938118935 | I72: 8.838996887 | J72: 5.266977787 | K72: 0.2794063985 | L72: 0 | M72: 0.8009256721 | N72: 1.077360392 | O72: 0.2924006283 | P72: 0.9360652566 | Q72: 2.184673071 | R72: 5.664543152 | S72: 2.757936478 | T72: 6.479726315 | U72: 7.712377548 | V72: 1.223409414 | W72: 3.216337204 | X72: 2.092768192 | Y72: 5.9097929 | Z72: 5.632847786 | AA72: 6.865763664 | AB72: 1.802279115 | AC72: 1.841415524 | AD72: 5.345951557 | AE72: 4.449352741 | AF72: 5.650313854 | AG72: 5.707544327 | AH72: 3.637372732 | AI72: 4.476768494 | AJ72: 8.727936745 | AK72: 6.328999519 | AL72: 6.834153175 | AM72: 1.640608191 | AN72: 1.43045783 | AO72: 5.448667526 | AP72: 0 | AQ72: 0 | AR72: 1.031315923 | AS72: 0.8561872244 | AT72: 2.002751112 | AU72: 7.471682072 | AV72: 8.060407639 | AW72: 2.119716167 | AX72: 1.150664687 | AY72: 88.34584808 | AZ72: 1 | BA72: 1 | BB72: 2 | BC72: 0
A73: 67 | B73: 15.12295055 | C73: 3.527224541 | D73: 5.273015976 | E73: 4.05223465 | F73: 7.642543316 | G73: 5.310650349 | H73: 8.033456802 | I73: 7.905449867 | J73: 4.903775215 | K73: 0 | L73: 0 | M73: 0 | N73: 3.134264946 | O73: 1.209525943 | P73: 0 | Q73: 2.486378908 | R73: 4.974085808 | S73: 3.1779778 | T73: 5.692055225 | U73: 6.742974281 | V73: 1.015477419 | W73: 2.910786867 | X73: 1.156602979 | Y73: 3.854502916 | Z73: 5.892928123 | AA73: 6.541632175 | AB73: 0.948439002 | AC73: 1.267065167 | AD73: 5.439660549 | AE73: 4.017689228 | AF73: 3.213696241 | AG73: 1.934301853 | AH73: 1.991475224 | AI73: 2.958200216 | AJ73: 8.10841465 | AK73: 5.547623634 | AL73: 5.191199303 | AM73: 2.135848284 | AN73: 1.092160702 | AO73: 4.080735683 | AP73: 0 | AQ73: 0.1191438958 | AR73: 0.2275252044 | AS73: 1.978279829 | AT73: 1.086116076 | AU73: 6.625021458 | AV73: 7.282978058 | AW73: 0 | AX73: 2.398641109 | AY73: 78.47180176 | AZ73: 1 | BA73: 7 | BB73: 2 | BC73: 20
A74: 68 | B74: 14.62788773 | C74: 3.527224541 | D74: 6.703612328 | E74: 8.465037346 | F74: 5.638076305 | G74: 6.004179001 | H74: 8.893792152 | I74: 8.809753418 | J74: 5.219084263 | K74: 0 | L74: 0 | M74: 0 | N74: 1.775306821 | O74: 1.378026962 | P74: 1.627448082 | Q74: 3.073765278 | R74: 5.174976349 | S74: 1.861411095 | T74: 5.92909193 | U74: 6.883772373 | V74: 2.709036827 | W74: 2.124654531 | X74: 0.8249230385 | Y74: 4.689299583 | Z74: 5.465277195 | AA74: 4.829754829 | AB74: 0.8652465343 | AC74: 0.6149343252 | AD74: 4.040516853 | AE74: 4.403362274 | AF74: 4.307463646 | AG74: 4.231217861 | AH74: 4.128302097 | AI74: 3.874935389 | AJ74: 8.615358353 | AK74: 5.162975788 | AL74: 6.591517448 | AM74: 2.825419664 | AN74: 1.639410257 | AO74: 5.606007099 | AP74: 0 | AQ74: 0 | AR74: 0.564545095 | AS74: 1.115012288 | AT74: 0.35154742 | AU74: 7.031388283 | AV74: 7.801300049 | AW74: 0 | AX74: 0.3865606785 | AY74: 85.57749176 | AZ74: 1 | BA74: 1 | BB74: 2 | BC74: 0
A75: 69 | B75: 14.86468601 | C75: 3.402306557 | D75: 6.134672642 | E75: 3.489804745 | F75: 7.825332642 | G75: 5.469057083 | H75: 8.200546265 | I75: 8.122001648 | J75: 5.107491493 | K75: 1.071914554 | L75: 0 | M75: 0 | N75: 3.065740585 | O75: 2.194748402 | P75: 1.785140991 | Q75: 3.39763546 | R75: 4.536556721 | S75: 1.292121053 | T75: 5.505270958 | U75: 6.93242836 | V75: 1.358608484 | W75: 5.750440121 | X75: 1.816816926 | Y75: 4.738897324 | Z75: 6.442718029 | AA75: 6.954889297 | AB75: 1.787964344 | AC75: 1.976343393 | AD75: 4.871932507 | AE75: 2.631287336 | AF75: 3.243103981 | AG75: 3.360640764 | AH75: 1.547483325 | AI75: 1.396161795 | AJ75: 7.309135914 | AK75: 5.363559246 | AL75: 6.108585835 | AM75: 2.698105812 | AN75: 2.831851721 | AO75: 4.961530685 | AP75: 0 | AQ75: 1.127705455 | AR75: 1.4364959 | AS75: 1.499370098 | AT75: 1.737742662 | AU75: 6.748795509 | AV75: 7.479883194 | AW75: 2.446763754 | AX75: 1.357225657 | AY75: 84.11302948 | AZ75: 1 | BA75: 7 | BB75: 2 | BC75: 20
A76: 70 | B76: 14.40348244 | C76: 3.402306557 | D76: 6.792676449 | E76: 8.190195084 | F76: 5.572137833 | G76: 6.147021294 | H76: 8.645909309 | I76: 8.576119423 | J76: 5.475762844 | K76: 0.01491884422 | L76: 0 | M76: 0 | N76: 1.541004777 | O76: 1.230911136 | P76: 0.4319403768 | Q76: 1.360835314 | R76: 4.832530975 | S76: 1.693978667 | T76: 5.783795357 | U76: 7.396574974 | V76: 0.6331461668 | W76: 4.521042347 | X76: 2.001521587 | Y76: 6.047996998 | Z76: 5.151952267 | AA76: 4.806959152 | AB76: 1.77502358 | AC76: 1.533196926 | AD76: 5.084619522 | AE76: 4.202852249 | AF76: 4.747130871 | AG76: 5.177029133 | AH76: 3.407642603 | AI76: 3.580695629 | AJ76: 8.203166962 | AK76: 5.937092781 | AL76: 6.811006546 | AM76: 0.9846435189 | AN76: 1.207219958 | AO76: 4.821008205 | AP76: 0.2675339282 | AQ76: 0.8355679512 | AR76: 0.9625837803 | AS76: 1.791892171 | AT76: 0 | AU76: 7.134789467 | AV76: 7.827157021 | AW76: 6.530379295 | AX76: 2.218906641 | AY76: 77.18439484 | AZ76: 1 | BA76: 1 | BB76: 2 | BC76: 0
A77: 71 | B77: 14.62456417 | C77: 3.466711044 | D77: 7.003978252 | E77: 7.820301533 | F77: 4.917843342 | G77: 5.30241251 | H77: 8.390200615 | I77: 8.290026665 | J77: 4.70408392 | K77: 0 | L77: 0.1559610516 | M77: 0 | N77: 0.9421120286 | O77: 1.438199759 | P77: 1.24556756 | Q77: 1.366989732 | R77: 5.011876106 | S77: 1.546239257 | T77: 5.444067001 | U77: 7.138904572 | V77: 1.19028616 | W77: 4.154605865 | X77: 0.1576489955 | Y77: 5.764713287 | Z77: 4.852131844 | AA77: 5.117881298 | AB77: 0.3303901255 | AC77: 1.28843081 | AD77: 4.60845089 | AE77: 3.963220358 | AF77: 5.39244318 | AG77: 3.239693165 | AH77: 3.841617346 | AI77: 4.197937489 | AJ77: 8.489826202 | AK77: 5.912477493 | AL77: 7.40717268 | AM77: 2.881860495 | AN77: 0.4322837591 | AO77: 3.516921282 | AP77: 0 | AQ77: 0.2510888278 | AR77: 2.049835205 | AS77: 1.231247187 | AT77: 1.810899377 | AU77: 6.721755028 | AV77: 7.350462437 | AW77: 1.764391422 | AX77: 3.527761221 | AY77: 82.53268433 | AZ77: 1 | BA77: 1 | BB77: 2 | BC77: 0
A78: 72 | B78: 14.81873131 | C78: 3.402306557 | D78: 6.612412453 | E78: 7.988438606 | F78: 5.264840603 | G78: 5.605490208 | H78: 8.481443405 | I78: 8.413884163 | J78: 4.743463039 | K78: 0.5864712 | L78: 0 | M78: 0 | N78: 1.493880033 | O78: 2.133525848 | P78: 0 | Q78: 1.871529698 | R78: 5.604244709 | S78: 1.011332035 | T78: 6.306434631 | U78: 6.99409771 | V78: 1.044837713 | W78: 2.393199205 | X78: 1.040049434 | Y78: 5.887421608 | Z78: 4.237950802 | AA78: 5.869048119 | AB78: 0.2790687978 | AC78: 0.1914719045 | AD78: 3.782939672 | AE78: 4.052595615 | AF78: 4.417261124 | AG78: 4.999454021 | AH78: 0 | AI78: 2.483288288 | AJ78: 7.877645016 | AK78: 5.110602379 | AL78: 5.509399414 | AM78: 1.042589903 | AN78: 1.156491876 | AO78: 3.923830509 | AP78: 0 | AQ78: 0.02434048429 | AR78: 1.918561578 | AS78: 0 | AT78: 1.250964403 | AU78: 6.328697681 | AV78: 7.223462582 | AW78: 7.452002048 | AX78: 2.323968172 | AY78: 70.3042984 | AZ78: 1 | BA78: 1 | BB78: 2 | BC78: 0
A79: 73 | B79: 14.66836357 | C79: 3.333477497 | D79: 5.88485527 | E79: 4.063004494 | F79: 7.87223196 | G79: 5.849560738 | H79: 8.241447449 | I79: 8.095772743 | J79: 4.79228735 | K79: 0.8655019999 | L79: 0 | M79: 0 | N79: 1.922678113 | O79: 2.324146271 | P79: 0 | Q79: 3.978652477 | R79: 6.020422459 | S79: 1.28790164 | T79: 6.538881302 | U79: 5.946037292 | V79: 0 | W79: 3.910573244 | X79: 1.933694243 | Y79: 4.619543552 | Z79: 6.720333099 | AA79: 6.200828552 | AB79: 1.767719269 | AC79: 0.3678427935 | AD79: 4.563745975 | AE79: 3.899989605 | AF79: 4.850196362 | AG79: 3.620597124 | AH79: 2.818193674 | AI79: 4.378007412 | AJ79: 8.663551331 | AK79: 6.333336353 | AL79: 6.331982613 | AM79: 2.004718781 | AN79: 0 | AO79: 5.422545433 | AP79: 0 | AQ79: 0 | AR79: 0.8600782156 | AS79: 1.926554203 | AT79: 1.512053967 | AU79: 6.813355923 | AV79: 7.517997265 | AW79: 1.293032765 | AX79: 0.6410494447 | AY79: 101.9211807 | AZ79: 1 | BA79: 7 | BB79: 2 | BC79: 20
A80: 74 | B80: 12.07536888 | C80: 3.466711044 | D80: 5.61130619 | E80: 3.167184591 | F80: 7.354139805 | G80: 5.36693716 | H80: 7.743828297 | I80: 7.660861015 | J80: 4.638271332 | K80: 0 | L80: 0 | M80: 1.613675356 | N80: 1.842917323 | O80: 1.380100131 | P80: 0.6174829602 | Q80: 2.723877192 | R80: 4.639679909 | S80: 2.313039303 | T80: 5.562738419 | U80: 6.741521835 | V80: 2.918680906 | W80: 4.868844032 | X80: 1.526266336 | Y80: 4.149547577 | Z80: 5.915148258 | AA80: 7.301959991 | AB80: 1.428654909 | AC80: 1.251689076 | AD80: 4.993104935 | AE80: 4.242090225 | AF80: 1.970582128 | AG80: 0 | AH80: 2.898920774 | AI80: 2.808781147 | AJ80: 8.011854172 | AK80: 5.031888485 | AL80: 4.572191715 | AM80: 1.745033026 | AN80: 1.663000345 | AO80: 4.60768795 | AP80: 0 | AQ80: 0 | AR80: 1.415414572 | AS80: 1.760889888 | AT80: 1.377474546 | AU80: 6.486240864 | AV80: 7.192480564 | AW80: 4.487006664 | AX80: 0.671178937 | AY80: 86.87179565 | AZ80: 1 | BA80: 7 | BB80: 2 | BC80: 20
A81: 75 | B81: 13.38414574 | C81: 3.466711044 | D81: 6.003824711 | E81: 7.858767509 | F81: 5.495321274 | G81: 5.618424892 | H81: 8.454673767 | I81: 8.331794739 | J81: 4.543368816 | K81: 1.364627481 | L81: 0 | M81: 0 | N81: 0.5674082041 | O81: 1.082159519 | P81: 1.62983501 | Q81: 1.410087228 | R81: 4.585786819 | S81: 2.62323904 | T81: 5.452932358 | U81: 7.171033382 | V81: 0.9111081362 | W81: 0.05849546194 | X81: 2.418817997 | Y81: 4.640754223 | Z81: 5.151181221 | AA81: 5.154362202 | AB81: 1.75753963 | AC81: 0 | AD81: 3.142618895 | AE81: 2.577331781 | AF81: 5.987438202 | AG81: 2.243492842 | AH81: 1.34399879 | AI81: 3.315314293 | AJ81: 8.160945892 | AK81: 5.901376724 | AL81: 5.738821983 | AM81: 0.04754082859 | AN81: 1.029157281 | AO81: 3.908531666 | AP81: 0 | AQ81: 1.238441229 | AR81: 0.7801849246 | AS81: 1.065865755 | AT81: 2.087732077 | AU81: 6.753273964 | AV81: 7.327742577 | AW81: 8.645668983 | AX81: 0.2467629611 | AY81: 80.0532608 | AZ81: 1 | BA81: 1 | BB81: 2 | BC81: 0
A82: 76 | B82: 15.24253368 | C82: 3.466711044 | D82: 5.939748287 | E82: 8.390586853 | F82: 5.590646744 | G82: 5.720292091 | H82: 8.829244614 | I82: 8.736783981 | J82: 3.899998665 | K82: 0.5495088696 | L82: 0.5019801855 | M82: 0 | N82: 0.7714152336 | O82: 1.61850822 | P82: 0.7494939566 | Q82: 0 | R82: 2.681289196 | S82: 2.017532349 | T82: 3.242703438 | U82: 7.062170506 | V82: 0.6450698376 | W82: 4.541862011 | X82: 1.839386344 | Y82: 4.825265884 | Z82: 0 | AA82: 4.614852428 | AB82: 1.621973276 | AC82: 1.062591076 | AD82: 3.213987827 | AE82: 3.223531008 | AF82: 4.047480106 | AG82: 1.767720938 | AH82: 0.3008422256 | AI82: 1.708674073 | AJ82: 7.887984276 | AK82: 6.039944649 | AL82: 6.464485645 | AM82: 0.247723192 | AN82: 0.2880838513 | AO82: 5.108357906 | AP82: 0 | AQ82: 0.2992461622 | AR82: 1.799170494 | AS82: 2.482395172 | AT82: 1.347067952 | AU82: 7.038396358 | AV82: 7.608757973 | AW82: 2.884386539 | AX82: 1.273254037 | AY82: 80.68972015 | AZ82: 1 | BA82: 1 | BB82: 2 | BC82: 0
A83: 77 | B83: 14.2163744 | C83: 3.638278008 | D83: 7.0808568 | E83: 7.970823288 | F83: 5.135352612 | G83: 5.366816998 | H83: 8.503256798 | I83: 8.407117844 | J83: 4.176138401 | K83: 0.8577416539 | L83: 0 | M83: 0 | N83: 2.228296518 | O83: 0 | P83: 0.09646049887 | Q83: 2.280216455 | R83: 4.548434734 | S83: 2.426778316 | T83: 5.567350864 | U83: 6.707749367 | V83: 1.643545508 | W83: 2.765249729 | X83: 1.798563361 | Y83: 4.504346848 | Z83: 4.834992886 | AA83: 5.834886551 | AB83: 2.111646652 | AC83: 1.880505443 | AD83: 5.379786491 | AE83: 4.842669964 | AF83: 5.366137505 | AG83: 4.972494125 | AH83: 3.998498201 | AI83: 5.204805851 | AJ83: 8.915278435 | AK83: 6.440309048 | AL83: 7.117332458 | AM83: 0.7577167749 | AN83: 1.511630177 | AO83: 5.721361637 | AP83: 0.3851800561 | AQ83: 0 | AR83: 2.603769779 | AS83: 0.9396268725 | AT83: 3.416838646 | AU83: 6.267119884 | AV83: 7.184568882 | AW83: 0.2054192722 | AX83: 2.361417294 | AY83: 66.93151855 | AZ83: 1 | BA83: 1 | BB83: 2 | BC83: 0
A84: 78 | B84: 14.98222923 | C84: 3.527224541 | D84: 7.35424757 | E84: 8.902328491 | F84: 6.446900845 | G84: 6.67037344 | H84: 9.168240547 | I84: 9.125123978 | J84: 5.371519566 | K84: 0 | L84: 0 | M84: 0.8309313655 | N84: 1.313640833 | O84: 0.6019614339 | P84: 0.5598477721 | Q84: 2.104408026 | R84: 6.08802557 | S84: 2.952399492 | T84: 6.565860748 | U84: 8.727437019 | V84: 0 | W84: 1.503525496 | X84: 0.4555115402 | Y84: 6.577807903 | Z84: 4.855752468 | AA84: 4.646980286 | AB84: 1.166756272 | AC84: 0.1190441996 | AD84: 5.66442728 | AE84: 4.139876842 | AF84: 4.121973991 | AG84: 6.395847797 | AH84: 0 | AI84: 0.3304584026 | AJ84: 7.886826038 | AK84: 6.485527992 | AL84: 7.404638767 | AM84: 1.690187097 | AN84: 0.2278651595 | AO84: 5.787660599 | AP84: 0 | AQ84: 0 | AR84: 1.394307494 | AS84: 1.015774012 | AT84: 1.957902908 | AU84: 7.353293419 | AV84: 8.160654068 | AW84: 2.166784525 | AX84: 4.134811878 | AY84: 85.47258759 | AZ84: 1 | BA84: 1 | BB84: 2 | BC84: 0
A85: 79 | B85: 15.58586884 | C85: 3.333477497 | D85: 5.683317184 | E85: 7.565483093 | F85: 4.826895237 | G85: 4.999967575 | H85: 8.162965775 | I85: 8.002640724 | J85: 3.339971542 | K85: 0 | L85: 0 | M85: 0 | N85: 1.428595066 | O85: 1.054320693 | P85: 0 | Q85: 1.416291118 | R85: 2.179633141 | S85: 0.4585230052 | T85: 2.68674469 | U85: 4.60470438 | V85: 0.661916256 | W85: 0.9583736658 | X85: 0.2021777779 | Y85: 4.290981293 | Z85: 4.25101614 | AA85: 3.821442842 | AB85: 0.8176817298 | AC85: 0 | AD85: 2.887933731 | AE85: 3.989063025 | AF85: 4.776567459 | AG85: 3.580263376 | AH85: 1.93024087 | AI85: 4.152475834 | AJ85: 8.026637077 | AK85: 5.489824295 | AL85: 1.800841808 | AM85: 1.208494425 | AN85: 0.4170812964 | AO85: 2.443291187 | AP85: 0 | AQ85: 0 | AR85: 0 | AS85: 0.6554057002 | AT85: 0.9771819711 | AU85: 6.023616791 | AV85: 6.846001148 | AW85: 0.6984576583 | AX85: 0.5886674523 | AY85: 75.52548981 | AZ85: 1 | BA85: 1 | BB85: 2 | BC85: 0
A86: 80 | B86: 14.8513155 | C86: 3.259572506 | D86: 7.708841324 | E86: 7.98166275 | F86: 5.488859177 | G86: 5.660505772 | H86: 8.469140053 | I86: 8.390459061 | J86: 4.551664829 | K86: 0 | L86: 0.7533332705 | M86: 0 | N86: 2.425507069 | O86: 0.9792485833 | P86: 0 | Q86: 0.7574292421 | R86: 3.502677679 | S86: 1.046342373 | T86: 3.331845284 | U86: 5.864884377 | V86: 1.299265981 | W86: 3.744628668 | X86: 0.7464752197 | Y86: 1.6547966 | Z86: 2.998400927 | AA86: 4.742108822 | AB86: 1.07314384 | AC86: 0.3804611862 | AD86: 3.00944376 | AE86: 2.54208684 | AF86: 0.2713778317 | AG86: 1.79224062 | AH86: 2.131302595 | AI86: 0.6380942464 | AJ86: 6.950904369 | AK86: 4.691017628 | AL86: 6.164239883 | AM86: 1.101571918 | AN86: 1.261745334 | AO86: 3.572386265 | AP86: 0 | AQ86: 0.3819446862 | AR86: 0 | AS86: 1.613067031 | AT86: 1.676728725 | AU86: 6.176301956 | AV86: 7.047129154 | AW86: 0 | AX86: 3.996559143 | AY86: 56.55610275 | AZ86: 1 | BA86: 1 | BB86: 2 | BC86: 0
A87: 81 | B87: 14.19218254 | C87: 3.402306557 | D87: 5.558262348 | E87: 7.818448067 | F87: 5.023877621 | G87: 5.666145325 | H87: 8.324766159 | I87: 8.132597923 | J87: 4.867887974 | K87: 0.8544427156 | L87: 0 | M87: 0 | N87: 1.15933764 | O87: 1.360711455 | P87: 0.6982864738 | Q87: 0.652594924 | R87: 4.303381443 | S87: 1.125965834 | T87: 4.717107773 | U87: 7.083871365 | V87: 0.4748671949 | W87: 3.807736874 | X87: 1.633607864 | Y87: 1.273693204 | Z87: 3.966762066 | AA87: 4.119971275 | AB87: 0.5837868452 | AC87: 1.471258998 | AD87: 0.801944077 | AE87: 2.730657339 | AF87: 0.87631917 | AG87: 1.25862813 | AH87: 1.419091225 | AI87: 4.244888783 | AJ87: 7.480316162 | AK87: 3.609985113 | AL87: 4.37197876 | AM87: 0 | AN87: 0.8120807409 | AO87: 3.679908276 | AP87: 0.3003566861 | AQ87: 0 | AR87: 3.157963991 | AS87: 1.76354003 | AT87: 0.5418674946 | AU87: 6.61356163 | AV87: 7.299732685 | AW87: 1.355081201 | AX87: 2.684280396 | AY87: 61.2625885 | AZ87: 1 | BA87: 1 | BB87: 2 | BC87: 0
A88: 82 | B88: 10.65456104 | C88: 3.527224541 | D88: 6.537571907 | E88: 7.990416527 | F88: 5.473412991 | G88: 5.929322243 | H88: 8.526979446 | I88: 8.48511982 | J88: 4.948070049 | K88: 0 | L88: 0 | M88: 0.4835980237 | N88: 0.5049563646 | O88: 2.229389429 | P88: 0.8255922198 | Q88: 1.911527514 | R88: 4.60631752 | S88: 1.461037397 | T88: 5.536964417 | U88: 7.213029861 | V88: 0 | W88: 3.077696562 | X88: 1.223757863 | Y88: 4.613729477 | Z88: 4.624996185 | AA88: 4.494313717 | AB88: 0.8520668745 | AC88: 1.870952964 | AD88: 3.563299179 | AE88: 2.896425486 | AF88: 5.056108952 | AG88: 1.703480363 | AH88: 3.371631145 | AI88: 2.804862976 | AJ88: 8.083644867 | AK88: 4.836842537 | AL88: 5.842831612 | AM88: 0.410659492 | AN88: 1.206447721 | AO88: 3.960639238 | AP88: 0 | AQ88: 0 | AR88: 2.017021179 | AS88: 0.9632064104 | AT88: 2.202104807 | AU88: 6.618888378 | AV88: 7.262167931 | AW88: 2.988671064 | AX88: 2.526990175 | AY88: 65.93851471 | AZ88: 1 | BA88: 1 | BB88: 2 | BC88: 0
A89: 83 | B89: 14.12028408 | C89: 3.784705877 | D89: 7.065551758 | E89: 8.184168816 | F89: 5.224205494 | G89: 5.493931293 | H89: 8.714550018 | I89: 8.571661949 | J89: 4.035839558 | K89: 0.1215091124 | L89: 0 | M89: 0.7162024379 | N89: 1.371226907 | O89: 2.26454854 | P89: 1.544549346 | Q89: 1.66927743 | R89: 2.707707882 | S89: 2.772972345 | T89: 4.328257084 | U89: 7.307225227 | V89: 0 | W89: 1.780856371 | X89: 2.334513903 | Y89: 5.879150391 | Z89: 2.080897808 | AA89: 5.134103298 | AB89: 2.068034887 | AC89: 1.009364247 | AD89: 4.578595638 | AE89: 4.105940819 | AF89: 4.32164526 | AG89: 3.455672979 | AH89: 3.10961771 | AI89: 3.889254808 | AJ89: 8.487721443 | AK89: 6.069014549 | AL89: 6.950531006 | AM89: 1.455373883 | AN89: 0.9117081165 | AO89: 4.947695732 | AP89: 1.188973308 | AQ89: 0.2237524837 | AR89: 1.333383203 | AS89: 2.047175646 | AT89: 3.524607182 | AU89: 6.38304472 | AV89: 7.136835575 | AW89: 0 | AX89: 1.807165623 | AY89: 64.44881439 | AZ89: 1 | BA89: 1 | BB89: 2 | BC89: 0
A90: 84 | B90: 15.02578735 | C90: 3.466711044 | D90: 6.074303627 | E90: 8.284198761 | F90: 5.522200584 | G90: 5.841863632 | H90: 8.785157204 | I90: 8.678431511 | J90: 4.474070549 | K90: 0 | L90: 0 | M90: 0 | N90: 1.603752375 | O90: 2.235832214 | P90: 1.321838856 | Q90: 3.937090874 | R90: 4.568908691 | S90: 3.342008352 | T90: 5.52605629 | U90: 8.809926987 | V90: 2.351777554 | W90: 2.447957516 | X90: 1.187056184 | Y90: 4.880548954 | Z90: 4.3125844 | AA90: 4.499957085 | AB90: 2.570711136 | AC90: 0 | AD90: 5.147126675 | AE90: 2.685483456 | AF90: 5.7881217 | AG90: 5.243988037 | AH90: 1.429401755 | AI90: 2.430440903 | AJ90: 8.520112038 | AK90: 6.762262821 | AL90: 6.574308395 | AM90: 0.2324817479 | AN90: 0 | AO90: 5.914284229 | AP90: 0 | AQ90: 0 | AR90: 1.480031729 | AS90: 0.2307497114 | AT90: 0.6926127076 | AU90: 6.696095943 | AV90: 7.379336357 | AW90: 0.3085634112 | AX90: 0.8367019296 | AY90: 87.3452301 | AZ90: 1 | BA90: 1 | BB90: 2 | BC90: 0
A91: 85 | B91: 15.0447998 | C91: 3.402306557 | D91: 5.561163425 | E91: 7.397866726 | F91: 4.456612587 | G91: 5.169232368 | H91: 8.052628517 | I91: 7.915991783 | J91: 3.832513571 | K91: 0.7984299064 | L91: 0 | M91: 0 | N91: 0.9122976661 | O91: 0.4302492738 | P91: 0.8197556138 | Q91: 2.425452948 | R91: 4.609941959 | S91: 1.498905063 | T91: 4.995271206 | U91: 6.486166 | V91: 0 | W91: 1.714785457 | X91: 2.964214563 | Y91: 3.838223934 | Z91: 4.528949261 | AA91: 4.16283226 | AB91: 0.4489893615 | AC91: 0.8153137565 | AD91: 3.745281219 | AE91: 2.71953845 | AF91: 3.704864979 | AG91: 3.46145153 | AH91: 1.434673905 | AI91: 2.798784018 | AJ91: 7.480900764 | AK91: 5.041558266 | AL91: 5.890483856 | AM91: 1.486503124 | AN91: 0.8037937284 | AO91: 4.97648716 | AP91: 0 | AQ91: 0.06444837153 | AR91: 0.430518955 | AS91: 3.147448063 | AT91: 0.728171289 | AU91: 6.348950863 | AV91: 7.044437408 | AW91: 1.531956434 | AX91: 2.46781826 | AY91: 70.47756195 | AZ91: 1 | BA91: 1 | BB91: 2 | BC91: 0
A92: 86 | B92: 15.11593628 | C92: 3.584289551 | D92: 6.395776749 | E92: 8.305725098 | F92: 5.834697723 | G92: 5.769450188 | H92: 8.857546806 | I92: 8.780949593 | J92: 4.933202267 | K92: 0.7340786457 | L92: 0 | M92: 0 | N92: 1.473195076 | O92: 1.482011914 | P92: 1.33940196 | Q92: 0.01104797143 | R92: 4.543959618 | S92: 1.067769408 | T92: 5.030153751 | U92: 8.115101814 | V92: 0.5610114336 | W92: 2.010716915 | X92: 0.04845779017 | Y92: 4.755744457 | Z92: 6.574769497 | AA92: 6.566782951 | AB92: 1.700829506 | AC92: 0.4376375079 | AD92: 4.107830048 | AE92: 4.436134815 | AF92: 4.827862263 | AG92: 3.865018368 | AH92: 1.842882752 | AI92: 2.31362009 | AJ92: 8.721177101 | AK92: 6.465441227 | AL92: 6.800942421 | AM92: 1.801827073 | AN92: 0.2061129808 | AO92: 4.757843018 | AP92: 0 | AQ92: 0 | AR92: 0.3737437725 | AS92: 1.143475652 | AT92: 1.867465258 | AU92: 7.166465282 | AV92: 7.875733852 | AW92: 2.105724335 | AX92: 0 | AY92: 95.93475342 | AZ92: 1 | BA92: 1 | BB92: 2 | BC92: 0
A93: 87 | B93: 13.42405891 | C93: 3.333477497 | D93: 6.034476757 | E93: 4.166874886 | F93: 7.832347393 | G93: 5.150131702 | H93: 8.166843414 | I93: 8.110464096 | J93: 5.113986969 | K93: 1.390806556 | L93: 0 | M93: 0 | N93: 1.532978177 | O93: 1.901288509 | P93: 0 | Q93: 1.892900825 | R93: 5.464030743 | S93: 3.560668468 | T93: 5.9317379 | U93: 6.653493404 | V93: 1.396121621 | W93: 4.976601601 | X93: 0.2151425332 | Y93: 4.707843781 | Z93: 5.219481945 | AA93: 7.59112978 | AB93: 1.631681681 | AC93: 0 | AD93: 5.744813442 | AE93: 4.89425087 | AF93: 3.571089983 | AG93: 4.786590099 | AH93: 2.644679785 | AI93: 4.797347546 | AJ93: 8.650606155 | AK93: 6.603049755 | AL93: 6.924478531 | AM93: 3.089472771 | AN93: 1.090336561 | AO93: 5.16372633 | AP93: 0 | AQ93: 0 | AR93: 0 | AS93: 0.2945849299 | AT93: 3.539019108 | AU93: 6.218687534 | AV93: 7.050417423 | AW93: 0.0321579501 | AX93: 0 | AY93: 73.32256317 | AZ93: 1 | BA93: 7 | BB93: 2 | BC93: 20
A94: 88 | B94: 15.05204678 | C94: 3.466711044 | D94: 6.549048424 | E94: 7.850279808 | F94: 5.271868229 | G94: 5.485897541 | H94: 8.45660305 | I94: 8.35414505 | J94: 3.979634047 | K94: 0 | L94: 0 | M94: 0.9783896804 | N94: 1.879087329 | O94: 0.3873552382 | P94: 1.305641294 | Q94: 1.308869123 | R94: 3.196608543 | S94: 0.5515117645 | T94: 4.695879936 | U94: 7.720867634 | V94: 0 | W94: 1.718564391 | X94: 0 | Y94: 3.514996052 | Z94: 0.6690784693 | AA94: 6.302101135 | AB94: 0.6409233212 | AC94: 1.693451881 | AD94: 4.299877167 | AE94: 2.916858196 | AF94: 3.117206812 | AG94: 3.283213377 | AH94: 1.517732739 | AI94: 2.831014395 | AJ94: 7.84198904 | AK94: 5.444943428 | AL94: 6.120835304 | AM94: 0.2110970765 | AN94: 1.536546826 | AO94: 4.705629826 | AP94: 0 | AQ94: 0 | AR94: 0.1822677553 | AS94: 1.139451146 | AT94: 1.009043097 | AU94: 6.467993259 | AV94: 7.13077116 | AW94: 4.001134396 | AX94: 0.7292047739 | AY94: 71.86237335 | AZ94: 1 | BA94: 1 | BB94: 2 | BC94: 0
A95: 89 | B95: 15.83756733 | C95: 3.466711044 | D95: 5.727841377 | E95: 3.807590485 | F95: 7.95852232 | G95: 8.127470016 | H95: 5.537798882 | I95: 5.435581207 | J95: 7.884121895 | K95: 0.4461224973 | L95: 0.4403142929 | M95: 0 | N95: 2.641608477 | O95: 0.8627045751 | P95: 0 | Q95: 1.762867689 | R95: 4.822697163 | S95: 2.726868868 | T95: 4.601558685 | U95: 5.809504509 | V95: 1.227166414 | W95: 6.027212143 | X95: 0.576902926 | Y95: 4.313987732 | Z95: 4.986394882 | AA95: 6.657272816 | AB95: 1.177367926 | AC95: 0.4619776905 | AD95: 4.768165112 | AE95: 4.142162323 | AF95: 2.608353138 | AG95: 3.410651207 | AH95: 1.170938134 | AI95: 0.3519538641 | AJ95: 6.412339687 | AK95: 4.903499126 | AL95: 4.724618435 | AM95: 0 | AN95: 0.09862339497 | AO95: 5.196323872 | AP95: 0 | AQ95: 0.1428558528 | AR95: 1.325264335 | AS95: 0.5228461027 | AT95: 3.075108767 | AU95: 6.613427162 | AV95: 7.505929947 | AW95: 0.6065577269 | AX95: 3.194713354 | AY95: 65.67757416 | AZ95: 1 | BA95: 6 | BB95: 2 | BC95: 16
A96: 90 | B96: 15.47871971 | C96: 3.466711044 | D96: 6.402742863 | E96: 8.509671211 | F96: 5.889025688 | G96: 6.140744209 | H96: 8.819876671 | I96: 8.7834692 | J96: 5.458503246 | K96: 0.05242500827 | L96: 0 | M96: 0.3443499804 | N96: 1.132057071 | O96: 0.2413861603 | P96: 1.378691554 | Q96: 2.347760916 | R96: 5.457795143 | S96: 2.731043339 | T96: 6.266447544 | U96: 8.367546082 | V96: 1.70614481 | W96: 2.560997725 | X96: 0.9421508312 | Y96: 6.070662498 | Z96: 5.569905758 | AA96: 7.005941868 | AB96: 0.03549235687 | AC96: 0 | AD96: 2.627328873 | AE96: 1.739976168 | AF96: 3.185083866 | AG96: 4.366674423 | AH96: 1.854634166 | AI96: 3.134170055 | AJ96: 8.573971748 | AK96: 5.422596455 | AL96: 5.636092186 | AM96: 2.0201509 | AN96: 0.6921232939 | AO96: 5.117461681 | AP96: 0.1024001688 | AQ96: 0 | AR96: 1.287145615 | AS96: 1.337672591 | AT96: 0.7473569512 | AU96: 7.676818848 | AV96: 8.342164993 | AW96: 4.267052174 | AX96: 0.2178584784 | AY96: 85.44654083 | AZ96: 1 | BA96: 1 | BB96: 2 | BC96: 0
A97: 91 | B97: 15.91013813 | C97: 3.259572506 | D97: 5.69495821 | E97: 7.831122398 | F97: 4.8022089 | G97: 5.011660576 | H97: 8.304507256 | I97: 8.231871605 | J97: 3.680942059 | K97: 0.3221451044 | L97: 0.4370460212 | M97: 0 | N97: 0.6308969259 | O97: 1.00884819 | P97: 1.53549242 | Q97: 0 | R97: 2.611509323 | S97: 1.728977203 | T97: 1.372678876 | U97: 6.54355526 | V97: 1.699795723 | W97: 2.320054054 | X97: 1.203562975 | Y97: 6.32130909 | Z97: 3.818876743 | AA97: 5.181637764 | AB97: 1.600124717 | AC97: 1.886827111 | AD97: 3.415511131 | AE97: 0 | AF97: 4.435244083 | AG97: 6.425019264 | AH97: 2.979483604 | AI97: 1.493098736 | AJ97: 6.784637928 | AK97: 5.073194504 | AL97: 7.055223942 | AM97: 1.267843604 | AN97: 0.3286595643 | AO97: 3.185214281 | AP97: 0 | AQ97: 1.440214038 | AR97: 1.538668871 | AS97: 1.438376904 | AT97: 1.778756976 | AU97: 6.196735382 | AV97: 6.973356724 | AW97: 1.655660033 | AX97: 2.963521719 | AY97: 66.64589691 | AZ97: 1 | BA97: 1 | BB97: 2 | BC97: 0
A98: 92 | B98: 15.2323637 | C98: 3.527224541 | D98: 5.814473629 | E98: 7.793113708 | F98: 4.936620235 | G98: 5.246427536 | H98: 8.339635849 | I98: 8.265110016 | J98: 4.236293316 | K98: 1.785044074 | L98: 0 | M98: 0.5338488817 | N98: 1.318202257 | O98: 3.00192523 | P98: 2.230153084 | Q98: 2.491510391 | R98: 4.401885986 | S98: 2.160302877 | T98: 5.832378387 | U98: 7.488050461 | V98: 2.52423811 | W98: 3.2053442 | X98: 1.224716425 | Y98: 5.875229836 | Z98: 4.804124832 | AA98: 4.659961224 | AB98: 0.314334482 | AC98: 1.581333637 | AD98: 5.284451485 | AE98: 2.487998009 | AF98: 4.584606647 | AG98: 4.897657394 | AH98: 2.46693778 | AI98: 3.235704422 | AJ98: 7.931661606 | AK98: 5.891610146 | AL98: 6.959145546 | AM98: 2.198153734 | AN98: 0.3551928401 | AO98: 3.276663065 | AP98: 0.4431720972 | AQ98: 1.343816638 | AR98: 1.634538174 | AS98: 0.4900196493 | AT98: 1.655462146 | AU98: 6.303018093 | AV98: 7.249038219 | AW98: 0.9283777475 | AX98: 1.598112226 | AY98: 76.4094696 | AZ98: 1 | BA98: 1 | BB98: 2 | BC98: 0
A99: 93 | B99: 14.06290722 | C99: 3.402306557 | D99: 6.447554588 | E99: 3.453424215 | F99: 7.737055779 | G99: 5.570598602 | H99: 8.107872963 | I99: 7.985028744 | J99: 4.895060539 | K99: 0.1354752183 | L99: 0.6804563403 | M99: 0 | N99: 0.2197171301 | O99: 2.774883747 | P99: 0.5690519214 | Q99: 4.179149151 | R99: 5.977782726 | S99: 3.972551584 | T99: 6.845285416 | U99: 6.987726212 | V99: 0.5556330085 | W99: 4.978721142 | X99: 1.489294767 | Y99: 5.267306328 | Z99: 6.005932808 | AA99: 7.159441471 | AB99: 1.100839972 | AC99: 1.303495646 | AD99: 3.638527393 | AE99: 3.641383648 | AF99: 3.63411355 | AG99: 5.860227585 | AH99: 3.814384222 | AI99: 4.391614437 | AJ99: 8.470900536 | AK99: 6.266360283 | AL99: 6.424562931 | AM99: 0 | AN99: 0 | AO99: 4.036467075 | AP99: 0.9194085002 | AQ99: 0 | AR99: 0.1628118306 | AS99: 1.131651044 | AT99: 1.355708122 | AU99: 6.706085205 | AV99: 7.390229225 | AW99: 0.3279470503 | AX99: 1.265929699 | AY99: 89.20575714 | AZ99: 1 | BA99: 7 | BB99: 2 | BC99: 20
A100: 94 | B100: 15.59536934 | C100: 3.402306557 | D100: 6.09046936 | E100: 7.987150192 | F100: 5.505415916 | G100: 5.881279469 | H100: 8.511497498 | I100: 8.463477135 | J100: 3.85507822 | K100: 0 | L100: 0 | M100: 0 | N100: 1.263661981 | O100: 0.4103405476 | P100: 0.1129531041 | Q100: 1.650958896 | R100: 3.477691174 | S100: 2.211209297 | T100: 5.013185501 | U100: 7.225475788 | V100: 0 | W100: 1.778964639 | X100: 2.009455919 | Y100: 5.232616901 | Z100: 5.036501408 | AA100: 5.512907028 | AB100: 0.5309900045 | AC100: 1.651362538 | AD100: 3.701229572 | AE100: 3.229271889 | AF100: 5.360951424 | AG100: 2.699460983 | AH100: 1.689177632 | AI100: 1.870247722 | AJ100: 8.261751175 | AK100: 6.014030933 | AL100: 5.73146677 | AM100: 1.341566443 | AN100: 0.4177738726 | AO100: 5.303765297 | AP100: 0 | AQ100: 0 | AR100: 1.292393088 | AS100: 1.25169456 | AT100: 1.480846643 | AU100: 6.827106476 | AV100: 7.544369698 | AW100: 3.362446785 | AX100: 1.982277393 | AY100: 78.56165314 | AZ100: 1 | BA100: 1 | BB100: 2 | BC100: 0
A101: 95 | B101: 14.45236492 | C101: 3.333477497 | D101: 5.064427853 | E101: 8.218637466 | F101: 5.457325935 | G101: 5.893885136 | H101: 8.687380791 | I101: 8.588996887 | J101: 4.793639183 | K101: 0 | L101: 0.5046812892 | M101: 0 | N101: 1.650091529 | O101: 1.414208055 | P101: 0 | Q101: 2.368124962 | R101: 2.999226809 | S101: 2.052471876 | T101: 4.687211037 | U101: 8.417007446 | V101: 1.832835913 | W101: 1.130449653 | X101: 0 | Y101: 4.226300716 | Z101: 3.465592384 | AA101: 6.739064217 | AB101: 0 | AC101: 0.4028690159 | AD101: 3.513115883 | AE101: 2.718127251 | AF101: 2.637941837 | AG101: 3.245224476 | AH101: 1.372081757 | AI101: 2.355246544 | AJ101: 7.685835838 | AK101: 2.834232569 | AL101: 5.219225407 | AM101: 2.055983782 | AN101: 0 | AO101: 4.802064896 | AP101: 0 | AQ101: 1.266776323 | AR101: 0.2349093556 | AS101: 0.5195671916 | AT101: 1.9354527 | AU101: 7.343189716 | AV101: 8.062777519 | AW101: 3.906648159 | AX101: 1.194384456 | AY101: 52.50618362 | AZ101: 1 | BA101: 1 | BB101: 2 | BC101: 0
A102: 96 | B102: 14.8576231 | C102: 3.333477497 | D102: 6.405587673 | E102: 7.861636162 | F102: 5.265920162 | G102: 5.789141178 | H102: 8.371180534 | I102: 8.314322472 | J102: 4.668745518 | K102: 2.299687386 | L102: 0 | M102: 0 | N102: 1.173718095 | O102: 0.002463009907 | P102: 0 | Q102: 0.4931843281 | R102: 3.622925282 | S102: 1.255177259 | T102: 3.971538782 | U102: 7.047046661 | V102: 0.7300307751 | W102: 5.453390598 | X102: 1.711258054 | Y102: 4.88559866 | Z102: 4.058500767 | AA102: 5.034220695 | AB102: 0 | AC102: 0 | AD102: 4.669377804 | AE102: 3.017506838 | AF102: 2.834766388 | AG102: 4.418702126 | AH102: 2.251828909 | AI102: 4.189620018 | AJ102: 8.320342064 | AK102: 4.644793987 | AL102: 5.930668354 | AM102: 0.8969400525 | AN102: 0.1682069749 | AO102: 3.877243042 | AP102: 0 | AQ102: 0 | AR102: 1.203244567 | AS102: 0.5450755358 | AT102: 1.096002936 | AU102: 6.657866001 | AV102: 7.450576782 | AW102: 2.026091099 | AX102: 0.7782628536 | AY102: 63.52602768 | AZ102: 1 | BA102: 1 | BB102: 2 | BC102: 0
A103: 97 | B103: 15.87291241 | C103: 3.466711044 | D103: 5.150874615 | E103: 3.574297667 | F103: 7.274416924 | G103: 7.67803812 | H103: 5.338208199 | I103: 7.671080589 | J103: 5.265903473 | K103: 1.03872788 | L103: 0 | M103: 0 | N103: 3.613975048 | O103: 2.196768522 | P103: 1.246359348 | Q103: 2.710021257 | R103: 5.302126884 | S103: 3.768522024 | T103: 5.88782692 | U103: 6.409397125 | V103: 0.6496088505 | W103: 3.284445524 | X103: 1.434688091 | Y103: 5.044260025 | Z103: 5.942358971 | AA103: 7.293597221 | AB103: 2.054710627 | AC103: 0.8606931567 | AD103: 4.358719826 | AE103: 4.089500904 | AF103: 2.797536135 | AG103: 5.459226608 | AH103: 2.862939119 | AI103: 2.015230417 | AJ103: 7.497989655 | AK103: 5.724095821 | AL103: 5.611555576 | AM103: 1.022453308 | AN103: 1.9582057 | AO103: 4.022812843 | AP103: 0 | AQ103: 0 | AR103: 1.308779478 | AS103: 1.393151402 | AT103: 2.139650583 | AU103: 6.564751148 | AV103: 7.291727543 | AW103: 2.824950933 | AX103: 7.915547371 | AY103: 80.2220993 | AZ103: 1 | BA103: 5 | BB103: 2 | BC103: 12
A104: 98 | B104: 15.11720753 | C104: 3.333477497 | D104: 5.886220455 | E104: 4.132411957 | F104: 7.953659534 | G104: 8.238723755 | H104: 5.683997631 | I104: 5.710627079 | J104: 7.999904156 | K104: 1.753584146 | L104: 0.5998985171 | M104: 0 | N104: 1.981050968 | O104: 2.094825506 | P104: 1.721642256 | Q104: 3.876051188 | R104: 5.829634666 | S104: 4.304310799 | T104: 6.114136696 | U104: 8.010709763 | V104: 1.2284168 | W104: 4.969184875 | X104: 2.446713686 | Y104: 5.17728138 | Z104: 5.50366497 | AA104: 4.550312042 | AB104: 0.2639470994 | AC104: 0 | AD104: 4.767838478 | AE104: 4.053338051 | AF104: 3.70308876 | AG104: 5.489649296 | AH104: 2.948782682 | AI104: 2.661399126 | AJ104: 7.981328487 | AK104: 5.884412289 | AL104: 6.623678207 | AM104: 2.806206703 | AN104: 0.8365077376 | AO104: 4.167172909 | AP104: 1.336714864 | AQ104: 0 | AR104: 1.499331474 | AS104: 0.133288011 | AT104: 2.327592611 | AU104: 6.737784386 | AV104: 7.331084728 | AW104: 0.4034448564 | AX104: 0.8752809763 | AY104: 70.65643311 | AZ104: 1 | BA104: 6 | BB104: 2 | BC104: 16
A105: 99 | B105: 15.14879322 | C105: 3.402306557 | D105: 6.621990681 | E105: 8.187823296 | F105: 5.47087431 | G105: 5.819824696 | H105: 8.645149231 | I105: 8.550242424 | J105: 4.43852663 | K105: 0 | L105: 0 | M105: 0 | N105: 0.873050034 | O105: 1.781139135 | P105: 0 | Q105: 1.81767416 | R105: 4.157678127 | S105: 2.181459188 | T105: 5.298655033 | U105: 7.990949154 | V105: 2.23926425 | W105: 1.529541254 | X105: 1.08247447 | Y105: 6.322354317 | Z105: 5.262973309 | AA105: 4.903615475 | AB105: 1.044208884 | AC105: 1.600993156 | AD105: 3.666572809 | AE105: 3.575258732 | AF105: 3.417124033 | AG105: 2.367267609 | AH105: 1.784388185 | AI105: 0 | AJ105: 8.186470985 | AK105: 6.069065094 | AL105: 5.816432476 | AM105: 2.016141415 | AN105: 0.999637723 | AO105: 2.436272144 | AP105: 0 | AQ105: 0.8683337569 | AR105: 1.6242733 | AS105: 1.396700859 | AT105: 1.571976423 | AU105: 6.419649601 | AV105: 7.402668953 | AW105: 5.483120918 | AX105: 1.23032403 | AY105: 87.52417755 | AZ105: 1 | BA105: 1 | BB105: 2 | BC105: 0
A106: 100 | B106: 14.43391895 | C106: 3.259572506 | D106: 6.650883198 | E106: 4.390183926 | F106: 8.147348404 | G106: 5.886174679 | H106: 8.390151978 | I106: 8.405955315 | J106: 5.554080009 | K106: 1.374711514 | L106: 0 | M106: 0 | N106: 0.9391010404 | O106: 1.064526677 | P106: 0 | Q106: 2.588405609 | R106: 5.084740162 | S106: 2.45270133 | T106: 5.893173218 | U106: 7.211039543 | V106: 1.487253547 | W106: 3.859401464 | X106: 2.323925972 | Y106: 4.155950546 | Z106: 3.871203661 | AA106: 7.155382156 | AB106: 2.52808547 | AC106: 0.9389560223 | AD106: 4.875505924 | AE106: 4.177474499 | AF106: 3.500225067 | AG106: 2.669582605 | AH106: 3.077640533 | AI106: 4.249640465 | AJ106: 8.732022285 | AK106: 6.961615562 | AL106: 6.494325638 | AM106: 0.8426234126 | AN106: 0.3416410387 | AO106: 5.148900986 | AP106: 0 | AQ106: 0 | AR106: 0 | AS106: 0 | AT106: 1.803781509 | AU106: 7.045381069 | AV106: 7.797174454 | AW106: 4.748189449 | AX106: 1.766123772 | AY106: 83.65118408 | AZ106: 1 | BA106: 7 | BB106: 2 | BC106: 20
A107: 101 | B107: 15.95769787 | C107: 3.527224541 | D107: 6.501785755 | E107: 7.95068264 | F107: 5.459223747 | G107: 5.474705219 | H107: 8.527182579 | I107: 8.451201439 | J107: 3.830025434 | K107: 0 | L107: 0 | M107: 0 | N107: 0.7010337114 | O107: 1.899626493 | P107: 1.665681481 | Q107: 1.385962367 | R107: 3.933778048 | S107: 1.637689233 | T107: 4.3460989 | U107: 7.221803665 | V107: 1.044859648 | W107: 2.824271917 | X107: 0.005787627306 | Y107: 5.491796017 | Z107: 3.98529315 | AA107: 6.139008999 | AB107: 0 | AC107: 2.580688238 | AD107: 5.409864426 | AE107: 2.85047245 | AF107: 4.105614185 | AG107: 5.52369833 | AH107: 1.887860894 | AI107: 0.4868703187 | AJ107: 7.622280121 | AK107: 5.388661385 | AL107: 7.374018669 | AM107: 1.992524862 | AN107: 1.725534439 | AO107: 5.077914238 | AP107: 0 | AQ107: 0.696087122 | AR107: 1.096760631 | AS107: 2.954258442 | AT107: 0 | AU107: 6.641032696 | AV107: 7.34210062 | AW107: 1.213691115 | AX107: 1.091156363 | AY107: 76.29830933 | AZ107: 1 | BA107: 1 | BB107: 2 | BC107: 0
A108: 102 | B108: 15.28920555 | C108: 3.333477497 | D108: 5.720356941 | E108: 8.076734543 | F108: 5.540899277 | G108: 5.955733299 | H108: 8.643782616 | I108: 8.542374611 | J108: 5.490433693 | K108: 0.9734239578 | L108: 0 | M108: 0.2004994452 | N108: 0.4843798876 | O108: 1.820510507 | P108: 0.7817825675 | Q108: 1.377342701 | R108: 4.536783695 | S108: 3.764729023 | T108: 4.478038788 | U108: 7.919472694 | V108: 0.4083989859 | W108: 4.245613098 | X108: 0 | Y108: 5.473277569 | Z108: 5.040100574 | AA108: 5.424434662 | AB108: 0.6679785848 | AC108: 0 | AD108: 5.564408779 | AE108: 3.470050812 | AF108: 4.783917427 | AG108: 1.288703322 | AH108: 0 | AI108: 0 | AJ108: 7.85739994 | AK108: 5.655309677 | AL108: 6.583165169 | AM108: 1.222487569 | AN108: 0.6437791586 | AO108: 2.320376635 | AP108: 0 | AQ108: 1.621493697 | AR108: 1.163423538 | AS108: 1.376195312 | AT108: 0.2409891784 | AU108: 7.013341427 | AV108: 7.712564945 | AW108: 1.280774474 | AX108: 2.566773653 | AY108: 83.93122101 | AZ108: 1 | BA108: 1 | BB108: 2 | BC108: 0
